Workbook

Sheet Cover
A1: =CELL("address",'Input-Gen'!A1) -> '[SoW Model - Public Parks (LGIP)_APR 2017.xlsm]Input-Gen'!$A$1
D9: Brisbane City Council LGIP Schedule of Works Model Public Parks Network DRAFT
D23: Model Name: | F23: =MID(A1,FIND("[",A1)+1,LEN(A1)-(FIND("$1",A1)-FIND("]",A1)+4)) -> SoW Model - Public Parks (LGIP)_APR 2017.xlsm
D24: Last Updated: | F24: 2017-04-10T10:10:55
D25: Last Modified By: | F25: Rick Evans
C45: Admin Access Enabled? --> | F45: No
C46: v1.1

Sheet Inputs
F19: =MID(CELL("filename",A15),FIND("]",CELL("filename",A15))+1,256) -> Inputs

Sheet LGIP existing infrastructure
A1: Existing trunk infrastructure value
A2: Public parks network
C5: Local (single catchment servicing) | E5: District/Metropolitan (Brisbane wide)
B6: Catchment | C6: Land | D6: Construction | E6: Land | F6: Construction
B7: East | C7: 245080026.7 | D7: 200790025.1 | E7: 382646252.3 | F7: 1043627030
B8: North | C8: 173790345.3 | D8: 114090216.5 | E8: 379795767.5 | F8: 864518771.1
B9: South | C9: 208954068 | D9: 285739852.3 | E9: 295006862.6 | F9: 1031301151
B10: West | C10: 300506690.9 | D10: 257711624.9 | E10: 481119777.9 | F10: 1225337962
A14: Notes:
A15: Refer to the public parks and land for community facilities network extrinsic material report for details on the valuation of existing assets for the public parks network

Sheet LGIP future infrastructure
A1: LGIP ID (1) | B1: Map reference | C1: Suburb | D1: Project description | E1: Location | F1: Park apportionment class | G1: Estimated year of completion (2) | H1: Service catchment | I1: Area of land (hectares) | J1: Land cost ($) | K1: Direct embellishment cost ($) | L1: Indirect embellishment cost ($) (3) | M1: Project cost ($) (4) | N1: Embellishment contingency ($) (5) | O1: Total embellishment cost ($) (6) | P1: Value of the trunk infrastructure ($) (7) | Q1: Establishment cost ($) (8)
A2: AGR-A1-002 | B2: PCF313 | C2: Algester | D2: Acquire and embellish land to provide LOCAL RECREATION infrastructure | E2: Part of 2 lots adjoining Pardalote Park D0857, with future road frontage to new park provided | F2: Local | G2: 2021 - 2026 | H2: South | I2: 0.66 | J2: 990000 | K2: 229426 | L2: 39002 | M2: 34896 | N2: 45499 | O2: 348822 | P2: 1338822 | Q2: 1338822
A3: AGR-A1-003 | B3: PCF313 | C3: Algester | D3: Acquire and embellish land to provide LOCAL RECREATION infrastructure | E3: Land adjoining and to the north, north-west and west of Busby St Park, D3512 | F3: Local | G3: 2021 - 2026 | H3: South | I3: 1 | J3: 1500000 | K3: 333335 | L3: 56667 | M3: 50700 | N3: 66105 | O3: 506807 | P3: 2006807 | Q3: 2006807
A4: AGR-A1-010 | B4: PCF313 | C4: Algester | D4: Acquire and embellish land to provide LOCAL RECREATION infrastructure | E4: Part take of 15 and 25 Dakar Rd (L.40 RP90981 and L.10 RP90981) to add to Mt Tamborine Avenue Park D2074 | F4: Local | G4: 2021 - 2026 | H4: South | I4: 1.16976 | J4: 935808 | K4: 385216 | L4: 65487 | M4: 58591 | N4: 76394 | O4: 585688 | P4: 1521496 | Q4: 1521496
A5: ALB-A1-001 | B5: PCF153 | C5: Albion | D5: Acquire and embellish land to provide LOCAL RECREATION infrastructure | E5: Albion Road Flourmill Site (land at north-west corner of Albion Road and Hudson Road) | F5: Local | G5: 2016 - 2021 | H5: North | I5: 0.2 | J5: 6000000 | K5: 88843 | L5: 15103 | M5: 13513 | N5: 8809 | O5: 126268 | P5: 6126268 | Q5: 6126268
A6: ALB-A1-002 | B6: PCF153 | C6: Albion | D6: Acquire and embellish land to provide LOCAL RECREATION infrastructure | E6: Part take of 69 Lever St/ L2 RP 127715 & 43 Burdett St/L1 RP 801651 | F6: Local | G6: 2016 - 2021 | H6: North | I6: 0.26 | J6: 2600000 | K6: 107180 | L6: 18221 | M6: 16302 | N6: 10628 | O6: 152330 | P6: 2752330 | Q6: 2752330
A7: ASC-A1-001 | B7: PCF154 | C7: Ascot | D7: Acquire and embellish land to provide LOCAL RECREATION infrastructure | E7: Land between existing sections of Ascot Park D0166. L.2 SL.2082 & L.1 RP.44233, 200 & 206 Lancaster Road. | F7: Local | G7: 2016 - 2021 | H7: North | I7: 1.1122 | J7: 111220 | K7: 367625 | L7: 62496 | M7: 55916 | N7: 36453 | O7: 522489 | P7: 633709 | Q7: 633709
A8: ASC-A1-002 | B8: PCF154 | C8: Ascot | D8: Acquire and embellish land to provide LOCAL RECREATION infrastructure | E8: Land within Eagle Farm racecourse facing Nudgee Rd between Hampden St and Lamington Av. Part of L.6 SP.258055 | F8: Local | G8: 2016 - 2021 | H8: North | I8: 0.5 | J8: 500000 | K8: 180527 | L8: 30690 | M8: 27458 | N8: 17901 | O8: 256576 | P8: 756576 | Q8: 756576
A9: ASP-A8-001 | B9: PCF92 | C9: Aspley | D9: Acquire and embellish land to provide DISTRICT OR METRO ACCESS/RECREATION CORRIDOR PARK | E9: Little Cabbage Tree Creek and southern side of Cabbage Tree Creek Corridors within Aspley State High and Aspley Special School land | F9: District | G9: 2021 - 2026 | H9: North | I9: 1.2 | J9: 120000 | K9: 282623 | L9: 48046 | M9: 42987 | N9: 56048 | O9: 429704 | P9: 549704 | Q9: 549704
A10: ASP-A8-002 | B10: PCF92 | C10: Aspley | D10: Acquire and embellish land to provide DISTRICT OR METRO ACCESS/RECREATION CORRIDOR PARK | E10: Land along Little Cabbage Tree Creek between Hawera Crescent Park D0820 and Railton Street Park D1528 | F10: District | G10: 2021 - 2026 | H10: West | I10: 0.8 | J10: 320000 | K10: 208600 | L10: 35462 | M10: 31728 | N10: 41369 | O10: 317159 | P10: 637159 | Q10: 637159
A11: BDL-A1-002 | B11: PCF73 | C11: Boondall | D11: Acquire and embellish land to provide LOCAL RECREATION infrastructure | E11: Land adjoining Barlow Place Park D0239 to the north, providing extensive road frontage from future extension of Sean Street | F11: Local | G11: 2016 - 2021 | H11: North | I11: 0.49211 | J11: 393688 | K11: 178116 | L11: 30280 | M11: 27091 | N11: 17662 | O11: 253149 | P11: 646837 | Q11: 646837
A12: BDL-E1-010 | B12: PCF93 | C12: Boondall | D12: Provide LOCAL RECREATION infrastructure | E12: Laar Crescent Park D0930 | F12: Local | G12: 2016 - 2021 | H12: North | I12: 0.15 | J12: 0 | K12: 376683 | L12: 64036 | M12: 57294 | N12: 37351 | O12: 535364 | P12: 535364 | Q12: 535364
A13: BHI-E5-001 | B13: PCF52 | C13: Bald Hills | D13: Provide DISTRICT SPORT infrastructure | E13: Dickson Street Park D1600 Fitzgibbon Masterplan Area B | F13: District | G13: 2016 - 2021 | H13: North | I13: 10 | J13: 0 | K13: 7619541 | L13: 1295322 | M13: 1158932 | N13: 755535 | O13: 10829330 | P13: 10829330 | Q13: 10829330
A14: BOH-E1-001 | B14: PCF173 | C14: Bowen Hills | D14: Provide LOCAL RECREATION infrastructure | E14: Hurworth St Park D3833 | F14: Local | G14: 2016 - 2021 | H14: North | I14: 0.25 | J14: 0 | K14: 383006 | L14: 65111 | M14: 58255 | N14: 37978 | O14: 544350 | P14: 544350 | Q14: 544350
A15: BRD-A1-001 | B15: PCF72 | C15: Bridgeman Downs | D15: Acquire and embellish land to provide LOCAL RECREATION infrastructure | E15: Emerging Community land north-west of Retreat Street, South of Roghan Road and East of Bridgeman Road | F15: Local | G15: 2016 - 2021 | H15: West | I15: 1 | J15: 1750000 | K15: 333335 | L15: 56667 | M15: 50700 | N15: 33053 | O15: 473755 | P15: 2223755 | Q15: 2223755
A16: BRD-A1-002 | B16: PCF91 | C16: Bridgeman Downs | D16: Acquire and embellish land to provide LOCAL RECREATION infrastructure | E16: Land between Idonia Street and Cabbage Tree Creek - adjoining Tallowwood Place Park D1328 | F16: Local | G16: 2016 - 2021 | H16: West | I16: 1 | J16: 100000 | K16: 333335 | L16: 56667 | M16: 50700 | N16: 33053 | O16: 473755 | P16: 573755 | Q16: 573755
A17: BRD-A8-001 | B17: PCF91 | C17: Bridgeman Downs | D17: Acquire and embellish land to provide DISTRICT OR METRO ACCESS/RECREATION CORRIDOR PARK | E17: West side of Cabbage Tree Creek, south of Albany Creek Road | F17: District | G17: 2021 - 2026 | H17: West | I17: 2 | J17: 200000 | K17: 430668 | L17: 73214 | M17: 65505 | N17: 85408 | O17: 654794 | P17: 854794 | Q17: 854794
A18: BRD-U3-010 | B18: PCF91 | C18: Bridgeman Downs | D18: Upgrade existing park infrastructure to value of up to $500k (District) | E18: Darien Street Park (No.29) D1757 | F18: District | G18: 2016 - 2021 | H18: West | I18: 1 | J18: 0 | K18: 500000 | L18: 85000 | M18: 76050 | N18: 49579 | O18: 710629 | P18: 710629 | Q18: 710629
A19: BRG-A1-001 | B19: PCF53 | C19: Bracken Ridge | D19: Acquire and embellish land to provide LOCAL RECREATION infrastructure | E19: Land between Fabian Place Park D2495 and Strowe Place Park D2182 | F19: Local | G19: 2016 - 2021 | H19: North | I19: 1 | J19: 1200000 | K19: 333335 | L19: 56667 | M19: 50700 | N19: 33053 | O19: 473755 | P19: 1673755 | Q19: 1673755
A20: BUL-A1-001 | B20: PCF174 | C20: Bulimba | D20: Acquire and embellish land to provide LOCAL RECREATION infrastructure | E20: Land adjoining eastern boundary of Taylor Street Park (Road Reserve) D1702 | F20: Local | G20: 2016 - 2021 | H20: East | I20: 0.8 | J20: 2720000 | K20: 272212 | L20: 46276 | M20: 41403 | N20: 26992 | O20: 386883 | P20: 3106883 | Q20: 3106883
A21: BUL-A8-001 | B21: PCF173 | C21: Bulimba | D21: Acquire and embellish land to provide DISTRICT OR METRO ACCESS/RECREATION CORRIDOR PARK | E21: Riverfront land (10m from Brisbane River MHWS) - part take on lots: 41 on SP173430; 42, 43, & 44 on SP173423; 45 & 46 on SL5936; 2 on SP203291; 207, 208, 211, 212, 213, 214 & 217 on RP12639; 191, 192, 193 & 194 on SP201080; 195 & 196 on SP203290; 200 on RP856321; 201 & 203 on RP88440; 204 & 206 on SP177839; 1 on RP122191; 215 & 216 on SP180407; 190 on SP243052; 1 on SP235407. | F21: District | G21: 2016 - 2021 | H21: East | I21: 0.42 | J21: 21000000 | K21: 138278 | L21: 23507 | M21: 21032 | N21: 13711 | O21: 196529 | P21: 21196529 | Q21: 21196529
A22: BUL-A8-010 | B22: PCF174 | C22: Bulimba | D22: Acquire and embellish land to provide DISTRICT OR METRO ACCESS/RECREATION CORRIDOR PARK | E22: Riverfront land (40m from Brisbane River MHWS) on the Bulimba Barracks Site (L.24 RP813319) | F22: Metropolitan | G22: 2016 - 2021 | H22: East | I22: 2.6 | J22: 9100000 | K22: 570410 | L22: 96970 | M22: 86759 | N22: 56560 | O22: 810699 | P22: 9910699 | Q22: 9910699
A23: CDE-U3-010 | B23: PCF72 | C23: Carseldine | D23: Upgrade existing park infrastructure to value of up to $500k (District) | E23: Macaranga Crescent Park D2158 | F23: District | G23: 2016 - 2021 | H23: North | I23: 15.48 | J23: 0 | K23: 500000 | L23: 85000 | M23: 76050 | N23: 49579 | O23: 710629 | P23: 710629 | Q23: 710629
A24: CHE-U1-011 | B24: PCF113 | C24: Chermside | D24: Upgrade existing park infrastructure to the value of $1m+ (District) | E24: Burnie Brae Park D0231 | F24: District | G24: 2021 - 2026 | H24: North | I24: 3.38 | J24: 0 | K24: 1000000 | L24: 170000 | M24: 152100 | N24: 198315 | O24: 1520415 | P24: 1520415 | Q24: 1520415
A25: CHL-A7-001 | B25: PCF210 | C25: Chapel Hill | D25: Acquire and embellish land to provide LOCAL ACCESS/RECREATION corridor park | E25: Cubberla Creek Corridor linking Rebecca Street Park D0784 and Alana Court Park D0844 | F25: Local | G25: 2021 - 2026 | H25: West | I25: 0.07 | J25: 37333 | K25: 60256 | L25: 10243 | M25: 9165 | N25: 11950 | O25: 91614 | P25: 128947 | Q25: 128947
A26: CHL-A7-002 | B26: PCF210 | C26: Chapel Hill | D26: Acquire and embellish land to provide LOCAL ACCESS/RECREATION corridor park | E26: Cubberla Creek Corridor linking Alana Court Park D0844 and Ardes Street Park D1849 | F26: Local | G26: 2016 - 2021 | H26: West | I26: 0.15 | J26: 15000 | K26: 80245 | L26: 13642 | M26: 12205 | N26: 7957 | O26: 114049 | P26: 129049 | Q26: 129049
A27: CHW-U3-010 | B27: PCF112 | C27: Chermside West | D27: Upgrade existing park infrastructure to value of up to $500k (District) | E27: Kenna Street Park D0662 | F27: District | G27: 2021 - 2026 | H27: West | I27: 7.51 | J27: 0 | K27: 500000 | L27: 85000 | M27: 76050 | N27: 99158 | O27: 760208 | P27: 760208 | Q27: 760208
A28: CLF-A1-001 | B28: PCF133 | C28: Clayfield | D28: Acquire and embellish land to provide LOCAL RECREATION infrastructure | E28: Corner of Wagner Rd and Alexandra Rd | F28: Local | G28: 2016 - 2021 | H28: North | I28: 0.2 | J28: 4000000 | K28: 88843 | L28: 15103 | M28: 13513 | N28: 8809 | O28: 126268 | P28: 4126268 | Q28: 4126268
A29: CLL-A1-001 | B29: PCF195 | C29: Cannon Hill | D29: Acquire and embellish land to provide LOCAL RECREATION infrastructure | E29: Part take of L.20 RP.179463, centrally located within the Low-medium Density Residential area of the site | F29: Local | G29: 2021 - 2026 | H29: East | I29: 0.25 | J29: 1875000 | K29: 104124 | L29: 17701 | M29: 15837 | N29: 20649 | O29: 158311 | P29: 2033311 | Q29: 2033311
A30: CLL-A1-010 | B30: PCF195 | C30: Cannon Hill | D30: Acquire and embellish land to provide LOCAL RECREATION infrastructure | E30: 18 Pickwick Street, Cannon Hill L.1 RP847853, 43 Meyrick Street, Cannon Hill, L.9 RP111857 and 40 Ludwick Street, L.19 RP111857, and road reserve between these lots. | F30: Local | G30: 2016 - 2021 | H30: East | I30: 0.3 | J30: 2250000 | K30: 119404 | L30: 20299 | M30: 18161 | N30: 11840 | O30: 169704 | P30: 2419704 | Q30: 2419704
A31: COO-E8-001 | B31: PCF213 | C31: Coorparoo | D31: Provide DISTRICT OR METRO ACCESS/RECREATION CORRIDOR PARK infrastructure | E31: Cooparoo Creek Reserve D0646 | F31: District | G31: 2016 - 2021 | H31: East | I31: 1.7 | J31: 0 | K31: 1355729 | L31: 230474 | M31: 206206 | N31: 134431 | O31: 1926840 | P31: 1926840 | Q31: 1926840
A32: COP-A1-001 | B32: PCF273 | C32: Coopers Plains | D32: Acquire and embellish land to provide LOCAL RECREATION infrastructure | E32: L.24, L.25, L.26, L.27, L.28 & L.29 SL10953 - 1, 3, 5 & 7 McKoy St, 19 Comer St & 30 MacDevitt St | F32: Local | G32: 2016 - 2021 | H32: South | I32: 0.42 | J32: 2520000 | K32: 156078 | L32: 26533 | M32: 23739 | N32: 15476 | O32: 221827 | P32: 2741827 | Q32: 2741827
A33: CVE-A1-001 | B33: PCF313 | C33: Calamvale | D33: Acquire and embellish land to provide LOCAL RECREATION infrastructure | E33: Southern part of L.204 RP94849, 54 Benhiam St, adjoining Peden Court Park D1451 | F33: Local | G33: 2021 - 2026 | H33: South | I33: 0.4 | J33: 700000 | K33: 149966 | L33: 25494 | M33: 22810 | N33: 29740 | O33: 228010 | P33: 928010 | Q33: 928010
A34: CVE-A1-002 | B34: PCF333 | C34: Calamvale | D34: Acquire and embellish land to provide LOCAL RECREATION infrastructure | E34: Land between Benhiam and Menser Streets | F34: Local | G34: 2021 - 2026 | H34: South | I34: 0.8686 | J34: 495826 | K34: 293177 | L34: 49840 | M34: 44592 | N34: 58141 | O34: 445751 | P34: 941576 | Q34: 941576
A35: CVE-A1-003 | B35: PCF333 | C35: Parkinson | D35: Acquire and embellish land to provide LOCAL RECREATION infrastructure | E35: Part take of southern end of L.146 & L.147 RP88878, 192 & 200 Nottingham Road - adjoining Billabong Place Park D1195 and southern side of future extension of Avondale Crescent | F35: Local | G35: 2016 - 2021 | H35: South | I35: 0.8 | J35: 1400000 | K35: 272212 | L35: 46276 | M35: 41403 | N35: 26992 | O35: 386883 | P35: 1786883 | Q35: 1786883
A36: CVE-E2-002 | B36: PCF333 | C36: Calamvale | D36: Provide DISTRICT RECREATION infrastructure | E36: Doulton Street Park D2616 | F36: District | G36: 2021 - 2026 | H36: South | I36: 3 | J36: 0 | K36: 6979589 | L36: 1186530 | M36: 1061596 | N36: 1384157 | O36: 10611872 | P36: 10611872 | Q36: 10611872
A37: DAR-U1-010 | B37: PCF270 | C37: Darra | D37: Upgrade existing park infrastructure to the value of $1m+ (District) | E37: Ducie Street Park D0327 | F37: District | G37: 2016 - 2021 | H37: South | I37: 5.55 | J37: 0 | K37: 1000000 | L37: 170000 | M37: 152100 | N37: 99158 | O37: 1421258 | P37: 1421258 | Q37: 1421258
A38: DEA-U2-010 | B38: PCF53 | C38: Deagon | D38: Upgrade existing park infrastructure to the value of $500k-$1m (District) | E38: Deagon Sportsground Park D0283 | F38: District | G38: 2016 - 2021 | H38: North | I38: 13.73 | J38: 0 | K38: 750000 | L38: 127500 | M38: 114075 | N38: 74368 | O38: 1065943 | P38: 1065943 | Q38: 1065943
A39: DOO-A1-001 | B39: PCF311 | C39: Doolandella | D39: Acquire and embellish land to provide LOCAL RECREATION infrastructure | E39: Part of 3 lots adjoining Wallaroo Way Park D1289 - west of Rockfield Road - south of Hanley's Creek | F39: Local | G39: 2016 - 2021 | H39: South | I39: 0.38 | J39: 392667 | K39: 143853 | L39: 24455 | M39: 21880 | N39: 14264 | O39: 204453 | P39: 597119 | Q39: 597119
A40: DOO-A1-002 | B40: PCF311 | C40: Doolandella | D40: Acquire and embellish land to provide LOCAL RECREATION infrastructure | E40: Land north-east of Brookside Street and Blunder Road intersection | F40: Local | G40: 2016 - 2021 | H40: South | I40: 1 | J40: 1500000 | K40: 333335 | L40: 56667 | M40: 50700 | N40: 33053 | O40: 473755 | P40: 1973755 | Q40: 1973755
A41: DOO-A1-004 | B41: PCF311 | C41: Doolandella | D41: Acquire and embellish land to provide LOCAL RECREATION infrastructure | E41: Part of 3 lots along Redhead Street | F41: Local | G41: 2016 - 2021 | H41: South | I41: 1.52194 | J41: 974042 | K41: 492847 | L41: 83784 | M41: 74962 | N41: 48870 | O41: 700463 | P41: 1674505 | Q41: 1674505
A42: DUR-E2-001 | B42: PCF291 | C42: Durack | D42: Provide DISTRICT RECREATION infrastructure | E42: Old Oxley Treatment Works Park D2892 | F42: District | G42: 2021 - 2026 | H42: South | I42: 6.4 | J42: 0 | K42: 7302490 | L42: 1241423 | M42: 1110709 | N42: 1448193 | O42: 11102815 | P42: 11102815 | Q42: 11102815
A43: DUR-E5-001 | B43: PCF311 | C43: Durack | D43: Provide DISTRICT SPORT infrastructure | E43: Doolandella District Sports Park D2021 | F43: District | G43: 2016 - 2021 | H43: South | I43: 13 | J43: 0 | K43: 8173411 | L43: 1389480 | M43: 1243176 | N43: 810455 | O43: 11616522 | P43: 11616522 | Q43: 11616522
A44: EAB-E8-001 | B44: PCF213 | C44: East Brisbane | D44: Provide DISTRICT OR METRO ACCESS/RECREATION CORRIDOR PARK infrastructure | E44: 5-7 Wellington Rd East Brisbane, L.1 & L.29 RP51249 | F44: District | G44: 2016 - 2021 | H44: East | I44: 0.1 | J44: 0 | K44: 939120 | L44: 159650 | M44: 142840 | N44: 93121 | O44: 1334732 | P44: 1334732 | Q44: 1334732
A45: EAF-A1-001 | B45: PCF154 | C45: Eagle Farm | D45: Acquire and embellish land to provide LOCAL RECREATION infrastructure | E45: Emerging Community land at 104 Lamington Av, Eagle Farm. Lot 15 RP.902848 | F45: Local | G45: 2021 - 2026 | H45: North | I45: 1 | J45: 4000000 | K45: 333335 | L45: 56667 | M45: 50700 | N45: 66105 | O45: 506807 | P45: 4506807 | Q45: 4506807
A46: ELG-A8-001 | B46: PCF310 | C46: Ellen Grove | D46: Acquire and embellish land to provide DISTRICT OR METRO ACCESS/RECREATION CORRIDOR PARK | E46: Land along Bullockhead Creek - averaging 40m either side of Waterway centreline, between D1652 and Roxwell Street; comprising part takes of multiple lots. | F46: District | G46: 2021 - 2026 | H46: South | I46: 19.03 | J46: 1903000 | K46: 1170895 | L46: 199052 | M46: 178093 | N46: 232206 | O46: 1780247 | P46: 3683247 | Q46: 3683247
A47: ELG-E2-001 | B47: PCF310 | C47: Ellen Grove | D47: Provide DISTRICT RECREATION infrastructure | E47: Waterford Road Park D3692 | F47: District | G47: 2021 - 2026 | H47: South | I47: 2.5 | J47: 0 | K47: 6845047 | L47: 1163658 | M47: 1041132 | N47: 1357476 | O47: 10407312 | P47: 10407312 | Q47: 10407312
A48: ELG-E5-001 | B48: PCF310 | C48: Ellen Grove | D48: Provide DISTRICT SPORT infrastructure | E48: Ellen Grove District Sports Park D2194 | F48: District | G48: 2016 - 2021 | H48: South | I48: 5.48 | J48: 0 | K48: 6785044 | L48: 1153457 | M48: 1032005 | N48: 672788 | O48: 9643295 | P48: 9643295 | Q48: 9643295
A49: EMP-A8-001 | B49: PCF295 | C49: Eight Mile Plains | D49: Acquire and embellish land to provide DISTRICT OR METRO ACCESS/RECREATION CORRIDOR PARK | E49: Part takes of 49, 59 & 65 Levington Road | F49: District | G49: 2021 - 2026 | H49: South | I49: 0.2 | J49: 20000 | K49: 97566 | L49: 16586 | M49: 14840 | N49: 19349 | O49: 148341 | P49: 168341 | Q49: 168341
A50: EVP-A1-001 | B50: PCF111 | C50: Everton Park | D50: Acquire and embellish land to provide LOCAL RECREATION infrastructure | E50: Land in Emerging Community area west of Old Northern Road, south of Russell Street and north-east of Ballinderry Street | F50: Local | G50: 2021 - 2026 | H50: West | I50: 0.5 | J50: 700000 | K50: 180527 | L50: 30690 | M50: 27458 | N50: 35801 | O50: 274476 | P50: 974476 | Q50: 974476
A51: FGR-A1-002 | B51: PCF129 | C51: Ferny Grove | D51: Acquire and embellish land to provide LOCAL RECREATION infrastructure | E51: William Brian Daley Reserve D1017 and Mcalroy Road Park D1305 including part take 34 Macalroy Road and 51 Hogarth Road | F51: Local | G51: 2016 - 2021 | H51: West | I51: 0.6312 | J51: 151488 | K51: 220624 | L51: 37506 | M51: 33557 | N51: 21877 | O51: 313563 | P51: 465051 | Q51: 465051
A52: FLK-E1-001 | B52: PCF310 | C52: Forest Lake | D52: Provide LOCAL RECREATION infrastructure | E52: Brushwood Circuit Park D2533 | F52: Local | G52: 2016 - 2021 | H52: South | I52: 0.2 | J52: 0 | K52: 379844 | L52: 64574 | M52: 57774 | N52: 37664 | O52: 539857 | P52: 539857 | Q52: 539857
A53: FTZ-E2-001 | B53: PCF73 | C53: Fitzgibbon | D53: Provide DISTRICT RECREATION infrastructure | E53: Bill Brown Reserve D0804 - Fitzgibbon Parklands Masterplan Area A North | F53: District | G53: 2016 - 2021 | H53: North | I53: 14 | J53: 0 | K53: 7302490 | L53: 1241423 | M53: 1110709 | N53: 724097 | O53: 10378718 | P53: 10378718 | Q53: 10378718
A54: FTZ-E5-001 | B54: PCF73 | C54: Fitzgibbon | D54: Provide DISTRICT SPORT infrastructure | E54: Bill Brown Reserve D0804 - Fitzgibbon Parklands Masterplan Area E | F54: District | G54: 2016 - 2021 | H54: North | I54: 6 | J54: 0 | K54: 6881048 | L54: 1169778 | M54: 1046607 | N54: 682308 | O54: 9779741 | P54: 9779741 | Q54: 9779741
A55: GRE-U1-010 | B55: PCF213 | C55: Greenslopes | D55: Upgrade existing park infrastructure to the value of $1m+ (District) | E55: Thompson Estate Reserve D0392 | F55: District | G55: 2021 - 2026 | H55: East | I55: 1 | J55: 0 | K55: 1000000 | L55: 170000 | M55: 152100 | N55: 198315 | O55: 1520415 | P55: 1520415 | Q55: 1520415
A56: GUM-A7-001 | B56: PCF217 | C56: Gumdale | D56: Acquire and embellish land to provide LOCAL ACCESS/RECREATION corridor park | E56: Land east of Tilley Road bend (L.9 RP56887, L.18 SP214995) | F56: Local | G56: 2021 - 2026 | H56: East | I56: 0.09 | J56: 87000 | K56: 65253 | L56: 11093 | M56: 9925 | N56: 12941 | O56: 99212 | P56: 186212 | Q56: 186212
A57: HEA-A1-001 | B57: PCF331 | C57: Heathwood | D57: Acquire and embellish land to provide LOCAL RECREATION infrastructure | E57: L.30 RP.80476 | F57: Local | G57: 2016 - 2021 | H57: South | I57: 1 | J57: 1400000 | K57: 333335 | L57: 56667 | M57: 50700 | N57: 33053 | O57: 473755 | P57: 1873755 | Q57: 1873755
A58: HEA-A1-003 | B58: PCF351 | C58: Heathwood | D58: Acquire and embellish land to provide LOCAL RECREATION infrastructure | E58: Land in future residential area north of Johnson Road (east of Stapylton Road) | F58: Local | G58: 2016 - 2021 | H58: South | I58: 0.5 | J58: 1025000 | K58: 180527 | L58: 30690 | M58: 27458 | N58: 17901 | O58: 256576 | P58: 1281576 | Q58: 1281576
A59: HEM-A2-001 | B59: PCF156 | C59: Hemmant | D59: Acquire and embellish land to provide DISTRICT RECREATION infrastructure | E59: L.1 RP. 162743, 72 Aquarium Avenue, Hemmant | F59: District | G59: 2021 - 2026 | H59: East | I59: 0.20498 | J59: 1024900 | K59: 408794 | L59: 69495 | M59: 62178 | N59: 81070 | O59: 621536 | P59: 1646436 | Q59: 1646436
A60: HEM-U1-010 | B60: PCF176 | C60: Hemmant | D60: Upgrade existing park infrastructure to the value of $1m+ (District) | E60: Paul Conti Park D2163 and Hemmant Recreation Reserve D0031 | F60: District | G60: 2021 - 2026 | H60: East | I60: 10.2 | J60: 0 | K60: 1000000 | L60: 170000 | M60: 152100 | N60: 198315 | O60: 1520415 | P60: 1520415 | Q60: 1520415
A61: HEN-A1-001 | B61: PCF154 | C61: Hendra | D61: Acquire and embellish land to provide LOCAL RECREATION infrastructure | E61: Land in Emerging Community area at northern end of O'Sullivan Street | F61: Local | G61: 2016 - 2021 | H61: North | I61: 1 | J61: 1750000 | K61: 333335 | L61: 56667 | M61: 50700 | N61: 33053 | O61: 473755 | P61: 2223755 | Q61: 2223755
A62: HER-A8-001 | B62: PCF172 | C62: Herston | D62: Acquire and embellish land to provide DISTRICT OR METRO ACCESS/RECREATION CORRIDOR PARK | E62: Land consolidation Rasey Park D0484 and Bowen Bridge Road Park (No.64) D2025 including part take 49 Butterfield Street along creek | F62: District | G62: 2021 - 2026 | H62: West | I62: 0.3 | J62: 30000 | K62: 116072 | L62: 19732 | M62: 17654 | N62: 23019 | O62: 176477 | P62: 206477 | Q62: 206477
A63: HPW-A7-001 | B63: PCF233 | C63: Holland Park West | D63: Acquire and embellish land to provide LOCAL ACCESS/RECREATION corridor park | E63: Part takes of 95 & 129 Birdwood Road (land along waterway corridor) | F63: Local | G63: 2021 - 2026 | H63: East | I63: 1.6 | J63: 160000 | K63: 442548 | L63: 75233 | M63: 67312 | N63: 87764 | O63: 672857 | P63: 832857 | Q63: 832857
A64: HPW-A7-002 | B64: PCF233 | C64: Holland Park West | D64: Acquire and embellish land to provide LOCAL ACCESS/RECREATION corridor park | E64: Part take 144 Birdwood Road (land along waterway adjoining two existing parks D1526 & D0841) | F64: Local | G64: 2021 - 2026 | H64: East | I64: 0.14 | J64: 14000 | K64: 77746 | L64: 13217 | M64: 11825 | N64: 15418 | O64: 118206 | P64: 132206 | Q64: 132206
A65: IND-E2-001 | B65: PCF211 | C65: Indooroopilly | D65: Provide DISTRICT RECREATION infrastructure | E65: Witton Barracks Park D2210 | F65: District | G65: 2016 - 2021 | H65: West | I65: 1.5 | J65: 0 | K65: 6575963 | L65: 1117914 | M65: 1000204 | N65: 652056 | O65: 9346137 | P65: 9346137 | Q65: 9346137
A66: IND-U2-010 | B66: PCF210 | C66: Indooroopilly | D66: Upgrade existing park infrastructure to the value of $500k-$1m (District) | E66: Moore Park D0430 | F66: District | G66: 2021 - 2026 | H66: West | I66: 4.4 | J66: 0 | K66: 750000 | L66: 127500 | M66: 114075 | N66: 148736 | O66: 1140311 | P66: 1140311 | Q66: 1140311
A67: KED-U1-010 | B67: PCF112 | C67: Kedron | D67: Upgrade existing park infrastructure to the value of $1m+ (District) | E67: Bradbury Park D0230 | F67: District | G67: 2021 - 2026 | H67: West | I67: 2.9 | J67: 0 | K67: 1000000 | L67: 170000 | M67: 152100 | N67: 198315 | O67: 1520415 | P67: 1520415 | Q67: 1520415
A68: KEN-U2-010 | B68: PCF230 | C68: Kenmore | D68: Upgrade existing park infrastructure to the value of $500k-$1m (District) | E68: Akuna Street Park D1515 Cubberla Creek Reserve D0253 | F68: District | G68: 2016 - 2021 | H68: West | I68: 10.43 | J68: 0 | K68: 750000 | L68: 127500 | M68: 114075 | N68: 74368 | O68: 1065943 | P68: 1065943 | Q68: 1065943
A69: KUR-A1-001 | B69: PCF315 | C69: Kuraby | D69: Acquire and embellish land to provide LOCAL RECREATION infrastructure | E69: Extension to southern side of D1933 | F69: Local | G69: 2016 - 2021 | H69: South | I69: 0.5 | J69: 500000 | K69: 180527 | L69: 30690 | M69: 27458 | N69: 17901 | O69: 256576 | P69: 756576 | Q69: 756576
A70: LUT-A1-001 | B70: PCF153 | C70: Lutwyche | D70: Acquire and embellish land to provide LOCAL RECREATION infrastructure | E70: 11 lots bounded by Chalk, Marita and Wellington Streets including 1-11 Wellington Street and 83-99 Chalk Street | F70: Local | G70: 2021 - 2026 | H70: North | I70: 0.5 | J70: 5000000 | K70: 180527 | L70: 30690 | M70: 27458 | N70: 35801 | O70: 274476 | P70: 5274476 | Q70: 5274476
A71: MCG-A1-001 | B71: PCF274 | C71: MacGregor | D71: Acquire and embellish land to provide LOCAL RECREATION infrastructure | E71: L440 RP 105444, 19 Bedser Street L441 RP 105444, 21 Bedser Street L442 RP 105444, 23 Bedser Street L443 RP 105444, 27 Bedser Street L444 RP 105444, 29 Bedser Street | F71: Local | G71: 2016 - 2021 | H71: South | I71: 0.5317 | J71: 2100000 | K71: 190215 | L71: 32337 | M71: 28932 | N71: 18861 | O71: 270345 | P71: 2370345 | Q71: 2370345
A72: MCG-E1-001 | B72: PCF274 | C72: MacGregor | D72: Provide LOCAL RECREATION infrastructure | E72: Springfield Street Park D0557 - in the vicinity of Shirland Street and Lorrimore Street | F72: Local | G72: 2016 - 2021 | H72: South | I72: 0.2 | J72: 0 | K72: 379844 | L72: 64574 | M72: 57774 | N72: 37664 | O72: 539857 | P72: 539857 | Q72: 539857
A73: MCO-U1-010 | B73: PCF190 | C73: Mt Coot-Tha | D73: Upgrade existing park infrastructure to the value of $1m+ (Metropolitan) | E73: Mt Coot-tha Reserve D0249 - Simpsons Falls | F73: Metropolitan | G73: 2016 - 2021 | H73: West | I73: 5.47 | J73: 0 | K73: 1000000 | L73: 170000 | M73: 152100 | N73: 99158 | O73: 1421258 | P73: 1421258 | Q73: 1421258
A74: MDW-A1-001 | B74: PCF111 | C74: McDowall | D74: Acquire and embellish land to provide LOCAL RECREATION infrastructure | E74: Land near Malaga Street Park D2127 - north of Keona Road | F74: Local | G74: 2016 - 2021 | H74: West | I74: 1 | J74: 1000000 | K74: 333335 | L74: 56667 | M74: 50700 | N74: 33053 | O74: 473755 | P74: 1473755 | Q74: 1473755
A75: MIL-E4-001 | B75: PCF192 | C75: Milton | D75: Provide URBAN COMMON infrastructure | E75: Milton Urban Common D2129 | F75: Urban Common | G75: 2016 - 2021 | H75: West | I75: 0.15 | J75: 0 | K75: 515797 | L75: 87686 | M75: 78453 | N75: 51145 | O75: 733081 | P75: 733081 | Q75: 733081
A76: MIT-A4-001 | B76: PCF131 | C76: Mitchelton | D76: Acquire and embellish land to provide URBAN COMMON infrastructure | E76: Land within south-west corner of Brookfield Shopping Centre site | F76: Urban Common | G76: 2021 - 2026 | H76: West | I76: 0.31675 | J76: 4751250 | K76: 603328 | L76: 102566 | M76: 91766 | N76: 119649 | O76: 917309 | P76: 5668559 | Q76: 5668559
A77: MNW-A7-001 | B77: PCF177 | C77: Manly West | D77: Acquire and embellish land to provide LOCAL ACCESS/RECREATION corridor park | E77: Part take of 133 Stannard Road - L11 RP 79318 (land along waterway corridor), adjoining Aphrodite Street park D0905 | F77: Local | G77: 2016 - 2021 | H77: East | I77: 1.1 | J77: 200750 | K77: 317616 | L77: 53995 | M77: 48309 | N77: 31494 | O77: 451414 | P77: 652164 | Q77: 652164
A78: MNW-A7-002 | B78: PCF177 | C78: Manly West | D78: Acquire and embellish land to provide LOCAL ACCESS/RECREATION corridor park | E78: Part takes of 128 & 130 Stannard Road (land along waterway corridor); adjoining Heers Park D0529 and connecting through to Stannard Road | F78: Local | G78: 2016 - 2021 | H78: East | I78: 0.3 | J78: 30000 | K78: 117724 | L78: 20013 | M78: 17906 | N78: 11673 | O78: 167317 | P78: 197317 | Q78: 197317
A79: MNW-A7-003 | B79: PCF197, PCF196 | C79: Manly West | D79: Acquire and embellish land to provide LOCAL ACCESS/RECREATION corridor park | E79: Land between Senden Crescent Park D1949 and Hargreaves Road | F79: Local | G79: 2021 - 2026 | H79: East | I79: 0.3 | J79: 457500 | K79: 117724 | L79: 20013 | M79: 17906 | N79: 23347 | O79: 178990 | P79: 636490 | Q79: 636490
A80: MOG-A1-001 | B80: PCF267 | C80: Moggill | D80: Acquire and embellish land to provide LOCAL RECREATION infrastructure | E80: Within L2 SP165946 on Witty Road frontage | F80: Local | G80: 2016 - 2021 | H80: West | I80: 1.00615 | J80: 1006150 | K80: 335214 | L80: 56986 | M80: 50986 | N80: 33239 | O80: 476426 | P80: 1482576 | Q80: 1482576
A81: MOG-E1-010 | B81: PCF267 | C81: Moggill | D81: Provide LOCAL RECREATION infrastructure | E81: Honeyeater Crescent Park D3296 | F81: Local | G81: 2016 - 2021 | H81: West | I81: 0.838 | J81: 0 | K81: 420182 | L81: 71431 | M81: 63910 | N81: 41664 | O81: 597187 | P81: 597187 | Q81: 597187
A82: MOG-E5-001 | B82: PCF287 | C82: Moggill | D82: Provide DISTRICT SPORT infrastructure | E82: Moggill District Sports Park D2833 | F82: District | G82: 2016 - 2021 | H82: West | I82: 9.2 | J82: 0 | K82: 7471843 | L82: 1270213 | M82: 1136467 | N82: 740889 | O82: 10619412 | P82: 10619412 | Q82: 10619412
A83: NUD-U1-010 | B83: PCF94 | C83: Nudgee | D83: Upgrade existing park infrastructure to the value of $1m+ (District) | E83: Nudgee Recreation Reserve D0440 | F83: District | G83: 2021 - 2026 | H83: North | I83: 6.31 | J83: 0 | K83: 1000000 | L83: 170000 | M83: 152100 | N83: 198315 | O83: 1520415 | P83: 1520415 | Q83: 1520415
A84: PAL-A1-001 | B84: PCF332 | C84: Pallara | D84: Acquire and embellish land to provide LOCAL RECREATION infrastructure | E84: L.71 RP.87803 | F84: Local | G84: 2016 - 2021 | H84: South | I84: 1 | J84: 500000 | K84: 333335 | L84: 56667 | M84: 50700 | N84: 33053 | O84: 473755 | P84: 973755 | Q84: 973755
A85: PAL-A1-002 | B85: PCF312 | C85: Pallara | D85: Acquire and embellish land to provide LOCAL RECREATION infrastructure | E85: L.119 RP.87803 | F85: Local | G85: 2016 - 2021 | H85: South | I85: 1 | J85: 500000 | K85: 333335 | L85: 56667 | M85: 50700 | N85: 33053 | O85: 473755 | P85: 973755 | Q85: 973755
A86: PAL-A2-001 | B86: PCF312 | C86: Pallara | D86: Acquire and embellish land to provide DISTRICT RECREATION infrastructure | E86: L.87 RP.87803, L.88 RP.87803, L.79 RP.87803, L.61 RP.87804, L.78 RP.87803, L.53 RP.87804 | F86: District | G86: 2021 - 2026 | H86: South | I86: 9.7122 | J86: 7200000 | K86: 1513934 | L86: 257369 | M86: 230269 | N86: 300236 | O86: 2301808 | P86: 9501808 | Q86: 9501808
A87: PAL-A5-001 | B87: PCF331 | C87: Pallara | D87: Acquire and embellish land to provide DISTRICT SPORT infrastructure | E87: L.27 RP.90232, L.26 RP.90232, L.25 RP.90232, L.24 RP.90232, L.35 RP.87804, L.36 RP.87804, L.33 RP.87804, L.34 RP.87804 | F87: District | G87: 2021 - 2026 | H87: South | I87: 12.9499 | J87: 7769940 | K87: 4299994 | L87: 730999 | M87: 654029 | N87: 852753 | O87: 6537775 | P87: 14307715 | Q87: 14307715
A88: PAL-U3-010 | B88: PCF312 | C88: Pallara | D88: Upgrade existing park infrastructure to value of up to $500k (District) | E88: Brookbent Road Park D1676 | F88: District | G88: 2016 - 2021 | H88: South | I88: 5.75 | J88: 0 | K88: 500000 | L88: 85000 | M88: 76050 | N88: 49579 | O88: 710629 | P88: 710629 | Q88: 710629
A89: PAR-A5-001 | B89: PCF333 | C89: Parkinson | D89: Acquire and embellish land to provide DISTRICT SPORT infrastructure | E89: Land adjacent north boundary Beaudesert Road Park (No.2911) D1944, Beaudesert Road | F89: District | G89: 2016 - 2021 | H89: South | I89: 4 | J89: 7000000 | K89: 1888447 | L89: 321036 | M89: 287233 | N89: 187254 | O89: 2683969 | P89: 9683969 | Q89: 9683969
A90: RIC-A1-003 | B90: PCF290 | C90: Richlands | D90: Acquire and embellish land to provide LOCAL RECREATION infrastructure | E90: Part take southern end of 46 Pine Road, L.23 RP49601 / adjoining D3117 Kathleen Street Park | F90: Local | G90: 2016 - 2021 | H90: South | I90: 0.5 | J90: 1000000 | K90: 180527 | L90: 30690 | M90: 27458 | N90: 17901 | O90: 256576 | P90: 1256576 | Q90: 1256576
A91: RIC-A1-005 | B91: PCF290 | C91: Richlands | D91: Acquire and embellish land to provide LOCAL RECREATION infrastructure | E91: Part take of L.28 RP.52227and L900. SP.241845, adjoining Eugenia St Pk D1249 | F91: Local | G91: 2016 - 2021 | H91: South | I91: 0.916 | J91: 1282400 | K91: 307663 | L91: 52303 | M91: 46796 | N91: 30507 | O91: 437268 | P91: 1719668 | Q91: 1719668
A92: RIC-E1-001 | B92: PCF290 | C92: Richlands | D92: Provide LOCAL RECREATION infrastructure | E92: 112A & 120A Progress Rd, Richlands (L.43 and L.44 SP150586) | F92: Local | G92: 2016 - 2021 | H92: South | I92: 2.33 | J92: 0 | K92: 514515 | L92: 87468 | M92: 78258 | N92: 51018 | O92: 731259 | P92: 731259 | Q92: 731259
A93: RIC-E5-001 | B93: PCF290 | C93: Richlands | D93: Provide DISTRICT SPORT infrastructure | E93: Pine Road Park D3294 | F93: District | G93: 2021 - 2026 | H93: South | I93: 5.42 | J93: 0 | K93: 6773967 | L93: 1151574 | M93: 1030320 | N93: 1343379 | O93: 10299240 | P93: 10299240 | Q93: 10299240
A94: ROB-A1-001 | B94: PCF273 | C94: Robertson | D94: Acquire and embellish land to provide LOCAL RECREATION infrastructure | E94: Part take allotments in the vicinity of John Henly Park D0917 | F94: Local | G94: 2016 - 2021 | H94: South | I94: 0.5 | J94: 1750000 | K94: 180527 | L94: 30690 | M94: 27458 | N94: 17901 | O94: 256576 | P94: 2006576 | Q94: 2006576
A95: ROC-A1-002 | B95: PCF295 | C95: Rochedale | D95: Acquire and embellish land to provide LOCAL RECREATION infrastructure | E95: South-west of corner of Gardner and Miles Platting Roads (part take of L.1 RP62430 & L.2 RP169578) | F95: Local | G95: 2021 - 2026 | H95: East | I95: 0.6 | J95: 1000500 | K95: 211089 | L95: 35885 | M95: 32107 | N95: 41862 | O95: 320943 | P95: 1321443 | Q95: 1321443
A96: ROC-A1-003 | B96: PCF295 | C96: Rochedale | D96: Acquire and embellish land to provide LOCAL RECREATION infrastructure | E96: Part take of L.2 RP78857 & L.49 RP894354 | F96: Local | G96: 2016 - 2021 | H96: East | I96: 0.5 | J96: 725000 | K96: 180527 | L96: 30690 | M96: 27458 | N96: 17901 | O96: 256576 | P96: 981576 | Q96: 981576
A97: ROC-A1-007 | B97: PCF275 | C97: Rochedale | D97: Acquire and embellish land to provide LOCAL RECREATION infrastructure | E97: Part take of L.4 SP248915 | F97: Local | G97: 2016 - 2021 | H97: East | I97: 0.7 | J97: 763000 | K97: 241650 | L97: 41081 | M97: 36755 | N97: 23961 | O97: 343447 | P97: 1106447 | Q97: 1106447
A98: ROC-A1-010 | B98: PCF276 | C98: Rochedale | D98: Acquire and embellish land to provide LOCAL RECREATION infrastructure | E98: Part take of L.2 RP186818 & L.1 RP54498 | F98: Local | G98: 2021 - 2026 | H98: East | I98: 1 | J98: 1450000 | K98: 333335 | L98: 56667 | M98: 50700 | N98: 66105 | O98: 506807 | P98: 1956807 | Q98: 1956807
A99: ROC-A1-011 | B99: PCF276 | C99: Rochedale | D99: Acquire and embellish land to provide LOCAL RECREATION infrastructure | E99: Part take of L.1 RP48231, L.4 SP248915, L.3 RP67028 & L.1 RP67028 | F99: Local | G99: 2016 - 2021 | H99: East | I99: 0.5 | J99: 725000 | K99: 180527 | L99: 30690 | M99: 27458 | N99: 17901 | O99: 256576 | P99: 981576 | Q99: 981576
A100: ROC-A1-012 | B100: PCF276 | C100: Rochedale | D100: Acquire and embellish land to provide LOCAL RECREATION infrastructure | E100: Part take of L.2 RP191666 | F100: Local | G100: 2016 - 2021 | H100: East | I100: 1 | J100: 1750000 | K100: 333335 | L100: 56667 | M100: 50700 | N100: 33053 | O100: 473755 | P100: 2223755 | Q100: 2223755
A101: ROC-A1-013 | B101: PCF276 | C101: Rochedale | D101: Acquire and embellish land to provide LOCAL RECREATION infrastructure | E101: Part take of L.2 RP201932 & L.2 RP51353 | F101: Local | G101: 2021 - 2026 | H101: East | I101: 1 | J101: 1750000 | K101: 333335 | L101: 56667 | M101: 50700 | N101: 66105 | O101: 506807 | P101: 2256807 | Q101: 2256807
A102: ROC-A1-014 | B102: PCF276 | C102: Rochedale | D102: Acquire and embellish land to provide LOCAL RECREATION infrastructure | E102: Part take L.1 RP63783, L.2 RP63783 & L.2 RP48119 | F102: Local | G102: 2021 - 2026 | H102: East | I102: 1 | J102: 1450000 | K102: 333335 | L102: 56667 | M102: 50700 | N102: 66105 | O102: 506807 | P102: 1956807 | Q102: 1956807
A103: ROC-A1-015 | B103: PCF276 | C103: Rochedale | D103: Acquire and embellish land to provide LOCAL RECREATION infrastructure | E103: Part take of L.2 RP181371, L.1 RP216005 & L.2 RP97162 | F103: Local | G103: 2016 - 2021 | H103: East | I103: 0.5 | J103: 875000 | K103: 180527 | L103: 30690 | M103: 27458 | N103: 17901 | O103: 256576 | P103: 1131576 | Q103: 1131576
A104: ROC-A1-018 | B104: PCF296 | C104: Rochedale | D104: Acquire and embellish land to provide LOCAL RECREATION infrastructure | E104: Part take of L.10 SP133227 | F104: Local | G104: 2021 - 2026 | H104: East | I104: 1 | J104: 1450000 | K104: 333335 | L104: 56667 | M104: 50700 | N104: 66105 | O104: 506807 | P104: 1956807 | Q104: 1956807
A105: ROC-A1-020 | B105: PCF295 | C105: Rochedale | D105: Acquire and embellish land to provide LOCAL RECREATION infrastructure | E105: Part take of L.2 RP846109, L.2 RP163830 & L.2 RP848052 | F105: Local | G105: 2016 - 2021 | H105: East | I105: 0.5 | J105: 725000 | K105: 180527 | L105: 30690 | M105: 27458 | N105: 17901 | O105: 256576 | P105: 981576 | Q105: 981576
A106: ROC-A1-023 | B106: PCF295 | C106: Rochedale | D106: Acquire and embellish land to provide LOCAL RECREATION infrastructure | E106: Part take of L.2 SP218990 | F106: Local | G106: 2021 - 2026 | H106: East | I106: 0.55 | J106: 962500 | K106: 195808 | L106: 33287 | M106: 29782 | N106: 38832 | O106: 297709 | P106: 1260209 | Q106: 1260209
A107: ROC-A1-030 | B107: PCF275 | C107: Rochedale | D107: Acquire and embellish land to provide LOCAL RECREATION infrastructure | E107: Part take of L.2 RP162882 & L.2 RP57560 | F107: Local | G107: 2021 - 2026 | H107: East | I107: 0.8 | J107: 1400000 | K107: 272212 | L107: 46276 | M107: 41403 | N107: 53984 | O107: 413875 | P107: 1813875 | Q107: 1813875
A108: ROC-A1-031 | B108: PCF275 | C108: Rochedale | D108: Acquire and embellish land to provide LOCAL RECREATION infrastructure | E108: Part take of L.1 RP57123 & L.4 SP211300 | F108: Local | G108: 2021 - 2026 | H108: East | I108: 0.8 | J108: 1160000 | K108: 272212 | L108: 46276 | M108: 41403 | N108: 53984 | O108: 413875 | P108: 1573875 | Q108: 1573875
A109: ROC-A1-032 | B109: PCF295 | C109: Rochedale | D109: Acquire and embellish land to provide LOCAL RECREATION infrastructure | E109: Land to west of Glenmore Crescent (part take of L.2 RP135209) | F109: Local | G109: 2021 - 2026 | H109: East | I109: 0.59493 | J109: 1041128 | K109: 209539 | L109: 35622 | M109: 31871 | N109: 41555 | O109: 318587 | P109: 1359714 | Q109: 1359714
A110: ROC-A2-010 | B110: PCF295 | C110: Rochedale | D110: Acquire and embellish land to provide DISTRICT RECREATION infrastructure | E110: Part take of L.11 RP212895 & L.2 RP162890 | F110: District | G110: 2021 - 2026 | H110: East | I110: 1.7 | J110: 2465000 | K110: 822360 | L110: 139801 | M110: 125081 | N110: 163086 | O110: 1250329 | P110: 3715329 | Q110: 3715329
A111: ROC-A2-011 | B111: PCF276 | C111: Rochedale | D111: Acquire and embellish land to provide DISTRICT RECREATION infrastructure | E111: Ajoiing or part of Part take of L.7 SP202605, L.2 RP59061, L.5 RP95759 & L.4 RP95759 | F111: District | G111: 2021 - 2026 | H111: East | I111: 3 | J111: 4350000 | K111: 1181979 | L111: 200936 | M111: 179779 | N111: 234404 | O111: 1797098 | P111: 6147098 | Q111: 6147098
A112: ROC-A5-001 | B112: PCF276 | C112: Rochedale | D112: Acquire and embellish land to provide DISTRICT SPORT infrastructure | E112: Part take of L.7 SP202605, L.2 RP59061, L.5 RP95759 & L.4 RP95759 | F112: District | G112: 2021 - 2026 | H112: East | I112: 6.8 | J112: 11900000 | K112: 2642905 | L112: 449294 | M112: 401986 | N112: 524128 | O112: 4018313 | P112: 15918313 | Q112: 15918313
A113: ROK-E3-001 | B113: PCF251 | C113: Rocklea | D113: Provide METROPOLITAN RECREATION infrastructure | E113: Oxley Creek Common | F113: Metropolitan | G113: 2021 - 2026 | H113: South | I113: 120.4 | J113: 0 | K113: 11040105 | L113: 1876818 | M113: 1679200 | N113: 2189418 | O113: 16785541 | P113: 16785541 | Q113: 16785541
A114: RUN-A1-001 | B114: PCF314 | C114: Runcorn | D114: Acquire and embellish land to provide LOCAL RECREATION infrastructure | E114: Land north of Gumtree Street - west of Persse Road and south of Nemies Road | F114: Local | G114: 2016 - 2021 | H114: South | I114: 0.64037 | J114: 409837 | K114: 223426 | L114: 37982 | M114: 33983 | N114: 22154 | O114: 317546 | P114: 727383 | Q114: 727383
A115: RUN-A1-003 | B115: PCF294 | C115: Runcorn | D115: Acquire and embellish land to provide LOCAL RECREATION infrastructure | E115: 97-145 Warrigal Road | F115: Local | G115: 2021 - 2026 | H115: South | I115: 3 | J115: 4500000 | K115: 944565 | L115: 160576 | M115: 143668 | N115: 187321 | O115: 1436130 | P115: 5936130 | Q115: 5936130
A116: RUN-E5-001 | B116: PCF295 | C116: Runcorn | D116: Provide DISTRICT SPORT infrastructure | E116: Wally Tate Park D0685 | F116: District | G116: 2016 - 2021 | H116: South | I116: 4 | J116: 0 | K116: 6511801 | L116: 1107006 | M116: 990445 | N116: 645694 | O116: 9254947 | P116: 9254947 | Q116: 9254947
A117: SBR-A1-001 | B117: PCF192 | C117: South Brisbane | D117: Acquire and embellish land to provide LOCAL RECREATION infrastructure | E117: Australian Consolidated Industries site, 99-137 Montague Road | F117: Local | G117: 2016 - 2021 | H117: South | I117: 0.3 | J117: 10500000 | K117: 119404 | L117: 20299 | M117: 18161 | N117: 11840 | O117: 169704 | P117: 10669704 | Q117: 10669704
A118: SBR-A2-001 | B118: PCF192 | C118: South Brisbane | D118: Acquire and embellish land to provide DISTRICT RECREATION infrastructure | E118: Parmalat site | F118: District | G118: 2021 - 2026 | H118: South | I118: 1 | J118: 30000000 | K118: 628720 | L118: 106882 | M118: 95628 | N118: 124685 | O118: 955915 | P118: 30955915 | Q118: 30955915
A119: SBR-U1-010 | B119: PCF192 | C119: South Brisbane | D119: Upgrade existing park infrastructure to the value of $1m+ (Metropolitan) | E119: South Brisbane Riverside Lands Park D0342 | F119: Metropolitan | G119: 2021 - 2026 | H119: South | I119: 2.32 | J119: 0 | K119: 1000000 | L119: 170000 | M119: 152100 | N119: 198315 | O119: 1520415 | P119: 1520415 | Q119: 1520415
A120: SGT-U2-001 | B120: PCF54 | C120: Sandgate | D120: Upgrade existing park infrastructure to the value of $500k-$1m+ (Metropolitan) | E120: Sandgate Foreshores Park D0276 and adjoining Moora Park D0288 and Decker Park D0275 | F120: Metropolitan | G120: 2021 - 2026 | H120: North | I120: 8.38 | J120: 0 | K120: 750000 | L120: 127500 | M120: 114075 | N120: 148736 | O120: 1140311 | P120: 1140311 | Q120: 1140311
A121: SMN-U3-010 | B121: PCF269 | C121: Sumner | D121: Upgrade existing park infrastructure to value of up to $500k (District) | E121: Wacol Station Road Park D1418 | F121: District | G121: 2016 - 2021 | H121: South | I121: 4.31 | J121: 0 | K121: 500000 | L121: 85000 | M121: 76050 | N121: 49579 | O121: 710629 | P121: 710629 | Q121: 710629
A122: STF-U1-010 | B122: PCF132 | C122: Stafford | D122: Upgrade existing park infrastructure to the value of $1m+ (District) | E122: Hickey Park D0203 | F122: District | G122: 2021 - 2026 | H122: West | I122: 9.73 | J122: 0 | K122: 1000000 | L122: 170000 | M122: 152100 | N122: 198315 | O122: 1520415 | P122: 1520415 | Q122: 1520415
A123: SVH-A1-001 | B123: PCF194 | C123: Seven Hills | D123: Acquire and embellish land to provide LOCAL RECREATION infrastructure | E123: Part take of L.425 SP.130939, centrally located, immediately west of existing theatre complex | F123: Local | G123: 2016 - 2021 | H123: East | I123: 0.5 | J123: 100000 | K123: 180527 | L123: 30690 | M123: 27458 | N123: 17901 | O123: 256576 | P123: 356576 | Q123: 356576
A124: SVH-E2-001 | B124: PCF194 | C124: Seven Hills | D124: Provide DISTRICT RECREATION infrastructure | E124: Seven Hills Bushland Reserve D1157 | F124: District | G124: 2021 - 2026 | H124: East | I124: 0.1 | J124: 0 | K124: 6199246 | L124: 1053872 | M124: 942905 | N124: 1229403 | O124: 9425427 | P124: 9425427 | Q124: 9425427
A125: TAI-A1-001 | B125: PCF73 | C125: Taigum | D125: Acquire and embellish land to provide LOCAL RECREATION infrastructure | E125: Land adjacent to Cassia Place Park D1658 | F125: Local | G125: 2021 - 2026 | H125: North | I125: 0.5 | J125: 700000 | K125: 180527 | L125: 30690 | M125: 27458 | N125: 35801 | O125: 274476 | P125: 974476 | Q125: 974476
A126: TAI-E1-001 | B126: PCF73 | C126: Taigum | D126: Provide LOCAL RECREATION infrastructure | E126: Haywal Street Park D1135 | F126: Local | G126: 2016 - 2021 | H126: North | I126: 1.16 | J126: 0 | K126: 440541 | L126: 74892 | M126: 67006 | N126: 43683 | O126: 626122 | P126: 626122 | Q126: 626122
A127: TAI-E1-002 | B127: PCF73 | C127: Taigum | D127: Provide LOCAL RECREATION infrastructure | E127: Fernwood Place Park D2115 | F127: Local | G127: 2016 - 2021 | H127: North | I127: 1.6 | J127: 0 | K127: 468360 | L127: 79621 | M127: 71238 | N127: 46441 | O127: 665661 | P127: 665661 | Q127: 665661
A128: TAR-U3-010 | B128: PCF211 | C128: Taringa | D128: Upgrade existing park infrastructure to value of up to $500k (Local) | E128: Oakman Park D0481 | F128: Local | G128: 2021 - 2026 | H128: West | I128: 2.46 | J128: 0 | K128: 500000 | L128: 85000 | M128: 76050 | N128: 99158 | O128: 760208 | P128: 760208 | Q128: 760208
A129: TAR-U3-011 | B129: PCF211 | C129: Taringa | D129: Upgrade existing park infrastructure to value of up to $500k (Local) | E129: Taringa Playground Park D0424 | F129: Local | G129: 2021 - 2026 | H129: West | I129: 1.06 | J129: 0 | K129: 500000 | L129: 85000 | M129: 76050 | N129: 99158 | O129: 760208 | P129: 760208 | Q129: 760208
A130: TOO-A4-001 | B130: PCF191 | C130: Toowong | D130: Acquire and embellish land to provide URBAN COMMON infrastructure | E130: Within the block bounded by the High Street, Sherwood Road and Jephson Street | F130: Urban Common | G130: 2021 - 2026 | H130: West | I130: 0.3 | J130: 12000000 | K130: 573396 | L130: 97477 | M130: 87213 | N130: 113713 | O130: 871799 | P130: 12871799 | Q130: 12871799
A131: TRF-A8-001 | B131: PCF173 | C131: Teneriffe | D131: Acquire and embellish land to provide DISTRICT OR METRO ACCESS/RECREATION CORRIDOR PARK | E131: Riverfront land (6m from Brisbane River MHWS) part take on lots: 2 on SP171342; 593 on SP148600 | F131: Metropolitan | G131: 2016 - 2021 | H131: North | I131: 0.13 | J131: 4550000 | K131: 113319 | L131: 19264 | M131: 17236 | N131: 11236 | O131: 161056 | P131: 4711056 | Q131: 4711056
A132: UKE-E5-001 | B132: PCF129 | C132: Upper Kedron | D132: Provide DISTRICT SPORT infrastructure | E132: Honeyeater Street Park D3296 (Formerly - 458 Levitt Road District Sports Park) | F132: District | G132: 2021 - 2026 | H132: West | I132: 8.8138 | J132: 0 | K132: 7400541 | L132: 1258092 | M132: 1125622 | N132: 1467638 | O132: 11251894 | P132: 11251894 | Q132: 11251894
A133: UMG-A4-001 | B133: PCF274 | C133: Upper Mount Gravatt | D133: Acquire and embellish land to provide URBAN COMMON infrastructure | E133: L.22 RP73771 & L.2 & L.4 RP151497, 28, 30 & 32 Everett Street | F133: Urban Common | G133: 2021 - 2026 | H133: East | I133: 0.3 | J133: 3000000 | K133: 573396 | L133: 97477 | M133: 87213 | N133: 113713 | O133: 871799 | P133: 3871799 | Q133: 3871799
A134: UMG-E1-001 | B134: PCF274 | C134: Upper Mount Gravatt | D134: Provide LOCAL RECREATION infrastructure | E134: Tryon Street Park D3175 | F134: Local | G134: 2016 - 2021 | H134: East | I134: 0.3022 | J134: 0 | K134: 386306 | L134: 65672 | M134: 58757 | N134: 38305 | O134: 549041 | P134: 549041 | Q134: 549041
A135: UMG-U2-010 | B135: PCF254 | C135: Upper Mount Gravatt | D135: Upgrade existing park infrastructure to the value of $500k-$1m (District) | E135: D0007 Dittmer Park, district sport component | F135: District | G135: 2021 - 2026 | H135: East | I135: 7.74 | J135: 0 | K135: 750000 | L135: 127500 | M135: 114075 | N135: 148736 | O135: 1140311 | P135: 1140311 | Q135: 1140311
A136: WAK-A7-001 | B136: PCF196 | C136: Wakerley | D136: Acquire and embellish land to provide LOCAL ACCESS/RECREATION corridor park | E136: Part take of L.17 SP115901, at eastern end of lot | F136: Local | G136: 2021 - 2026 | H136: East | I136: 0.06 | J136: 84000 | K136: 57757 | L136: 9819 | M136: 8785 | N136: 11454 | O136: 87815 | P136: 171815 | Q136: 171815
A137: WAK-A7-002 | B137: PCF196 | C137: Wakerley | D137: Acquire and embellish land to provide LOCAL ACCESS/RECREATION corridor park | E137: Part take of L.1 RP95622, 68 Caladium Street | F137: Local | G137: 2021 - 2026 | H137: East | I137: 0.2 | J137: 20000 | K137: 92738 | L137: 15765 | M137: 14105 | N137: 18391 | O137: 141000 | P137: 161000 | Q137: 161000
A138: WAK-E2-001 | B138: PCF197 | C138: Wakerley | D138: Provide DISTRICT RECREATION infrastructure | E138: Habitat Drive Park D2232 | F138: District | G138: 2021 - 2026 | H138: East | I138: 4 | J138: 0 | K138: 7248673 | L138: 1232274 | M138: 1102523 | N138: 1437521 | O138: 11020991 | P138: 11020991 | Q138: 11020991
A139: WAK-E5-001 | B139: PCF196 | C139: Wakerley | D139: Provide DISTRICT SPORT infrastructure | E139: Manly Road Park (no.880) D1582 | F139: District | G139: 2016 - 2021 | H139: East | I139: 6 | J139: 0 | K139: 6881048 | L139: 1169778 | M139: 1046607 | N139: 682308 | O139: 9779741 | P139: 9779741 | Q139: 9779741
A140: WCL-A1-001 | B140: PCF290 | C140: Wacol | D140: Acquire and embellish land to provide LOCAL RECREATION infrastructure | E140: Part take of 3076 Ipswich Road, L.100 SP215622 | F140: Local | G140: 2016 - 2021 | H140: South | I140: 1 | J140: 4500000 | K140: 333335 | L140: 56667 | M140: 50700 | N140: 33053 | O140: 473755 | P140: 4973755 | Q140: 4973755
A141: WES-A1-001 | B141: PCF192 | C141: West End | D141: Acquire and embellish land to provide LOCAL RECREATION infrastructure | E141: Near Montague Road, between Victoria Street and Gray Road | F141: Local | G141: 2016 - 2021 | H141: South | I141: 0.5 | J141: 10000000 | K141: 180527 | L141: 30690 | M141: 27458 | N141: 17901 | O141: 256576 | P141: 10256576 | Q141: 10256576
A142: WES-A7-001 | B142: PCF192 | C142: West End | D142: Acquire and embellish land to provide LOCAL ACCESS/RECREATION corridor park | E142: Beesley Street river end | F142: Local | G142: 2016 - 2021 | H142: South | I142: 0.05 | J142: 2000000 | K142: 55258 | L142: 9394 | M142: 8405 | N142: 5479 | O142: 78536 | P142: 2078536 | Q142: 2078536
A143: WES-E4-001 | B143: PCF192 | C143: West End | D143: Provide URBAN COMMON infrastructure | E143: West End Urban Common D2199 | F143: Urban Common | G143: 2016 - 2021 | H143: South | I143: 0.1 | J143: 0 | K143: 458023 | L143: 77864 | M143: 69665 | N143: 45416 | O143: 650969 | P143: 650969 | Q143: 650969
A144: WES-U1-010 | B144: PCF192 | C144: West End | D144: Upgrade existing park infrastructure to the value of $1m+ (District) | E144: Davies Park D0347 | F144: District | G144: 2021 - 2026 | H144: South | I144: 5.75 | J144: 0 | K144: 1000000 | L144: 170000 | M144: 152100 | N144: 198315 | O144: 1520415 | P144: 1520415 | Q144: 1520415
A145: WES-U1-011 | B145: PCF192 | C145: West End | D145: Upgrade existing park infrastructure to the value of $1m+ (Metropolitan) | E145: West End Riverside Lands Park D0343 | F145: Metropolitan | G145: 2021 - 2026 | H145: South | I145: 0.81 | J145: 0 | K145: 1000000 | L145: 170000 | M145: 152100 | N145: 198315 | O145: 1520415 | P145: 1520415 | Q145: 1520415
A146: WES-U1-012 | B146: PCF211 | C146: West End | D146: Upgrade existing park infrastructure to the value of $1m+ (District) | E146: Orleigh Park D0346 | F146: District | G146: 2021 - 2026 | H146: South | I146: 2.02 | J146: 0 | K146: 1000000 | L146: 170000 | M146: 152100 | N146: 198315 | O146: 1520415 | P146: 1520415 | Q146: 1520415
A147: WIL-U3-010 | B147: PCF291 | C147: Willawong | D147: Upgrade existing park infrastructure to value of up to $500k (District) | E147: Bowhill Road Park D0704 | F147: District | G147: 2021 - 2026 | H147: South | I147: 11.75 | J147: 0 | K147: 500000 | L147: 85000 | M147: 76050 | N147: 99158 | O147: 760208 | P147: 760208 | Q147: 760208
A148: WIS-A8-001 | B148: PCF275 | C148: Wishart | D148: Acquire and embellish land to provide DISTRICT OR METRO ACCESS/RECREATION CORRIDOR PARK | E148: Land along north bank Bulimba Creek, west of Kavanagh Road - adjacent Malinya Place Park D1121 | F148: District | G148: 2021 - 2026 | H148: East | I148: 0.2 | J148: 20000 | K148: 97566 | L148: 16586 | M148: 14840 | N148: 19349 | O148: 148341 | P148: 168341 | Q148: 168341
A149: WOO-A4-001 | B149: PCF213 | C149: Woolloongabba | D149: Acquire and embellish land to provide URBAN COMMON infrastructure | E149: 30, 32 & 34 Tottenham Street | F149: District | G149: 2016 - 2021 | H149: South | I149: 0.1837 | J149: 3031050 | K149: 365567 | L149: 62146 | M149: 55603 | N149: 36249 | O149: 519565 | P149: 3550615 | Q149: 3550615
A150: WSR-U3-010 | B150: PCF153 | C150: Windsor | D150: Upgrade existing park infrastructure to value of up to $500k (Local) | E150: Windsor Park D0505 | F150: Local | G150: 2016 - 2021 | H150: North | I150: 6.97 | J150: 0 | K150: 500000 | L150: 85000 | M150: 76050 | N150: 49579 | O150: 710629 | P150: 710629 | Q150: 710629
A151: WST-E1-001 | B151: PCF152 | C151: Wilston | D151: Provide LOCAL RECREATION infrastructure | E151: Langley Avenue Park D0486 | F151: Local | G151: 2016 - 2021 | H151: West | I151: 0.2 | J151: 0 | K151: 379844 | L151: 64574 | M151: 57774 | N151: 37664 | O151: 539857 | P151: 539857 | Q151: 539857
A152: WVH-U1-010 | B152: PCF133 | C152: Wavell Heights | D152: Upgrade existing park infrastructure to the value of $1m+ (Metropolitan) | E152: Shaw Estate Park D0245 | F152: Metropolitan | G152: 2016 - 2021 | H152: North | I152: 15.46 | J152: 0 | K152: 1000000 | L152: 170000 | M152: 152100 | N152: 99158 | O152: 1421258 | P152: 1421258 | Q152: 1421258
A153: WVH-U3-010 | B153: PCF133 | C153: Wavell Heights | D153: Upgrade existing park infrastructure to value of up to $500k (Metropolitan) | E153: Shaw Estate Park D0245 | F153: Metropolitan | G153: 2016 - 2021 | H153: North | I153: 1.24 | J153: 0 | K153: 500000 | L153: 85000 | M153: 76050 | N153: 49579 | O153: 710629 | P153: 710629 | Q153: 710629
A154: WWN-A1-001 | B154: PCF153 | C154: Wooloowin | D154: Acquire and embellish land to provide LOCAL RECREATION infrastructure | E154: Land at corner of Chalk and Bridge Streets (Holy Cross Laundry site) 22 Morris Street L.18/19 RP.170266 | F154: Local | G154: 2016 - 2021 | H154: North | I154: 0.5 | J154: 5000000 | K154: 180527 | L154: 30690 | M154: 27458 | N154: 17901 | O154: 256576 | P154: 5256576 | Q154: 5256576
A155: WYN-U1-010 | B155: PCF157 | C155: Wynnum | D155: Upgrade existing park infrastructure to the value of $1m+ (Metropolitan) | E155: Elanora Park D0516 | F155: Metropolitan | G155: 2016 - 2021 | H155: East | I155: 10.65 | J155: 0 | K155: 1000000 | L155: 170000 | M155: 152100 | N155: 99158 | O155: 1421258 | P155: 1421258 | Q155: 1421258
A156: WYN-U3-010 | B156: PCF177 | C156: Wynnum | D156: Upgrade existing park infrastructure to value of up to $500k (District) | E156: Kitchener Park D0006 in accordance with 2009 Master Plan | F156: District | G156: 2016 - 2021 | H156: East | I156: 9.03 | J156: 0 | K156: 500000 | L156: 85000 | M156: 76050 | N156: 49579 | O156: 710629 | P156: 710629 | Q156: 710629
A157: WYW-A1-001 | B157: PCF177 | C157: Wynnum West | D157: Acquire and embellish land to provide LOCAL RECREATION infrastructure | E157: Part take of 2 lots at 2037 Wynnum Road L.1 RP80764 and 2029 Wynnum Rd L.4 RP33336 - linking Sorrento Street Park D1542 with Wynnum Plaza Shopping Centre, including full frontage to Wynnum Road | F157: Local | G157: 2016 - 2021 | H157: East | I157: 0.8 | J157: 1400000 | K157: 272212 | L157: 46276 | M157: 41403 | N157: 26992 | O157: 386883 | P157: 1786883 | Q157: 1786883
A158: ZIL-A8-001 | B158: PCF93 | C158: Zillmere | D158: Acquire and embellish land to provide DISTRICT OR METRO ACCESS/RECREATION CORRIDOR PARK | E158: Cabbage Tree Creek corridor gap, intersecting L.328 SP268654, 72 Pineapple Street | F158: District | G158: 2021 - 2026 | H158: North | I158: 1.75 | J158: 175000 | K158: 384404 | L158: 65349 | M158: 58468 | N158: 76233 | O158: 584454 | P158: 759454 | Q158: 759454
A159: ZIL-U1-010 | B159: PCF93 | C159: Zillmere | D159: Upgrade existing park infrastructure to the value of $1m+ (District) | E159: O'Callaghan Park D0243 | F159: District | G159: 2021 - 2026 | H159: North | I159: 23.48 | J159: 0 | K159: 1000000 | L159: 170000 | M159: 152100 | N159: 198315 | O159: 1520415 | P159: 1520415 | Q159: 1520415
I160: Total | J160: 247945977 | K160: 192077282 | L160: 32653143 | M160: 29214942 | N160: 28743497 | O160: 282688876 | P160: 530634850 | Q160: 530634850
A162: Notes-
A163: (1) Refer to the Local government infrastructure plan identifier (LGIP ID) when identifying the infrastructure projects on the plans for trunk infrastructure maps.
A164: (2) The estimated year of completion is an estimate of the earliest need for the project.
A165: (3) Indirect embellishment costs are on costs or overheads applied to the direct embellishment cost, to deliver the project. Indirect embellishment costs equate to 17% of the direct embellishment cost.
A166: (4) Project costs are on costs to undertake detailed design, survey, geotechnical investigations, project management, and supervision of construction works and obtain certification from a Registered Professional Engineer of Queensland. Project costs equate to 13% of the direct and indirect embellishment costs.
A167: (5) Contingency costs are based on the project delivery date, and applied to the direct construction cost, indirect construction cost and project cost. Contingencies equate to 7.5% for projects with a delivery date up to 2021 and 15% for projects with a delivery date up to 2026.
A168: (6) Total construction cost is the sum of direct embellishment cost, indirect embellishment cost, project cost and construction contingency cost, at 30 June 2016.
A169: (7) Value of the trunk infrastructure is the sum of land cost and total construction cost, at 30 June 2016.
A170: (8) Establishment cost is the total value of the trunk infrastructure item, comprising the total infrastructure cost, at 30 June 2016.
A171: (-) A dash denotes that the field is not applicable.

Sheet Input-Gen
A1: v1.1
F2: Brisbane City Council
F3: Schedule of Works Model - PUBLIC PARKS
F5: Input - General
G6: =IF(BaseCaseCheck=0,BaseCase,NotBaseCase) -> Please Note: Model is not currently applying Base Case parameter values
G7: =IF(Integrity=0,IntOK,IntErr) -> 
F15: General
G17: Timing & Structure
G19: Model Start Date | I19: dd-mmm-yy | M19: 2016-07-01
G20: Modelling Periods | I20: No. of Years | M20: =YEAR(M21)-YEAR(Model_Start_Date) -> 10
G21: Model End Date | I21: dd-mmm-yy | M21: =MAX(FY_End) -> 2026-06-30
G23: Months in Year | I23: months | M23: 12
G24: Duration between each planning period | I24: years | M24: 5
G25: Thousand Conversion | I25: # | M25: 1000
G26: Hectare size | I26: # | M26: 10000
G28: Method for calculating servicing cost
G30: Public Parks and Land for Community Facilities (1 = average, 0 = marginal) | I30: Select >>> | M30: 1
G32: On Costs and Contingencies - Embellishments Only
G34: On Cost | I34: % build cost
G35: Contingency | I35: % build cost
G37: Future expenditure for future demand
G39: Local | I39: % build cost
G40: District | I40: % build cost
G41: Metropolitan | I41: % build cost
G42: Urban Common | I42: % build cost
F44: Other Conditions
G46: Land, cut-off date for inclusion in infrastructure charges | I46: dd-mmm-yy | M46: 1900-01-01
G48: Maximum administration cost recoverable without approval from the Department of Infrastructure and Planning | I48: % | M48: 0
F50: Indexation/Discounting parameters
G52: Public Parks
M53: 0.05032921365
G54: Most recent PPI value | I54: # | M54: 110.5634114
G55: Base PPI value | I55: # | M55: 100.7685196
G57: Year of most recent PPI value | I57: year | M57: 2016
G58: Year of base PPI value | I58: year | M58: 2011
G60: Number of periods | I60: # | M60: =M57-M58 -> 5
G61: PPI Charge-rate indexation rate | I61: % | M61: =(M54/M55)^(1/M60)-1 -> 0.0187258123
G62: Over-ride charge-rate indexation rate | I62: % | M62: 0
G63: CPI Comparison charge-rate indexation rate | I63: % | M63: 0.025
G65: Recommended premium to bond rate, post-tax nominal | I65: % | M65: 0
G67: ="Ten year bond rate, average 20 working days to" & TEXT(Model_Start_Date," dd-mmm-yy") -> Ten year bond rate, average 20 working days to 01-Jul-16 | I67: % | M67: 0
G68: Rate of return, post-tax nominal (Nominal WACC) | I68: % | M68: 0.0591
G69: Rate of return, post-tax real (Real WACC) | I69: % | M69: =(1+M68)/(1+RevEsc)-1 -> 0.0591
F71: Integrity
G73: Integrity OK message | I73: text | M73: Model integrity OK
G74: Integrity error message | I74: text | M74: Model integrity error
G75: Number of decimal places to which integrity checks are calculated | I75: # | M75: 2
G77: Base case message | I77: text | M77: Model is applying base case parameter values
G78: Alternative scenario message | I78: text | M78: Please Note: Model is not currently applying Base Case parameter values
F80: Input File References
G82: General
G83: ID Number | I83: text
G84: Map Reference | I84: text
G85: Trunk Infrastructure Type | I85: text
G86: Catchment Type | I86: text
G88: Capacity
G89: Spare capacity of existing asset at the beginning of the planning period | I89: text
G90: Spare capacity at the end of planning period | I90: text
G91: Future costs to service future demand | I91: text
G92: External Usage | I92: text
G94: Charge Area
G95: General Urban | I95: text
G96: Centres | I96: text
G97: Fringe | I97: text
G99: Land Information
G100: Acquired Area | I100: text
G101: Date of Acquisition | I101: text
G102: Acquisition Cost of Existing Land | I102: text
G103: Escalation Index for Existing Land | I103: text
G104: ="Value existing land as at "&TEXT(Model_Start_Date-1,"dd-mmm-yy")&" (Average Approach)" -> Value existing land as at 30-Jun-16 (Average Approach) | I104: text
G106: Constructed Asset (excld. Land and Admin costs)
G107: Expected Construction Completion / Commissioning Date | I107: text
G108: ="Actual / Expected Construction Cost at "&TEXT(Model_Start_Date-1,"dd-mmm-yy")&" (Average Approach)" -> Actual / Expected Construction Cost at 30-Jun-16 (Average Approach) | I108: text
G110: Administration Costs
G111: Date of Admin Cost | I111: text
G112: (A) Percentage point of total Constructed Asset | I112: text
G113: ="(B) Defined Value as at "&TEXT(Model_Start_Date-1,"dd-mmm-yy") -> (B) Defined Value as at 30-Jun-16 | I113: text
G114: ="Subsidies / Grants as at "&TEXT(Model_Start_Date-1,"dd-mmm-yy") -> Subsidies / Grants as at 30-Jun-16 | I114: text
F119: End of Page

Sheet Input-Infra
F2: Brisbane City Council
F3: ='Input-Gen'!$F$3 -> Schedule of Works Model - PUBLIC PARKS
F5: Input - Infrastructure Details
G6: =IF(BaseCaseCheck=0,BaseCase,NotBaseCase) -> Please Note: Model is not currently applying Base Case parameter values
G7: =IF(Integrity=0,IntOK,IntErr) -> 
L9: General
S10: Capacity
Z11: Service Catchment
AJ12: Land Information | AK12: Land Information
AZ13: Constructed Asset (excld. Land and Admin costs)
BV14: Administration Costs
M17: LGIP ID Number | N17: LGIP Map Reference | O17: Trunk Infrastructure Type | P17: Catchment Type | T17: Spare capacity of existing asset at the beginning of the planning period | U17: Spare capacity at the end of planning period | V17: Future costs to service future demand | W17: External Usage | AA17: East (Local) | AB17: North (Local) | AC17: South (Local) | AD17: West (Local) | AE17: Brisbane wide (district & metro) | AG17: Total | AK17: Acquired Area | AL17: Date of Acquisition | AM17: Acquisition Cost of Existing Land | AN17: Escalation Index for Existing Land | AO17: ="Value of existing land as at " & TEXT(Model_Start_Date-1,"dd-mmm-yy") & " (Avg. Approach)" -> Value of existing land as at 30-Jun-16 (Avg. Approach) | AP17: Contingency Cost (Avg. Approach) | AR17: Land Total (Avg. Approach) | AT17: ="Value of existing land as at " & TEXT(Model_Start_Date-1,"dd-mmm-yy") & " (Mar. Approach)" -> Value of existing land as at 30-Jun-16 (Mar. Approach) | AU17: Contingency Cost (Mar. Approach) | AW17: Land Total (Mar. Approach) | BA17: Expected Construction Completion / Commissioning Date | BB17: ="Actual / Expected Construction Cost as at " & TEXT(Model_Start_Date-1,"dd-mmm-yy")&" (Avearge Approach)" -> Actual / Expected Construction Cost as at 30-Jun-16 (Avearge Approach) | BC17: Construction allowances (including indirect embellishment cost, project cost and contingencies) | BD17: Spare column | BF17: ="Total @ "& TEXT(Model_Start_Date-1,"dd-mmm-yy")&" (Average Approach)"&" (including indirect cost, project cost and contingecy cost)" -> Total @ 30-Jun-16 (Average Approach) (including indirect cost, project cost and contingecy cost) | BH17: ="Actual / Expected Construction Cost as at " & TEXT(Model_Start_Date-1,"dd-mmm-yy")&" (Marginal Approach)" -> Actual / Expected Construction Cost as at 30-Jun-16 (Marginal Approach) | BI17: ="Design & Supervision Cost @ "& TEXT(DSC,"##%") & " of Cost" -> Design & Supervision Cost @ % of Cost | BJ17: ="Contingency Cost @ "& TEXT(Cont_Cost,"##%") & " of Cost" -> Contingency Cost @ % of Cost | BL17: ="Total @ "& TEXT(Model_Start_Date-1,"dd-mmm-yy")&" (Marginal Approach)" -> Total @ 30-Jun-16 (Marginal Approach) | BM17: Source (e.g. unit cost report, contract, asset register, etc.) | BO17: TOTAL Average Approach (Land and Constructed Asset) | BS17: TOTAL Marginal Approach (Land and Constructed Asset) | BW17: Date of Admin Cost | BX17: Methodology Option (A) = 0, (B) = 1 | BY17: (A) Percentage point of total Constructed Asset | BZ17: ="(B) Defined Value as at " & TEXT(Model_Start_Date-1,"dd-mmm-yy") -> (B) Defined Value as at 30-Jun-16 | CA17: ="Check: If (B) value is greater than "&TEXT('Input-Gen'!$M$48,"0%")&" of total Constructed Asset" -> Check: If (B) value is greater than 0% of total Constructed Asset | CC17: ="Subsidies / Grants as at " & TEXT(Model_Start_Date-1,"dd-mmm-yy") -> Subsidies / Grants as at 30-Jun-16
G18: LGIP ID | U18: Unrecoverable costs due to unmet capacity | V18: Proportion of costs associated with future demand | W18: Unrecoverable costs | AA18: Proportion of total costs attributed to each service catchment
M19: # | N19: # | T19: % | U19: % | V19: % | W19: % | AA19: % | AD19: % | AE19: % | AK19: Ha | AL19: dd-mmm-yy | AM19: $'000 | AN19: # | AO19: $'000 | AP19: % | AT19: $'000 | AU19: % | BA19: dd-mmm-yy | BB19: $'000 | BC19: $'000 | BD19: $'000 | BF19: $'000 | BH19: $'000 | BI19: $'000 | BJ19: $'000 | BL19: $'000 | BO19: $'000 | BS19: $'000 | BX19: Select >>> | BY19: % | BZ19: $'000 | CC19: $'000
F23: Existing Infrastructure
G25: East (Local) | O25: Local Parks | T25: 0 | U25: 0 | W25: 0 | AA25: 1 | AB25: 0 | AC25: 0 | AD25: 0 | AE25: 0 | AG25: =SUM(AA25:AE25) -> 1 | AL25: 1900-01-01 | AO25: ='LGIP existing infrastructure'!C7/1000 -> 245080.0267 | AP25: 0 | AR25: =AO25*(1+AP25) -> 245080.0267 | AT25: =AO25 -> 245080.0267 | AU25: 0 | AW25: =AT25*(1+AU25) -> 245080.0267 | BB25: ='LGIP existing infrastructure'!D7/1000 -> 200790.0251 | BC25: 0 | BD25: 0 | BF25: =SUM(BB25:BD25) -> 200790.0251 | BH25: =BB25 -> 200790.0251 | BI25: =BC25 -> 0 | BJ25: 0 | BL25: =BF25 -> 200790.0251 | BO25: =SUM(BF25,AR25) -> 445870.0518 | BS25: =AW25+BL25 -> 445870.0518 | CA25: =IF(BX25=1,IF(BZ25>BO25*'Input-Gen'!$M$48,"Check Value","OK"),"") -> 
G26: North (Local) | O26: Local Parks | T26: 0 | U26: 0 | W26: 0 | AA26: 0 | AB26: 1 | AC26: 0 | AD26: 0 | AE26: 0 | AG26: 1 | AL26: 1900-01-01 | AO26: ='LGIP existing infrastructure'!C8/1000 -> 173790.3453 | AP26: 0 | AR26: =AO26*(1+AP26) -> 173790.3453 | AT26: 173790.3453 | AU26: 0 | AW26: =AT26*(1+AU26) -> 173790.3453 | BB26: ='LGIP existing infrastructure'!D8/1000 -> 114090.2165 | BC26: 0 | BD26: 0 | BF26: =SUM(BB26:BD26) -> 114090.2165 | BH26: 114090.2165 | BI26: 0 | BJ26: 0 | BL26: =BF26 -> 114090.2165 | BO26: 287880.5618 | BS26: 287880.5618 | CA26: =IF(BX26=1,IF(BZ26>BO26*'Input-Gen'!$M$48,"Check Value","OK"),"") -> 
G27: South (Local) | O27: Local Parks | T27: 0 | U27: 0 | W27: 0 | AA27: 0 | AB27: 0 | AC27: 1 | AD27: 0 | AE27: 0 | AG27: 1 | AL27: 1900-01-01 | AO27: ='LGIP existing infrastructure'!C9/1000 -> 208954.068 | AP27: 0 | AR27: =AO27*(1+AP27) -> 208954.068 | AT27: 208954.068 | AU27: 0 | AW27: =AT27*(1+AU27) -> 208954.068 | BB27: ='LGIP existing infrastructure'!D9/1000 -> 285739.8523 | BC27: 0 | BD27: 0 | BF27: =SUM(BB27:BD27) -> 285739.8523 | BH27: 285739.8523 | BI27: 0 | BJ27: 0 | BL27: =BF27 -> 285739.8523 | BO27: 494693.9202 | BS27: 494693.9202 | CA27: =IF(BX27=1,IF(BZ27>BO27*'Input-Gen'!$M$48,"Check Value","OK"),"") -> 
G28: West (Local) | O28: Local Parks | T28: 0 | U28: 0 | W28: 0 | AA28: 0 | AB28: 0 | AC28: 0 | AD28: 1 | AE28: 0 | AG28: 1 | AL28: 1900-01-01 | AO28: ='LGIP existing infrastructure'!C10/1000 -> 300506.6909 | AP28: 0 | AR28: =AO28*(1+AP28) -> 300506.6909 | AT28: 300506.6909 | AU28: 0 | AW28: =AT28*(1+AU28) -> 300506.6909 | BB28: ='LGIP existing infrastructure'!D10/1000 -> 257711.6249 | BC28: 0 | BD28: 0 | BF28: =SUM(BB28:BD28) -> 257711.6249 | BH28: 257711.6249 | BI28: 0 | BJ28: 0 | BL28: =BF28 -> 257711.6249 | BO28: 558218.3158 | BS28: 558218.3158 | CA28: =IF(BX28=1,IF(BZ28>BO28*'Input-Gen'!$M$48,"Check Value","OK"),"") -> 
G29: Brisbane wide (district & metro) | O29: District, Metropolitan and Urban Common Parks | T29: 0 | U29: 0 | W29: 0 | AA29: 0 | AB29: 0 | AC29: 0 | AD29: 0 | AE29: 1 | AG29: 1 | AL29: 1900-01-01 | AO29: =SUM('LGIP existing infrastructure'!E7:E10)/1000 -> 1538568.66 | AP29: 0 | AR29: =AO29*(1+AP29) -> 1538568.66 | AT29: =AO29 -> 1538568.66 | AU29: =AP29 -> 0 | AW29: =AT29*(1+AU29) -> 1538568.66 | BB29: =SUM('LGIP existing infrastructure'!F7:F10)/1000 -> 4164784.915 | BF29: =SUM(BB29:BD29) -> 4164784.915 | BH29: =BB29 -> 4164784.915 | BI29: =BC29 -> 0 | BJ29: =BD29 -> 0 | BL29: =BF29 -> 4164784.915 | BO29: 5703353.575 | BS29: 5703353.575 | CA29: =IF(BX29=1,IF(BZ29>BO29*'Input-Gen'!$M$48,"Check Value","OK"),"") -> 
AG30: 0 | AR30: 0 | AT30: 0 | AU30: 0 | AW30: 0 | BF30: 0 | BH30: 0 | BI30: 0 | BJ30: 0 | BL30: 0 | BO30: 0 | BS30: 0 | CA30: =IF(BX30=1,IF(BZ30>BO30*'Input-Gen'!$M$48,"Check Value","OK"),"") -> 
AG31: 0 | AR31: 0 | AT31: 0 | AU31: 0 | AW31: 0 | BF31: 0 | BH31: 0 | BI31: 0 | BJ31: 0 | BL31: 0 | BO31: 0 | BS31: 0 | CA31: =IF(BX31=1,IF(BZ31>BO31*'Input-Gen'!$M$48,"Check Value","OK"),"") -> 
AG32: 0 | AR32: 0 | AT32: 0 | AU32: 0 | AW32: 0 | BF32: 0 | BH32: 0 | BI32: 0 | BJ32: 0 | BL32: 0 | BO32: 0 | BS32: 0 | CA32: =IF(BX32=1,IF(BZ32>BO32*'Input-Gen'!$M$48,"Check Value","OK"),"") -> 
AG33: 0 | AR33: 0 | AT33: 0 | AU33: 0 | AW33: 0 | BF33: 0 | BH33: 0 | BI33: 0 | BJ33: 0 | BL33: 0 | BO33: 0 | BS33: 0 | CA33: =IF(BX33=1,IF(BZ33>BO33*'Input-Gen'!$M$48,"Check Value","OK"),"") -> 
AG34: 0 | AR34: 0 | AT34: 0 | AU34: 0 | AW34: 0 | BF34: 0 | BH34: 0 | BI34: 0 | BJ34: 0 | BL34: 0 | BO34: 0 | BS34: 0 | CA34: =IF(BX34=1,IF(BZ34>BO34*'Input-Gen'!$M$48,"Check Value","OK"),"") -> 
AG35: 0 | AR35: 0 | AT35: 0 | AU35: 0 | AW35: 0 | BF35: 0 | BH35: 0 | BI35: 0 | BJ35: 0 | BL35: 0 | BO35: 0 | BS35: 0 | CA35: =IF(BX35=1,IF(BZ35>BO35*'Input-Gen'!$M$48,"Check Value","OK"),"") -> 
AG36: 0 | AR36: 0 | AT36: 0 | AU36: 0 | AW36: 0 | BF36: 0 | BH36: 0 | BI36: 0 | BJ36: 0 | BL36: 0 | BO36: 0 | BS36: 0 | CA36: =IF(BX36=1,IF(BZ36>BO36*'Input-Gen'!$M$48,"Check Value","OK"),"") -> 
AG37: 0 | AR37: 0 | AT37: 0 | AU37: 0 | AW37: 0 | BF37: 0 | BH37: 0 | BI37: 0 | BJ37: 0 | BL37: 0 | BO37: 0 | BS37: 0 | CA37: =IF(BX37=1,IF(BZ37>BO37*'Input-Gen'!$M$48,"Check Value","OK"),"") -> 
AG38: 0 | AR38: 0 | AT38: =AO38 -> 0 | AU38: =AP38 -> 0 | AW38: =AT38*(1+AU38) -> 0 | BF38: 0 | BH38: 0 | BI38: 0 | BJ38: 0 | BL38: 0 | BO38: 0 | BS38: 0 | CA38: =IF(BX38=1,IF(BZ38>BO38*'Input-Gen'!$M$48,"Check Value","OK"),"") -> 
G40: Total | T40: =SUM(T25:T38) -> 0 | U40: =SUM(U25:U38) -> 0 | W40: =SUM(W25:W38) -> 0 | AA40: =SUM(AA25:AA38) -> 1 | AB40: 1 | AC40: 1 | AD40: 1 | AE40: 1 | AG40: =(SUM(AG25:AG38)=SUM(AA40:AE40)) -> TRUE | AK40: =SUM(AK25:AK38) -> 0 | AM40: =SUM(AM25:AM38) -> 0 | AO40: =SUM(AO25:AO38) -> 2466899.791 | AP40: =SUM(AP25:AP38) -> 0 | AR40: =SUM(AR25:AR38) -> 2466899.791 | AT40: =SUM(AT25:AT38) -> 2466899.791 | AU40: =SUM(AU25:AU38) -> 0 | AW40: =SUM(AW25:AW38) -> 2466899.791 | BB40: =SUM(BB25:BB38) -> 5023116.634 | BC40: =SUM(BC25:BC38) -> 0 | BD40: =SUM(BD25:BD38) -> 0 | BF40: =SUM(BF25:BF38) -> 5023116.634 | BH40: =SUM(BH25:BH38) -> 5023116.634 | BI40: =SUM(BI25:BI38) -> 0 | BJ40: =SUM(BJ25:BJ38) -> 0 | BL40: =SUM(BL25:BL38) -> 5023116.634 | BO40: =SUM(BO25:BO38) -> 7490016.425 | BS40: =SUM(BS25:BS38) -> 7490016.425 | BX40: =SUM(BX25:BX38) -> 0 | BZ40: =SUM(BZ25:BZ38) -> 0 | CA40: =IF(BX40=1,IF(BZ40>BO40*'Input-Gen'!$M$48,"Check Value","OK"),"") ->  | CC40: =SUM(CC25:CC38) -> 0
F46: Future Infrastructure
G48: =M48 -> AGR-A1-002 | M48: ='LGIP future infrastructure'!A2 -> AGR-A1-002 | N48: ='LGIP future infrastructure'!B2 -> PCF313 | O48: ='LGIP future infrastructure'!D2 -> Acquire and embellish land to provide LOCAL RECREATION infrastructure | P48: ='LGIP future infrastructure'!F2 -> Local | T48: 0 | U48: 0 | V48: 0 | W48: 0 | AA48: 0 | AB48: 0 | AC48: 1 | AD48: 0 | AE48: 0 | AG48: =SUM(AA48:AE48) -> 1 | AK48: ='LGIP future infrastructure'!I2 -> 0.66 | AL48: =IF('LGIP future infrastructure'!G2="2016 - 2021",DATE(2019,6,30),DATE(2024,6,30)) -> 2024-06-30 | AM48: ='LGIP future infrastructure'!J2/1000 -> 990 | AN48: n/a | AO48: =AM48 -> 990 | AP48: 0 | AR48: =AO48*(1+AP48) -> 990 | AT48: =AO48*V48 -> 0 | AU48: =AP48 -> 0 | AW48: =AT48*(1+AU48) -> 0 | BA48: =AL48 -> 2024-06-30 | BB48: ='LGIP future infrastructure'!K2/1000 -> 229.426 | BC48: =SUM('LGIP future infrastructure'!L2:N2)/1000 -> 119.397 | BF48: =SUM(BB48:BC48) -> 348.823 | BH48: =BB48*$V48 -> 0 | BI48: =BC48*$V48 -> 0 | BJ48: 0 | BL48: =BF48*V48 -> 0 | BO48: =SUM(BF48,AR48) -> 1338.823 | BS48: =AW48+BL48 -> 0 | BW48: =BA48 -> 2024-06-30 | CA48: =IF(BX48=1,IF(BZ48>BO48*'Input-Gen'!$M$48,"Check Value","OK"),"") -> 
G49: =M49 -> AGR-A1-003 | M49: ='LGIP future infrastructure'!A3 -> AGR-A1-003 | N49: ='LGIP future infrastructure'!B3 -> PCF313 | O49: ='LGIP future infrastructure'!D3 -> Acquire and embellish land to provide LOCAL RECREATION infrastructure | P49: ='LGIP future infrastructure'!F3 -> Local | T49: 0 | U49: 0 | V49: 0 | W49: 0 | AA49: 0 | AB49: 0 | AC49: 1 | AD49: 0 | AE49: 0 | AG49: 1 | AK49: ='LGIP future infrastructure'!I3 -> 1 | AL49: =IF('LGIP future infrastructure'!G3="2016 - 2021",DATE(2019,6,30),DATE(2024,6,30)) -> 2024-06-30 | AM49: ='LGIP future infrastructure'!J3/1000 -> 1500 | AN49: n/a | AO49: =AM49 -> 1500 | AP49: 0 | AR49: =AO49*(1+AP49) -> 1500 | AT49: 0 | AU49: =AP49 -> 0 | AW49: =AT49*(1+AU49) -> 0 | BA49: =AL49 -> 2024-06-30 | BB49: ='LGIP future infrastructure'!K3/1000 -> 333.335 | BC49: =SUM('LGIP future infrastructure'!L3:N3)/1000 -> 173.472 | BF49: =SUM(BB49:BC49) -> 506.807 | BH49: =BB49*$V49 -> 0 | BI49: =BC49*$V49 -> 0 | BJ49: =BD49*$V49 -> 0 | BL49: 0 | BO49: =SUM(BF49,AR49) -> 2006.807 | BS49: 0 | BW49: =BA49 -> 2024-06-30 | CA49: =IF(BX49=1,IF(BZ49>BO49*'Input-Gen'!$M$48,"Check Value","OK"),"") -> 
G50: AGR-A1-010 | M50: ='LGIP future infrastructure'!A4 -> AGR-A1-010 | N50: ='LGIP future infrastructure'!B4 -> PCF313 | O50: ='LGIP future infrastructure'!D4 -> Acquire and embellish land to provide LOCAL RECREATION infrastructure | P50: ='LGIP future infrastructure'!F4 -> Local | T50: 0 | U50: 0 | V50: 0 | W50: 0 | AA50: 0 | AB50: 0 | AC50: 1 | AD50: 0 | AE50: 0 | AG50: 1 | AK50: ='LGIP future infrastructure'!I4 -> 1.16976 | AL50: =IF('LGIP future infrastructure'!G4="2016 - 2021",DATE(2019,6,30),DATE(2024,6,30)) -> 2024-06-30 | AM50: ='LGIP future infrastructure'!J4/1000 -> 935.808 | AN50: n/a | AO50: 935.808 | AP50: 0 | AR50: =AO50*(1+AP50) -> 935.808 | AT50: 0 | AU50: =AP50 -> 0 | AW50: =AT50*(1+AU50) -> 0 | BA50: 2024-06-30 | BB50: ='LGIP future infrastructure'!K4/1000 -> 385.216 | BC50: =SUM('LGIP future infrastructure'!L4:N4)/1000 -> 200.472 | BF50: 585.688 | BH50: 0 | BI50: 0 | BJ50: 0 | BL50: 0 | BO50: 1521.496 | BS50: 0 | BW50: 2024-06-30 | CA50: =IF(BX50=1,IF(BZ50>BO50*'Input-Gen'!$M$48,"Check Value","OK"),"") -> 
G51: ALB-A1-001 | M51: ='LGIP future infrastructure'!A5 -> ALB-A1-001 | N51: ='LGIP future infrastructure'!B5 -> PCF153 | O51: ='LGIP future infrastructure'!D5 -> Acquire and embellish land to provide LOCAL RECREATION infrastructure | P51: ='LGIP future infrastructure'!F5 -> Local | T51: 0 | U51: 0 | V51: 0 | W51: 0 | AA51: 0 | AB51: 1 | AC51: 0 | AD51: 0 | AE51: 0 | AG51: 1 | AK51: ='LGIP future infrastructure'!I5 -> 0.2 | AL51: =IF('LGIP future infrastructure'!G5="2016 - 2021",DATE(2019,6,30),DATE(2024,6,30)) -> 2019-06-30 | AM51: ='LGIP future infrastructure'!J5/1000 -> 6000 | AN51: n/a | AO51: 6000 | AP51: 0 | AR51: 6000 | AT51: 0 | AU51: 0 | AW51: 0 | BA51: 2019-06-30 | BB51: ='LGIP future infrastructure'!K5/1000 -> 88.843 | BC51: =SUM('LGIP future infrastructure'!L5:N5)/1000 -> 37.425 | BF51: 126.268 | BH51: 0 | BI51: 0 | BJ51: 0 | BL51: 0 | BO51: 6126.268 | BS51: 0 | BW51: 2019-06-30 | CA51: =IF(BX51=1,IF(BZ51>BO51*'Input-Gen'!$M$48,"Check Value","OK"),"") -> 
G52: ALB-A1-002 | M52: ='LGIP future infrastructure'!A6 -> ALB-A1-002 | N52: ='LGIP future infrastructure'!B6 -> PCF153 | O52: ='LGIP future infrastructure'!D6 -> Acquire and embellish land to provide LOCAL RECREATION infrastructure | P52: ='LGIP future infrastructure'!F6 -> Local | T52: 0 | U52: 0 | V52: 0 | W52: 0 | AA52: 0 | AB52: 1 | AC52: 0 | AD52: 0 | AE52: 0 | AG52: 1 | AK52: ='LGIP future infrastructure'!I6 -> 0.26 | AL52: =IF('LGIP future infrastructure'!G6="2016 - 2021",DATE(2019,6,30),DATE(2024,6,30)) -> 2019-06-30 | AM52: ='LGIP future infrastructure'!J6/1000 -> 2600 | AN52: n/a | AO52: 2600 | AP52: 0 | AR52: 2600 | AT52: 0 | AU52: 0 | AW52: 0 | BA52: 2019-06-30 | BB52: ='LGIP future infrastructure'!K6/1000 -> 107.18 | BC52: =SUM('LGIP future infrastructure'!L6:N6)/1000 -> 45.151 | BF52: 152.331 | BH52: 0 | BI52: 0 | BJ52: 0 | BL52: 0 | BO52: 2752.331 | BS52: 0 | BW52: 2019-06-30 | CA52: =IF(BX52=1,IF(BZ52>BO52*'Input-Gen'!$M$48,"Check Value","OK"),"") -> 
G53: ASC-A1-001 | M53: ='LGIP future infrastructure'!A7 -> ASC-A1-001 | N53: ='LGIP future infrastructure'!B7 -> PCF154 | O53: ='LGIP future infrastructure'!D7 -> Acquire and embellish land to provide LOCAL RECREATION infrastructure | P53: ='LGIP future infrastructure'!F7 -> Local | T53: 0 | U53: 0 | V53: 0 | W53: 0 | AA53: 0 | AB53: 1 | AC53: 0 | AD53: 0 | AE53: 0 | AG53: 1 | AK53: ='LGIP future infrastructure'!I7 -> 1.1122 | AL53: =IF('LGIP future infrastructure'!G7="2016 - 2021",DATE(2019,6,30),DATE(2024,6,30)) -> 2019-06-30 | AM53: ='LGIP future infrastructure'!J7/1000 -> 111.22 | AN53: n/a | AO53: 111.22 | AP53: 0 | AR53: 111.22 | AT53: 0 | AU53: 0 | AW53: 0 | BA53: 2019-06-30 | BB53: ='LGIP future infrastructure'!K7/1000 -> 367.625 | BC53: =SUM('LGIP future infrastructure'!L7:N7)/1000 -> 154.865 | BF53: 522.49 | BH53: 0 | BI53: 0 | BJ53: 0 | BL53: 0 | BO53: 633.71 | BS53: 0 | BW53: 2019-06-30 | CA53: =IF(BX53=1,IF(BZ53>BO53*'Input-Gen'!$M$48,"Check Value","OK"),"") -> 
G54: ASC-A1-002 | M54: ='LGIP future infrastructure'!A8 -> ASC-A1-002 | N54: ='LGIP future infrastructure'!B8 -> PCF154 | O54: ='LGIP future infrastructure'!D8 -> Acquire and embellish land to provide LOCAL RECREATION infrastructure | P54: ='LGIP future infrastructure'!F8 -> Local | T54: 0 | U54: 0 | V54: 0 | W54: 0 | AA54: 0 | AB54: 1 | AC54: 0 | AD54: 0 | AE54: 0 | AG54: 1 | AK54: ='LGIP future infrastructure'!I8 -> 0.5 | AL54: =IF('LGIP future infrastructure'!G8="2016 - 2021",DATE(2019,6,30),DATE(2024,6,30)) -> 2019-06-30 | AM54: ='LGIP future infrastructure'!J8/1000 -> 500 | AN54: n/a | AO54: 500 | AP54: 0 | AR54: 500 | AT54: 0 | AU54: 0 | AW54: 0 | BA54: 2019-06-30 | BB54: ='LGIP future infrastructure'!K8/1000 -> 180.527 | BC54: =SUM('LGIP future infrastructure'!L8:N8)/1000 -> 76.049 | BF54: 256.576 | BH54: 0 | BI54: 0 | BJ54: 0 | BL54: 0 | BO54: 756.576 | BS54: 0 | BW54: 2019-06-30 | CA54: =IF(BX54=1,IF(BZ54>BO54*'Input-Gen'!$M$48,"Check Value","OK"),"") -> 
G55: ASP-A8-001 | M55: ='LGIP future infrastructure'!A9 -> ASP-A8-001 | N55: ='LGIP future infrastructure'!B9 -> PCF92 | O55: ='LGIP future infrastructure'!D9 -> Acquire and embellish land to provide DISTRICT OR METRO ACCESS/RECREATION CORRIDOR PARK | P55: ='LGIP future infrastructure'!F9 -> District | T55: 0 | U55: 0 | V55: 0 | W55: 0 | AA55: 0 | AB55: 0 | AC55: 0 | AD55: 0 | AE55: 1 | AG55: 1 | AK55: ='LGIP future infrastructure'!I9 -> 1.2 | AL55: =IF('LGIP future infrastructure'!G9="2016 - 2021",DATE(2019,6,30),DATE(2024,6,30)) -> 2024-06-30 | AM55: ='LGIP future infrastructure'!J9/1000 -> 120 | AN55: n/a | AO55: 120 | AP55: 0 | AR55: 120 | AT55: 0 | AU55: 0 | AW55: 0 | BA55: 2024-06-30 | BB55: ='LGIP future infrastructure'!K9/1000 -> 282.623 | BC55: =SUM('LGIP future infrastructure'!L9:N9)/1000 -> 147.081 | BF55: 429.704 | BH55: 0 | BI55: 0 | BJ55: 0 | BL55: 0 | BO55: 549.704 | BS55: 0 | BW55: 2024-06-30 | CA55: =IF(BX55=1,IF(BZ55>BO55*'Input-Gen'!$M$48,"Check Value","OK"),"") -> 
G56: ASP-A8-002 | M56: ='LGIP future infrastructure'!A10 -> ASP-A8-002 | N56: ='LGIP future infrastructure'!B10 -> PCF92 | O56: ='LGIP future infrastructure'!D10 -> Acquire and embellish land to provide DISTRICT OR METRO ACCESS/RECREATION CORRIDOR PARK | P56: ='LGIP future infrastructure'!F10 -> District | T56: 0 | U56: 0 | V56: 0 | W56: 0 | AA56: 0 | AB56: 0 | AC56: 0 | AD56: 0 | AE56: 1 | AG56: 1 | AK56: ='LGIP future infrastructure'!I10 -> 0.8 | AL56: =IF('LGIP future infrastructure'!G10="2016 - 2021",DATE(2019,6,30),DATE(2024,6,30)) -> 2024-06-30 | AM56: ='LGIP future infrastructure'!J10/1000 -> 320 | AN56: n/a | AO56: 320 | AP56: 0 | AR56: 320 | AT56: 0 | AU56: 0 | AW56: 0 | BA56: 2024-06-30 | BB56: ='LGIP future infrastructure'!K10/1000 -> 208.6 | BC56: =SUM('LGIP future infrastructure'!L10:N10)/1000 -> 108.559 | BF56: 317.159 | BH56: 0 | BI56: 0 | BJ56: 0 | BL56: 0 | BO56: 637.159 | BS56: 0 | BW56: 2024-06-30 | CA56: =IF(BX56=1,IF(BZ56>BO56*'Input-Gen'!$M$48,"Check Value","OK"),"") -> 
G57: BDL-A1-002 | M57: ='LGIP future infrastructure'!A11 -> BDL-A1-002 | N57: ='LGIP future infrastructure'!B11 -> PCF73 | O57: ='LGIP future infrastructure'!D11 -> Acquire and embellish land to provide LOCAL RECREATION infrastructure | P57: ='LGIP future infrastructure'!F11 -> Local | T57: 0 | U57: 0 | V57: 0 | W57: 0 | AA57: 0 | AB57: 1 | AC57: 0 | AD57: 0 | AE57: 0 | AG57: 1 | AK57: ='LGIP future infrastructure'!I11 -> 0.49211 | AL57: =IF('LGIP future infrastructure'!G11="2016 - 2021",DATE(2019,6,30),DATE(2024,6,30)) -> 2019-06-30 | AM57: ='LGIP future infrastructure'!J11/1000 -> 393.688 | AN57: n/a | AO57: 393.688 | AP57: 0 | AR57: 393.688 | AT57: 0 | AU57: 0 | AW57: 0 | BA57: 2019-06-30 | BB57: ='LGIP future infrastructure'!K11/1000 -> 178.116 | BC57: =SUM('LGIP future infrastructure'!L11:N11)/1000 -> 75.033 | BF57: 253.149 | BH57: 0 | BI57: 0 | BJ57: 0 | BL57: 0 | BO57: 646.837 | BS57: 0 | BW57: 2019-06-30 | CA57: =IF(BX57=1,IF(BZ57>BO57*'Input-Gen'!$M$48,"Check Value","OK"),"") -> 
G58: BDL-E1-010 | M58: ='LGIP future infrastructure'!A12 -> BDL-E1-010 | N58: ='LGIP future infrastructure'!B12 -> PCF93 | O58: ='LGIP future infrastructure'!D12 -> Provide LOCAL RECREATION infrastructure | P58: ='LGIP future infrastructure'!F12 -> Local | T58: 0 | U58: 0 | V58: 0 | W58: 0 | AA58: 0 | AB58: 1 | AC58: 0 | AD58: 0 | AE58: 0 | AG58: 1 | AK58: ='LGIP future infrastructure'!I12 -> 0.15 | AL58: =IF('LGIP future infrastructure'!G12="2016 - 2021",DATE(2019,6,30),DATE(2024,6,30)) -> 2019-06-30 | AM58: ='LGIP future infrastructure'!J12/1000 -> 0 | AN58: n/a | AO58: 0 | AP58: 0 | AR58: 0 | AT58: 0 | AU58: 0 | AW58: 0 | BA58: 2019-06-30 | BB58: ='LGIP future infrastructure'!K12/1000 -> 376.683 | BC58: =SUM('LGIP future infrastructure'!L12:N12)/1000 -> 158.681 | BF58: 535.364 | BH58: 0 | BI58: 0 | BJ58: 0 | BL58: 0 | BO58: 535.364 | BS58: 0 | BW58: 2019-06-30 | CA58: =IF(BX58=1,IF(BZ58>BO58*'Input-Gen'!$M$48,"Check Value","OK"),"") -> 
G59: BHI-E5-001 | M59: ='LGIP future infrastructure'!A13 -> BHI-E5-001 | N59: ='LGIP future infrastructure'!B13 -> PCF52 | O59: ='LGIP future infrastructure'!D13 -> Provide DISTRICT SPORT infrastructure | P59: ='LGIP future infrastructure'!F13 -> District | T59: 0 | U59: 0 | V59: 0 | W59: 0 | AA59: 0 | AB59: 0 | AC59: 0 | AD59: 0 | AE59: 1 | AG59: 1 | AK59: ='LGIP future infrastructure'!I13 -> 10 | AL59: =IF('LGIP future infrastructure'!G13="2016 - 2021",DATE(2019,6,30),DATE(2024,6,30)) -> 2019-06-30 | AM59: ='LGIP future infrastructure'!J13/1000 -> 0 | AN59: n/a | AO59: 0 | AP59: 0 | AR59: 0 | AT59: 0 | AU59: 0 | AW59: 0 | BA59: 2019-06-30 | BB59: ='LGIP future infrastructure'!K13/1000 -> 7619.541 | BC59: =SUM('LGIP future infrastructure'!L13:N13)/1000 -> 3209.789 | BF59: 10829.33 | BH59: 0 | BI59: 0 | BJ59: 0 | BL59: 0 | BO59: 10829.33 | BS59: 0 | BW59: 2019-06-30 | CA59: =IF(BX59=1,IF(BZ59>BO59*'Input-Gen'!$M$48,"Check Value","OK"),"") -> 
G60: BOH-E1-001 | M60: ='LGIP future infrastructure'!A14 -> BOH-E1-001 | N60: ='LGIP future infrastructure'!B14 -> PCF173 | O60: ='LGIP future infrastructure'!D14 -> Provide LOCAL RECREATION infrastructure | P60: ='LGIP future infrastructure'!F14 -> Local | T60: 0 | U60: 0 | V60: 0 | W60: 0 | AA60: 0 | AB60: 1 | AC60: 0 | AD60: 0 | AE60: 0 | AG60: 1 | AK60: ='LGIP future infrastructure'!I14 -> 0.25 | AL60: =IF('LGIP future infrastructure'!G14="2016 - 2021",DATE(2019,6,30),DATE(2024,6,30)) -> 2019-06-30 | AM60: ='LGIP future infrastructure'!J14/1000 -> 0 | AN60: n/a | AO60: 0 | AP60: 0 | AR60: 0 | AT60: 0 | AU60: 0 | AW60: 0 | BA60: 2019-06-30 | BB60: ='LGIP future infrastructure'!K14/1000 -> 383.006 | BC60: =SUM('LGIP future infrastructure'!L14:N14)/1000 -> 161.344 | BF60: 544.35 | BH60: 0 | BI60: 0 | BJ60: 0 | BL60: 0 | BO60: 544.35 | BS60: 0 | BW60: 2019-06-30 | CA60: =IF(BX60=1,IF(BZ60>BO60*'Input-Gen'!$M$48,"Check Value","OK"),"") -> 
G61: BRD-A1-001 | M61: ='LGIP future infrastructure'!A15 -> BRD-A1-001 | N61: ='LGIP future infrastructure'!B15 -> PCF72 | O61: ='LGIP future infrastructure'!D15 -> Acquire and embellish land to provide LOCAL RECREATION infrastructure | P61: ='LGIP future infrastructure'!F15 -> Local | T61: 0 | U61: 0 | V61: 0 | W61: 0 | AA61: 0 | AB61: 0 | AC61: 0 | AD61: 1 | AE61: 0 | AG61: 1 | AK61: ='LGIP future infrastructure'!I15 -> 1 | AL61: =IF('LGIP future infrastructure'!G15="2016 - 2021",DATE(2019,6,30),DATE(2024,6,30)) -> 2019-06-30 | AM61: ='LGIP future infrastructure'!J15/1000 -> 1750 | AN61: n/a | AO61: 1750 | AP61: 0 | AR61: 1750 | AT61: 0 | AU61: 0 | AW61: 0 | BA61: 2019-06-30 | BB61: ='LGIP future infrastructure'!K15/1000 -> 333.335 | BC61: =SUM('LGIP future infrastructure'!L15:N15)/1000 -> 140.42 | BF61: 473.755 | BH61: 0 | BI61: 0 | BJ61: 0 | BL61: 0 | BO61: 2223.755 | BS61: 0 | BW61: 2019-06-30 | CA61: =IF(BX61=1,IF(BZ61>BO61*'Input-Gen'!$M$48,"Check Value","OK"),"") -> 
G62: BRD-A1-002 | M62: ='LGIP future infrastructure'!A16 -> BRD-A1-002 | N62: ='LGIP future infrastructure'!B16 -> PCF91 | O62: ='LGIP future infrastructure'!D16 -> Acquire and embellish land to provide LOCAL RECREATION infrastructure | P62: ='LGIP future infrastructure'!F16 -> Local | T62: 0 | U62: 0 | V62: 0 | W62: 0 | AA62: 0 | AB62: 0 | AC62: 0 | AD62: 1 | AE62: 0 | AG62: 1 | AK62: ='LGIP future infrastructure'!I16 -> 1 | AL62: =IF('LGIP future infrastructure'!G16="2016 - 2021",DATE(2019,6,30),DATE(2024,6,30)) -> 2019-06-30 | AM62: ='LGIP future infrastructure'!J16/1000 -> 100 | AN62: n/a | AO62: 100 | AP62: 0 | AR62: 100 | AT62: 0 | AU62: 0 | AW62: 0 | BA62: 2019-06-30 | BB62: ='LGIP future infrastructure'!K16/1000 -> 333.335 | BC62: =SUM('LGIP future infrastructure'!L16:N16)/1000 -> 140.42 | BF62: 473.755 | BH62: 0 | BI62: 0 | BJ62: 0 | BL62: 0 | BO62: 573.755 | BS62: 0 | BW62: 2019-06-30 | CA62: =IF(BX62=1,IF(BZ62>BO62*'Input-Gen'!$M$48,"Check Value","OK"),"") -> 
G63: BRD-A8-001 | M63: ='LGIP future infrastructure'!A17 -> BRD-A8-001 | N63: ='LGIP future infrastructure'!B17 -> PCF91 | O63: ='LGIP future infrastructure'!D17 -> Acquire and embellish land to provide DISTRICT OR METRO ACCESS/RECREATION CORRIDOR PARK | P63: ='LGIP future infrastructure'!F17 -> District | T63: 0 | U63: 0 | V63: 0 | W63: 0 | AA63: 0 | AB63: 0 | AC63: 0 | AD63: 0 | AE63: 1 | AG63: 1 | AK63: ='LGIP future infrastructure'!I17 -> 2 | AL63: =IF('LGIP future infrastructure'!G17="2016 - 2021",DATE(2019,6,30),DATE(2024,6,30)) -> 2024-06-30 | AM63: ='LGIP future infrastructure'!J17/1000 -> 200 | AN63: n/a | AO63: 200 | AP63: 0 | AR63: 200 | AT63: 0 | AU63: 0 | AW63: 0 | BA63: 2024-06-30 | BB63: ='LGIP future infrastructure'!K17/1000 -> 430.668 | BC63: =SUM('LGIP future infrastructure'!L17:N17)/1000 -> 224.127 | BF63: 654.795 | BH63: 0 | BI63: 0 | BJ63: 0 | BL63: 0 | BO63: 854.795 | BS63: 0 | BW63: 2024-06-30 | CA63: =IF(BX63=1,IF(BZ63>BO63*'Input-Gen'!$M$48,"Check Value","OK"),"") -> 
G64: BRD-U3-010 | M64: ='LGIP future infrastructure'!A18 -> BRD-U3-010 | N64: ='LGIP future infrastructure'!B18 -> PCF91 | O64: ='LGIP future infrastructure'!D18 -> Upgrade existing park infrastructure to value of up to $500k (District) | P64: ='LGIP future infrastructure'!F18 -> District | T64: 0 | U64: 0 | V64: 0 | W64: 0 | AA64: 0 | AB64: 0 | AC64: 0 | AD64: 0 | AE64: 1 | AG64: 1 | AK64: ='LGIP future infrastructure'!I18 -> 1 | AL64: =IF('LGIP future infrastructure'!G18="2016 - 2021",DATE(2019,6,30),DATE(2024,6,30)) -> 2019-06-30 | AM64: ='LGIP future infrastructure'!J18/1000 -> 0 | AN64: n/a | AO64: 0 | AP64: 0 | AR64: 0 | AT64: 0 | AU64: 0 | AW64: 0 | BA64: 2019-06-30 | BB64: ='LGIP future infrastructure'!K18/1000 -> 500 | BC64: =SUM('LGIP future infrastructure'!L18:N18)/1000 -> 210.629 | BF64: 710.629 | BH64: 0 | BI64: 0 | BJ64: 0 | BL64: 0 | BO64: 710.629 | BS64: 0 | BW64: 2019-06-30 | CA64: =IF(BX64=1,IF(BZ64>BO64*'Input-Gen'!$M$48,"Check Value","OK"),"") -> 
G65: BRG-A1-001 | M65: ='LGIP future infrastructure'!A19 -> BRG-A1-001 | N65: ='LGIP future infrastructure'!B19 -> PCF53 | O65: ='LGIP future infrastructure'!D19 -> Acquire and embellish land to provide LOCAL RECREATION infrastructure | P65: ='LGIP future infrastructure'!F19 -> Local | T65: 0 | U65: 0 | V65: 0 | W65: 0 | AA65: 0 | AB65: 1 | AC65: 0 | AD65: 0 | AE65: 0 | AG65: 1 | AK65: ='LGIP future infrastructure'!I19 -> 1 | AL65: =IF('LGIP future infrastructure'!G19="2016 - 2021",DATE(2019,6,30),DATE(2024,6,30)) -> 2019-06-30 | AM65: ='LGIP future infrastructure'!J19/1000 -> 1200 | AN65: n/a | AO65: 1200 | AP65: 0 | AR65: 1200 | AT65: 0 | AU65: 0 | AW65: 0 | BA65: 2019-06-30 | BB65: ='LGIP future infrastructure'!K19/1000 -> 333.335 | BC65: =SUM('LGIP future infrastructure'!L19:N19)/1000 -> 140.42 | BF65: 473.755 | BH65: 0 | BI65: 0 | BJ65: 0 | BL65: 0 | BO65: 1673.755 | BS65: 0 | BW65: 2019-06-30 | CA65: =IF(BX65=1,IF(BZ65>BO65*'Input-Gen'!$M$48,"Check Value","OK"),"") -> 
G66: BUL-A1-001 | M66: ='LGIP future infrastructure'!A20 -> BUL-A1-001 | N66: ='LGIP future infrastructure'!B20 -> PCF174 | O66: ='LGIP future infrastructure'!D20 -> Acquire and embellish land to provide LOCAL RECREATION infrastructure | P66: ='LGIP future infrastructure'!F20 -> Local | T66: 0 | U66: 0 | V66: 0 | W66: 0 | AA66: 1 | AB66: 0 | AC66: 0 | AD66: 0 | AE66: 0 | AG66: 1 | AK66: ='LGIP future infrastructure'!I20 -> 0.8 | AL66: =IF('LGIP future infrastructure'!G20="2016 - 2021",DATE(2019,6,30),DATE(2024,6,30)) -> 2019-06-30 | AM66: ='LGIP future infrastructure'!J20/1000 -> 2720 | AN66: n/a | AO66: 2720 | AP66: 0 | AR66: 2720 | AT66: 0 | AU66: 0 | AW66: 0 | BA66: 2019-06-30 | BB66: ='LGIP future infrastructure'!K20/1000 -> 272.212 | BC66: =SUM('LGIP future infrastructure'!L20:N20)/1000 -> 114.671 | BF66: 386.883 | BH66: 0 | BI66: 0 | BJ66: 0 | BL66: 0 | BO66: 3106.883 | BS66: 0 | BW66: 2019-06-30 | CA66: =IF(BX66=1,IF(BZ66>BO66*'Input-Gen'!$M$48,"Check Value","OK"),"") -> 
G67: BUL-A8-001 | M67: ='LGIP future infrastructure'!A21 -> BUL-A8-001 | N67: ='LGIP future infrastructure'!B21 -> PCF173 | O67: ='LGIP future infrastructure'!D21 -> Acquire and embellish land to provide DISTRICT OR METRO ACCESS/RECREATION CORRIDOR PARK | P67: ='LGIP future infrastructure'!F21 -> District | T67: 0 | U67: 0 | V67: 0 | W67: 0 | AA67: 0 | AB67: 0 | AC67: 0 | AD67: 0 | AE67: 1 | AG67: 1 | AK67: ='LGIP future infrastructure'!I21 -> 0.42 | AL67: =IF('LGIP future infrastructure'!G21="2016 - 2021",DATE(2019,6,30),DATE(2024,6,30)) -> 2019-06-30 | AM67: ='LGIP future infrastructure'!J21/1000 -> 21000 | AN67: n/a | AO67: 21000 | AP67: 0 | AR67: 21000 | AT67: 0 | AU67: 0 | AW67: 0 | BA67: 2019-06-30 | BB67: ='LGIP future infrastructure'!K21/1000 -> 138.278 | BC67: =SUM('LGIP future infrastructure'!L21:N21)/1000 -> 58.25 | BF67: 196.528 | BH67: 0 | BI67: 0 | BJ67: 0 | BL67: 0 | BO67: 21196.528 | BS67: 0 | BW67: 2019-06-30 | CA67: =IF(BX67=1,IF(BZ67>BO67*'Input-Gen'!$M$48,"Check Value","OK"),"") -> 
G68: BUL-A8-010 | M68: ='LGIP future infrastructure'!A22 -> BUL-A8-010 | N68: ='LGIP future infrastructure'!B22 -> PCF174 | O68: ='LGIP future infrastructure'!D22 -> Acquire and embellish land to provide DISTRICT OR METRO ACCESS/RECREATION CORRIDOR PARK | P68: ='LGIP future infrastructure'!F22 -> Metropolitan | T68: 0 | U68: 0 | V68: 0 | W68: 0 | AA68: 0 | AB68: 0 | AC68: 0 | AD68: 0 | AE68: 1 | AG68: 1 | AK68: ='LGIP future infrastructure'!I22 -> 2.6 | AL68: =IF('LGIP future infrastructure'!G22="2016 - 2021",DATE(2019,6,30),DATE(2024,6,30)) -> 2019-06-30 | AM68: ='LGIP future infrastructure'!J22/1000 -> 9100 | AN68: n/a | AO68: 9100 | AP68: 0 | AR68: 9100 | AT68: 0 | AU68: 0 | AW68: 0 | BA68: 2019-06-30 | BB68: ='LGIP future infrastructure'!K22/1000 -> 570.41 | BC68: =SUM('LGIP future infrastructure'!L22:N22)/1000 -> 240.289 | BF68: 810.699 | BH68: 0 | BI68: 0 | BJ68: 0 | BL68: 0 | BO68: 9910.699 | BS68: 0 | BW68: 2019-06-30 | CA68: =IF(BX68=1,IF(BZ68>BO68*'Input-Gen'!$M$48,"Check Value","OK"),"") -> 
G69: CDE-U3-010 | M69: ='LGIP future infrastructure'!A23 -> CDE-U3-010 | N69: ='LGIP future infrastructure'!B23 -> PCF72 | O69: ='LGIP future infrastructure'!D23 -> Upgrade existing park infrastructure to value of up to $500k (District) | P69: ='LGIP future infrastructure'!F23 -> District | T69: 0 | U69: 0 | V69: 0 | W69: 0 | AA69: 0 | AB69: 0 | AC69: 0 | AD69: 0 | AE69: 1 | AG69: 1 | AK69: ='LGIP future infrastructure'!I23 -> 15.48 | AL69: =IF('LGIP future infrastructure'!G23="2016 - 2021",DATE(2019,6,30),DATE(2024,6,30)) -> 2019-06-30 | AM69: ='LGIP future infrastructure'!J23/1000 -> 0 | AN69: n/a | AO69: 0 | AP69: 0 | AR69: 0 | AT69: 0 | AU69: 0 | AW69: 0 | BA69: 2019-06-30 | BB69: ='LGIP future infrastructure'!K23/1000 -> 500 | BC69: =SUM('LGIP future infrastructure'!L23:N23)/1000 -> 210.629 | BF69: 710.629 | BH69: 0 | BI69: 0 | BJ69: 0 | BL69: 0 | BO69: 710.629 | BS69: 0 | BW69: 2019-06-30 | CA69: =IF(BX69=1,IF(BZ69>BO69*'Input-Gen'!$M$48,"Check Value","OK"),"") -> 
G70: CHE-U1-011 | M70: ='LGIP future infrastructure'!A24 -> CHE-U1-011 | N70: ='LGIP future infrastructure'!B24 -> PCF113 | O70: ='LGIP future infrastructure'!D24 -> Upgrade existing park infrastructure to the value of $1m+ (District) | P70: ='LGIP future infrastructure'!F24 -> District | T70: 0 | U70: 0 | V70: 0 | W70: 0 | AA70: 0 | AB70: 0 | AC70: 0 | AD70: 0 | AE70: 1 | AG70: 1 | AK70: ='LGIP future infrastructure'!I24 -> 3.38 | AL70: =IF('LGIP future infrastructure'!G24="2016 - 2021",DATE(2019,6,30),DATE(2024,6,30)) -> 2024-06-30 | AM70: ='LGIP future infrastructure'!J24/1000 -> 0 | AN70: n/a | AO70: 0 | AP70: 0 | AR70: 0 | AT70: 0 | AU70: 0 | AW70: 0 | BA70: 2024-06-30 | BB70: ='LGIP future infrastructure'!K24/1000 -> 1000 | BC70: =SUM('LGIP future infrastructure'!L24:N24)/1000 -> 520.415 | BF70: 1520.415 | BH70: 0 | BI70: 0 | BJ70: 0 | BL70: 0 | BO70: 1520.415 | BS70: 0 | BW70: 2024-06-30 | CA70: =IF(BX70=1,IF(BZ70>BO70*'Input-Gen'!$M$48,"Check Value","OK"),"") -> 
G71: CHL-A7-001 | M71: ='LGIP future infrastructure'!A25 -> CHL-A7-001 | N71: ='LGIP future infrastructure'!B25 -> PCF210 | O71: ='LGIP future infrastructure'!D25 -> Acquire and embellish land to provide LOCAL ACCESS/RECREATION corridor park | P71: ='LGIP future infrastructure'!F25 -> Local | T71: 0 | U71: 0 | V71: 0 | W71: 0 | AA71: 0 | AB71: 0 | AC71: 0 | AD71: 1 | AE71: 0 | AG71: 1 | AK71: ='LGIP future infrastructure'!I25 -> 0.07 | AL71: =IF('LGIP future infrastructure'!G25="2016 - 2021",DATE(2019,6,30),DATE(2024,6,30)) -> 2024-06-30 | AM71: ='LGIP future infrastructure'!J25/1000 -> 37.333 | AN71: n/a | AO71: 37.333 | AP71: 0 | AR71: 37.333 | AT71: 0 | AU71: 0 | AW71: 0 | BA71: 2024-06-30 | BB71: ='LGIP future infrastructure'!K25/1000 -> 60.256 | BC71: =SUM('LGIP future infrastructure'!L25:N25)/1000 -> 31.358 | BF71: 91.614 | BH71: 0 | BI71: 0 | BJ71: 0 | BL71: 0 | BO71: 128.947 | BS71: 0 | BW71: 2024-06-30 | CA71: =IF(BX71=1,IF(BZ71>BO71*'Input-Gen'!$M$48,"Check Value","OK"),"") -> 
G72: CHL-A7-002 | M72: ='LGIP future infrastructure'!A26 -> CHL-A7-002 | N72: ='LGIP future infrastructure'!B26 -> PCF210 | O72: ='LGIP future infrastructure'!D26 -> Acquire and embellish land to provide LOCAL ACCESS/RECREATION corridor park | P72: ='LGIP future infrastructure'!F26 -> Local | T72: 0 | U72: 0 | V72: 0 | W72: 0 | AA72: 0 | AB72: 0 | AC72: 0 | AD72: 1 | AE72: 0 | AG72: 1 | AK72: ='LGIP future infrastructure'!I26 -> 0.15 | AL72: =IF('LGIP future infrastructure'!G26="2016 - 2021",DATE(2019,6,30),DATE(2024,6,30)) -> 2019-06-30 | AM72: ='LGIP future infrastructure'!J26/1000 -> 15 | AN72: n/a | AO72: 15 | AP72: 0 | AR72: 15 | AT72: 0 | AU72: 0 | AW72: 0 | BA72: 2019-06-30 | BB72: ='LGIP future infrastructure'!K26/1000 -> 80.245 | BC72: =SUM('LGIP future infrastructure'!L26:N26)/1000 -> 33.804 | BF72: 114.049 | BH72: 0 | BI72: 0 | BJ72: 0 | BL72: 0 | BO72: 129.049 | BS72: 0 | BW72: 2019-06-30 | CA72: =IF(BX72=1,IF(BZ72>BO72*'Input-Gen'!$M$48,"Check Value","OK"),"") -> 
G73: CHW-U3-010 | M73: ='LGIP future infrastructure'!A27 -> CHW-U3-010 | N73: ='LGIP future infrastructure'!B27 -> PCF112 | O73: ='LGIP future infrastructure'!D27 -> Upgrade existing park infrastructure to value of up to $500k (District) | P73: ='LGIP future infrastructure'!F27 -> District | T73: 0 | U73: 0 | V73: 0 | W73: 0 | AA73: 0 | AB73: 0 | AC73: 0 | AD73: 0 | AE73: 1 | AG73: 1 | AK73: ='LGIP future infrastructure'!I27 -> 7.51 | AL73: =IF('LGIP future infrastructure'!G27="2016 - 2021",DATE(2019,6,30),DATE(2024,6,30)) -> 2024-06-30 | AM73: ='LGIP future infrastructure'!J27/1000 -> 0 | AN73: n/a | AO73: 0 | AP73: 0 | AR73: 0 | AT73: 0 | AU73: 0 | AW73: 0 | BA73: 2024-06-30 | BB73: ='LGIP future infrastructure'!K27/1000 -> 500 | BC73: =SUM('LGIP future infrastructure'!L27:N27)/1000 -> 260.208 | BF73: 760.208 | BH73: 0 | BI73: 0 | BJ73: 0 | BL73: 0 | BO73: 760.208 | BS73: 0 | BW73: 2024-06-30 | CA73: =IF(BX73=1,IF(BZ73>BO73*'Input-Gen'!$M$48,"Check Value","OK"),"") -> 
G74: CLF-A1-001 | M74: ='LGIP future infrastructure'!A28 -> CLF-A1-001 | N74: ='LGIP future infrastructure'!B28 -> PCF133 | O74: ='LGIP future infrastructure'!D28 -> Acquire and embellish land to provide LOCAL RECREATION infrastructure | P74: ='LGIP future infrastructure'!F28 -> Local | T74: 0 | U74: 0 | V74: 0 | W74: 0 | AA74: 0 | AB74: 1 | AC74: 0 | AD74: 0 | AE74: 0 | AG74: 1 | AK74: ='LGIP future infrastructure'!I28 -> 0.2 | AL74: =IF('LGIP future infrastructure'!G28="2016 - 2021",DATE(2019,6,30),DATE(2024,6,30)) -> 2019-06-30 | AM74: ='LGIP future infrastructure'!J28/1000 -> 4000 | AN74: n/a | AO74: 4000 | AP74: 0 | AR74: 4000 | AT74: 0 | AU74: 0 | AW74: 0 | BA74: 2019-06-30 | BB74: ='LGIP future infrastructure'!K28/1000 -> 88.843 | BC74: =SUM('LGIP future infrastructure'!L28:N28)/1000 -> 37.425 | BF74: 126.268 | BH74: 0 | BI74: 0 | BJ74: 0 | BL74: 0 | BO74: 4126.268 | BS74: 0 | BW74: 2019-06-30 | CA74: =IF(BX74=1,IF(BZ74>BO74*'Input-Gen'!$M$48,"Check Value","OK"),"") -> 
G75: CLL-A1-001 | M75: ='LGIP future infrastructure'!A29 -> CLL-A1-001 | N75: ='LGIP future infrastructure'!B29 -> PCF195 | O75: ='LGIP future infrastructure'!D29 -> Acquire and embellish land to provide LOCAL RECREATION infrastructure | P75: ='LGIP future infrastructure'!F29 -> Local | T75: 0 | U75: 0 | V75: 0 | W75: 0 | AA75: 1 | AB75: 0 | AC75: 0 | AD75: 0 | AE75: 0 | AG75: 1 | AK75: ='LGIP future infrastructure'!I29 -> 0.25 | AL75: =IF('LGIP future infrastructure'!G29="2016 - 2021",DATE(2019,6,30),DATE(2024,6,30)) -> 2024-06-30 | AM75: ='LGIP future infrastructure'!J29/1000 -> 1875 | AN75: n/a | AO75: 1875 | AP75: 0 | AR75: 1875 | AT75: 0 | AU75: 0 | AW75: 0 | BA75: 2024-06-30 | BB75: ='LGIP future infrastructure'!K29/1000 -> 104.124 | BC75: =SUM('LGIP future infrastructure'!L29:N29)/1000 -> 54.187 | BF75: 158.311 | BH75: 0 | BI75: 0 | BJ75: 0 | BL75: 0 | BO75: 2033.311 | BS75: 0 | BW75: 2024-06-30 | CA75: =IF(BX75=1,IF(BZ75>BO75*'Input-Gen'!$M$48,"Check Value","OK"),"") -> 
G76: CLL-A1-010 | M76: ='LGIP future infrastructure'!A30 -> CLL-A1-010 | N76: ='LGIP future infrastructure'!B30 -> PCF195 | O76: ='LGIP future infrastructure'!D30 -> Acquire and embellish land to provide LOCAL RECREATION infrastructure | P76: ='LGIP future infrastructure'!F30 -> Local | T76: 0 | U76: 0 | V76: 0 | W76: 0 | AA76: 1 | AB76: 0 | AC76: 0 | AD76: 0 | AE76: 0 | AG76: 1 | AK76: ='LGIP future infrastructure'!I30 -> 0.3 | AL76: =IF('LGIP future infrastructure'!G30="2016 - 2021",DATE(2019,6,30),DATE(2024,6,30)) -> 2019-06-30 | AM76: ='LGIP future infrastructure'!J30/1000 -> 2250 | AN76: n/a | AO76: 2250 | AP76: 0 | AR76: 2250 | AT76: 0 | AU76: 0 | AW76: 0 | BA76: 2019-06-30 | BB76: ='LGIP future infrastructure'!K30/1000 -> 119.404 | BC76: =SUM('LGIP future infrastructure'!L30:N30)/1000 -> 50.3 | BF76: 169.704 | BH76: 0 | BI76: 0 | BJ76: 0 | BL76: 0 | BO76: 2419.704 | BS76: 0 | BW76: 2019-06-30 | CA76: =IF(BX76=1,IF(BZ76>BO76*'Input-Gen'!$M$48,"Check Value","OK"),"") -> 
G77: COO-E8-001 | M77: ='LGIP future infrastructure'!A31 -> COO-E8-001 | N77: ='LGIP future infrastructure'!B31 -> PCF213 | O77: ='LGIP future infrastructure'!D31 -> Provide DISTRICT OR METRO ACCESS/RECREATION CORRIDOR PARK infrastructure | P77: ='LGIP future infrastructure'!F31 -> District | T77: 0 | U77: 0 | V77: 0 | W77: 0 | AA77: 0 | AB77: 0 | AC77: 0 | AD77: 0 | AE77: 1 | AG77: 1 | AK77: ='LGIP future infrastructure'!I31 -> 1.7 | AL77: =IF('LGIP future infrastructure'!G31="2016 - 2021",DATE(2019,6,30),DATE(2024,6,30)) -> 2019-06-30 | AM77: ='LGIP future infrastructure'!J31/1000 -> 0 | AN77: n/a | AO77: 0 | AP77: 0 | AR77: 0 | AT77: 0 | AU77: 0 | AW77: 0 | BA77: 2019-06-30 | BB77: ='LGIP future infrastructure'!K31/1000 -> 1355.729 | BC77: =SUM('LGIP future infrastructure'!L31:N31)/1000 -> 571.111 | BF77: 1926.84 | BH77: 0 | BI77: 0 | BJ77: 0 | BL77: 0 | BO77: 1926.84 | BS77: 0 | BW77: 2019-06-30 | CA77: =IF(BX77=1,IF(BZ77>BO77*'Input-Gen'!$M$48,"Check Value","OK"),"") -> 
G78: COP-A1-001 | M78: ='LGIP future infrastructure'!A32 -> COP-A1-001 | N78: ='LGIP future infrastructure'!B32 -> PCF273 | O78: ='LGIP future infrastructure'!D32 -> Acquire and embellish land to provide LOCAL RECREATION infrastructure | P78: ='LGIP future infrastructure'!F32 -> Local | T78: 0 | U78: 0 | V78: 0 | W78: 0 | AA78: 0 | AB78: 0 | AC78: 1 | AD78: 0 | AE78: 0 | AG78: 1 | AK78: ='LGIP future infrastructure'!I32 -> 0.42 | AL78: =IF('LGIP future infrastructure'!G32="2016 - 2021",DATE(2019,6,30),DATE(2024,6,30)) -> 2019-06-30 | AM78: ='LGIP future infrastructure'!J32/1000 -> 2520 | AN78: n/a | AO78: 2520 | AP78: 0 | AR78: 2520 | AT78: 0 | AU78: 0 | AW78: 0 | BA78: 2019-06-30 | BB78: ='LGIP future infrastructure'!K32/1000 -> 156.078 | BC78: =SUM('LGIP future infrastructure'!L32:N32)/1000 -> 65.748 | BF78: 221.826 | BH78: 0 | BI78: 0 | BJ78: 0 | BL78: 0 | BO78: 2741.826 | BS78: 0 | BW78: 2019-06-30 | CA78: =IF(BX78=1,IF(BZ78>BO78*'Input-Gen'!$M$48,"Check Value","OK"),"") -> 
G79: CVE-A1-001 | M79: ='LGIP future infrastructure'!A33 -> CVE-A1-001 | N79: ='LGIP future infrastructure'!B33 -> PCF313 | O79: ='LGIP future infrastructure'!D33 -> Acquire and embellish land to provide LOCAL RECREATION infrastructure | P79: ='LGIP future infrastructure'!F33 -> Local | T79: 0 | U79: 0 | V79: 0 | W79: 0 | AA79: 0 | AB79: 0 | AC79: 1 | AD79: 0 | AE79: 0 | AG79: 1 | AK79: ='LGIP future infrastructure'!I33 -> 0.4 | AL79: =IF('LGIP future infrastructure'!G33="2016 - 2021",DATE(2019,6,30),DATE(2024,6,30)) -> 2024-06-30 | AM79: ='LGIP future infrastructure'!J33/1000 -> 700 | AN79: n/a | AO79: 700 | AP79: 0 | AR79: 700 | AT79: 0 | AU79: 0 | AW79: 0 | BA79: 2024-06-30 | BB79: ='LGIP future infrastructure'!K33/1000 -> 149.966 | BC79: =SUM('LGIP future infrastructure'!L33:N33)/1000 -> 78.044 | BF79: 228.01 | BH79: 0 | BI79: 0 | BJ79: 0 | BL79: 0 | BO79: 928.01 | BS79: 0 | BW79: 2024-06-30 | CA79: =IF(BX79=1,IF(BZ79>BO79*'Input-Gen'!$M$48,"Check Value","OK"),"") -> 
G80: CVE-A1-002 | M80: ='LGIP future infrastructure'!A34 -> CVE-A1-002 | N80: ='LGIP future infrastructure'!B34 -> PCF333 | O80: ='LGIP future infrastructure'!D34 -> Acquire and embellish land to provide LOCAL RECREATION infrastructure | P80: ='LGIP future infrastructure'!F34 -> Local | T80: 0 | U80: 0 | V80: 0 | W80: 0 | AA80: 0 | AB80: 0 | AC80: 1 | AD80: 0 | AE80: 0 | AG80: 1 | AK80: ='LGIP future infrastructure'!I34 -> 0.8686 | AL80: =IF('LGIP future infrastructure'!G34="2016 - 2021",DATE(2019,6,30),DATE(2024,6,30)) -> 2024-06-30 | AM80: ='LGIP future infrastructure'!J34/1000 -> 495.826 | AN80: n/a | AO80: 495.826 | AP80: 0 | AR80: 495.826 | AT80: =AO80*V80 -> 0 | AU80: 0 | AW80: 0 | BA80: 2024-06-30 | BB80: ='LGIP future infrastructure'!K34/1000 -> 293.177 | BC80: =SUM('LGIP future infrastructure'!L34:N34)/1000 -> 152.573 | BF80: 445.75 | BH80: 0 | BI80: 0 | BJ80: 0 | BL80: =BF80*V80 -> 0 | BO80: 941.576 | BS80: 0 | BW80: 2024-06-30 | CA80: =IF(BX80=1,IF(BZ80>BO80*'Input-Gen'!$M$48,"Check Value","OK"),"") -> 
G81: CVE-A1-003 | M81: ='LGIP future infrastructure'!A35 -> CVE-A1-003 | N81: ='LGIP future infrastructure'!B35 -> PCF333 | O81: ='LGIP future infrastructure'!D35 -> Acquire and embellish land to provide LOCAL RECREATION infrastructure | P81: ='LGIP future infrastructure'!F35 -> Local | T81: 0 | U81: 0 | V81: 0 | W81: 0 | AA81: 0 | AB81: 0 | AC81: 1 | AD81: 0 | AE81: 0 | AG81: 1 | AK81: ='LGIP future infrastructure'!I35 -> 0.8 | AL81: =IF('LGIP future infrastructure'!G35="2016 - 2021",DATE(2019,6,30),DATE(2024,6,30)) -> 2019-06-30 | AM81: ='LGIP future infrastructure'!J35/1000 -> 1400 | AN81: n/a | AO81: 1400 | AP81: 0 | AR81: 1400 | AT81: 0 | AU81: 0 | AW81: 0 | BA81: 2019-06-30 | BB81: ='LGIP future infrastructure'!K35/1000 -> 272.212 | BC81: =SUM('LGIP future infrastructure'!L35:N35)/1000 -> 114.671 | BF81: 386.883 | BH81: 0 | BI81: 0 | BJ81: 0 | BL81: 0 | BO81: 1786.883 | BS81: 0 | BW81: 2019-06-30 | CA81: =IF(BX81=1,IF(BZ81>BO81*'Input-Gen'!$M$48,"Check Value","OK"),"") -> 
G82: CVE-E2-002 | M82: ='LGIP future infrastructure'!A36 -> CVE-E2-002 | N82: ='LGIP future infrastructure'!B36 -> PCF333 | O82: ='LGIP future infrastructure'!D36 -> Provide DISTRICT RECREATION infrastructure | P82: ='LGIP future infrastructure'!F36 -> District | T82: 0 | U82: 0 | V82: 0 | W82: 0 | AA82: 0 | AB82: 0 | AC82: 0 | AD82: 0 | AE82: 1 | AG82: 1 | AK82: ='LGIP future infrastructure'!I36 -> 3 | AL82: =IF('LGIP future infrastructure'!G36="2016 - 2021",DATE(2019,6,30),DATE(2024,6,30)) -> 2024-06-30 | AM82: ='LGIP future infrastructure'!J36/1000 -> 0 | AN82: n/a | AO82: 0 | AP82: 0 | AR82: 0 | AT82: 0 | AU82: 0 | AW82: 0 | BA82: 2024-06-30 | BB82: ='LGIP future infrastructure'!K36/1000 -> 6979.589 | BC82: =SUM('LGIP future infrastructure'!L36:N36)/1000 -> 3632.283 | BF82: 10611.872 | BH82: 0 | BI82: 0 | BJ82: 0 | BL82: 0 | BO82: 10611.872 | BS82: 0 | BW82: 2024-06-30 | CA82: =IF(BX82=1,IF(BZ82>BO82*'Input-Gen'!$M$48,"Check Value","OK"),"") -> 
G83: DAR-U1-010 | M83: ='LGIP future infrastructure'!A37 -> DAR-U1-010 | N83: ='LGIP future infrastructure'!B37 -> PCF270 | O83: ='LGIP future infrastructure'!D37 -> Upgrade existing park infrastructure to the value of $1m+ (District) | P83: ='LGIP future infrastructure'!F37 -> District | T83: 0 | U83: 0 | V83: 0 | W83: 0 | AA83: 0 | AB83: 0 | AC83: 0 | AD83: 0 | AE83: 1 | AG83: 1 | AK83: ='LGIP future infrastructure'!I37 -> 5.55 | AL83: =IF('LGIP future infrastructure'!G37="2016 - 2021",DATE(2019,6,30),DATE(2024,6,30)) -> 2019-06-30 | AM83: ='LGIP future infrastructure'!J37/1000 -> 0 | AN83: n/a | AO83: 0 | AP83: 0 | AR83: 0 | AT83: 0 | AU83: 0 | AW83: 0 | BA83: 2019-06-30 | BB83: ='LGIP future infrastructure'!K37/1000 -> 1000 | BC83: =SUM('LGIP future infrastructure'!L37:N37)/1000 -> 421.258 | BF83: 1421.258 | BH83: 0 | BI83: 0 | BJ83: 0 | BL83: 0 | BO83: 1421.258 | BS83: 0 | BW83: 2019-06-30 | CA83: =IF(BX83=1,IF(BZ83>BO83*'Input-Gen'!$M$48,"Check Value","OK"),"") -> 
G84: DEA-U2-010 | M84: ='LGIP future infrastructure'!A38 -> DEA-U2-010 | N84: ='LGIP future infrastructure'!B38 -> PCF53 | O84: ='LGIP future infrastructure'!D38 -> Upgrade existing park infrastructure to the value of $500k-$1m (District) | P84: ='LGIP future infrastructure'!F38 -> District | T84: 0 | U84: 0 | V84: 0 | W84: 0 | AA84: 0 | AB84: 0 | AC84: 0 | AD84: 0 | AE84: 1 | AG84: 1 | AK84: ='LGIP future infrastructure'!I38 -> 13.73 | AL84: =IF('LGIP future infrastructure'!G38="2016 - 2021",DATE(2019,6,30),DATE(2024,6,30)) -> 2019-06-30 | AM84: ='LGIP future infrastructure'!J38/1000 -> 0 | AN84: n/a | AO84: 0 | AP84: 0 | AR84: 0 | AT84: 0 | AU84: 0 | AW84: 0 | BA84: 2019-06-30 | BB84: ='LGIP future infrastructure'!K38/1000 -> 750 | BC84: =SUM('LGIP future infrastructure'!L38:N38)/1000 -> 315.943 | BF84: 1065.943 | BH84: 0 | BI84: 0 | BJ84: 0 | BL84: 0 | BO84: 1065.943 | BS84: 0 | BW84: 2019-06-30 | CA84: =IF(BX84=1,IF(BZ84>BO84*'Input-Gen'!$M$48,"Check Value","OK"),"") -> 
G85: DOO-A1-001 | M85: ='LGIP future infrastructure'!A39 -> DOO-A1-001 | N85: ='LGIP future infrastructure'!B39 -> PCF311 | O85: ='LGIP future infrastructure'!D39 -> Acquire and embellish land to provide LOCAL RECREATION infrastructure | P85: ='LGIP future infrastructure'!F39 -> Local | T85: 0 | U85: 0 | V85: 0 | W85: 0 | AA85: 0 | AB85: 0 | AC85: 1 | AD85: 0 | AE85: 0 | AG85: 1 | AK85: ='LGIP future infrastructure'!I39 -> 0.38 | AL85: =IF('LGIP future infrastructure'!G39="2016 - 2021",DATE(2019,6,30),DATE(2024,6,30)) -> 2019-06-30 | AM85: ='LGIP future infrastructure'!J39/1000 -> 392.667 | AN85: n/a | AO85: 392.667 | AP85: 0 | AR85: 392.667 | AT85: 0 | AU85: 0 | AW85: 0 | BA85: 2019-06-30 | BB85: ='LGIP future infrastructure'!K39/1000 -> 143.853 | BC85: =SUM('LGIP future infrastructure'!L39:N39)/1000 -> 60.599 | BF85: 204.452 | BH85: 0 | BI85: 0 | BJ85: 0 | BL85: 0 | BO85: 597.119 | BS85: 0 | BW85: 2019-06-30 | CA85: =IF(BX85=1,IF(BZ85>BO85*'Input-Gen'!$M$48,"Check Value","OK"),"") -> 
G86: DOO-A1-002 | M86: ='LGIP future infrastructure'!A40 -> DOO-A1-002 | N86: ='LGIP future infrastructure'!B40 -> PCF311 | O86: ='LGIP future infrastructure'!D40 -> Acquire and embellish land to provide LOCAL RECREATION infrastructure | P86: ='LGIP future infrastructure'!F40 -> Local | T86: 0 | U86: 0 | V86: 0 | W86: 0 | AA86: 0 | AB86: 0 | AC86: 1 | AD86: 0 | AE86: 0 | AG86: 1 | AK86: ='LGIP future infrastructure'!I40 -> 1 | AL86: =IF('LGIP future infrastructure'!G40="2016 - 2021",DATE(2019,6,30),DATE(2024,6,30)) -> 2019-06-30 | AM86: ='LGIP future infrastructure'!J40/1000 -> 1500 | AN86: n/a | AO86: 1500 | AP86: 0 | AR86: 1500 | AT86: 0 | AU86: 0 | AW86: 0 | BA86: 2019-06-30 | BB86: ='LGIP future infrastructure'!K40/1000 -> 333.335 | BC86: =SUM('LGIP future infrastructure'!L40:N40)/1000 -> 140.42 | BF86: 473.755 | BH86: 0 | BI86: 0 | BJ86: 0 | BL86: 0 | BO86: 1973.755 | BS86: 0 | BW86: 2019-06-30 | CA86: =IF(BX86=1,IF(BZ86>BO86*'Input-Gen'!$M$48,"Check Value","OK"),"") -> 
G87: DOO-A1-004 | M87: ='LGIP future infrastructure'!A41 -> DOO-A1-004 | N87: ='LGIP future infrastructure'!B41 -> PCF311 | O87: ='LGIP future infrastructure'!D41 -> Acquire and embellish land to provide LOCAL RECREATION infrastructure | P87: ='LGIP future infrastructure'!F41 -> Local | T87: 0 | U87: 0 | V87: 0 | W87: 0 | AA87: 0 | AB87: 0 | AC87: 1 | AD87: 0 | AE87: 0 | AG87: 1 | AK87: ='LGIP future infrastructure'!I41 -> 1.52194 | AL87: =IF('LGIP future infrastructure'!G41="2016 - 2021",DATE(2019,6,30),DATE(2024,6,30)) -> 2019-06-30 | AM87: ='LGIP future infrastructure'!J41/1000 -> 974.042 | AN87: n/a | AO87: 974.042 | AP87: 0 | AR87: 974.042 | AT87: 0 | AU87: 0 | AW87: 0 | BA87: 2019-06-30 | BB87: ='LGIP future infrastructure'!K41/1000 -> 492.847 | BC87: =SUM('LGIP future infrastructure'!L41:N41)/1000 -> 207.616 | BF87: 700.463 | BH87: 0 | BI87: 0 | BJ87: 0 | BL87: 0 | BO87: 1674.505 | BS87: 0 | BW87: 2019-06-30 | CA87: =IF(BX87=1,IF(BZ87>BO87*'Input-Gen'!$M$48,"Check Value","OK"),"") -> 
G88: DUR-E2-001 | M88: ='LGIP future infrastructure'!A42 -> DUR-E2-001 | N88: ='LGIP future infrastructure'!B42 -> PCF291 | O88: ='LGIP future infrastructure'!D42 -> Provide DISTRICT RECREATION infrastructure | P88: ='LGIP future infrastructure'!F42 -> District | T88: 0 | U88: 0 | V88: 0 | W88: 0 | AA88: 0 | AB88: 0 | AC88: 0 | AD88: 0 | AE88: 1 | AG88: 1 | AK88: ='LGIP future infrastructure'!I42 -> 6.4 | AL88: =IF('LGIP future infrastructure'!G42="2016 - 2021",DATE(2019,6,30),DATE(2024,6,30)) -> 2024-06-30 | AM88: ='LGIP future infrastructure'!J42/1000 -> 0 | AN88: n/a | AO88: 0 | AP88: 0 | AR88: 0 | AT88: 0 | AU88: 0 | AW88: 0 | BA88: 2024-06-30 | BB88: ='LGIP future infrastructure'!K42/1000 -> 7302.49 | BC88: =SUM('LGIP future infrastructure'!L42:N42)/1000 -> 3800.325 | BF88: 11102.815 | BH88: 0 | BI88: 0 | BJ88: 0 | BL88: 0 | BO88: 11102.815 | BS88: 0 | BW88: 2024-06-30 | CA88: =IF(BX88=1,IF(BZ88>BO88*'Input-Gen'!$M$48,"Check Value","OK"),"") -> 
G89: DUR-E5-001 | M89: ='LGIP future infrastructure'!A43 -> DUR-E5-001 | N89: ='LGIP future infrastructure'!B43 -> PCF311 | O89: ='LGIP future infrastructure'!D43 -> Provide DISTRICT SPORT infrastructure | P89: ='LGIP future infrastructure'!F43 -> District | T89: 0 | U89: 0 | V89: 0 | W89: 0 | AA89: 0 | AB89: 0 | AC89: 0 | AD89: 0 | AE89: 1 | AG89: 1 | AK89: ='LGIP future infrastructure'!I43 -> 13 | AL89: =IF('LGIP future infrastructure'!G43="2016 - 2021",DATE(2019,6,30),DATE(2024,6,30)) -> 2019-06-30 | AM89: ='LGIP future infrastructure'!J43/1000 -> 0 | AN89: n/a | AO89: 0 | AP89: 0 | AR89: 0 | AT89: 0 | AU89: 0 | AW89: 0 | BA89: 2019-06-30 | BB89: ='LGIP future infrastructure'!K43/1000 -> 8173.411 | BC89: =SUM('LGIP future infrastructure'!L43:N43)/1000 -> 3443.111 | BF89: 11616.522 | BH89: 0 | BI89: 0 | BJ89: 0 | BL89: 0 | BO89: 11616.522 | BS89: 0 | BW89: 2019-06-30 | CA89: =IF(BX89=1,IF(BZ89>BO89*'Input-Gen'!$M$48,"Check Value","OK"),"") -> 
G90: EAB-E8-001 | M90: ='LGIP future infrastructure'!A44 -> EAB-E8-001 | N90: ='LGIP future infrastructure'!B44 -> PCF213 | O90: ='LGIP future infrastructure'!D44 -> Provide DISTRICT OR METRO ACCESS/RECREATION CORRIDOR PARK infrastructure | P90: ='LGIP future infrastructure'!F44 -> District | T90: 0 | U90: 0 | V90: 0 | W90: 0 | AA90: 0 | AB90: 0 | AC90: 0 | AD90: 0 | AE90: 1 | AG90: 1 | AK90: ='LGIP future infrastructure'!I44 -> 0.1 | AL90: =IF('LGIP future infrastructure'!G44="2016 - 2021",DATE(2019,6,30),DATE(2024,6,30)) -> 2019-06-30 | AM90: ='LGIP future infrastructure'!J44/1000 -> 0 | AN90: n/a | AO90: 0 | AP90: 0 | AR90: 0 | AT90: 0 | AU90: 0 | AW90: 0 | BA90: 2019-06-30 | BB90: ='LGIP future infrastructure'!K44/1000 -> 939.12 | BC90: =SUM('LGIP future infrastructure'!L44:N44)/1000 -> 395.611 | BF90: 1334.731 | BH90: 0 | BI90: 0 | BJ90: 0 | BL90: 0 | BO90: 1334.731 | BS90: 0 | BW90: 2019-06-30 | CA90: =IF(BX90=1,IF(BZ90>BO90*'Input-Gen'!$M$48,"Check Value","OK"),"") -> 
G91: EAF-A1-001 | M91: ='LGIP future infrastructure'!A45 -> EAF-A1-001 | N91: ='LGIP future infrastructure'!B45 -> PCF154 | O91: ='LGIP future infrastructure'!D45 -> Acquire and embellish land to provide LOCAL RECREATION infrastructure | P91: ='LGIP future infrastructure'!F45 -> Local | T91: 0 | U91: 0 | V91: 0 | W91: 0 | AA91: 0 | AB91: 1 | AC91: 0 | AD91: 0 | AE91: 0 | AG91: 1 | AK91: ='LGIP future infrastructure'!I45 -> 1 | AL91: =IF('LGIP future infrastructure'!G45="2016 - 2021",DATE(2019,6,30),DATE(2024,6,30)) -> 2024-06-30 | AM91: ='LGIP future infrastructure'!J45/1000 -> 4000 | AN91: n/a | AO91: 4000 | AP91: 0 | AR91: 4000 | AT91: 0 | AU91: 0 | AW91: 0 | BA91: 2024-06-30 | BB91: ='LGIP future infrastructure'!K45/1000 -> 333.335 | BC91: =SUM('LGIP future infrastructure'!L45:N45)/1000 -> 173.472 | BF91: 506.807 | BH91: 0 | BI91: 0 | BJ91: 0 | BL91: 0 | BO91: 4506.807 | BS91: 0 | BW91: 2024-06-30 | CA91: =IF(BX91=1,IF(BZ91>BO91*'Input-Gen'!$M$48,"Check Value","OK"),"") -> 
G92: ELG-A8-001 | M92: ='LGIP future infrastructure'!A46 -> ELG-A8-001 | N92: ='LGIP future infrastructure'!B46 -> PCF310 | O92: ='LGIP future infrastructure'!D46 -> Acquire and embellish land to provide DISTRICT OR METRO ACCESS/RECREATION CORRIDOR PARK | P92: ='LGIP future infrastructure'!F46 -> District | T92: 0 | U92: 0 | V92: 0 | W92: 0 | AA92: 0 | AB92: 0 | AC92: 0 | AD92: 0 | AE92: 1 | AG92: 1 | AK92: ='LGIP future infrastructure'!I46 -> 19.03 | AL92: =IF('LGIP future infrastructure'!G46="2016 - 2021",DATE(2019,6,30),DATE(2024,6,30)) -> 2024-06-30 | AM92: ='LGIP future infrastructure'!J46/1000 -> 1903 | AN92: n/a | AO92: 1903 | AP92: 0 | AR92: 1903 | AT92: 0 | AU92: 0 | AW92: 0 | BA92: 2024-06-30 | BB92: ='LGIP future infrastructure'!K46/1000 -> 1170.895 | BC92: =SUM('LGIP future infrastructure'!L46:N46)/1000 -> 609.351 | BF92: 1780.246 | BH92: 0 | BI92: 0 | BJ92: 0 | BL92: 0 | BO92: 3683.246 | BS92: 0 | BW92: 2024-06-30 | CA92: =IF(BX92=1,IF(BZ92>BO92*'Input-Gen'!$M$48,"Check Value","OK"),"") -> 
G93: ELG-E2-001 | M93: ='LGIP future infrastructure'!A47 -> ELG-E2-001 | N93: ='LGIP future infrastructure'!B47 -> PCF310 | O93: ='LGIP future infrastructure'!D47 -> Provide DISTRICT RECREATION infrastructure | P93: ='LGIP future infrastructure'!F47 -> District | T93: 0 | U93: 0 | V93: 0 | W93: 0 | AA93: 0 | AB93: 0 | AC93: 0 | AD93: 0 | AE93: 1 | AG93: 1 | AK93: ='LGIP future infrastructure'!I47 -> 2.5 | AL93: =IF('LGIP future infrastructure'!G47="2016 - 2021",DATE(2019,6,30),DATE(2024,6,30)) -> 2024-06-30 | AM93: ='LGIP future infrastructure'!J47/1000 -> 0 | AN93: n/a | AO93: 0 | AP93: 0 | AR93: 0 | AT93: 0 | AU93: 0 | AW93: 0 | BA93: 2024-06-30 | BB93: ='LGIP future infrastructure'!K47/1000 -> 6845.047 | BC93: =SUM('LGIP future infrastructure'!L47:N47)/1000 -> 3562.266 | BF93: 10407.313 | BH93: 0 | BI93: 0 | BJ93: 0 | BL93: 0 | BO93: 10407.313 | BS93: 0 | BW93: 2024-06-30 | CA93: =IF(BX93=1,IF(BZ93>BO93*'Input-Gen'!$M$48,"Check Value","OK"),"") -> 
G94: ELG-E5-001 | M94: ='LGIP future infrastructure'!A48 -> ELG-E5-001 | N94: ='LGIP future infrastructure'!B48 -> PCF310 | O94: ='LGIP future infrastructure'!D48 -> Provide DISTRICT SPORT infrastructure | P94: ='LGIP future infrastructure'!F48 -> District | T94: 0 | U94: 0 | V94: 0 | W94: 0 | AA94: 0 | AB94: 0 | AC94: 0 | AD94: 0 | AE94: 1 | AG94: 1 | AK94: ='LGIP future infrastructure'!I48 -> 5.48 | AL94: =IF('LGIP future infrastructure'!G48="2016 - 2021",DATE(2019,6,30),DATE(2024,6,30)) -> 2019-06-30 | AM94: ='LGIP future infrastructure'!J48/1000 -> 0 | AN94: n/a | AO94: 0 | AP94: 0 | AR94: 0 | AT94: 0 | AU94: 0 | AW94: 0 | BA94: 2019-06-30 | BB94: ='LGIP future infrastructure'!K48/1000 -> 6785.044 | BC94: =SUM('LGIP future infrastructure'!L48:N48)/1000 -> 2858.25 | BF94: 9643.294 | BH94: 0 | BI94: 0 | BJ94: 0 | BL94: 0 | BO94: 9643.294 | BS94: 0 | BW94: 2019-06-30 | CA94: =IF(BX94=1,IF(BZ94>BO94*'Input-Gen'!$M$48,"Check Value","OK"),"") -> 
G95: EMP-A8-001 | M95: ='LGIP future infrastructure'!A49 -> EMP-A8-001 | N95: ='LGIP future infrastructure'!B49 -> PCF295 | O95: ='LGIP future infrastructure'!D49 -> Acquire and embellish land to provide DISTRICT OR METRO ACCESS/RECREATION CORRIDOR PARK | P95: ='LGIP future infrastructure'!F49 -> District | T95: 0 | U95: 0 | V95: 0 | W95: 0 | AA95: 0 | AB95: 0 | AC95: 0 | AD95: 0 | AE95: 1 | AG95: 1 | AK95: ='LGIP future infrastructure'!I49 -> 0.2 | AL95: =IF('LGIP future infrastructure'!G49="2016 - 2021",DATE(2019,6,30),DATE(2024,6,30)) -> 2024-06-30 | AM95: ='LGIP future infrastructure'!J49/1000 -> 20 | AN95: n/a | AO95: 20 | AP95: 0 | AR95: 20 | AT95: 0 | AU95: 0 | AW95: 0 | BA95: 2024-06-30 | BB95: ='LGIP future infrastructure'!K49/1000 -> 97.566 | BC95: =SUM('LGIP future infrastructure'!L49:N49)/1000 -> 50.775 | BF95: 148.341 | BH95: 0 | BI95: 0 | BJ95: 0 | BL95: 0 | BO95: 168.341 | BS95: 0 | BW95: 2024-06-30 | CA95: =IF(BX95=1,IF(BZ95>BO95*'Input-Gen'!$M$48,"Check Value","OK"),"") -> 
G96: EVP-A1-001 | M96: ='LGIP future infrastructure'!A50 -> EVP-A1-001 | N96: ='LGIP future infrastructure'!B50 -> PCF111 | O96: ='LGIP future infrastructure'!D50 -> Acquire and embellish land to provide LOCAL RECREATION infrastructure | P96: ='LGIP future infrastructure'!F50 -> Local | T96: 0 | U96: 0 | V96: 0 | W96: 0 | AA96: 0 | AB96: 0 | AC96: 0 | AD96: 1 | AE96: 0 | AG96: 1 | AK96: ='LGIP future infrastructure'!I50 -> 0.5 | AL96: =IF('LGIP future infrastructure'!G50="2016 - 2021",DATE(2019,6,30),DATE(2024,6,30)) -> 2024-06-30 | AM96: ='LGIP future infrastructure'!J50/1000 -> 700 | AN96: n/a | AO96: 700 | AP96: 0 | AR96: 700 | AT96: 0 | AU96: 0 | AW96: 0 | BA96: 2024-06-30 | BB96: ='LGIP future infrastructure'!K50/1000 -> 180.527 | BC96: =SUM('LGIP future infrastructure'!L50:N50)/1000 -> 93.949 | BF96: 274.476 | BH96: 0 | BI96: 0 | BJ96: 0 | BL96: 0 | BO96: 974.476 | BS96: 0 | BW96: 2024-06-30 | CA96: =IF(BX96=1,IF(BZ96>BO96*'Input-Gen'!$M$48,"Check Value","OK"),"") -> 
G97: FGR-A1-002 | M97: ='LGIP future infrastructure'!A51 -> FGR-A1-002 | N97: ='LGIP future infrastructure'!B51 -> PCF129 | O97: ='LGIP future infrastructure'!D51 -> Acquire and embellish land to provide LOCAL RECREATION infrastructure | P97: ='LGIP future infrastructure'!F51 -> Local | T97: 0 | U97: 0 | V97: 0 | W97: 0 | AA97: 0 | AB97: 0 | AC97: 0 | AD97: 1 | AE97: 0 | AG97: 1 | AK97: ='LGIP future infrastructure'!I51 -> 0.6312 | AL97: =IF('LGIP future infrastructure'!G51="2016 - 2021",DATE(2019,6,30),DATE(2024,6,30)) -> 2019-06-30 | AM97: ='LGIP future infrastructure'!J51/1000 -> 151.488 | AN97: n/a | AO97: 151.488 | AP97: 0 | AR97: 151.488 | AT97: 0 | AU97: 0 | AW97: 0 | BA97: 2019-06-30 | BB97: ='LGIP future infrastructure'!K51/1000 -> 220.624 | BC97: =SUM('LGIP future infrastructure'!L51:N51)/1000 -> 92.94 | BF97: 313.564 | BH97: 0 | BI97: 0 | BJ97: 0 | BL97: 0 | BO97: 465.052 | BS97: 0 | BW97: 2019-06-30 | CA97: =IF(BX97=1,IF(BZ97>BO97*'Input-Gen'!$M$48,"Check Value","OK"),"") -> 
G98: FLK-E1-001 | M98: ='LGIP future infrastructure'!A52 -> FLK-E1-001 | N98: ='LGIP future infrastructure'!B52 -> PCF310 | O98: ='LGIP future infrastructure'!D52 -> Provide LOCAL RECREATION infrastructure | P98: ='LGIP future infrastructure'!F52 -> Local | T98: 0 | U98: 0 | V98: 0 | W98: 0 | AA98: 0 | AB98: 0 | AC98: 1 | AD98: 0 | AE98: 0 | AG98: 1 | AK98: ='LGIP future infrastructure'!I52 -> 0.2 | AL98: =IF('LGIP future infrastructure'!G52="2016 - 2021",DATE(2019,6,30),DATE(2024,6,30)) -> 2019-06-30 | AM98: ='LGIP future infrastructure'!J52/1000 -> 0 | AN98: n/a | AO98: 0 | AP98: 0 | AR98: 0 | AT98: 0 | AU98: 0 | AW98: 0 | BA98: 2019-06-30 | BB98: ='LGIP future infrastructure'!K52/1000 -> 379.844 | BC98: =SUM('LGIP future infrastructure'!L52:N52)/1000 -> 160.012 | BF98: 539.856 | BH98: 0 | BI98: 0 | BJ98: 0 | BL98: 0 | BO98: 539.856 | BS98: 0 | BW98: 2019-06-30 | CA98: =IF(BX98=1,IF(BZ98>BO98*'Input-Gen'!$M$48,"Check Value","OK"),"") -> 
G99: FTZ-E2-001 | M99: ='LGIP future infrastructure'!A53 -> FTZ-E2-001 | N99: ='LGIP future infrastructure'!B53 -> PCF73 | O99: ='LGIP future infrastructure'!D53 -> Provide DISTRICT RECREATION infrastructure | P99: ='LGIP future infrastructure'!F53 -> District | T99: 0 | U99: 0 | V99: 0 | W99: 0 | AA99: 0 | AB99: 0 | AC99: 0 | AD99: 0 | AE99: 1 | AG99: 1 | AK99: ='LGIP future infrastructure'!I53 -> 14 | AL99: =IF('LGIP future infrastructure'!G53="2016 - 2021",DATE(2019,6,30),DATE(2024,6,30)) -> 2019-06-30 | AM99: ='LGIP future infrastructure'!J53/1000 -> 0 | AN99: n/a | AO99: 0 | AP99: 0 | AR99: 0 | AT99: 0 | AU99: 0 | AW99: 0 | BA99: 2019-06-30 | BB99: ='LGIP future infrastructure'!K53/1000 -> 7302.49 | BC99: =SUM('LGIP future infrastructure'!L53:N53)/1000 -> 3076.229 | BF99: 10378.719 | BH99: 0 | BI99: 0 | BJ99: 0 | BL99: 0 | BO99: 10378.719 | BS99: 0 | BW99: 2019-06-30 | CA99: =IF(BX99=1,IF(BZ99>BO99*'Input-Gen'!$M$48,"Check Value","OK"),"") -> 
G100: FTZ-E5-001 | M100: ='LGIP future infrastructure'!A54 -> FTZ-E5-001 | N100: ='LGIP future infrastructure'!B54 -> PCF73 | O100: ='LGIP future infrastructure'!D54 -> Provide DISTRICT SPORT infrastructure | P100: ='LGIP future infrastructure'!F54 -> District | T100: 0 | U100: 0 | V100: 0 | W100: 0 | AA100: 0 | AB100: 0 | AC100: 0 | AD100: 0 | AE100: 1 | AG100: 1 | AK100: ='LGIP future infrastructure'!I54 -> 6 | AL100: =IF('LGIP future infrastructure'!G54="2016 - 2021",DATE(2019,6,30),DATE(2024,6,30)) -> 2019-06-30 | AM100: ='LGIP future infrastructure'!J54/1000 -> 0 | AN100: n/a | AO100: 0 | AP100: 0 | AR100: 0 | AT100: 0 | AU100: 0 | AW100: 0 | BA100: 2019-06-30 | BB100: ='LGIP future infrastructure'!K54/1000 -> 6881.048 | BC100: =SUM('LGIP future infrastructure'!L54:N54)/1000 -> 2898.693 | BF100: 9779.741 | BH100: 0 | BI100: 0 | BJ100: 0 | BL100: 0 | BO100: 9779.741 | BS100: 0 | BW100: 2019-06-30 | CA100: =IF(BX100=1,IF(BZ100>BO100*'Input-Gen'!$M$48,"Check Value","OK"),"") -> 
G101: GRE-U1-010 | M101: ='LGIP future infrastructure'!A55 -> GRE-U1-010 | N101: ='LGIP future infrastructure'!B55 -> PCF213 | O101: ='LGIP future infrastructure'!D55 -> Upgrade existing park infrastructure to the value of $1m+ (District) | P101: ='LGIP future infrastructure'!F55 -> District | T101: 0 | U101: 0 | V101: 0 | W101: 0 | AA101: 0 | AB101: 0 | AC101: 0 | AD101: 0 | AE101: 1 | AG101: 1 | AK101: ='LGIP future infrastructure'!I55 -> 1 | AL101: =IF('LGIP future infrastructure'!G55="2016 - 2021",DATE(2019,6,30),DATE(2024,6,30)) -> 2024-06-30 | AM101: ='LGIP future infrastructure'!J55/1000 -> 0 | AN101: n/a | AO101: 0 | AP101: 0 | AR101: 0 | AT101: 0 | AU101: 0 | AW101: 0 | BA101: 2024-06-30 | BB101: ='LGIP future infrastructure'!K55/1000 -> 1000 | BC101: =SUM('LGIP future infrastructure'!L55:N55)/1000 -> 520.415 | BF101: 1520.415 | BH101: 0 | BI101: 0 | BJ101: 0 | BL101: 0 | BO101: 1520.415 | BS101: 0 | BW101: 2024-06-30 | CA101: =IF(BX101=1,IF(BZ101>BO101*'Input-Gen'!$M$48,"Check Value","OK"),"") -> 
G102: GUM-A7-001 | M102: ='LGIP future infrastructure'!A56 -> GUM-A7-001 | N102: ='LGIP future infrastructure'!B56 -> PCF217 | O102: ='LGIP future infrastructure'!D56 -> Acquire and embellish land to provide LOCAL ACCESS/RECREATION corridor park | P102: ='LGIP future infrastructure'!F56 -> Local | T102: 0 | U102: 0 | V102: 0 | W102: 0 | AA102: 1 | AB102: 0 | AC102: 0 | AD102: 0 | AE102: 0 | AG102: 1 | AK102: ='LGIP future infrastructure'!I56 -> 0.09 | AL102: =IF('LGIP future infrastructure'!G56="2016 - 2021",DATE(2019,6,30),DATE(2024,6,30)) -> 2024-06-30 | AM102: ='LGIP future infrastructure'!J56/1000 -> 87 | AN102: n/a | AO102: 87 | AP102: 0 | AR102: 87 | AT102: 0 | AU102: 0 | AW102: 0 | BA102: 2024-06-30 | BB102: ='LGIP future infrastructure'!K56/1000 -> 65.253 | BC102: =SUM('LGIP future infrastructure'!L56:N56)/1000 -> 33.959 | BF102: 99.212 | BH102: 0 | BI102: 0 | BJ102: 0 | BL102: 0 | BO102: 186.212 | BS102: 0 | BW102: 2024-06-30 | CA102: =IF(BX102=1,IF(BZ102>BO102*'Input-Gen'!$M$48,"Check Value","OK"),"") -> 
G103: HEA-A1-001 | M103: ='LGIP future infrastructure'!A57 -> HEA-A1-001 | N103: ='LGIP future infrastructure'!B57 -> PCF331 | O103: ='LGIP future infrastructure'!D57 -> Acquire and embellish land to provide LOCAL RECREATION infrastructure | P103: ='LGIP future infrastructure'!F57 -> Local | T103: 0 | U103: 0 | V103: 0 | W103: 0 | AA103: 0 | AB103: 0 | AC103: 1 | AD103: 0 | AE103: 0 | AG103: 1 | AK103: ='LGIP future infrastructure'!I57 -> 1 | AL103: =IF('LGIP future infrastructure'!G57="2016 - 2021",DATE(2019,6,30),DATE(2024,6,30)) -> 2019-06-30 | AM103: ='LGIP future infrastructure'!J57/1000 -> 1400 | AN103: n/a | AO103: 1400 | AP103: 0 | AR103: 1400 | AT103: 0 | AU103: 0 | AW103: 0 | BA103: 2019-06-30 | BB103: ='LGIP future infrastructure'!K57/1000 -> 333.335 | BC103: =SUM('LGIP future infrastructure'!L57:N57)/1000 -> 140.42 | BF103: 473.755 | BH103: 0 | BI103: 0 | BJ103: 0 | BL103: 0 | BO103: 1873.755 | BS103: 0 | BW103: 2019-06-30 | CA103: =IF(BX103=1,IF(BZ103>BO103*'Input-Gen'!$M$48,"Check Value","OK"),"") -> 
G104: HEA-A1-003 | M104: ='LGIP future infrastructure'!A58 -> HEA-A1-003 | N104: ='LGIP future infrastructure'!B58 -> PCF351 | O104: ='LGIP future infrastructure'!D58 -> Acquire and embellish land to provide LOCAL RECREATION infrastructure | P104: ='LGIP future infrastructure'!F58 -> Local | T104: 0 | U104: 0 | V104: 0 | W104: 0 | AA104: 0 | AB104: 0 | AC104: 1 | AD104: 0 | AE104: 0 | AG104: 1 | AK104: ='LGIP future infrastructure'!I58 -> 0.5 | AL104: =IF('LGIP future infrastructure'!G58="2016 - 2021",DATE(2019,6,30),DATE(2024,6,30)) -> 2019-06-30 | AM104: ='LGIP future infrastructure'!J58/1000 -> 1025 | AN104: n/a | AO104: 1025 | AP104: 0 | AR104: 1025 | AT104: 0 | AU104: 0 | AW104: 0 | BA104: 2019-06-30 | BB104: ='LGIP future infrastructure'!K58/1000 -> 180.527 | BC104: =SUM('LGIP future infrastructure'!L58:N58)/1000 -> 76.049 | BF104: 256.576 | BH104: 0 | BI104: 0 | BJ104: 0 | BL104: 0 | BO104: 1281.576 | BS104: 0 | BW104: 2019-06-30 | CA104: =IF(BX104=1,IF(BZ104>BO104*'Input-Gen'!$M$48,"Check Value","OK"),"") -> 
G105: HEM-A2-001 | M105: ='LGIP future infrastructure'!A59 -> HEM-A2-001 | N105: ='LGIP future infrastructure'!B59 -> PCF156 | O105: ='LGIP future infrastructure'!D59 -> Acquire and embellish land to provide DISTRICT RECREATION infrastructure | P105: ='LGIP future infrastructure'!F59 -> District | T105: 0 | U105: 0 | V105: 0 | W105: 0 | AA105: 0 | AB105: 0 | AC105: 0 | AD105: 0 | AE105: 1 | AG105: 1 | AK105: ='LGIP future infrastructure'!I59 -> 0.20498 | AL105: =IF('LGIP future infrastructure'!G59="2016 - 2021",DATE(2019,6,30),DATE(2024,6,30)) -> 2024-06-30 | AM105: ='LGIP future infrastructure'!J59/1000 -> 1024.9 | AN105: n/a | AO105: 1024.9 | AP105: 0 | AR105: 1024.9 | AT105: 0 | AU105: 0 | AW105: 0 | BA105: 2024-06-30 | BB105: ='LGIP future infrastructure'!K59/1000 -> 408.794 | BC105: =SUM('LGIP future infrastructure'!L59:N59)/1000 -> 212.743 | BF105: 621.537 | BH105: 0 | BI105: 0 | BJ105: 0 | BL105: 0 | BO105: 1646.437 | BS105: 0 | BW105: 2024-06-30 | CA105: =IF(BX105=1,IF(BZ105>BO105*'Input-Gen'!$M$48,"Check Value","OK"),"") -> 
G106: HEM-U1-010 | M106: ='LGIP future infrastructure'!A60 -> HEM-U1-010 | N106: ='LGIP future infrastructure'!B60 -> PCF176 | O106: ='LGIP future infrastructure'!D60 -> Upgrade existing park infrastructure to the value of $1m+ (District) | P106: ='LGIP future infrastructure'!F60 -> District | T106: 0 | U106: 0 | V106: 0 | W106: 0 | AA106: 0 | AB106: 0 | AC106: 0 | AD106: 0 | AE106: 1 | AG106: 1 | AK106: ='LGIP future infrastructure'!I60 -> 10.2 | AL106: =IF('LGIP future infrastructure'!G60="2016 - 2021",DATE(2019,6,30),DATE(2024,6,30)) -> 2024-06-30 | AM106: ='LGIP future infrastructure'!J60/1000 -> 0 | AN106: n/a | AO106: 0 | AP106: 0 | AR106: 0 | AT106: 0 | AU106: 0 | AW106: 0 | BA106: 2024-06-30 | BB106: ='LGIP future infrastructure'!K60/1000 -> 1000 | BC106: =SUM('LGIP future infrastructure'!L60:N60)/1000 -> 520.415 | BF106: 1520.415 | BH106: 0 | BI106: 0 | BJ106: 0 | BL106: 0 | BO106: 1520.415 | BS106: 0 | BW106: 2024-06-30 | CA106: =IF(BX106=1,IF(BZ106>BO106*'Input-Gen'!$M$48,"Check Value","OK"),"") -> 
G107: HEN-A1-001 | M107: ='LGIP future infrastructure'!A61 -> HEN-A1-001 | N107: ='LGIP future infrastructure'!B61 -> PCF154 | O107: ='LGIP future infrastructure'!D61 -> Acquire and embellish land to provide LOCAL RECREATION infrastructure | P107: ='LGIP future infrastructure'!F61 -> Local | T107: 0 | U107: 0 | V107: 0 | W107: 0 | AA107: 0 | AB107: 1 | AC107: 0 | AD107: 0 | AE107: 0 | AG107: 1 | AK107: ='LGIP future infrastructure'!I61 -> 1 | AL107: =IF('LGIP future infrastructure'!G61="2016 - 2021",DATE(2019,6,30),DATE(2024,6,30)) -> 2019-06-30 | AM107: ='LGIP future infrastructure'!J61/1000 -> 1750 | AN107: n/a | AO107: 1750 | AP107: 0 | AR107: 1750 | AT107: 0 | AU107: 0 | AW107: 0 | BA107: 2019-06-30 | BB107: ='LGIP future infrastructure'!K61/1000 -> 333.335 | BC107: =SUM('LGIP future infrastructure'!L61:N61)/1000 -> 140.42 | BF107: 473.755 | BH107: 0 | BI107: 0 | BJ107: 0 | BL107: 0 | BO107: 2223.755 | BS107: 0 | BW107: 2019-06-30 | CA107: =IF(BX107=1,IF(BZ107>BO107*'Input-Gen'!$M$48,"Check Value","OK"),"") -> 
G108: HER-A8-001 | M108: ='LGIP future infrastructure'!A62 -> HER-A8-001 | N108: ='LGIP future infrastructure'!B62 -> PCF172 | O108: ='LGIP future infrastructure'!D62 -> Acquire and embellish land to provide DISTRICT OR METRO ACCESS/RECREATION CORRIDOR PARK | P108: ='LGIP future infrastructure'!F62 -> District | T108: 0 | U108: 0 | V108: 0 | W108: 0 | AA108: 0 | AB108: 0 | AC108: 0 | AD108: 0 | AE108: 1 | AG108: 1 | AK108: ='LGIP future infrastructure'!I62 -> 0.3 | AL108: =IF('LGIP future infrastructure'!G62="2016 - 2021",DATE(2019,6,30),DATE(2024,6,30)) -> 2024-06-30 | AM108: ='LGIP future infrastructure'!J62/1000 -> 30 | AN108: n/a | AO108: 30 | AP108: 0 | AR108: 30 | AT108: 0 | AU108: 0 | AW108: 0 | BA108: 2024-06-30 | BB108: ='LGIP future infrastructure'!K62/1000 -> 116.072 | BC108: =SUM('LGIP future infrastructure'!L62:N62)/1000 -> 60.405 | BF108: 176.477 | BH108: 0 | BI108: 0 | BJ108: 0 | BL108: 0 | BO108: 206.477 | BS108: 0 | BW108: 2024-06-30 | CA108: =IF(BX108=1,IF(BZ108>BO108*'Input-Gen'!$M$48,"Check Value","OK"),"") -> 
G109: HPW-A7-001 | M109: ='LGIP future infrastructure'!A63 -> HPW-A7-001 | N109: ='LGIP future infrastructure'!B63 -> PCF233 | O109: ='LGIP future infrastructure'!D63 -> Acquire and embellish land to provide LOCAL ACCESS/RECREATION corridor park | P109: ='LGIP future infrastructure'!F63 -> Local | T109: 0 | U109: 0 | V109: 0 | W109: 0 | AA109: 1 | AB109: 0 | AC109: 0 | AD109: 0 | AE109: 0 | AG109: 1 | AK109: ='LGIP future infrastructure'!I63 -> 1.6 | AL109: =IF('LGIP future infrastructure'!G63="2016 - 2021",DATE(2019,6,30),DATE(2024,6,30)) -> 2024-06-30 | AM109: ='LGIP future infrastructure'!J63/1000 -> 160 | AN109: n/a | AO109: 160 | AP109: 0 | AR109: 160 | AT109: 0 | AU109: 0 | AW109: 0 | BA109: 2024-06-30 | BB109: ='LGIP future infrastructure'!K63/1000 -> 442.548 | BC109: =SUM('LGIP future infrastructure'!L63:N63)/1000 -> 230.309 | BF109: 672.857 | BH109: 0 | BI109: 0 | BJ109: 0 | BL109: 0 | BO109: 832.857 | BS109: 0 | BW109: 2024-06-30 | CA109: =IF(BX109=1,IF(BZ109>BO109*'Input-Gen'!$M$48,"Check Value","OK"),"") -> 
G110: HPW-A7-002 | M110: ='LGIP future infrastructure'!A64 -> HPW-A7-002 | N110: ='LGIP future infrastructure'!B64 -> PCF233 | O110: ='LGIP future infrastructure'!D64 -> Acquire and embellish land to provide LOCAL ACCESS/RECREATION corridor park | P110: ='LGIP future infrastructure'!F64 -> Local | T110: 0 | U110: 0 | V110: 0 | W110: 0 | AA110: 1 | AB110: 0 | AC110: 0 | AD110: 0 | AE110: 0 | AG110: 1 | AK110: ='LGIP future infrastructure'!I64 -> 0.14 | AL110: =IF('LGIP future infrastructure'!G64="2016 - 2021",DATE(2019,6,30),DATE(2024,6,30)) -> 2024-06-30 | AM110: ='LGIP future infrastructure'!J64/1000 -> 14 | AN110: n/a | AO110: 14 | AP110: 0 | AR110: 14 | AT110: 0 | AU110: 0 | AW110: 0 | BA110: 2024-06-30 | BB110: ='LGIP future infrastructure'!K64/1000 -> 77.746 | BC110: =SUM('LGIP future infrastructure'!L64:N64)/1000 -> 40.46 | BF110: 118.206 | BH110: 0 | BI110: 0 | BJ110: 0 | BL110: 0 | BO110: 132.206 | BS110: 0 | BW110: 2024-06-30 | CA110: =IF(BX110=1,IF(BZ110>BO110*'Input-Gen'!$M$48,"Check Value","OK"),"") -> 
G111: IND-E2-001 | M111: ='LGIP future infrastructure'!A65 -> IND-E2-001 | N111: ='LGIP future infrastructure'!B65 -> PCF211 | O111: ='LGIP future infrastructure'!D65 -> Provide DISTRICT RECREATION infrastructure | P111: ='LGIP future infrastructure'!F65 -> District | T111: 0 | U111: 0 | V111: 0 | W111: 0 | AA111: 0 | AB111: 0 | AC111: 0 | AD111: 0 | AE111: 1 | AG111: 1 | AK111: ='LGIP future infrastructure'!I65 -> 1.5 | AL111: =IF('LGIP future infrastructure'!G65="2016 - 2021",DATE(2019,6,30),DATE(2024,6,30)) -> 2019-06-30 | AM111: ='LGIP future infrastructure'!J65/1000 -> 0 | AN111: n/a | AO111: 0 | AP111: 0 | AR111: 0 | AT111: 0 | AU111: 0 | AW111: 0 | BA111: 2019-06-30 | BB111: ='LGIP future infrastructure'!K65/1000 -> 6575.963 | BC111: =SUM('LGIP future infrastructure'!L65:N65)/1000 -> 2770.174 | BF111: 9346.137 | BH111: 0 | BI111: 0 | BJ111: 0 | BL111: 0 | BO111: 9346.137 | BS111: 0 | BW111: 2019-06-30 | CA111: =IF(BX111=1,IF(BZ111>BO111*'Input-Gen'!$M$48,"Check Value","OK"),"") -> 
G112: IND-U2-010 | M112: ='LGIP future infrastructure'!A66 -> IND-U2-010 | N112: ='LGIP future infrastructure'!B66 -> PCF210 | O112: ='LGIP future infrastructure'!D66 -> Upgrade existing park infrastructure to the value of $500k-$1m (District) | P112: ='LGIP future infrastructure'!F66 -> District | T112: 0 | U112: 0 | V112: 0 | W112: 0 | AA112: 0 | AB112: 0 | AC112: 0 | AD112: 0 | AE112: 1 | AG112: =SUM(AA112:AE112) -> 1 | AK112: ='LGIP future infrastructure'!I66 -> 4.4 | AL112: =IF('LGIP future infrastructure'!G66="2016 - 2021",DATE(2019,6,30),DATE(2024,6,30)) -> 2024-06-30 | AM112: ='LGIP future infrastructure'!J66/1000 -> 0 | AN112: n/a | AO112: 0 | AP112: 0 | AR112: 0 | AT112: =AO112*V112 -> 0 | AU112: 0 | AW112: 0 | BA112: 2024-06-30 | BB112: ='LGIP future infrastructure'!K66/1000 -> 750 | BC112: =SUM('LGIP future infrastructure'!L66:N66)/1000 -> 390.311 | BF112: 1140.311 | BH112: 0 | BI112: 0 | BJ112: 0 | BL112: =BF112*V112 -> 0 | BO112: =SUM(BF112,AR112) -> 1140.311 | BS112: =AW112+BL112 -> 0 | BW112: 2024-06-30 | CA112: =IF(BX112=1,IF(BZ112>BO112*'Input-Gen'!$M$48,"Check Value","OK"),"") -> 
G113: =M113 -> KED-U1-010 | M113: ='LGIP future infrastructure'!A67 -> KED-U1-010 | N113: ='LGIP future infrastructure'!B67 -> PCF112 | O113: ='LGIP future infrastructure'!D67 -> Upgrade existing park infrastructure to the value of $1m+ (District) | P113: ='LGIP future infrastructure'!F67 -> District | T113: 0 | U113: 0 | V113: 0 | W113: 0 | AA113: 0 | AB113: 0 | AC113: 0 | AD113: 0 | AE113: 1 | AG113: 1 | AK113: ='LGIP future infrastructure'!I67 -> 2.9 | AL113: =IF('LGIP future infrastructure'!G67="2016 - 2021",DATE(2019,6,30),DATE(2024,6,30)) -> 2024-06-30 | AM113: ='LGIP future infrastructure'!J67/1000 -> 0 | AN113: n/a | AO113: =AM113 -> 0 | AP113: 0 | AR113: 0 | AT113: 0 | AU113: 0 | AW113: 0 | BA113: =AL113 -> 2024-06-30 | BB113: ='LGIP future infrastructure'!K67/1000 -> 1000 | BC113: =SUM('LGIP future infrastructure'!L67:N67)/1000 -> 520.415 | BF113: =SUM(BB113:BC113) -> 1520.415 | BH113: =BB113*$V113 -> 0 | BI113: =BC113*$V113 -> 0 | BJ113: =BD113*$V113 -> 0 | BL113: 0 | BO113: 1520.415 | BS113: 0 | BW113: =BA113 -> 2024-06-30 | CA113: =IF(BX113=1,IF(BZ113>BO113*'Input-Gen'!$M$48,"Check Value","OK"),"") -> 
G114: KEN-U2-010 | M114: ='LGIP future infrastructure'!A68 -> KEN-U2-010 | N114: ='LGIP future infrastructure'!B68 -> PCF230 | O114: ='LGIP future infrastructure'!D68 -> Upgrade existing park infrastructure to the value of $500k-$1m (District) | P114: ='LGIP future infrastructure'!F68 -> District | T114: 0 | U114: 0 | V114: 0 | W114: 0 | AA114: 0 | AB114: 0 | AC114: 0 | AD114: 0 | AE114: 1 | AG114: 1 | AK114: ='LGIP future infrastructure'!I68 -> 10.43 | AL114: =IF('LGIP future infrastructure'!G68="2016 - 2021",DATE(2019,6,30),DATE(2024,6,30)) -> 2019-06-30 | AM114: ='LGIP future infrastructure'!J68/1000 -> 0 | AN114: n/a | AO114: 0 | AP114: 0 | AR114: =AO114*(1+AP114) -> 0 | AT114: 0 | AU114: =AP114 -> 0 | AW114: =AT114*(1+AU114) -> 0 | BA114: 2019-06-30 | BB114: ='LGIP future infrastructure'!K68/1000 -> 750 | BC114: =SUM('LGIP future infrastructure'!L68:N68)/1000 -> 315.943 | BF114: 1065.943 | BH114: 0 | BI114: 0 | BJ114: 0 | BL114: 0 | BO114: 1065.943 | BS114: 0 | BW114: 2019-06-30 | CA114: =IF(BX114=1,IF(BZ114>BO114*'Input-Gen'!$M$48,"Check Value","OK"),"") -> 
G115: KUR-A1-001 | M115: ='LGIP future infrastructure'!A69 -> KUR-A1-001 | N115: ='LGIP future infrastructure'!B69 -> PCF315 | O115: ='LGIP future infrastructure'!D69 -> Acquire and embellish land to provide LOCAL RECREATION infrastructure | P115: ='LGIP future infrastructure'!F69 -> Local | T115: 0 | U115: 0 | V115: 0 | W115: 0 | AA115: 0 | AB115: 0 | AC115: 1 | AD115: 0 | AE115: 0 | AG115: 1 | AK115: ='LGIP future infrastructure'!I69 -> 0.5 | AL115: =IF('LGIP future infrastructure'!G69="2016 - 2021",DATE(2019,6,30),DATE(2024,6,30)) -> 2019-06-30 | AM115: ='LGIP future infrastructure'!J69/1000 -> 500 | AN115: n/a | AO115: 500 | AP115: 0 | AR115: 500 | AT115: 0 | AU115: 0 | AW115: 0 | BA115: 2019-06-30 | BB115: ='LGIP future infrastructure'!K69/1000 -> 180.527 | BC115: =SUM('LGIP future infrastructure'!L69:N69)/1000 -> 76.049 | BF115: 256.576 | BH115: 0 | BI115: 0 | BJ115: 0 | BL115: 0 | BO115: 756.576 | BS115: 0 | BW115: 2019-06-30 | CA115: =IF(BX115=1,IF(BZ115>BO115*'Input-Gen'!$M$48,"Check Value","OK"),"") -> 
G116: LUT-A1-001 | M116: ='LGIP future infrastructure'!A70 -> LUT-A1-001 | N116: ='LGIP future infrastructure'!B70 -> PCF153 | O116: ='LGIP future infrastructure'!D70 -> Acquire and embellish land to provide LOCAL RECREATION infrastructure | P116: ='LGIP future infrastructure'!F70 -> Local | T116: 0 | U116: 0 | V116: 0 | W116: 0 | AA116: 0 | AB116: 1 | AC116: 0 | AD116: 0 | AE116: 0 | AG116: 1 | AK116: ='LGIP future infrastructure'!I70 -> 0.5 | AL116: =IF('LGIP future infrastructure'!G70="2016 - 2021",DATE(2019,6,30),DATE(2024,6,30)) -> 2024-06-30 | AM116: ='LGIP future infrastructure'!J70/1000 -> 5000 | AN116: n/a | AO116: 5000 | AP116: 0 | AR116: 5000 | AT116: 0 | AU116: 0 | AW116: 0 | BA116: 2024-06-30 | BB116: ='LGIP future infrastructure'!K70/1000 -> 180.527 | BC116: =SUM('LGIP future infrastructure'!L70:N70)/1000 -> 93.949 | BF116: 274.476 | BH116: 0 | BI116: 0 | BJ116: 0 | BL116: 0 | BO116: 5274.476 | BS116: 0 | BW116: 2024-06-30 | CA116: =IF(BX116=1,IF(BZ116>BO116*'Input-Gen'!$M$48,"Check Value","OK"),"") -> 
G117: MCG-A1-001 | M117: ='LGIP future infrastructure'!A71 -> MCG-A1-001 | N117: ='LGIP future infrastructure'!B71 -> PCF274 | O117: ='LGIP future infrastructure'!D71 -> Acquire and embellish land to provide LOCAL RECREATION infrastructure | P117: ='LGIP future infrastructure'!F71 -> Local | T117: 0 | U117: 0 | V117: 0 | W117: 0 | AA117: 0 | AB117: 0 | AC117: 1 | AD117: 0 | AE117: 0 | AG117: 1 | AK117: ='LGIP future infrastructure'!I71 -> 0.5317 | AL117: =IF('LGIP future infrastructure'!G71="2016 - 2021",DATE(2019,6,30),DATE(2024,6,30)) -> 2019-06-30 | AM117: ='LGIP future infrastructure'!J71/1000 -> 2100 | AN117: n/a | AO117: 2100 | AP117: 0 | AR117: 2100 | AT117: 0 | AU117: 0 | AW117: 0 | BA117: 2019-06-30 | BB117: ='LGIP future infrastructure'!K71/1000 -> 190.215 | BC117: =SUM('LGIP future infrastructure'!L71:N71)/1000 -> 80.13 | BF117: 270.345 | BH117: 0 | BI117: 0 | BJ117: 0 | BL117: 0 | BO117: 2370.345 | BS117: 0 | BW117: 2019-06-30 | CA117: =IF(BX117=1,IF(BZ117>BO117*'Input-Gen'!$M$48,"Check Value","OK"),"") -> 
G118: MCG-E1-001 | M118: ='LGIP future infrastructure'!A72 -> MCG-E1-001 | N118: ='LGIP future infrastructure'!B72 -> PCF274 | O118: ='LGIP future infrastructure'!D72 -> Provide LOCAL RECREATION infrastructure | P118: ='LGIP future infrastructure'!F72 -> Local | T118: 0 | U118: 0 | V118: 0 | W118: 0 | AA118: 0 | AB118: 0 | AC118: 1 | AD118: 0 | AE118: 0 | AG118: 1 | AK118: ='LGIP future infrastructure'!I72 -> 0.2 | AL118: =IF('LGIP future infrastructure'!G72="2016 - 2021",DATE(2019,6,30),DATE(2024,6,30)) -> 2019-06-30 | AM118: ='LGIP future infrastructure'!J72/1000 -> 0 | AN118: n/a | AO118: 0 | AP118: 0 | AR118: 0 | AT118: 0 | AU118: 0 | AW118: 0 | BA118: 2019-06-30 | BB118: ='LGIP future infrastructure'!K72/1000 -> 379.844 | BC118: =SUM('LGIP future infrastructure'!L72:N72)/1000 -> 160.012 | BF118: 539.856 | BH118: 0 | BI118: 0 | BJ118: 0 | BL118: 0 | BO118: 539.856 | BS118: 0 | BW118: 2019-06-30 | CA118: =IF(BX118=1,IF(BZ118>BO118*'Input-Gen'!$M$48,"Check Value","OK"),"") -> 
G119: MCO-U1-010 | M119: ='LGIP future infrastructure'!A73 -> MCO-U1-010 | N119: ='LGIP future infrastructure'!B73 -> PCF190 | O119: ='LGIP future infrastructure'!D73 -> Upgrade existing park infrastructure to the value of $1m+ (Metropolitan) | P119: ='LGIP future infrastructure'!F73 -> Metropolitan | T119: 0 | U119: 0 | V119: 0 | W119: 0 | AA119: 0 | AB119: 0 | AC119: 0 | AD119: 0 | AE119: 1 | AG119: 1 | AK119: ='LGIP future infrastructure'!I73 -> 5.47 | AL119: =IF('LGIP future infrastructure'!G73="2016 - 2021",DATE(2019,6,30),DATE(2024,6,30)) -> 2019-06-30 | AM119: ='LGIP future infrastructure'!J73/1000 -> 0 | AN119: n/a | AO119: 0 | AP119: 0 | AR119: 0 | AT119: 0 | AU119: 0 | AW119: 0 | BA119: 2019-06-30 | BB119: ='LGIP future infrastructure'!K73/1000 -> 1000 | BC119: =SUM('LGIP future infrastructure'!L73:N73)/1000 -> 421.258 | BF119: 1421.258 | BH119: 0 | BI119: 0 | BJ119: 0 | BL119: 0 | BO119: 1421.258 | BS119: 0 | BW119: 2019-06-30 | CA119: =IF(BX119=1,IF(BZ119>BO119*'Input-Gen'!$M$48,"Check Value","OK"),"") -> 
G120: MDW-A1-001 | M120: ='LGIP future infrastructure'!A74 -> MDW-A1-001 | N120: ='LGIP future infrastructure'!B74 -> PCF111 | O120: ='LGIP future infrastructure'!D74 -> Acquire and embellish land to provide LOCAL RECREATION infrastructure | P120: ='LGIP future infrastructure'!F74 -> Local | T120: 0 | U120: 0 | V120: 0 | W120: 0 | AA120: 0 | AB120: 0 | AC120: 0 | AD120: 1 | AE120: 0 | AG120: 1 | AK120: ='LGIP future infrastructure'!I74 -> 1 | AL120: =IF('LGIP future infrastructure'!G74="2016 - 2021",DATE(2019,6,30),DATE(2024,6,30)) -> 2019-06-30 | AM120: ='LGIP future infrastructure'!J74/1000 -> 1000 | AN120: n/a | AO120: 1000 | AP120: 0 | AR120: 1000 | AT120: 0 | AU120: 0 | AW120: 0 | BA120: 2019-06-30 | BB120: ='LGIP future infrastructure'!K74/1000 -> 333.335 | BC120: =SUM('LGIP future infrastructure'!L74:N74)/1000 -> 140.42 | BF120: 473.755 | BH120: 0 | BI120: 0 | BJ120: 0 | BL120: 0 | BO120: 1473.755 | BS120: 0 | BW120: 2019-06-30 | CA120: =IF(BX120=1,IF(BZ120>BO120*'Input-Gen'!$M$48,"Check Value","OK"),"") -> 
G121: MIL-E4-001 | M121: ='LGIP future infrastructure'!A75 -> MIL-E4-001 | N121: ='LGIP future infrastructure'!B75 -> PCF192 | O121: ='LGIP future infrastructure'!D75 -> Provide URBAN COMMON infrastructure | P121: ='LGIP future infrastructure'!F75 -> Urban Common | T121: 0 | U121: 0 | V121: 0 | W121: 0 | AA121: 0 | AB121: 0 | AC121: 0 | AD121: 0 | AE121: 1 | AG121: 1 | AK121: ='LGIP future infrastructure'!I75 -> 0.15 | AL121: =IF('LGIP future infrastructure'!G75="2016 - 2021",DATE(2019,6,30),DATE(2024,6,30)) -> 2019-06-30 | AM121: ='LGIP future infrastructure'!J75/1000 -> 0 | AN121: n/a | AO121: 0 | AP121: 0 | AR121: 0 | AT121: 0 | AU121: 0 | AW121: 0 | BA121: 2019-06-30 | BB121: ='LGIP future infrastructure'!K75/1000 -> 515.797 | BC121: =SUM('LGIP future infrastructure'!L75:N75)/1000 -> 217.284 | BF121: 733.081 | BH121: 0 | BI121: 0 | BJ121: 0 | BL121: 0 | BO121: 733.081 | BS121: 0 | BW121: 2019-06-30 | CA121: =IF(BX121=1,IF(BZ121>BO121*'Input-Gen'!$M$48,"Check Value","OK"),"") -> 
G122: MIT-A4-001 | M122: ='LGIP future infrastructure'!A76 -> MIT-A4-001 | N122: ='LGIP future infrastructure'!B76 -> PCF131 | O122: ='LGIP future infrastructure'!D76 -> Acquire and embellish land to provide URBAN COMMON infrastructure | P122: ='LGIP future infrastructure'!F76 -> Urban Common | T122: 0 | U122: 0 | V122: 0 | W122: 0 | AA122: 0 | AB122: 0 | AC122: 0 | AD122: 0 | AE122: 1 | AG122: 1 | AK122: ='LGIP future infrastructure'!I76 -> 0.31675 | AL122: =IF('LGIP future infrastructure'!G76="2016 - 2021",DATE(2019,6,30),DATE(2024,6,30)) -> 2024-06-30 | AM122: ='LGIP future infrastructure'!J76/1000 -> 4751.25 | AN122: n/a | AO122: 4751.25 | AP122: 0 | AR122: 4751.25 | AT122: 0 | AU122: 0 | AW122: 0 | BA122: 2024-06-30 | BB122: ='LGIP future infrastructure'!K76/1000 -> 603.328 | BC122: =SUM('LGIP future infrastructure'!L76:N76)/1000 -> 313.981 | BF122: 917.309 | BH122: 0 | BI122: 0 | BJ122: 0 | BL122: 0 | BO122: 5668.559 | BS122: 0 | BW122: 2024-06-30 | CA122: =IF(BX122=1,IF(BZ122>BO122*'Input-Gen'!$M$48,"Check Value","OK"),"") -> 
G123: MNW-A7-001 | M123: ='LGIP future infrastructure'!A77 -> MNW-A7-001 | N123: ='LGIP future infrastructure'!B77 -> PCF177 | O123: ='LGIP future infrastructure'!D77 -> Acquire and embellish land to provide LOCAL ACCESS/RECREATION corridor park | P123: ='LGIP future infrastructure'!F77 -> Local | T123: 0 | U123: 0 | V123: 0 | W123: 0 | AA123: 1 | AB123: 0 | AC123: 0 | AD123: 0 | AE123: 0 | AG123: 1 | AK123: ='LGIP future infrastructure'!I77 -> 1.1 | AL123: =IF('LGIP future infrastructure'!G77="2016 - 2021",DATE(2019,6,30),DATE(2024,6,30)) -> 2019-06-30 | AM123: ='LGIP future infrastructure'!J77/1000 -> 200.75 | AN123: n/a | AO123: 200.75 | AP123: 0 | AR123: 200.75 | AT123: 0 | AU123: 0 | AW123: 0 | BA123: 2019-06-30 | BB123: ='LGIP future infrastructure'!K77/1000 -> 317.616 | BC123: =SUM('LGIP future infrastructure'!L77:N77)/1000 -> 133.798 | BF123: 451.414 | BH123: 0 | BI123: 0 | BJ123: 0 | BL123: 0 | BO123: 652.164 | BS123: 0 | BW123: 2019-06-30 | CA123: =IF(BX123=1,IF(BZ123>BO123*'Input-Gen'!$M$48,"Check Value","OK"),"") -> 
G124: MNW-A7-002 | M124: ='LGIP future infrastructure'!A78 -> MNW-A7-002 | N124: ='LGIP future infrastructure'!B78 -> PCF177 | O124: ='LGIP future infrastructure'!D78 -> Acquire and embellish land to provide LOCAL ACCESS/RECREATION corridor park | P124: ='LGIP future infrastructure'!F78 -> Local | T124: 0 | U124: 0 | V124: 0 | W124: 0 | AA124: 1 | AB124: 0 | AC124: 0 | AD124: 0 | AE124: 0 | AG124: 1 | AK124: ='LGIP future infrastructure'!I78 -> 0.3 | AL124: =IF('LGIP future infrastructure'!G78="2016 - 2021",DATE(2019,6,30),DATE(2024,6,30)) -> 2019-06-30 | AM124: ='LGIP future infrastructure'!J78/1000 -> 30 | AN124: n/a | AO124: 30 | AP124: 0 | AR124: 30 | AT124: 0 | AU124: 0 | AW124: 0 | BA124: 2019-06-30 | BB124: ='LGIP future infrastructure'!K78/1000 -> 117.724 | BC124: =SUM('LGIP future infrastructure'!L78:N78)/1000 -> 49.592 | BF124: 167.316 | BH124: 0 | BI124: 0 | BJ124: 0 | BL124: 0 | BO124: 197.316 | BS124: 0 | BW124: 2019-06-30 | CA124: =IF(BX124=1,IF(BZ124>BO124*'Input-Gen'!$M$48,"Check Value","OK"),"") -> 
G125: MNW-A7-003 | M125: ='LGIP future infrastructure'!A79 -> MNW-A7-003 | N125: ='LGIP future infrastructure'!B79 -> PCF197, PCF196 | O125: ='LGIP future infrastructure'!D79 -> Acquire and embellish land to provide LOCAL ACCESS/RECREATION corridor park | P125: ='LGIP future infrastructure'!F79 -> Local | T125: 0 | U125: 0 | V125: 0 | W125: 0 | AA125: 1 | AB125: 0 | AC125: 0 | AD125: 0 | AE125: 0 | AG125: 1 | AK125: ='LGIP future infrastructure'!I79 -> 0.3 | AL125: =IF('LGIP future infrastructure'!G79="2016 - 2021",DATE(2019,6,30),DATE(2024,6,30)) -> 2024-06-30 | AM125: ='LGIP future infrastructure'!J79/1000 -> 457.5 | AN125: n/a | AO125: 457.5 | AP125: 0 | AR125: 457.5 | AT125: 0 | AU125: 0 | AW125: 0 | BA125: 2024-06-30 | BB125: ='LGIP future infrastructure'!K79/1000 -> 117.724 | BC125: =SUM('LGIP future infrastructure'!L79:N79)/1000 -> 61.266 | BF125: 178.99 | BH125: 0 | BI125: 0 | BJ125: 0 | BL125: 0 | BO125: 636.49 | BS125: 0 | BW125: 2024-06-30 | CA125: =IF(BX125=1,IF(BZ125>BO125*'Input-Gen'!$M$48,"Check Value","OK"),"") -> 
G126: MOG-A1-001 | M126: ='LGIP future infrastructure'!A80 -> MOG-A1-001 | N126: ='LGIP future infrastructure'!B80 -> PCF267 | O126: ='LGIP future infrastructure'!D80 -> Acquire and embellish land to provide LOCAL RECREATION infrastructure | P126: ='LGIP future infrastructure'!F80 -> Local | T126: 0 | U126: 0 | V126: 0 | W126: 0 | AA126: 0 | AB126: 0 | AC126: 0 | AD126: 1 | AE126: 0 | AG126: 1 | AK126: ='LGIP future infrastructure'!I80 -> 1.00615 | AL126: =IF('LGIP future infrastructure'!G80="2016 - 2021",DATE(2019,6,30),DATE(2024,6,30)) -> 2019-06-30 | AM126: ='LGIP future infrastructure'!J80/1000 -> 1006.15 | AN126: n/a | AO126: 1006.15 | AP126: 0 | AR126: 1006.15 | AT126: 0 | AU126: 0 | AW126: 0 | BA126: 2019-06-30 | BB126: ='LGIP future infrastructure'!K80/1000 -> 335.214 | BC126: =SUM('LGIP future infrastructure'!L80:N80)/1000 -> 141.211 | BF126: 476.425 | BH126: 0 | BI126: 0 | BJ126: 0 | BL126: 0 | BO126: 1482.575 | BS126: 0 | BW126: 2019-06-30 | CA126: =IF(BX126=1,IF(BZ126>BO126*'Input-Gen'!$M$48,"Check Value","OK"),"") -> 
G127: MOG-E1-010 | M127: ='LGIP future infrastructure'!A81 -> MOG-E1-010 | N127: ='LGIP future infrastructure'!B81 -> PCF267 | O127: ='LGIP future infrastructure'!D81 -> Provide LOCAL RECREATION infrastructure | P127: ='LGIP future infrastructure'!F81 -> Local | T127: 0 | U127: 0 | V127: 0 | W127: 0 | AA127: 0 | AB127: 0 | AC127: 0 | AD127: 1 | AE127: 0 | AG127: 1 | AK127: ='LGIP future infrastructure'!I81 -> 0.838 | AL127: =IF('LGIP future infrastructure'!G81="2016 - 2021",DATE(2019,6,30),DATE(2024,6,30)) -> 2019-06-30 | AM127: ='LGIP future infrastructure'!J81/1000 -> 0 | AN127: n/a | AO127: 0 | AP127: 0 | AR127: 0 | AT127: 0 | AU127: 0 | AW127: 0 | BA127: 2019-06-30 | BB127: ='LGIP future infrastructure'!K81/1000 -> 420.182 | BC127: =SUM('LGIP future infrastructure'!L81:N81)/1000 -> 177.005 | BF127: 597.187 | BH127: 0 | BI127: 0 | BJ127: 0 | BL127: 0 | BO127: 597.187 | BS127: 0 | BW127: 2019-06-30 | CA127: =IF(BX127=1,IF(BZ127>BO127*'Input-Gen'!$M$48,"Check Value","OK"),"") -> 
G128: MOG-E5-001 | M128: ='LGIP future infrastructure'!A82 -> MOG-E5-001 | N128: ='LGIP future infrastructure'!B82 -> PCF287 | O128: ='LGIP future infrastructure'!D82 -> Provide DISTRICT SPORT infrastructure | P128: ='LGIP future infrastructure'!F82 -> District | T128: 0 | U128: 0 | V128: 0 | W128: 0 | AA128: 0 | AB128: 0 | AC128: 0 | AD128: 0 | AE128: 1 | AG128: 1 | AK128: ='LGIP future infrastructure'!I82 -> 9.2 | AL128: =IF('LGIP future infrastructure'!G82="2016 - 2021",DATE(2019,6,30),DATE(2024,6,30)) -> 2019-06-30 | AM128: ='LGIP future infrastructure'!J82/1000 -> 0 | AN128: n/a | AO128: 0 | AP128: 0 | AR128: 0 | AT128: 0 | AU128: 0 | AW128: 0 | BA128: 2019-06-30 | BB128: ='LGIP future infrastructure'!K82/1000 -> 7471.843 | BC128: =SUM('LGIP future infrastructure'!L82:N82)/1000 -> 3147.569 | BF128: 10619.412 | BH128: 0 | BI128: 0 | BJ128: 0 | BL128: 0 | BO128: 10619.412 | BS128: 0 | BW128: 2019-06-30 | CA128: =IF(BX128=1,IF(BZ128>BO128*'Input-Gen'!$M$48,"Check Value","OK"),"") -> 
G129: NUD-U1-010 | M129: ='LGIP future infrastructure'!A83 -> NUD-U1-010 | N129: ='LGIP future infrastructure'!B83 -> PCF94 | O129: ='LGIP future infrastructure'!D83 -> Upgrade existing park infrastructure to the value of $1m+ (District) | P129: ='LGIP future infrastructure'!F83 -> District | T129: 0 | U129: 0 | V129: 0 | W129: 0 | AA129: 0 | AB129: 0 | AC129: 0 | AD129: 0 | AE129: 1 | AG129: 1 | AK129: ='LGIP future infrastructure'!I83 -> 6.31 | AL129: =IF('LGIP future infrastructure'!G83="2016 - 2021",DATE(2019,6,30),DATE(2024,6,30)) -> 2024-06-30 | AM129: ='LGIP future infrastructure'!J83/1000 -> 0 | AN129: n/a | AO129: 0 | AP129: 0 | AR129: 0 | AT129: 0 | AU129: 0 | AW129: 0 | BA129: 2024-06-30 | BB129: ='LGIP future infrastructure'!K83/1000 -> 1000 | BC129: =SUM('LGIP future infrastructure'!L83:N83)/1000 -> 520.415 | BF129: 1520.415 | BH129: 0 | BI129: 0 | BJ129: 0 | BL129: 0 | BO129: 1520.415 | BS129: 0 | BW129: 2024-06-30 | CA129: =IF(BX129=1,IF(BZ129>BO129*'Input-Gen'!$M$48,"Check Value","OK"),"") -> 
G130: PAL-A1-001 | M130: ='LGIP future infrastructure'!A84 -> PAL-A1-001 | N130: ='LGIP future infrastructure'!B84 -> PCF332 | O130: ='LGIP future infrastructure'!D84 -> Acquire and embellish land to provide LOCAL RECREATION infrastructure | P130: ='LGIP future infrastructure'!F84 -> Local | T130: 0 | U130: 0 | V130: 0 | W130: 0 | AA130: 0 | AB130: 0 | AC130: 1 | AD130: 0 | AE130: 0 | AG130: 1 | AK130: ='LGIP future infrastructure'!I84 -> 1 | AL130: =IF('LGIP future infrastructure'!G84="2016 - 2021",DATE(2019,6,30),DATE(2024,6,30)) -> 2019-06-30 | AM130: ='LGIP future infrastructure'!J84/1000 -> 500 | AN130: n/a | AO130: 500 | AP130: 0 | AR130: 500 | AT130: 0 | AU130: 0 | AW130: 0 | BA130: 2019-06-30 | BB130: ='LGIP future infrastructure'!K84/1000 -> 333.335 | BC130: =SUM('LGIP future infrastructure'!L84:N84)/1000 -> 140.42 | BF130: 473.755 | BH130: 0 | BI130: 0 | BJ130: 0 | BL130: 0 | BO130: 973.755 | BS130: 0 | BW130: 2019-06-30 | CA130: =IF(BX130=1,IF(BZ130>BO130*'Input-Gen'!$M$48,"Check Value","OK"),"") -> 
G131: PAL-A1-002 | M131: ='LGIP future infrastructure'!A85 -> PAL-A1-002 | N131: ='LGIP future infrastructure'!B85 -> PCF312 | O131: ='LGIP future infrastructure'!D85 -> Acquire and embellish land to provide LOCAL RECREATION infrastructure | P131: ='LGIP future infrastructure'!F85 -> Local | T131: 0 | U131: 0 | V131: 0 | W131: 0 | AA131: 0 | AB131: 0 | AC131: 1 | AD131: 0 | AE131: 0 | AG131: 1 | AK131: ='LGIP future infrastructure'!I85 -> 1 | AL131: =IF('LGIP future infrastructure'!G85="2016 - 2021",DATE(2019,6,30),DATE(2024,6,30)) -> 2019-06-30 | AM131: ='LGIP future infrastructure'!J85/1000 -> 500 | AN131: n/a | AO131: 500 | AP131: 0 | AR131: 500 | AT131: 0 | AU131: 0 | AW131: 0 | BA131: 2019-06-30 | BB131: ='LGIP future infrastructure'!K85/1000 -> 333.335 | BC131: =SUM('LGIP future infrastructure'!L85:N85)/1000 -> 140.42 | BF131: 473.755 | BH131: 0 | BI131: 0 | BJ131: 0 | BL131: 0 | BO131: 973.755 | BS131: 0 | BW131: 2019-06-30 | CA131: =IF(BX131=1,IF(BZ131>BO131*'Input-Gen'!$M$48,"Check Value","OK"),"") -> 
G132: PAL-A2-001 | M132: ='LGIP future infrastructure'!A86 -> PAL-A2-001 | N132: ='LGIP future infrastructure'!B86 -> PCF312 | O132: ='LGIP future infrastructure'!D86 -> Acquire and embellish land to provide DISTRICT RECREATION infrastructure | P132: ='LGIP future infrastructure'!F86 -> District | T132: 0 | U132: 0 | V132: 0 | W132: 0 | AA132: 0 | AB132: 0 | AC132: 0 | AD132: 0 | AE132: 1 | AG132: 1 | AK132: ='LGIP future infrastructure'!I86 -> 9.7122 | AL132: =IF('LGIP future infrastructure'!G86="2016 - 2021",DATE(2019,6,30),DATE(2024,6,30)) -> 2024-06-30 | AM132: ='LGIP future infrastructure'!J86/1000 -> 7200 | AN132: n/a | AO132: 7200 | AP132: 0 | AR132: 7200 | AT132: 0 | AU132: 0 | AW132: 0 | BA132: 2024-06-30 | BB132: ='LGIP future infrastructure'!K86/1000 -> 1513.934 | BC132: =SUM('LGIP future infrastructure'!L86:N86)/1000 -> 787.874 | BF132: 2301.808 | BH132: 0 | BI132: 0 | BJ132: 0 | BL132: 0 | BO132: 9501.808 | BS132: 0 | BW132: 2024-06-30 | CA132: =IF(BX132=1,IF(BZ132>BO132*'Input-Gen'!$M$48,"Check Value","OK"),"") -> 
G133: PAL-A5-001 | M133: ='LGIP future infrastructure'!A87 -> PAL-A5-001 | N133: ='LGIP future infrastructure'!B87 -> PCF331 | O133: ='LGIP future infrastructure'!D87 -> Acquire and embellish land to provide DISTRICT SPORT infrastructure | P133: ='LGIP future infrastructure'!F87 -> District | T133: 0 | U133: 0 | V133: 0 | W133: 0 | AA133: 0 | AB133: 0 | AC133: 0 | AD133: 0 | AE133: 1 | AG133: 1 | AK133: ='LGIP future infrastructure'!I87 -> 12.9499 | AL133: =IF('LGIP future infrastructure'!G87="2016 - 2021",DATE(2019,6,30),DATE(2024,6,30)) -> 2024-06-30 | AM133: ='LGIP future infrastructure'!J87/1000 -> 7769.94 | AN133: n/a | AO133: 7769.94 | AP133: 0 | AR133: 7769.94 | AT133: 0 | AU133: 0 | AW133: 0 | BA133: 2024-06-30 | BB133: ='LGIP future infrastructure'!K87/1000 -> 4299.994 | BC133: =SUM('LGIP future infrastructure'!L87:N87)/1000 -> 2237.781 | BF133: 6537.775 | BH133: 0 | BI133: 0 | BJ133: 0 | BL133: 0 | BO133: 14307.715 | BS133: 0 | BW133: 2024-06-30 | CA133: =IF(BX133=1,IF(BZ133>BO133*'Input-Gen'!$M$48,"Check Value","OK"),"") -> 
G134: PAL-U3-010 | M134: ='LGIP future infrastructure'!A88 -> PAL-U3-010 | N134: ='LGIP future infrastructure'!B88 -> PCF312 | O134: ='LGIP future infrastructure'!D88 -> Upgrade existing park infrastructure to value of up to $500k (District) | P134: ='LGIP future infrastructure'!F88 -> District | T134: 0 | U134: 0 | V134: 0 | W134: 0 | AA134: 0 | AB134: 0 | AC134: 0 | AD134: 0 | AE134: 1 | AG134: 1 | AK134: ='LGIP future infrastructure'!I88 -> 5.75 | AL134: =IF('LGIP future infrastructure'!G88="2016 - 2021",DATE(2019,6,30),DATE(2024,6,30)) -> 2019-06-30 | AM134: ='LGIP future infrastructure'!J88/1000 -> 0 | AN134: n/a | AO134: 0 | AP134: 0 | AR134: 0 | AT134: 0 | AU134: 0 | AW134: 0 | BA134: 2019-06-30 | BB134: ='LGIP future infrastructure'!K88/1000 -> 500 | BC134: =SUM('LGIP future infrastructure'!L88:N88)/1000 -> 210.629 | BF134: 710.629 | BH134: 0 | BI134: 0 | BJ134: 0 | BL134: 0 | BO134: 710.629 | BS134: 0 | BW134: 2019-06-30 | CA134: =IF(BX134=1,IF(BZ134>BO134*'Input-Gen'!$M$48,"Check Value","OK"),"") -> 
G135: PAR-A5-001 | M135: ='LGIP future infrastructure'!A89 -> PAR-A5-001 | N135: ='LGIP future infrastructure'!B89 -> PCF333 | O135: ='LGIP future infrastructure'!D89 -> Acquire and embellish land to provide DISTRICT SPORT infrastructure | P135: ='LGIP future infrastructure'!F89 -> District | T135: 0 | U135: 0 | V135: 0 | W135: 0 | AA135: 0 | AB135: 0 | AC135: 0 | AD135: 0 | AE135: 1 | AG135: 1 | AK135: ='LGIP future infrastructure'!I89 -> 4 | AL135: =IF('LGIP future infrastructure'!G89="2016 - 2021",DATE(2019,6,30),DATE(2024,6,30)) -> 2019-06-30 | AM135: ='LGIP future infrastructure'!J89/1000 -> 7000 | AN135: n/a | AO135: 7000 | AP135: 0 | AR135: 7000 | AT135: 0 | AU135: 0 | AW135: 0 | BA135: 2019-06-30 | BB135: ='LGIP future infrastructure'!K89/1000 -> 1888.447 | BC135: =SUM('LGIP future infrastructure'!L89:N89)/1000 -> 795.523 | BF135: 2683.97 | BH135: 0 | BI135: 0 | BJ135: 0 | BL135: 0 | BO135: 9683.97 | BS135: 0 | BW135: 2019-06-30 | CA135: =IF(BX135=1,IF(BZ135>BO135*'Input-Gen'!$M$48,"Check Value","OK"),"") -> 
G136: RIC-A1-003 | M136: ='LGIP future infrastructure'!A90 -> RIC-A1-003 | N136: ='LGIP future infrastructure'!B90 -> PCF290 | O136: ='LGIP future infrastructure'!D90 -> Acquire and embellish land to provide LOCAL RECREATION infrastructure | P136: ='LGIP future infrastructure'!F90 -> Local | T136: 0 | U136: 0 | V136: 0 | W136: 0 | AA136: 0 | AB136: 0 | AC136: 1 | AD136: 0 | AE136: 0 | AG136: 1 | AK136: ='LGIP future infrastructure'!I90 -> 0.5 | AL136: =IF('LGIP future infrastructure'!G90="2016 - 2021",DATE(2019,6,30),DATE(2024,6,30)) -> 2019-06-30 | AM136: ='LGIP future infrastructure'!J90/1000 -> 1000 | AN136: n/a | AO136: 1000 | AP136: 0 | AR136: 1000 | AT136: 0 | AU136: 0 | AW136: 0 | BA136: 2019-06-30 | BB136: ='LGIP future infrastructure'!K90/1000 -> 180.527 | BC136: =SUM('LGIP future infrastructure'!L90:N90)/1000 -> 76.049 | BF136: 256.576 | BH136: 0 | BI136: 0 | BJ136: 0 | BL136: 0 | BO136: 1256.576 | BS136: 0 | BW136: 2019-06-30 | CA136: =IF(BX136=1,IF(BZ136>BO136*'Input-Gen'!$M$48,"Check Value","OK"),"") -> 
G137: RIC-A1-005 | M137: ='LGIP future infrastructure'!A91 -> RIC-A1-005 | N137: ='LGIP future infrastructure'!B91 -> PCF290 | O137: ='LGIP future infrastructure'!D91 -> Acquire and embellish land to provide LOCAL RECREATION infrastructure | P137: ='LGIP future infrastructure'!F91 -> Local | T137: 0 | U137: 0 | V137: 0 | W137: 0 | AA137: 0 | AB137: 0 | AC137: 1 | AD137: 0 | AE137: 0 | AG137: 1 | AK137: ='LGIP future infrastructure'!I91 -> 0.916 | AL137: =IF('LGIP future infrastructure'!G91="2016 - 2021",DATE(2019,6,30),DATE(2024,6,30)) -> 2019-06-30 | AM137: ='LGIP future infrastructure'!J91/1000 -> 1282.4 | AN137: n/a | AO137: 1282.4 | AP137: 0 | AR137: 1282.4 | AT137: 0 | AU137: 0 | AW137: 0 | BA137: 2019-06-30 | BB137: ='LGIP future infrastructure'!K91/1000 -> 307.663 | BC137: =SUM('LGIP future infrastructure'!L91:N91)/1000 -> 129.606 | BF137: 437.269 | BH137: 0 | BI137: 0 | BJ137: 0 | BL137: 0 | BO137: 1719.669 | BS137: 0 | BW137: 2019-06-30 | CA137: =IF(BX137=1,IF(BZ137>BO137*'Input-Gen'!$M$48,"Check Value","OK"),"") -> 
G138: RIC-E1-001 | M138: ='LGIP future infrastructure'!A92 -> RIC-E1-001 | N138: ='LGIP future infrastructure'!B92 -> PCF290 | O138: ='LGIP future infrastructure'!D92 -> Provide LOCAL RECREATION infrastructure | P138: ='LGIP future infrastructure'!F92 -> Local | T138: 0 | U138: 0 | V138: 0 | W138: 0 | AA138: 0 | AB138: 0 | AC138: 1 | AD138: 0 | AE138: 0 | AG138: 1 | AK138: ='LGIP future infrastructure'!I92 -> 2.33 | AL138: =IF('LGIP future infrastructure'!G92="2016 - 2021",DATE(2019,6,30),DATE(2024,6,30)) -> 2019-06-30 | AM138: ='LGIP future infrastructure'!J92/1000 -> 0 | AN138: n/a | AO138: 0 | AP138: 0 | AR138: 0 | AT138: 0 | AU138: 0 | AW138: 0 | BA138: 2019-06-30 | BB138: ='LGIP future infrastructure'!K92/1000 -> 514.515 | BC138: =SUM('LGIP future infrastructure'!L92:N92)/1000 -> 216.744 | BF138: 731.259 | BH138: 0 | BI138: 0 | BJ138: 0 | BL138: 0 | BO138: 731.259 | BS138: 0 | BW138: 2019-06-30 | CA138: =IF(BX138=1,IF(BZ138>BO138*'Input-Gen'!$M$48,"Check Value","OK"),"") -> 
G139: RIC-E5-001 | M139: ='LGIP future infrastructure'!A93 -> RIC-E5-001 | N139: ='LGIP future infrastructure'!B93 -> PCF290 | O139: ='LGIP future infrastructure'!D93 -> Provide DISTRICT SPORT infrastructure | P139: ='LGIP future infrastructure'!F93 -> District | T139: 0 | U139: 0 | V139: 0 | W139: 0 | AA139: 0 | AB139: 0 | AC139: 0 | AD139: 0 | AE139: 1 | AG139: 1 | AK139: ='LGIP future infrastructure'!I93 -> 5.42 | AL139: =IF('LGIP future infrastructure'!G93="2016 - 2021",DATE(2019,6,30),DATE(2024,6,30)) -> 2024-06-30 | AM139: ='LGIP future infrastructure'!J93/1000 -> 0 | AN139: n/a | AO139: 0 | AP139: 0 | AR139: 0 | AT139: 0 | AU139: 0 | AW139: 0 | BA139: 2024-06-30 | BB139: ='LGIP future infrastructure'!K93/1000 -> 6773.967 | BC139: =SUM('LGIP future infrastructure'!L93:N93)/1000 -> 3525.273 | BF139: 10299.24 | BH139: 0 | BI139: 0 | BJ139: 0 | BL139: 0 | BO139: 10299.24 | BS139: 0 | BW139: 2024-06-30 | CA139: =IF(BX139=1,IF(BZ139>BO139*'Input-Gen'!$M$48,"Check Value","OK"),"") -> 
G140: ROB-A1-001 | M140: ='LGIP future infrastructure'!A94 -> ROB-A1-001 | N140: ='LGIP future infrastructure'!B94 -> PCF273 | O140: ='LGIP future infrastructure'!D94 -> Acquire and embellish land to provide LOCAL RECREATION infrastructure | P140: ='LGIP future infrastructure'!F94 -> Local | T140: 0 | U140: 0 | V140: 0 | W140: 0 | AA140: 0 | AB140: 0 | AC140: 1 | AD140: 0 | AE140: 0 | AG140: 1 | AK140: ='LGIP future infrastructure'!I94 -> 0.5 | AL140: =IF('LGIP future infrastructure'!G94="2016 - 2021",DATE(2019,6,30),DATE(2024,6,30)) -> 2019-06-30 | AM140: ='LGIP future infrastructure'!J94/1000 -> 1750 | AN140: n/a | AO140: 1750 | AP140: 0 | AR140: 1750 | AT140: 0 | AU140: 0 | AW140: 0 | BA140: 2019-06-30 | BB140: ='LGIP future infrastructure'!K94/1000 -> 180.527 | BC140: =SUM('LGIP future infrastructure'!L94:N94)/1000 -> 76.049 | BF140: 256.576 | BH140: 0 | BI140: 0 | BJ140: 0 | BL140: 0 | BO140: 2006.576 | BS140: 0 | BW140: 2019-06-30 | CA140: =IF(BX140=1,IF(BZ140>BO140*'Input-Gen'!$M$48,"Check Value","OK"),"") -> 
G141: ROC-A1-002 | M141: ='LGIP future infrastructure'!A95 -> ROC-A1-002 | N141: ='LGIP future infrastructure'!B95 -> PCF295 | O141: ='LGIP future infrastructure'!D95 -> Acquire and embellish land to provide LOCAL RECREATION infrastructure | P141: ='LGIP future infrastructure'!F95 -> Local | T141: 0 | U141: 0 | V141: 0 | W141: 0 | AA141: 1 | AB141: 0 | AC141: 0 | AD141: 0 | AE141: 0 | AG141: 1 | AK141: ='LGIP future infrastructure'!I95 -> 0.6 | AL141: =IF('LGIP future infrastructure'!G95="2016 - 2021",DATE(2019,6,30),DATE(2024,6,30)) -> 2024-06-30 | AM141: ='LGIP future infrastructure'!J95/1000 -> 1000.5 | AN141: n/a | AO141: 1000.5 | AP141: 0 | AR141: 1000.5 | AT141: 0 | AU141: 0 | AW141: 0 | BA141: 2024-06-30 | BB141: ='LGIP future infrastructure'!K95/1000 -> 211.089 | BC141: =SUM('LGIP future infrastructure'!L95:N95)/1000 -> 109.854 | BF141: 320.943 | BH141: 0 | BI141: 0 | BJ141: 0 | BL141: 0 | BO141: 1321.443 | BS141: 0 | BW141: 2024-06-30 | CA141: =IF(BX141=1,IF(BZ141>BO141*'Input-Gen'!$M$48,"Check Value","OK"),"") -> 
G142: ROC-A1-003 | M142: ='LGIP future infrastructure'!A96 -> ROC-A1-003 | N142: ='LGIP future infrastructure'!B96 -> PCF295 | O142: ='LGIP future infrastructure'!D96 -> Acquire and embellish land to provide LOCAL RECREATION infrastructure | P142: ='LGIP future infrastructure'!F96 -> Local | T142: 0 | U142: 0 | V142: 0 | W142: 0 | AA142: 1 | AB142: 0 | AC142: 0 | AD142: 0 | AE142: 0 | AG142: 1 | AK142: ='LGIP future infrastructure'!I96 -> 0.5 | AL142: =IF('LGIP future infrastructure'!G96="2016 - 2021",DATE(2019,6,30),DATE(2024,6,30)) -> 2019-06-30 | AM142: ='LGIP future infrastructure'!J96/1000 -> 725 | AN142: n/a | AO142: 725 | AP142: 0 | AR142: 725 | AT142: 0 | AU142: 0 | AW142: 0 | BA142: 2019-06-30 | BB142: ='LGIP future infrastructure'!K96/1000 -> 180.527 | BC142: =SUM('LGIP future infrastructure'!L96:N96)/1000 -> 76.049 | BF142: 256.576 | BH142: 0 | BI142: 0 | BJ142: 0 | BL142: 0 | BO142: 981.576 | BS142: 0 | BW142: 2019-06-30 | CA142: =IF(BX142=1,IF(BZ142>BO142*'Input-Gen'!$M$48,"Check Value","OK"),"") -> 
G143: ROC-A1-007 | M143: ='LGIP future infrastructure'!A97 -> ROC-A1-007 | N143: ='LGIP future infrastructure'!B97 -> PCF275 | O143: ='LGIP future infrastructure'!D97 -> Acquire and embellish land to provide LOCAL RECREATION infrastructure | P143: ='LGIP future infrastructure'!F97 -> Local | T143: 0 | U143: 0 | V143: 0 | W143: 0 | AA143: 1 | AB143: 0 | AC143: 0 | AD143: 0 | AE143: 0 | AG143: 1 | AK143: ='LGIP future infrastructure'!I97 -> 0.7 | AL143: =IF('LGIP future infrastructure'!G97="2016 - 2021",DATE(2019,6,30),DATE(2024,6,30)) -> 2019-06-30 | AM143: ='LGIP future infrastructure'!J97/1000 -> 763 | AN143: n/a | AO143: 763 | AP143: 0 | AR143: 763 | AT143: 0 | AU143: 0 | AW143: 0 | BA143: 2019-06-30 | BB143: ='LGIP future infrastructure'!K97/1000 -> 241.65 | BC143: =SUM('LGIP future infrastructure'!L97:N97)/1000 -> 101.797 | BF143: 343.447 | BH143: 0 | BI143: 0 | BJ143: 0 | BL143: 0 | BO143: 1106.447 | BS143: 0 | BW143: 2019-06-30 | CA143: =IF(BX143=1,IF(BZ143>BO143*'Input-Gen'!$M$48,"Check Value","OK"),"") -> 
G144: ROC-A1-010 | M144: ='LGIP future infrastructure'!A98 -> ROC-A1-010 | N144: ='LGIP future infrastructure'!B98 -> PCF276 | O144: ='LGIP future infrastructure'!D98 -> Acquire and embellish land to provide LOCAL RECREATION infrastructure | P144: ='LGIP future infrastructure'!F98 -> Local | T144: 0 | U144: 0 | V144: 0 | W144: 0 | AA144: 1 | AB144: 0 | AC144: 0 | AD144: 0 | AE144: 0 | AG144: 1 | AK144: ='LGIP future infrastructure'!I98 -> 1 | AL144: =IF('LGIP future infrastructure'!G98="2016 - 2021",DATE(2019,6,30),DATE(2024,6,30)) -> 2024-06-30 | AM144: ='LGIP future infrastructure'!J98/1000 -> 1450 | AN144: n/a | AO144: 1450 | AP144: 0 | AR144: 1450 | AT144: =AO144*V144 -> 0 | AU144: 0 | AW144: 0 | BA144: 2024-06-30 | BB144: ='LGIP future infrastructure'!K98/1000 -> 333.335 | BC144: =SUM('LGIP future infrastructure'!L98:N98)/1000 -> 173.472 | BF144: 506.807 | BH144: 0 | BI144: 0 | BJ144: 0 | BL144: =BF144*V144 -> 0 | BO144: 1956.807 | BS144: 0 | BW144: 2024-06-30 | CA144: =IF(BX144=1,IF(BZ144>BO144*'Input-Gen'!$M$48,"Check Value","OK"),"") -> 
G145: ROC-A1-011 | M145: ='LGIP future infrastructure'!A99 -> ROC-A1-011 | N145: ='LGIP future infrastructure'!B99 -> PCF276 | O145: ='LGIP future infrastructure'!D99 -> Acquire and embellish land to provide LOCAL RECREATION infrastructure | P145: ='LGIP future infrastructure'!F99 -> Local | T145: 0 | U145: 0 | V145: 0 | W145: 0 | AA145: 1 | AB145: 0 | AC145: 0 | AD145: 0 | AE145: 0 | AG145: 1 | AK145: ='LGIP future infrastructure'!I99 -> 0.5 | AL145: =IF('LGIP future infrastructure'!G99="2016 - 2021",DATE(2019,6,30),DATE(2024,6,30)) -> 2019-06-30 | AM145: ='LGIP future infrastructure'!J99/1000 -> 725 | AN145: n/a | AO145: 725 | AP145: 0 | AR145: 725 | AT145: 0 | AU145: 0 | AW145: 0 | BA145: 2019-06-30 | BB145: ='LGIP future infrastructure'!K99/1000 -> 180.527 | BC145: =SUM('LGIP future infrastructure'!L99:N99)/1000 -> 76.049 | BF145: 256.576 | BH145: 0 | BI145: 0 | BJ145: 0 | BL145: 0 | BO145: 981.576 | BS145: 0 | BW145: 2019-06-30 | CA145: =IF(BX145=1,IF(BZ145>BO145*'Input-Gen'!$M$48,"Check Value","OK"),"") -> 
G146: ROC-A1-012 | M146: ='LGIP future infrastructure'!A100 -> ROC-A1-012 | N146: ='LGIP future infrastructure'!B100 -> PCF276 | O146: ='LGIP future infrastructure'!D100 -> Acquire and embellish land to provide LOCAL RECREATION infrastructure | P146: ='LGIP future infrastructure'!F100 -> Local | T146: 0 | U146: 0 | V146: 0 | W146: 0 | AA146: 1 | AB146: 0 | AC146: 0 | AD146: 0 | AE146: 0 | AG146: 1 | AK146: ='LGIP future infrastructure'!I100 -> 1 | AL146: =IF('LGIP future infrastructure'!G100="2016 - 2021",DATE(2019,6,30),DATE(2024,6,30)) -> 2019-06-30 | AM146: ='LGIP future infrastructure'!J100/1000 -> 1750 | AN146: n/a | AO146: 1750 | AP146: 0 | AR146: 1750 | AT146: 0 | AU146: 0 | AW146: 0 | BA146: 2019-06-30 | BB146: ='LGIP future infrastructure'!K100/1000 -> 333.335 | BC146: =SUM('LGIP future infrastructure'!L100:N100)/1000 -> 140.42 | BF146: 473.755 | BH146: 0 | BI146: 0 | BJ146: 0 | BL146: 0 | BO146: 2223.755 | BS146: 0 | BW146: 2019-06-30 | CA146: =IF(BX146=1,IF(BZ146>BO146*'Input-Gen'!$M$48,"Check Value","OK"),"") -> 
G147: ROC-A1-013 | M147: ='LGIP future infrastructure'!A101 -> ROC-A1-013 | N147: ='LGIP future infrastructure'!B101 -> PCF276 | O147: ='LGIP future infrastructure'!D101 -> Acquire and embellish land to provide LOCAL RECREATION infrastructure | P147: ='LGIP future infrastructure'!F101 -> Local | T147: 0 | U147: 0 | V147: 0 | W147: 0 | AA147: 1 | AB147: 0 | AC147: 0 | AD147: 0 | AE147: 0 | AG147: 1 | AK147: ='LGIP future infrastructure'!I101 -> 1 | AL147: =IF('LGIP future infrastructure'!G101="2016 - 2021",DATE(2019,6,30),DATE(2024,6,30)) -> 2024-06-30 | AM147: ='LGIP future infrastructure'!J101/1000 -> 1750 | AN147: n/a | AO147: 1750 | AP147: 0 | AR147: 1750 | AT147: 0 | AU147: 0 | AW147: 0 | BA147: 2024-06-30 | BB147: ='LGIP future infrastructure'!K101/1000 -> 333.335 | BC147: =SUM('LGIP future infrastructure'!L101:N101)/1000 -> 173.472 | BF147: 506.807 | BH147: 0 | BI147: 0 | BJ147: 0 | BL147: 0 | BO147: 2256.807 | BS147: 0 | BW147: 2024-06-30 | CA147: =IF(BX147=1,IF(BZ147>BO147*'Input-Gen'!$M$48,"Check Value","OK"),"") -> 
G148: ROC-A1-014 | M148: ='LGIP future infrastructure'!A102 -> ROC-A1-014 | N148: ='LGIP future infrastructure'!B102 -> PCF276 | O148: ='LGIP future infrastructure'!D102 -> Acquire and embellish land to provide LOCAL RECREATION infrastructure | P148: ='LGIP future infrastructure'!F102 -> Local | T148: 0 | U148: 0 | V148: 0 | W148: 0 | AA148: 1 | AB148: 0 | AC148: 0 | AD148: 0 | AE148: 0 | AG148: 1 | AK148: ='LGIP future infrastructure'!I102 -> 1 | AL148: =IF('LGIP future infrastructure'!G102="2016 - 2021",DATE(2019,6,30),DATE(2024,6,30)) -> 2024-06-30 | AM148: ='LGIP future infrastructure'!J102/1000 -> 1450 | AN148: n/a | AO148: 1450 | AP148: 0 | AR148: 1450 | AT148: 0 | AU148: 0 | AW148: 0 | BA148: 2024-06-30 | BB148: ='LGIP future infrastructure'!K102/1000 -> 333.335 | BC148: =SUM('LGIP future infrastructure'!L102:N102)/1000 -> 173.472 | BF148: 506.807 | BH148: 0 | BI148: 0 | BJ148: 0 | BL148: 0 | BO148: 1956.807 | BS148: 0 | BW148: 2024-06-30 | CA148: =IF(BX148=1,IF(BZ148>BO148*'Input-Gen'!$M$48,"Check Value","OK"),"") -> 
G149: ROC-A1-015 | M149: ='LGIP future infrastructure'!A103 -> ROC-A1-015 | N149: ='LGIP future infrastructure'!B103 -> PCF276 | O149: ='LGIP future infrastructure'!D103 -> Acquire and embellish land to provide LOCAL RECREATION infrastructure | P149: ='LGIP future infrastructure'!F103 -> Local | T149: 0 | U149: 0 | V149: 0 | W149: 0 | AA149: 1 | AB149: 0 | AC149: 0 | AD149: 0 | AE149: 0 | AG149: 1 | AK149: ='LGIP future infrastructure'!I103 -> 0.5 | AL149: =IF('LGIP future infrastructure'!G103="2016 - 2021",DATE(2019,6,30),DATE(2024,6,30)) -> 2019-06-30 | AM149: ='LGIP future infrastructure'!J103/1000 -> 875 | AN149: n/a | AO149: 875 | AP149: 0 | AR149: 875 | AT149: 0 | AU149: 0 | AW149: 0 | BA149: 2019-06-30 | BB149: ='LGIP future infrastructure'!K103/1000 -> 180.527 | BC149: =SUM('LGIP future infrastructure'!L103:N103)/1000 -> 76.049 | BF149: 256.576 | BH149: 0 | BI149: 0 | BJ149: 0 | BL149: 0 | BO149: 1131.576 | BS149: 0 | BW149: 2019-06-30 | CA149: =IF(BX149=1,IF(BZ149>BO149*'Input-Gen'!$M$48,"Check Value","OK"),"") -> 
G150: ROC-A1-018 | M150: ='LGIP future infrastructure'!A104 -> ROC-A1-018 | N150: ='LGIP future infrastructure'!B104 -> PCF296 | O150: ='LGIP future infrastructure'!D104 -> Acquire and embellish land to provide LOCAL RECREATION infrastructure | P150: ='LGIP future infrastructure'!F104 -> Local | T150: 0 | U150: 0 | V150: 0 | W150: 0 | AA150: 1 | AB150: 0 | AC150: 0 | AD150: 0 | AE150: 0 | AG150: 1 | AK150: ='LGIP future infrastructure'!I104 -> 1 | AL150: =IF('LGIP future infrastructure'!G104="2016 - 2021",DATE(2019,6,30),DATE(2024,6,30)) -> 2024-06-30 | AM150: ='LGIP future infrastructure'!J104/1000 -> 1450 | AN150: n/a | AO150: 1450 | AP150: 0 | AR150: 1450 | AT150: 0 | AU150: 0 | AW150: 0 | BA150: 2024-06-30 | BB150: ='LGIP future infrastructure'!K104/1000 -> 333.335 | BC150: =SUM('LGIP future infrastructure'!L104:N104)/1000 -> 173.472 | BF150: 506.807 | BH150: 0 | BI150: 0 | BJ150: 0 | BL150: 0 | BO150: 1956.807 | BS150: 0 | BW150: 2024-06-30 | CA150: =IF(BX150=1,IF(BZ150>BO150*'Input-Gen'!$M$48,"Check Value","OK"),"") -> 
G151: ROC-A1-020 | M151: ='LGIP future infrastructure'!A105 -> ROC-A1-020 | N151: ='LGIP future infrastructure'!B105 -> PCF295 | O151: ='LGIP future infrastructure'!D105 -> Acquire and embellish land to provide LOCAL RECREATION infrastructure | P151: ='LGIP future infrastructure'!F105 -> Local | T151: 0 | U151: 0 | V151: 0 | W151: 0 | AA151: 1 | AB151: 0 | AC151: 0 | AD151: 0 | AE151: 0 | AG151: 1 | AK151: ='LGIP future infrastructure'!I105 -> 0.5 | AL151: =IF('LGIP future infrastructure'!G105="2016 - 2021",DATE(2019,6,30),DATE(2024,6,30)) -> 2019-06-30 | AM151: ='LGIP future infrastructure'!J105/1000 -> 725 | AN151: n/a | AO151: 725 | AP151: 0 | AR151: 725 | AT151: 0 | AU151: 0 | AW151: 0 | BA151: 2019-06-30 | BB151: ='LGIP future infrastructure'!K105/1000 -> 180.527 | BC151: =SUM('LGIP future infrastructure'!L105:N105)/1000 -> 76.049 | BF151: 256.576 | BH151: 0 | BI151: 0 | BJ151: 0 | BL151: 0 | BO151: 981.576 | BS151: 0 | BW151: 2019-06-30 | CA151: =IF(BX151=1,IF(BZ151>BO151*'Input-Gen'!$M$48,"Check Value","OK"),"") -> 
G152: ROC-A1-023 | M152: ='LGIP future infrastructure'!A106 -> ROC-A1-023 | N152: ='LGIP future infrastructure'!B106 -> PCF295 | O152: ='LGIP future infrastructure'!D106 -> Acquire and embellish land to provide LOCAL RECREATION infrastructure | P152: ='LGIP future infrastructure'!F106 -> Local | T152: 0 | U152: 0 | V152: 0 | W152: 0 | AA152: 1 | AB152: 0 | AC152: 0 | AD152: 0 | AE152: 0 | AG152: 1 | AK152: ='LGIP future infrastructure'!I106 -> 0.55 | AL152: =IF('LGIP future infrastructure'!G106="2016 - 2021",DATE(2019,6,30),DATE(2024,6,30)) -> 2024-06-30 | AM152: ='LGIP future infrastructure'!J106/1000 -> 962.5 | AN152: n/a | AO152: 962.5 | AP152: 0 | AR152: 962.5 | AT152: 0 | AU152: 0 | AW152: 0 | BA152: 2024-06-30 | BB152: ='LGIP future infrastructure'!K106/1000 -> 195.808 | BC152: =SUM('LGIP future infrastructure'!L106:N106)/1000 -> 101.901 | BF152: 297.709 | BH152: 0 | BI152: 0 | BJ152: 0 | BL152: 0 | BO152: 1260.209 | BS152: 0 | BW152: 2024-06-30 | CA152: =IF(BX152=1,IF(BZ152>BO152*'Input-Gen'!$M$48,"Check Value","OK"),"") -> 
G153: ROC-A1-030 | M153: ='LGIP future infrastructure'!A107 -> ROC-A1-030 | N153: ='LGIP future infrastructure'!B107 -> PCF275 | O153: ='LGIP future infrastructure'!D107 -> Acquire and embellish land to provide LOCAL RECREATION infrastructure | P153: ='LGIP future infrastructure'!F107 -> Local | T153: 0 | U153: 0 | V153: 0 | W153: 0 | AA153: 1 | AB153: 0 | AC153: 0 | AD153: 0 | AE153: 0 | AG153: 1 | AK153: ='LGIP future infrastructure'!I107 -> 0.8 | AL153: =IF('LGIP future infrastructure'!G107="2016 - 2021",DATE(2019,6,30),DATE(2024,6,30)) -> 2024-06-30 | AM153: ='LGIP future infrastructure'!J107/1000 -> 1400 | AN153: n/a | AO153: 1400 | AP153: 0 | AR153: 1400 | AT153: 0 | AU153: 0 | AW153: 0 | BA153: 2024-06-30 | BB153: ='LGIP future infrastructure'!K107/1000 -> 272.212 | BC153: =SUM('LGIP future infrastructure'!L107:N107)/1000 -> 141.663 | BF153: 413.875 | BH153: 0 | BI153: 0 | BJ153: 0 | BL153: 0 | BO153: 1813.875 | BS153: 0 | BW153: 2024-06-30 | CA153: =IF(BX153=1,IF(BZ153>BO153*'Input-Gen'!$M$48,"Check Value","OK"),"") -> 
G154: ROC-A1-031 | M154: ='LGIP future infrastructure'!A108 -> ROC-A1-031 | N154: ='LGIP future infrastructure'!B108 -> PCF275 | O154: ='LGIP future infrastructure'!D108 -> Acquire and embellish land to provide LOCAL RECREATION infrastructure | P154: ='LGIP future infrastructure'!F108 -> Local | T154: 0 | U154: 0 | V154: 0 | W154: 0 | AA154: 1 | AB154: 0 | AC154: 0 | AD154: 0 | AE154: 0 | AG154: 1 | AK154: ='LGIP future infrastructure'!I108 -> 0.8 | AL154: =IF('LGIP future infrastructure'!G108="2016 - 2021",DATE(2019,6,30),DATE(2024,6,30)) -> 2024-06-30 | AM154: ='LGIP future infrastructure'!J108/1000 -> 1160 | AN154: n/a | AO154: 1160 | AP154: 0 | AR154: 1160 | AT154: 0 | AU154: 0 | AW154: 0 | BA154: 2024-06-30 | BB154: ='LGIP future infrastructure'!K108/1000 -> 272.212 | BC154: =SUM('LGIP future infrastructure'!L108:N108)/1000 -> 141.663 | BF154: 413.875 | BH154: 0 | BI154: 0 | BJ154: 0 | BL154: 0 | BO154: 1573.875 | BS154: 0 | BW154: 2024-06-30 | CA154: =IF(BX154=1,IF(BZ154>BO154*'Input-Gen'!$M$48,"Check Value","OK"),"") -> 
G155: ROC-A1-032 | M155: ='LGIP future infrastructure'!A109 -> ROC-A1-032 | N155: ='LGIP future infrastructure'!B109 -> PCF295 | O155: ='LGIP future infrastructure'!D109 -> Acquire and embellish land to provide LOCAL RECREATION infrastructure | P155: ='LGIP future infrastructure'!F109 -> Local | T155: 0 | U155: 0 | V155: 0 | W155: 0 | AA155: 1 | AB155: 0 | AC155: 0 | AD155: 0 | AE155: 0 | AG155: 1 | AK155: ='LGIP future infrastructure'!I109 -> 0.59493 | AL155: =IF('LGIP future infrastructure'!G109="2016 - 2021",DATE(2019,6,30),DATE(2024,6,30)) -> 2024-06-30 | AM155: ='LGIP future infrastructure'!J109/1000 -> 1041.128 | AN155: n/a | AO155: 1041.128 | AP155: 0 | AR155: 1041.128 | AT155: 0 | AU155: 0 | AW155: 0 | BA155: 2024-06-30 | BB155: ='LGIP future infrastructure'!K109/1000 -> 209.539 | BC155: =SUM('LGIP future infrastructure'!L109:N109)/1000 -> 109.048 | BF155: 318.587 | BH155: 0 | BI155: 0 | BJ155: 0 | BL155: 0 | BO155: 1359.715 | BS155: 0 | BW155: 2024-06-30 | CA155: =IF(BX155=1,IF(BZ155>BO155*'Input-Gen'!$M$48,"Check Value","OK"),"") -> 
G156: ROC-A2-010 | M156: ='LGIP future infrastructure'!A110 -> ROC-A2-010 | N156: ='LGIP future infrastructure'!B110 -> PCF295 | O156: ='LGIP future infrastructure'!D110 -> Acquire and embellish land to provide DISTRICT RECREATION infrastructure | P156: ='LGIP future infrastructure'!F110 -> District | T156: 0 | U156: 0 | V156: 0 | W156: 0 | AA156: 0 | AB156: 0 | AC156: 0 | AD156: 0 | AE156: 1 | AG156: 1 | AK156: ='LGIP future infrastructure'!I110 -> 1.7 | AL156: =IF('LGIP future infrastructure'!G110="2016 - 2021",DATE(2019,6,30),DATE(2024,6,30)) -> 2024-06-30 | AM156: ='LGIP future infrastructure'!J110/1000 -> 2465 | AN156: n/a | AO156: 2465 | AP156: 0 | AR156: 2465 | AT156: 0 | AU156: 0 | AW156: 0 | BA156: 2024-06-30 | BB156: ='LGIP future infrastructure'!K110/1000 -> 822.36 | BC156: =SUM('LGIP future infrastructure'!L110:N110)/1000 -> 427.968 | BF156: 1250.328 | BH156: 0 | BI156: 0 | BJ156: 0 | BL156: 0 | BO156: 3715.328 | BS156: 0 | BW156: 2024-06-30 | CA156: =IF(BX156=1,IF(BZ156>BO156*'Input-Gen'!$M$48,"Check Value","OK"),"") -> 
G157: ROC-A2-011 | M157: ='LGIP future infrastructure'!A111 -> ROC-A2-011 | N157: ='LGIP future infrastructure'!B111 -> PCF276 | O157: ='LGIP future infrastructure'!D111 -> Acquire and embellish land to provide DISTRICT RECREATION infrastructure | P157: ='LGIP future infrastructure'!F111 -> District | T157: 0 | U157: 0 | V157: 0 | W157: 0 | AA157: 0 | AB157: 0 | AC157: 0 | AD157: 0 | AE157: 1 | AG157: 1 | AK157: ='LGIP future infrastructure'!I111 -> 3 | AL157: =IF('LGIP future infrastructure'!G111="2016 - 2021",DATE(2019,6,30),DATE(2024,6,30)) -> 2024-06-30 | AM157: ='LGIP future infrastructure'!J111/1000 -> 4350 | AN157: n/a | AO157: 4350 | AP157: 0 | AR157: 4350 | AT157: 0 | AU157: 0 | AW157: 0 | BA157: 2024-06-30 | BB157: ='LGIP future infrastructure'!K111/1000 -> 1181.979 | BC157: =SUM('LGIP future infrastructure'!L111:N111)/1000 -> 615.119 | BF157: 1797.098 | BH157: 0 | BI157: 0 | BJ157: 0 | BL157: 0 | BO157: 6147.098 | BS157: 0 | BW157: 2024-06-30 | CA157: =IF(BX157=1,IF(BZ157>BO157*'Input-Gen'!$M$48,"Check Value","OK"),"") -> 
G158: ROC-A5-001 | M158: ='LGIP future infrastructure'!A112 -> ROC-A5-001 | N158: ='LGIP future infrastructure'!B112 -> PCF276 | O158: ='LGIP future infrastructure'!D112 -> Acquire and embellish land to provide DISTRICT SPORT infrastructure | P158: ='LGIP future infrastructure'!F112 -> District | T158: 0 | U158: 0 | V158: 0 | W158: 0 | AA158: 0 | AB158: 0 | AC158: 0 | AD158: 0 | AE158: 1 | AG158: 1 | AK158: ='LGIP future infrastructure'!I112 -> 6.8 | AL158: =IF('LGIP future infrastructure'!G112="2016 - 2021",DATE(2019,6,30),DATE(2024,6,30)) -> 2024-06-30 | AM158: ='LGIP future infrastructure'!J112/1000 -> 11900 | AN158: n/a | AO158: 11900 | AP158: 0 | AR158: 11900 | AT158: 0 | AU158: 0 | AW158: 0 | BA158: 2024-06-30 | BB158: ='LGIP future infrastructure'!K112/1000 -> 2642.905 | BC158: =SUM('LGIP future infrastructure'!L112:N112)/1000 -> 1375.408 | BF158: 4018.313 | BH158: 0 | BI158: 0 | BJ158: 0 | BL158: 0 | BO158: 15918.313 | BS158: 0 | BW158: 2024-06-30 | CA158: =IF(BX158=1,IF(BZ158>BO158*'Input-Gen'!$M$48,"Check Value","OK"),"") -> 
G159: ROK-E3-001 | M159: ='LGIP future infrastructure'!A113 -> ROK-E3-001 | N159: ='LGIP future infrastructure'!B113 -> PCF251 | O159: ='LGIP future infrastructure'!D113 -> Provide METROPOLITAN RECREATION infrastructure | P159: ='LGIP future infrastructure'!F113 -> Metropolitan | T159: 0 | U159: 0 | V159: 0 | W159: 0 | AA159: 0 | AB159: 0 | AC159: 0 | AD159: 0 | AE159: 1 | AG159: 1 | AK159: ='LGIP future infrastructure'!I113 -> 120.4 | AL159: =IF('LGIP future infrastructure'!G113="2016 - 2021",DATE(2019,6,30),DATE(2024,6,30)) -> 2024-06-30 | AM159: ='LGIP future infrastructure'!J113/1000 -> 0 | AN159: n/a | AO159: 0 | AP159: 0 | AR159: 0 | AT159: 0 | AU159: 0 | AW159: 0 | BA159: 2024-06-30 | BB159: ='LGIP future infrastructure'!K113/1000 -> 11040.105 | BC159: =SUM('LGIP future infrastructure'!L113:N113)/1000 -> 5745.436 | BF159: 16785.541 | BH159: 0 | BI159: 0 | BJ159: 0 | BL159: 0 | BO159: 16785.541 | BS159: 0 | BW159: 2024-06-30 | CA159: =IF(BX159=1,IF(BZ159>BO159*'Input-Gen'!$M$48,"Check Value","OK"),"") -> 
G160: RUN-A1-001 | M160: ='LGIP future infrastructure'!A114 -> RUN-A1-001 | N160: ='LGIP future infrastructure'!B114 -> PCF314 | O160: ='LGIP future infrastructure'!D114 -> Acquire and embellish land to provide LOCAL RECREATION infrastructure | P160: ='LGIP future infrastructure'!F114 -> Local | T160: 0 | U160: 0 | V160: 0 | W160: 0 | AA160: 0 | AB160: 0 | AC160: 1 | AD160: 0 | AE160: 0 | AG160: 1 | AK160: ='LGIP future infrastructure'!I114 -> 0.64037 | AL160: =IF('LGIP future infrastructure'!G114="2016 - 2021",DATE(2019,6,30),DATE(2024,6,30)) -> 2019-06-30 | AM160: ='LGIP future infrastructure'!J114/1000 -> 409.837 | AN160: n/a | AO160: 409.837 | AP160: 0 | AR160: 409.837 | AT160: 0 | AU160: 0 | AW160: 0 | BA160: 2019-06-30 | BB160: ='LGIP future infrastructure'!K114/1000 -> 223.426 | BC160: =SUM('LGIP future infrastructure'!L114:N114)/1000 -> 94.119 | BF160: 317.545 | BH160: 0 | BI160: 0 | BJ160: 0 | BL160: 0 | BO160: 727.382 | BS160: 0 | BW160: 2019-06-30 | CA160: =IF(BX160=1,IF(BZ160>BO160*'Input-Gen'!$M$48,"Check Value","OK"),"") -> 
G161: RUN-A1-003 | M161: ='LGIP future infrastructure'!A115 -> RUN-A1-003 | N161: ='LGIP future infrastructure'!B115 -> PCF294 | O161: ='LGIP future infrastructure'!D115 -> Acquire and embellish land to provide LOCAL RECREATION infrastructure | P161: ='LGIP future infrastructure'!F115 -> Local | T161: 0 | U161: 0 | V161: 0 | W161: 0 | AA161: 0 | AB161: 0 | AC161: 1 | AD161: 0 | AE161: 0 | AG161: 1 | AK161: ='LGIP future infrastructure'!I115 -> 3 | AL161: =IF('LGIP future infrastructure'!G115="2016 - 2021",DATE(2019,6,30),DATE(2024,6,30)) -> 2024-06-30 | AM161: ='LGIP future infrastructure'!J115/1000 -> 4500 | AN161: n/a | AO161: 4500 | AP161: 0 | AR161: 4500 | AT161: 0 | AU161: 0 | AW161: 0 | BA161: 2024-06-30 | BB161: ='LGIP future infrastructure'!K115/1000 -> 944.565 | BC161: =SUM('LGIP future infrastructure'!L115:N115)/1000 -> 491.565 | BF161: 1436.13 | BH161: 0 | BI161: 0 | BJ161: 0 | BL161: 0 | BO161: 5936.13 | BS161: 0 | BW161: 2024-06-30 | CA161: =IF(BX161=1,IF(BZ161>BO161*'Input-Gen'!$M$48,"Check Value","OK"),"") -> 
G162: RUN-E5-001 | M162: ='LGIP future infrastructure'!A116 -> RUN-E5-001 | N162: ='LGIP future infrastructure'!B116 -> PCF295 | O162: ='LGIP future infrastructure'!D116 -> Provide DISTRICT SPORT infrastructure | P162: ='LGIP future infrastructure'!F116 -> District | T162: 0 | U162: 0 | V162: 0 | W162: 0 | AA162: 0 | AB162: 0 | AC162: 0 | AD162: 0 | AE162: 1 | AG162: 1 | AK162: ='LGIP future infrastructure'!I116 -> 4 | AL162: =IF('LGIP future infrastructure'!G116="2016 - 2021",DATE(2019,6,30),DATE(2024,6,30)) -> 2019-06-30 | AM162: ='LGIP future infrastructure'!J116/1000 -> 0 | AN162: n/a | AO162: 0 | AP162: 0 | AR162: 0 | AT162: 0 | AU162: 0 | AW162: 0 | BA162: 2019-06-30 | BB162: ='LGIP future infrastructure'!K116/1000 -> 6511.801 | BC162: =SUM('LGIP future infrastructure'!L116:N116)/1000 -> 2743.145 | BF162: 9254.946 | BH162: 0 | BI162: 0 | BJ162: 0 | BL162: 0 | BO162: 9254.946 | BS162: 0 | BW162: 2019-06-30 | CA162: =IF(BX162=1,IF(BZ162>BO162*'Input-Gen'!$M$48,"Check Value","OK"),"") -> 
G163: SBR-A1-001 | M163: ='LGIP future infrastructure'!A117 -> SBR-A1-001 | N163: ='LGIP future infrastructure'!B117 -> PCF192 | O163: ='LGIP future infrastructure'!D117 -> Acquire and embellish land to provide LOCAL RECREATION infrastructure | P163: ='LGIP future infrastructure'!F117 -> Local | T163: 0 | U163: 0 | V163: 0 | W163: 0 | AA163: 0 | AB163: 0 | AC163: 1 | AD163: 0 | AE163: 0 | AG163: 1 | AK163: ='LGIP future infrastructure'!I117 -> 0.3 | AL163: =IF('LGIP future infrastructure'!G117="2016 - 2021",DATE(2019,6,30),DATE(2024,6,30)) -> 2019-06-30 | AM163: ='LGIP future infrastructure'!J117/1000 -> 10500 | AN163: n/a | AO163: 10500 | AP163: 0 | AR163: 10500 | AT163: 0 | AU163: 0 | AW163: 0 | BA163: 2019-06-30 | BB163: ='LGIP future infrastructure'!K117/1000 -> 119.404 | BC163: =SUM('LGIP future infrastructure'!L117:N117)/1000 -> 50.3 | BF163: 169.704 | BH163: 0 | BI163: 0 | BJ163: 0 | BL163: 0 | BO163: 10669.704 | BS163: 0 | BW163: 2019-06-30 | CA163: =IF(BX163=1,IF(BZ163>BO163*'Input-Gen'!$M$48,"Check Value","OK"),"") -> 
G164: SBR-A2-001 | M164: ='LGIP future infrastructure'!A118 -> SBR-A2-001 | N164: ='LGIP future infrastructure'!B118 -> PCF192 | O164: ='LGIP future infrastructure'!D118 -> Acquire and embellish land to provide DISTRICT RECREATION infrastructure | P164: ='LGIP future infrastructure'!F118 -> District | T164: 0 | U164: 0 | V164: 0 | W164: 0 | AA164: 0 | AB164: 0 | AC164: 0 | AD164: 0 | AE164: 1 | AG164: 1 | AK164: ='LGIP future infrastructure'!I118 -> 1 | AL164: =IF('LGIP future infrastructure'!G118="2016 - 2021",DATE(2019,6,30),DATE(2024,6,30)) -> 2024-06-30 | AM164: ='LGIP future infrastructure'!J118/1000 -> 30000 | AN164: n/a | AO164: 30000 | AP164: 0 | AR164: 30000 | AT164: 0 | AU164: 0 | AW164: 0 | BA164: 2024-06-30 | BB164: ='LGIP future infrastructure'!K118/1000 -> 628.72 | BC164: =SUM('LGIP future infrastructure'!L118:N118)/1000 -> 327.195 | BF164: 955.915 | BH164: 0 | BI164: 0 | BJ164: 0 | BL164: 0 | BO164: 30955.915 | BS164: 0 | BW164: 2024-06-30 | CA164: =IF(BX164=1,IF(BZ164>BO164*'Input-Gen'!$M$48,"Check Value","OK"),"") -> 
G165: SBR-U1-010 | M165: ='LGIP future infrastructure'!A119 -> SBR-U1-010 | N165: ='LGIP future infrastructure'!B119 -> PCF192 | O165: ='LGIP future infrastructure'!D119 -> Upgrade existing park infrastructure to the value of $1m+ (Metropolitan) | P165: ='LGIP future infrastructure'!F119 -> Metropolitan | T165: 0 | U165: 0 | V165: 0 | W165: 0 | AA165: 0 | AB165: 0 | AC165: 0 | AD165: 0 | AE165: 1 | AG165: 1 | AK165: ='LGIP future infrastructure'!I119 -> 2.32 | AL165: =IF('LGIP future infrastructure'!G119="2016 - 2021",DATE(2019,6,30),DATE(2024,6,30)) -> 2024-06-30 | AM165: ='LGIP future infrastructure'!J119/1000 -> 0 | AN165: n/a | AO165: 0 | AP165: 0 | AR165: 0 | AT165: 0 | AU165: 0 | AW165: 0 | BA165: 2024-06-30 | BB165: ='LGIP future infrastructure'!K119/1000 -> 1000 | BC165: =SUM('LGIP future infrastructure'!L119:N119)/1000 -> 520.415 | BF165: 1520.415 | BH165: 0 | BI165: 0 | BJ165: 0 | BL165: 0 | BO165: 1520.415 | BS165: 0 | BW165: 2024-06-30 | CA165: =IF(BX165=1,IF(BZ165>BO165*'Input-Gen'!$M$48,"Check Value","OK"),"") -> 
G166: SGT-U2-001 | M166: ='LGIP future infrastructure'!A120 -> SGT-U2-001 | N166: ='LGIP future infrastructure'!B120 -> PCF54 | O166: ='LGIP future infrastructure'!D120 -> Upgrade existing park infrastructure to the value of $500k-$1m+ (Metropolitan) | P166: ='LGIP future infrastructure'!F120 -> Metropolitan | T166: 0 | U166: 0 | V166: 0 | W166: 0 | AA166: 0 | AB166: 0 | AC166: 0 | AD166: 0 | AE166: 1 | AG166: 1 | AK166: ='LGIP future infrastructure'!I120 -> 8.38 | AL166: =IF('LGIP future infrastructure'!G120="2016 - 2021",DATE(2019,6,30),DATE(2024,6,30)) -> 2024-06-30 | AM166: ='LGIP future infrastructure'!J120/1000 -> 0 | AN166: n/a | AO166: 0 | AP166: 0 | AR166: 0 | AT166: 0 | AU166: 0 | AW166: 0 | BA166: 2024-06-30 | BB166: ='LGIP future infrastructure'!K120/1000 -> 750 | BC166: =SUM('LGIP future infrastructure'!L120:N120)/1000 -> 390.311 | BF166: 1140.311 | BH166: 0 | BI166: 0 | BJ166: 0 | BL166: 0 | BO166: 1140.311 | BS166: 0 | BW166: 2024-06-30 | CA166: =IF(BX166=1,IF(BZ166>BO166*'Input-Gen'!$M$48,"Check Value","OK"),"") -> 
G167: SMN-U3-010 | M167: ='LGIP future infrastructure'!A121 -> SMN-U3-010 | N167: ='LGIP future infrastructure'!B121 -> PCF269 | O167: ='LGIP future infrastructure'!D121 -> Upgrade existing park infrastructure to value of up to $500k (District) | P167: ='LGIP future infrastructure'!F121 -> District | T167: 0 | U167: 0 | V167: 0 | W167: 0 | AA167: 0 | AB167: 0 | AC167: 0 | AD167: 0 | AE167: 1 | AG167: 1 | AK167: ='LGIP future infrastructure'!I121 -> 4.31 | AL167: =IF('LGIP future infrastructure'!G121="2016 - 2021",DATE(2019,6,30),DATE(2024,6,30)) -> 2019-06-30 | AM167: ='LGIP future infrastructure'!J121/1000 -> 0 | AN167: n/a | AO167: 0 | AP167: 0 | AR167: 0 | AT167: 0 | AU167: 0 | AW167: 0 | BA167: 2019-06-30 | BB167: ='LGIP future infrastructure'!K121/1000 -> 500 | BC167: =SUM('LGIP future infrastructure'!L121:N121)/1000 -> 210.629 | BF167: 710.629 | BH167: 0 | BI167: 0 | BJ167: 0 | BL167: 0 | BO167: 710.629 | BS167: 0 | BW167: 2019-06-30 | CA167: =IF(BX167=1,IF(BZ167>BO167*'Input-Gen'!$M$48,"Check Value","OK"),"") -> 
G168: STF-U1-010 | M168: ='LGIP future infrastructure'!A122 -> STF-U1-010 | N168: ='LGIP future infrastructure'!B122 -> PCF132 | O168: ='LGIP future infrastructure'!D122 -> Upgrade existing park infrastructure to the value of $1m+ (District) | P168: ='LGIP future infrastructure'!F122 -> District | T168: 0 | U168: 0 | V168: 0 | W168: 0 | AA168: 0 | AB168: 0 | AC168: 0 | AD168: 0 | AE168: 1 | AG168: 1 | AK168: ='LGIP future infrastructure'!I122 -> 9.73 | AL168: =IF('LGIP future infrastructure'!G122="2016 - 2021",DATE(2019,6,30),DATE(2024,6,30)) -> 2024-06-30 | AM168: ='LGIP future infrastructure'!J122/1000 -> 0 | AN168: n/a | AO168: 0 | AP168: 0 | AR168: 0 | AT168: 0 | AU168: 0 | AW168: 0 | BA168: 2024-06-30 | BB168: ='LGIP future infrastructure'!K122/1000 -> 1000 | BC168: =SUM('LGIP future infrastructure'!L122:N122)/1000 -> 520.415 | BF168: 1520.415 | BH168: 0 | BI168: 0 | BJ168: 0 | BL168: 0 | BO168: 1520.415 | BS168: 0 | BW168: 2024-06-30 | CA168: =IF(BX168=1,IF(BZ168>BO168*'Input-Gen'!$M$48,"Check Value","OK"),"") -> 
G169: SVH-A1-001 | M169: ='LGIP future infrastructure'!A123 -> SVH-A1-001 | N169: ='LGIP future infrastructure'!B123 -> PCF194 | O169: ='LGIP future infrastructure'!D123 -> Acquire and embellish land to provide LOCAL RECREATION infrastructure | P169: ='LGIP future infrastructure'!F123 -> Local | T169: 0 | U169: 0 | V169: 0 | W169: 0 | AA169: 1 | AB169: 0 | AC169: 0 | AD169: 0 | AE169: 0 | AG169: 1 | AK169: ='LGIP future infrastructure'!I123 -> 0.5 | AL169: =IF('LGIP future infrastructure'!G123="2016 - 2021",DATE(2019,6,30),DATE(2024,6,30)) -> 2019-06-30 | AM169: ='LGIP future infrastructure'!J123/1000 -> 100 | AN169: n/a | AO169: 100 | AP169: 0 | AR169: 100 | AT169: 0 | AU169: 0 | AW169: 0 | BA169: 2019-06-30 | BB169: ='LGIP future infrastructure'!K123/1000 -> 180.527 | BC169: =SUM('LGIP future infrastructure'!L123:N123)/1000 -> 76.049 | BF169: 256.576 | BH169: 0 | BI169: 0 | BJ169: 0 | BL169: 0 | BO169: 356.576 | BS169: 0 | BW169: 2019-06-30 | CA169: =IF(BX169=1,IF(BZ169>BO169*'Input-Gen'!$M$48,"Check Value","OK"),"") -> 
G170: SVH-E2-001 | M170: ='LGIP future infrastructure'!A124 -> SVH-E2-001 | N170: ='LGIP future infrastructure'!B124 -> PCF194 | O170: ='LGIP future infrastructure'!D124 -> Provide DISTRICT RECREATION infrastructure | P170: ='LGIP future infrastructure'!F124 -> District | T170: 0 | U170: 0 | V170: 0 | W170: 0 | AA170: 0 | AB170: 0 | AC170: 0 | AD170: 0 | AE170: 1 | AG170: 1 | AK170: ='LGIP future infrastructure'!I124 -> 0.1 | AL170: =IF('LGIP future infrastructure'!G124="2016 - 2021",DATE(2019,6,30),DATE(2024,6,30)) -> 2024-06-30 | AM170: ='LGIP future infrastructure'!J124/1000 -> 0 | AN170: n/a | AO170: 0 | AP170: 0 | AR170: 0 | AT170: 0 | AU170: 0 | AW170: 0 | BA170: 2024-06-30 | BB170: ='LGIP future infrastructure'!K124/1000 -> 6199.246 | BC170: =SUM('LGIP future infrastructure'!L124:N124)/1000 -> 3226.18 | BF170: 9425.426 | BH170: 0 | BI170: 0 | BJ170: 0 | BL170: 0 | BO170: 9425.426 | BS170: 0 | BW170: 2024-06-30 | CA170: =IF(BX170=1,IF(BZ170>BO170*'Input-Gen'!$M$48,"Check Value","OK"),"") -> 
G171: TAI-A1-001 | M171: ='LGIP future infrastructure'!A125 -> TAI-A1-001 | N171: ='LGIP future infrastructure'!B125 -> PCF73 | O171: ='LGIP future infrastructure'!D125 -> Acquire and embellish land to provide LOCAL RECREATION infrastructure | P171: ='LGIP future infrastructure'!F125 -> Local | T171: 0 | U171: 0 | V171: 0 | W171: 0 | AA171: 0 | AB171: 1 | AC171: 0 | AD171: 0 | AE171: 0 | AG171: 1 | AK171: ='LGIP future infrastructure'!I125 -> 0.5 | AL171: =IF('LGIP future infrastructure'!G125="2016 - 2021",DATE(2019,6,30),DATE(2024,6,30)) -> 2024-06-30 | AM171: ='LGIP future infrastructure'!J125/1000 -> 700 | AN171: n/a | AO171: 700 | AP171: 0 | AR171: 700 | AT171: 0 | AU171: 0 | AW171: 0 | BA171: 2024-06-30 | BB171: ='LGIP future infrastructure'!K125/1000 -> 180.527 | BC171: =SUM('LGIP future infrastructure'!L125:N125)/1000 -> 93.949 | BF171: 274.476 | BH171: 0 | BI171: 0 | BJ171: 0 | BL171: 0 | BO171: 974.476 | BS171: 0 | BW171: 2024-06-30 | CA171: =IF(BX171=1,IF(BZ171>BO171*'Input-Gen'!$M$48,"Check Value","OK"),"") -> 
G172: TAI-E1-001 | M172: ='LGIP future infrastructure'!A126 -> TAI-E1-001 | N172: ='LGIP future infrastructure'!B126 -> PCF73 | O172: ='LGIP future infrastructure'!D126 -> Provide LOCAL RECREATION infrastructure | P172: ='LGIP future infrastructure'!F126 -> Local | T172: 0 | U172: 0 | V172: 0 | W172: 0 | AA172: 0 | AB172: 1 | AC172: 0 | AD172: 0 | AE172: 0 | AG172: 1 | AK172: ='LGIP future infrastructure'!I126 -> 1.16 | AL172: =IF('LGIP future infrastructure'!G126="2016 - 2021",DATE(2019,6,30),DATE(2024,6,30)) -> 2019-06-30 | AM172: ='LGIP future infrastructure'!J126/1000 -> 0 | AN172: n/a | AO172: 0 | AP172: 0 | AR172: 0 | AT172: 0 | AU172: 0 | AW172: 0 | BA172: 2019-06-30 | BB172: ='LGIP future infrastructure'!K126/1000 -> 440.541 | BC172: =SUM('LGIP future infrastructure'!L126:N126)/1000 -> 185.581 | BF172: 626.122 | BH172: 0 | BI172: 0 | BJ172: 0 | BL172: 0 | BO172: 626.122 | BS172: 0 | BW172: 2019-06-30 | CA172: =IF(BX172=1,IF(BZ172>BO172*'Input-Gen'!$M$48,"Check Value","OK"),"") -> 
G173: TAI-E1-002 | M173: ='LGIP future infrastructure'!A127 -> TAI-E1-002 | N173: ='LGIP future infrastructure'!B127 -> PCF73 | O173: ='LGIP future infrastructure'!D127 -> Provide LOCAL RECREATION infrastructure | P173: ='LGIP future infrastructure'!F127 -> Local | T173: 0 | U173: 0 | V173: 0 | W173: 0 | AA173: 0 | AB173: 1 | AC173: 0 | AD173: 0 | AE173: 0 | AG173: 1 | AK173: ='LGIP future infrastructure'!I127 -> 1.6 | AL173: =IF('LGIP future infrastructure'!G127="2016 - 2021",DATE(2019,6,30),DATE(2024,6,30)) -> 2019-06-30 | AM173: ='LGIP future infrastructure'!J127/1000 -> 0 | AN173: n/a | AO173: 0 | AP173: 0 | AR173: 0 | AT173: 0 | AU173: 0 | AW173: 0 | BA173: 2019-06-30 | BB173: ='LGIP future infrastructure'!K127/1000 -> 468.36 | BC173: =SUM('LGIP future infrastructure'!L127:N127)/1000 -> 197.3 | BF173: 665.66 | BH173: 0 | BI173: 0 | BJ173: 0 | BL173: 0 | BO173: 665.66 | BS173: 0 | BW173: 2019-06-30 | CA173: =IF(BX173=1,IF(BZ173>BO173*'Input-Gen'!$M$48,"Check Value","OK"),"") -> 
G174: TAR-U3-010 | M174: ='LGIP future infrastructure'!A128 -> TAR-U3-010 | N174: ='LGIP future infrastructure'!B128 -> PCF211 | O174: ='LGIP future infrastructure'!D128 -> Upgrade existing park infrastructure to value of up to $500k (Local) | P174: ='LGIP future infrastructure'!F128 -> Local | T174: 0 | U174: 0 | V174: 0 | W174: 0 | AA174: 0 | AB174: 0 | AC174: 0 | AD174: 1 | AE174: 0 | AG174: 1 | AK174: ='LGIP future infrastructure'!I128 -> 2.46 | AL174: =IF('LGIP future infrastructure'!G128="2016 - 2021",DATE(2019,6,30),DATE(2024,6,30)) -> 2024-06-30 | AM174: ='LGIP future infrastructure'!J128/1000 -> 0 | AN174: n/a | AO174: 0 | AP174: 0 | AR174: 0 | AT174: 0 | AU174: 0 | AW174: 0 | BA174: 2024-06-30 | BB174: ='LGIP future infrastructure'!K128/1000 -> 500 | BC174: =SUM('LGIP future infrastructure'!L128:N128)/1000 -> 260.208 | BF174: 760.208 | BH174: 0 | BI174: 0 | BJ174: 0 | BL174: 0 | BO174: 760.208 | BS174: 0 | BW174: 2024-06-30 | CA174: =IF(BX174=1,IF(BZ174>BO174*'Input-Gen'!$M$48,"Check Value","OK"),"") -> 
G175: TAR-U3-011 | M175: ='LGIP future infrastructure'!A129 -> TAR-U3-011 | N175: ='LGIP future infrastructure'!B129 -> PCF211 | O175: ='LGIP future infrastructure'!D129 -> Upgrade existing park infrastructure to value of up to $500k (Local) | P175: ='LGIP future infrastructure'!F129 -> Local | T175: 0 | U175: 0 | V175: 0 | W175: 0 | AA175: 0 | AB175: 0 | AC175: 0 | AD175: 1 | AE175: 0 | AG175: 1 | AK175: ='LGIP future infrastructure'!I129 -> 1.06 | AL175: =IF('LGIP future infrastructure'!G129="2016 - 2021",DATE(2019,6,30),DATE(2024,6,30)) -> 2024-06-30 | AM175: ='LGIP future infrastructure'!J129/1000 -> 0 | AN175: n/a | AO175: 0 | AP175: 0 | AR175: 0 | AT175: 0 | AU175: 0 | AW175: 0 | BA175: 2024-06-30 | BB175: ='LGIP future infrastructure'!K129/1000 -> 500 | BC175: =SUM('LGIP future infrastructure'!L129:N129)/1000 -> 260.208 | BF175: 760.208 | BH175: 0 | BI175: 0 | BJ175: 0 | BL175: 0 | BO175: 760.208 | BS175: 0 | BW175: 2024-06-30 | CA175: =IF(BX175=1,IF(BZ175>BO175*'Input-Gen'!$M$48,"Check Value","OK"),"") -> 
G176: TOO-A4-001 | M176: ='LGIP future infrastructure'!A130 -> TOO-A4-001 | N176: ='LGIP future infrastructure'!B130 -> PCF191 | O176: ='LGIP future infrastructure'!D130 -> Acquire and embellish land to provide URBAN COMMON infrastructure | P176: ='LGIP future infrastructure'!F130 -> Urban Common | T176: 0 | U176: 0 | V176: 0 | W176: 0 | AA176: 0 | AB176: 0 | AC176: 0 | AD176: 0 | AE176: 1 | AG176: =SUM(AA176:AE176) -> 1 | AK176: ='LGIP future infrastructure'!I130 -> 0.3 | AL176: =IF('LGIP future infrastructure'!G130="2016 - 2021",DATE(2019,6,30),DATE(2024,6,30)) -> 2024-06-30 | AM176: ='LGIP future infrastructure'!J130/1000 -> 12000 | AN176: n/a | AO176: 12000 | AP176: 0 | AR176: 12000 | AT176: =AO176*V176 -> 0 | AU176: 0 | AW176: 0 | BA176: 2024-06-30 | BB176: ='LGIP future infrastructure'!K130/1000 -> 573.396 | BC176: =SUM('LGIP future infrastructure'!L130:N130)/1000 -> 298.403 | BF176: 871.799 | BH176: 0 | BI176: 0 | BJ176: 0 | BL176: =BF176*V176 -> 0 | BO176: =SUM(BF176,AR176) -> 12871.799 | BS176: =AW176+BL176 -> 0 | BW176: 2024-06-30 | CA176: =IF(BX176=1,IF(BZ176>BO176*'Input-Gen'!$M$48,"Check Value","OK"),"") -> 
G177: =M177 -> TRF-A8-001 | M177: ='LGIP future infrastructure'!A131 -> TRF-A8-001 | N177: ='LGIP future infrastructure'!B131 -> PCF173 | O177: ='LGIP future infrastructure'!D131 -> Acquire and embellish land to provide DISTRICT OR METRO ACCESS/RECREATION CORRIDOR PARK | P177: ='LGIP future infrastructure'!F131 -> Metropolitan | T177: 0 | U177: 0 | V177: 0 | W177: 0 | AA177: 0 | AB177: 0 | AC177: 0 | AD177: 0 | AE177: 1 | AG177: 1 | AK177: ='LGIP future infrastructure'!I131 -> 0.13 | AL177: =IF('LGIP future infrastructure'!G131="2016 - 2021",DATE(2019,6,30),DATE(2024,6,30)) -> 2019-06-30 | AM177: ='LGIP future infrastructure'!J131/1000 -> 4550 | AN177: n/a | AO177: =AM177 -> 4550 | AP177: 0 | AR177: 4550 | AT177: 0 | AU177: 0 | AW177: 0 | BA177: =AL177 -> 2019-06-30 | BB177: ='LGIP future infrastructure'!K131/1000 -> 113.319 | BC177: =SUM('LGIP future infrastructure'!L131:N131)/1000 -> 47.736 | BF177: =SUM(BB177:BC177) -> 161.055 | BH177: =BB177*$V177 -> 0 | BI177: =BC177*$V177 -> 0 | BJ177: =BD177*$V177 -> 0 | BL177: 0 | BO177: 4711.055 | BS177: 0 | BW177: =BA177 -> 2019-06-30 | CA177: =IF(BX177=1,IF(BZ177>BO177*'Input-Gen'!$M$48,"Check Value","OK"),"") -> 
G178: UKE-E5-001 | M178: ='LGIP future infrastructure'!A132 -> UKE-E5-001 | N178: ='LGIP future infrastructure'!B132 -> PCF129 | O178: ='LGIP future infrastructure'!D132 -> Provide DISTRICT SPORT infrastructure | P178: ='LGIP future infrastructure'!F132 -> District | T178: 0 | U178: 0 | V178: 0 | W178: 0 | AA178: 0 | AB178: 0 | AC178: 0 | AD178: 0 | AE178: 1 | AG178: 1 | AK178: ='LGIP future infrastructure'!I132 -> 8.8138 | AL178: =IF('LGIP future infrastructure'!G132="2016 - 2021",DATE(2019,6,30),DATE(2024,6,30)) -> 2024-06-30 | AM178: ='LGIP future infrastructure'!J132/1000 -> 0 | AN178: n/a | AO178: 0 | AP178: 0 | AR178: =AO178*(1+AP178) -> 0 | AT178: 0 | AU178: =AP178 -> 0 | AW178: =AT178*(1+AU178) -> 0 | BA178: 2024-06-30 | BB178: ='LGIP future infrastructure'!K132/1000 -> 7400.541 | BC178: =SUM('LGIP future infrastructure'!L132:N132)/1000 -> 3851.352 | BF178: 11251.893 | BH178: 0 | BI178: 0 | BJ178: 0 | BL178: 0 | BO178: 11251.893 | BS178: 0 | BW178: 2024-06-30 | CA178: =IF(BX178=1,IF(BZ178>BO178*'Input-Gen'!$M$48,"Check Value","OK"),"") -> 
G179: UMG-A4-001 | M179: ='LGIP future infrastructure'!A133 -> UMG-A4-001 | N179: ='LGIP future infrastructure'!B133 -> PCF274 | O179: ='LGIP future infrastructure'!D133 -> Acquire and embellish land to provide URBAN COMMON infrastructure | P179: ='LGIP future infrastructure'!F133 -> Urban Common | T179: 0 | U179: 0 | V179: 0 | W179: 0 | AA179: 0 | AB179: 0 | AC179: 0 | AD179: 0 | AE179: 1 | AG179: 1 | AK179: ='LGIP future infrastructure'!I133 -> 0.3 | AL179: =IF('LGIP future infrastructure'!G133="2016 - 2021",DATE(2019,6,30),DATE(2024,6,30)) -> 2024-06-30 | AM179: ='LGIP future infrastructure'!J133/1000 -> 3000 | AN179: n/a | AO179: 3000 | AP179: 0 | AR179: 3000 | AT179: 0 | AU179: 0 | AW179: 0 | BA179: 2024-06-30 | BB179: ='LGIP future infrastructure'!K133/1000 -> 573.396 | BC179: =SUM('LGIP future infrastructure'!L133:N133)/1000 -> 298.403 | BF179: 871.799 | BH179: 0 | BI179: 0 | BJ179: 0 | BL179: 0 | BO179: 3871.799 | BS179: 0 | BW179: 2024-06-30 | CA179: =IF(BX179=1,IF(BZ179>BO179*'Input-Gen'!$M$48,"Check Value","OK"),"") -> 
G180: UMG-E1-001 | M180: ='LGIP future infrastructure'!A134 -> UMG-E1-001 | N180: ='LGIP future infrastructure'!B134 -> PCF274 | O180: ='LGIP future infrastructure'!D134 -> Provide LOCAL RECREATION infrastructure | P180: ='LGIP future infrastructure'!F134 -> Local | T180: 0 | U180: 0 | V180: 0 | W180: 0 | AA180: 1 | AB180: 0 | AC180: 0 | AD180: 0 | AE180: 0 | AG180: 1 | AK180: ='LGIP future infrastructure'!I134 -> 0.3022 | AL180: =IF('LGIP future infrastructure'!G134="2016 - 2021",DATE(2019,6,30),DATE(2024,6,30)) -> 2019-06-30 | AM180: ='LGIP future infrastructure'!J134/1000 -> 0 | AN180: n/a | AO180: 0 | AP180: 0 | AR180: 0 | AT180: 0 | AU180: 0 | AW180: 0 | BA180: 2019-06-30 | BB180: ='LGIP future infrastructure'!K134/1000 -> 386.306 | BC180: =SUM('LGIP future infrastructure'!L134:N134)/1000 -> 162.734 | BF180: 549.04 | BH180: 0 | BI180: 0 | BJ180: 0 | BL180: 0 | BO180: 549.04 | BS180: 0 | BW180: 2019-06-30 | CA180: =IF(BX180=1,IF(BZ180>BO180*'Input-Gen'!$M$48,"Check Value","OK"),"") -> 
G181: UMG-U2-010 | M181: ='LGIP future infrastructure'!A135 -> UMG-U2-010 | N181: ='LGIP future infrastructure'!B135 -> PCF254 | O181: ='LGIP future infrastructure'!D135 -> Upgrade existing park infrastructure to the value of $500k-$1m (District) | P181: ='LGIP future infrastructure'!F135 -> District | T181: 0 | U181: 0 | V181: 0 | W181: 0 | AA181: 0 | AB181: 0 | AC181: 0 | AD181: 0 | AE181: 1 | AG181: 1 | AK181: ='LGIP future infrastructure'!I135 -> 7.74 | AL181: =IF('LGIP future infrastructure'!G135="2016 - 2021",DATE(2019,6,30),DATE(2024,6,30)) -> 2024-06-30 | AM181: ='LGIP future infrastructure'!J135/1000 -> 0 | AN181: n/a | AO181: 0 | AP181: 0 | AR181: 0 | AT181: 0 | AU181: 0 | AW181: 0 | BA181: 2024-06-30 | BB181: ='LGIP future infrastructure'!K135/1000 -> 750 | BC181: =SUM('LGIP future infrastructure'!L135:N135)/1000 -> 390.311 | BF181: 1140.311 | BH181: 0 | BI181: 0 | BJ181: 0 | BL181: 0 | BO181: 1140.311 | BS181: 0 | BW181: 2024-06-30 | CA181: =IF(BX181=1,IF(BZ181>BO181*'Input-Gen'!$M$48,"Check Value","OK"),"") -> 
G182: WAK-A7-001 | M182: ='LGIP future infrastructure'!A136 -> WAK-A7-001 | N182: ='LGIP future infrastructure'!B136 -> PCF196 | O182: ='LGIP future infrastructure'!D136 -> Acquire and embellish land to provide LOCAL ACCESS/RECREATION corridor park | P182: ='LGIP future infrastructure'!F136 -> Local | T182: 0 | U182: 0 | V182: 0 | W182: 0 | AA182: 1 | AB182: 0 | AC182: 0 | AD182: 0 | AE182: 0 | AG182: 1 | AK182: ='LGIP future infrastructure'!I136 -> 0.06 | AL182: =IF('LGIP future infrastructure'!G136="2016 - 2021",DATE(2019,6,30),DATE(2024,6,30)) -> 2024-06-30 | AM182: ='LGIP future infrastructure'!J136/1000 -> 84 | AN182: n/a | AO182: 84 | AP182: 0 | AR182: 84 | AT182: 0 | AU182: 0 | AW182: 0 | BA182: 2024-06-30 | BB182: ='LGIP future infrastructure'!K136/1000 -> 57.757 | BC182: =SUM('LGIP future infrastructure'!L136:N136)/1000 -> 30.058 | BF182: 87.815 | BH182: 0 | BI182: 0 | BJ182: 0 | BL182: 0 | BO182: 171.815 | BS182: 0 | BW182: 2024-06-30 | CA182: =IF(BX182=1,IF(BZ182>BO182*'Input-Gen'!$M$48,"Check Value","OK"),"") -> 
G183: WAK-A7-002 | M183: ='LGIP future infrastructure'!A137 -> WAK-A7-002 | N183: ='LGIP future infrastructure'!B137 -> PCF196 | O183: ='LGIP future infrastructure'!D137 -> Acquire and embellish land to provide LOCAL ACCESS/RECREATION corridor park | P183: ='LGIP future infrastructure'!F137 -> Local | T183: 0 | U183: 0 | V183: 0 | W183: 0 | AA183: 1 | AB183: 0 | AC183: 0 | AD183: 0 | AE183: 0 | AG183: 1 | AK183: ='LGIP future infrastructure'!I137 -> 0.2 | AL183: =IF('LGIP future infrastructure'!G137="2016 - 2021",DATE(2019,6,30),DATE(2024,6,30)) -> 2024-06-30 | AM183: ='LGIP future infrastructure'!J137/1000 -> 20 | AN183: n/a | AO183: 20 | AP183: 0 | AR183: 20 | AT183: 0 | AU183: 0 | AW183: 0 | BA183: 2024-06-30 | BB183: ='LGIP future infrastructure'!K137/1000 -> 92.738 | BC183: =SUM('LGIP future infrastructure'!L137:N137)/1000 -> 48.261 | BF183: 140.999 | BH183: 0 | BI183: 0 | BJ183: 0 | BL183: 0 | BO183: 160.999 | BS183: 0 | BW183: 2024-06-30 | CA183: =IF(BX183=1,IF(BZ183>BO183*'Input-Gen'!$M$48,"Check Value","OK"),"") -> 
G184: WAK-E2-001 | M184: ='LGIP future infrastructure'!A138 -> WAK-E2-001 | N184: ='LGIP future infrastructure'!B138 -> PCF197 | O184: ='LGIP future infrastructure'!D138 -> Provide DISTRICT RECREATION infrastructure | P184: ='LGIP future infrastructure'!F138 -> District | T184: 0 | U184: 0 | V184: 0 | W184: 0 | AA184: 0 | AB184: 0 | AC184: 0 | AD184: 0 | AE184: 1 | AG184: 1 | AK184: ='LGIP future infrastructure'!I138 -> 4 | AL184: =IF('LGIP future infrastructure'!G138="2016 - 2021",DATE(2019,6,30),DATE(2024,6,30)) -> 2024-06-30 | AM184: ='LGIP future infrastructure'!J138/1000 -> 0 | AN184: n/a | AO184: 0 | AP184: 0 | AR184: 0 | AT184: 0 | AU184: 0 | AW184: 0 | BA184: 2024-06-30 | BB184: ='LGIP future infrastructure'!K138/1000 -> 7248.673 | BC184: =SUM('LGIP future infrastructure'!L138:N138)/1000 -> 3772.318 | BF184: 11020.991 | BH184: 0 | BI184: 0 | BJ184: 0 | BL184: 0 | BO184: 11020.991 | BS184: 0 | BW184: 2024-06-30 | CA184: =IF(BX184=1,IF(BZ184>BO184*'Input-Gen'!$M$48,"Check Value","OK"),"") -> 
G185: WAK-E5-001 | M185: ='LGIP future infrastructure'!A139 -> WAK-E5-001 | N185: ='LGIP future infrastructure'!B139 -> PCF196 | O185: ='LGIP future infrastructure'!D139 -> Provide DISTRICT SPORT infrastructure | P185: ='LGIP future infrastructure'!F139 -> District | T185: 0 | U185: 0 | V185: 0 | W185: 0 | AA185: 0 | AB185: 0 | AC185: 0 | AD185: 0 | AE185: 1 | AG185: 1 | AK185: ='LGIP future infrastructure'!I139 -> 6 | AL185: =IF('LGIP future infrastructure'!G139="2016 - 2021",DATE(2019,6,30),DATE(2024,6,30)) -> 2019-06-30 | AM185: ='LGIP future infrastructure'!J139/1000 -> 0 | AN185: n/a | AO185: 0 | AP185: 0 | AR185: 0 | AT185: 0 | AU185: 0 | AW185: 0 | BA185: 2019-06-30 | BB185: ='LGIP future infrastructure'!K139/1000 -> 6881.048 | BC185: =SUM('LGIP future infrastructure'!L139:N139)/1000 -> 2898.693 | BF185: 9779.741 | BH185: 0 | BI185: 0 | BJ185: 0 | BL185: 0 | BO185: 9779.741 | BS185: 0 | BW185: 2019-06-30 | CA185: =IF(BX185=1,IF(BZ185>BO185*'Input-Gen'!$M$48,"Check Value","OK"),"") -> 
G186: WCL-A1-001 | M186: ='LGIP future infrastructure'!A140 -> WCL-A1-001 | N186: ='LGIP future infrastructure'!B140 -> PCF290 | O186: ='LGIP future infrastructure'!D140 -> Acquire and embellish land to provide LOCAL RECREATION infrastructure | P186: ='LGIP future infrastructure'!F140 -> Local | T186: 0 | U186: 0 | V186: 0 | W186: 0 | AA186: 0 | AB186: 0 | AC186: 1 | AD186: 0 | AE186: 0 | AG186: 1 | AK186: ='LGIP future infrastructure'!I140 -> 1 | AL186: =IF('LGIP future infrastructure'!G140="2016 - 2021",DATE(2019,6,30),DATE(2024,6,30)) -> 2019-06-30 | AM186: ='LGIP future infrastructure'!J140/1000 -> 4500 | AN186: n/a | AO186: 4500 | AP186: 0 | AR186: 4500 | AT186: 0 | AU186: 0 | AW186: 0 | BA186: 2019-06-30 | BB186: ='LGIP future infrastructure'!K140/1000 -> 333.335 | BC186: =SUM('LGIP future infrastructure'!L140:N140)/1000 -> 140.42 | BF186: 473.755 | BH186: 0 | BI186: 0 | BJ186: 0 | BL186: 0 | BO186: 4973.755 | BS186: 0 | BW186: 2019-06-30 | CA186: =IF(BX186=1,IF(BZ186>BO186*'Input-Gen'!$M$48,"Check Value","OK"),"") -> 
G187: WES-A1-001 | M187: ='LGIP future infrastructure'!A141 -> WES-A1-001 | N187: ='LGIP future infrastructure'!B141 -> PCF192 | O187: ='LGIP future infrastructure'!D141 -> Acquire and embellish land to provide LOCAL RECREATION infrastructure | P187: ='LGIP future infrastructure'!F141 -> Local | T187: 0 | U187: 0 | V187: 0 | W187: 0 | AA187: 0 | AB187: 0 | AC187: 1 | AD187: 0 | AE187: 0 | AG187: 1 | AK187: ='LGIP future infrastructure'!I141 -> 0.5 | AL187: =IF('LGIP future infrastructure'!G141="2016 - 2021",DATE(2019,6,30),DATE(2024,6,30)) -> 2019-06-30 | AM187: ='LGIP future infrastructure'!J141/1000 -> 10000 | AN187: n/a | AO187: 10000 | AP187: 0 | AR187: 10000 | AT187: 0 | AU187: 0 | AW187: 0 | BA187: 2019-06-30 | BB187: ='LGIP future infrastructure'!K141/1000 -> 180.527 | BC187: =SUM('LGIP future infrastructure'!L141:N141)/1000 -> 76.049 | BF187: 256.576 | BH187: 0 | BI187: 0 | BJ187: 0 | BL187: 0 | BO187: 10256.576 | BS187: 0 | BW187: 2019-06-30 | CA187: =IF(BX187=1,IF(BZ187>BO187*'Input-Gen'!$M$48,"Check Value","OK"),"") -> 
G188: WES-A7-001 | M188: ='LGIP future infrastructure'!A142 -> WES-A7-001 | N188: ='LGIP future infrastructure'!B142 -> PCF192 | O188: ='LGIP future infrastructure'!D142 -> Acquire and embellish land to provide LOCAL ACCESS/RECREATION corridor park | P188: ='LGIP future infrastructure'!F142 -> Local | T188: 0 | U188: 0 | V188: 0 | W188: 0 | AA188: 0 | AB188: 0 | AC188: 1 | AD188: 0 | AE188: 0 | AG188: 1 | AK188: ='LGIP future infrastructure'!I142 -> 0.05 | AL188: =IF('LGIP future infrastructure'!G142="2016 - 2021",DATE(2019,6,30),DATE(2024,6,30)) -> 2019-06-30 | AM188: ='LGIP future infrastructure'!J142/1000 -> 2000 | AN188: n/a | AO188: 2000 | AP188: 0 | AR188: 2000 | AT188: 0 | AU188: 0 | AW188: 0 | BA188: 2019-06-30 | BB188: ='LGIP future infrastructure'!K142/1000 -> 55.258 | BC188: =SUM('LGIP future infrastructure'!L142:N142)/1000 -> 23.278 | BF188: 78.536 | BH188: 0 | BI188: 0 | BJ188: 0 | BL188: 0 | BO188: 2078.536 | BS188: 0 | BW188: 2019-06-30 | CA188: =IF(BX188=1,IF(BZ188>BO188*'Input-Gen'!$M$48,"Check Value","OK"),"") -> 
G189: WES-E4-001 | M189: ='LGIP future infrastructure'!A143 -> WES-E4-001 | N189: ='LGIP future infrastructure'!B143 -> PCF192 | O189: ='LGIP future infrastructure'!D143 -> Provide URBAN COMMON infrastructure | P189: ='LGIP future infrastructure'!F143 -> Urban Common | T189: 0 | U189: 0 | V189: 0 | W189: 0 | AA189: 0 | AB189: 0 | AC189: 0 | AD189: 0 | AE189: 1 | AG189: 1 | AK189: ='LGIP future infrastructure'!I143 -> 0.1 | AL189: =IF('LGIP future infrastructure'!G143="2016 - 2021",DATE(2019,6,30),DATE(2024,6,30)) -> 2019-06-30 | AM189: ='LGIP future infrastructure'!J143/1000 -> 0 | AN189: n/a | AO189: 0 | AP189: 0 | AR189: 0 | AT189: 0 | AU189: 0 | AW189: 0 | BA189: 2019-06-30 | BB189: ='LGIP future infrastructure'!K143/1000 -> 458.023 | BC189: =SUM('LGIP future infrastructure'!L143:N143)/1000 -> 192.945 | BF189: 650.968 | BH189: 0 | BI189: 0 | BJ189: 0 | BL189: 0 | BO189: 650.968 | BS189: 0 | BW189: 2019-06-30 | CA189: =IF(BX189=1,IF(BZ189>BO189*'Input-Gen'!$M$48,"Check Value","OK"),"") -> 
G190: WES-U1-010 | M190: ='LGIP future infrastructure'!A144 -> WES-U1-010 | N190: ='LGIP future infrastructure'!B144 -> PCF192 | O190: ='LGIP future infrastructure'!D144 -> Upgrade existing park infrastructure to the value of $1m+ (District) | P190: ='LGIP future infrastructure'!F144 -> District | T190: 0 | U190: 0 | V190: 0 | W190: 0 | AA190: 0 | AB190: 0 | AC190: 0 | AD190: 0 | AE190: 1 | AG190: 1 | AK190: ='LGIP future infrastructure'!I144 -> 5.75 | AL190: =IF('LGIP future infrastructure'!G144="2016 - 2021",DATE(2019,6,30),DATE(2024,6,30)) -> 2024-06-30 | AM190: ='LGIP future infrastructure'!J144/1000 -> 0 | AN190: n/a | AO190: 0 | AP190: 0 | AR190: 0 | AT190: 0 | AU190: 0 | AW190: 0 | BA190: 2024-06-30 | BB190: ='LGIP future infrastructure'!K144/1000 -> 1000 | BC190: =SUM('LGIP future infrastructure'!L144:N144)/1000 -> 520.415 | BF190: 1520.415 | BH190: 0 | BI190: 0 | BJ190: 0 | BL190: 0 | BO190: 1520.415 | BS190: 0 | BW190: 2024-06-30 | CA190: =IF(BX190=1,IF(BZ190>BO190*'Input-Gen'!$M$48,"Check Value","OK"),"") -> 
G191: WES-U1-011 | M191: ='LGIP future infrastructure'!A145 -> WES-U1-011 | N191: ='LGIP future infrastructure'!B145 -> PCF192 | O191: ='LGIP future infrastructure'!D145 -> Upgrade existing park infrastructure to the value of $1m+ (Metropolitan) | P191: ='LGIP future infrastructure'!F145 -> Metropolitan | T191: 0 | U191: 0 | V191: 0 | W191: 0 | AA191: 0 | AB191: 0 | AC191: 0 | AD191: 0 | AE191: 1 | AG191: 1 | AK191: ='LGIP future infrastructure'!I145 -> 0.81 | AL191: =IF('LGIP future infrastructure'!G145="2016 - 2021",DATE(2019,6,30),DATE(2024,6,30)) -> 2024-06-30 | AM191: ='LGIP future infrastructure'!J145/1000 -> 0 | AN191: n/a | AO191: 0 | AP191: 0 | AR191: 0 | AT191: 0 | AU191: 0 | AW191: 0 | BA191: 2024-06-30 | BB191: ='LGIP future infrastructure'!K145/1000 -> 1000 | BC191: =SUM('LGIP future infrastructure'!L145:N145)/1000 -> 520.415 | BF191: 1520.415 | BH191: 0 | BI191: 0 | BJ191: 0 | BL191: 0 | BO191: 1520.415 | BS191: 0 | BW191: 2024-06-30 | CA191: =IF(BX191=1,IF(BZ191>BO191*'Input-Gen'!$M$48,"Check Value","OK"),"") -> 
G192: WES-U1-012 | M192: ='LGIP future infrastructure'!A146 -> WES-U1-012 | N192: ='LGIP future infrastructure'!B146 -> PCF211 | O192: ='LGIP future infrastructure'!D146 -> Upgrade existing park infrastructure to the value of $1m+ (District) | P192: ='LGIP future infrastructure'!F146 -> District | T192: 0 | U192: 0 | V192: 0 | W192: 0 | AA192: 0 | AB192: 0 | AC192: 0 | AD192: 0 | AE192: 1 | AG192: 1 | AK192: ='LGIP future infrastructure'!I146 -> 2.02 | AL192: =IF('LGIP future infrastructure'!G146="2016 - 2021",DATE(2019,6,30),DATE(2024,6,30)) -> 2024-06-30 | AM192: ='LGIP future infrastructure'!J146/1000 -> 0 | AN192: n/a | AO192: 0 | AP192: 0 | AR192: 0 | AT192: 0 | AU192: 0 | AW192: 0 | BA192: 2024-06-30 | BB192: ='LGIP future infrastructure'!K146/1000 -> 1000 | BC192: =SUM('LGIP future infrastructure'!L146:N146)/1000 -> 520.415 | BF192: 1520.415 | BH192: 0 | BI192: 0 | BJ192: 0 | BL192: 0 | BO192: 1520.415 | BS192: 0 | BW192: 2024-06-30 | CA192: =IF(BX192=1,IF(BZ192>BO192*'Input-Gen'!$M$48,"Check Value","OK"),"") -> 
G193: WIL-U3-010 | M193: ='LGIP future infrastructure'!A147 -> WIL-U3-010 | N193: ='LGIP future infrastructure'!B147 -> PCF291 | O193: ='LGIP future infrastructure'!D147 -> Upgrade existing park infrastructure to value of up to $500k (District) | P193: ='LGIP future infrastructure'!F147 -> District | T193: 0 | U193: 0 | V193: 0 | W193: 0 | AA193: 0 | AB193: 0 | AC193: 0 | AD193: 0 | AE193: 1 | AG193: 1 | AK193: ='LGIP future infrastructure'!I147 -> 11.75 | AL193: =IF('LGIP future infrastructure'!G147="2016 - 2021",DATE(2019,6,30),DATE(2024,6,30)) -> 2024-06-30 | AM193: ='LGIP future infrastructure'!J147/1000 -> 0 | AN193: n/a | AO193: 0 | AP193: 0 | AR193: 0 | AT193: 0 | AU193: 0 | AW193: 0 | BA193: 2024-06-30 | BB193: ='LGIP future infrastructure'!K147/1000 -> 500 | BC193: =SUM('LGIP future infrastructure'!L147:N147)/1000 -> 260.208 | BF193: 760.208 | BH193: 0 | BI193: 0 | BJ193: 0 | BL193: 0 | BO193: 760.208 | BS193: 0 | BW193: 2024-06-30 | CA193: =IF(BX193=1,IF(BZ193>BO193*'Input-Gen'!$M$48,"Check Value","OK"),"") -> 
G194: WIS-A8-001 | M194: ='LGIP future infrastructure'!A148 -> WIS-A8-001 | N194: ='LGIP future infrastructure'!B148 -> PCF275 | O194: ='LGIP future infrastructure'!D148 -> Acquire and embellish land to provide DISTRICT OR METRO ACCESS/RECREATION CORRIDOR PARK | P194: ='LGIP future infrastructure'!F148 -> District | T194: 0 | U194: 0 | V194: 0 | W194: 0 | AA194: 0 | AB194: 0 | AC194: 0 | AD194: 0 | AE194: 1 | AG194: 1 | AK194: ='LGIP future infrastructure'!I148 -> 0.2 | AL194: =IF('LGIP future infrastructure'!G148="2016 - 2021",DATE(2019,6,30),DATE(2024,6,30)) -> 2024-06-30 | AM194: ='LGIP future infrastructure'!J148/1000 -> 20 | AN194: n/a | AO194: 20 | AP194: 0 | AR194: 20 | AT194: 0 | AU194: 0 | AW194: 0 | BA194: 2024-06-30 | BB194: ='LGIP future infrastructure'!K148/1000 -> 97.566 | BC194: =SUM('LGIP future infrastructure'!L148:N148)/1000 -> 50.775 | BF194: 148.341 | BH194: 0 | BI194: 0 | BJ194: 0 | BL194: 0 | BO194: 168.341 | BS194: 0 | BW194: 2024-06-30 | CA194: =IF(BX194=1,IF(BZ194>BO194*'Input-Gen'!$M$48,"Check Value","OK"),"") -> 
G195: WOO-A4-001 | M195: ='LGIP future infrastructure'!A149 -> WOO-A4-001 | N195: ='LGIP future infrastructure'!B149 -> PCF213 | O195: ='LGIP future infrastructure'!D149 -> Acquire and embellish land to provide URBAN COMMON infrastructure | P195: ='LGIP future infrastructure'!F149 -> District | T195: 0 | U195: 0 | V195: 0 | W195: 0 | AA195: 0 | AB195: 0 | AC195: 0 | AD195: 0 | AE195: 1 | AG195: 1 | AK195: ='LGIP future infrastructure'!I149 -> 0.1837 | AL195: =IF('LGIP future infrastructure'!G149="2016 - 2021",DATE(2019,6,30),DATE(2024,6,30)) -> 2019-06-30 | AM195: ='LGIP future infrastructure'!J149/1000 -> 3031.05 | AN195: n/a | AO195: 3031.05 | AP195: 0 | AR195: 3031.05 | AT195: 0 | AU195: 0 | AW195: 0 | BA195: 2019-06-30 | BB195: ='LGIP future infrastructure'!K149/1000 -> 365.567 | BC195: =SUM('LGIP future infrastructure'!L149:N149)/1000 -> 153.998 | BF195: 519.565 | BH195: 0 | BI195: 0 | BJ195: 0 | BL195: 0 | BO195: 3550.615 | BS195: 0 | BW195: 2019-06-30 | CA195: =IF(BX195=1,IF(BZ195>BO195*'Input-Gen'!$M$48,"Check Value","OK"),"") -> 
G196: WSR-U3-010 | M196: ='LGIP future infrastructure'!A150 -> WSR-U3-010 | N196: ='LGIP future infrastructure'!B150 -> PCF153 | O196: ='LGIP future infrastructure'!D150 -> Upgrade existing park infrastructure to value of up to $500k (Local) | P196: ='LGIP future infrastructure'!F150 -> Local | T196: 0 | U196: 0 | V196: 0 | W196: 0 | AA196: 0 | AB196: 1 | AC196: 0 | AD196: 0 | AE196: 0 | AG196: 1 | AK196: ='LGIP future infrastructure'!I150 -> 6.97 | AL196: =IF('LGIP future infrastructure'!G150="2016 - 2021",DATE(2019,6,30),DATE(2024,6,30)) -> 2019-06-30 | AM196: ='LGIP future infrastructure'!J150/1000 -> 0 | AN196: n/a | AO196: 0 | AP196: 0 | AR196: 0 | AT196: 0 | AU196: 0 | AW196: 0 | BA196: 2019-06-30 | BB196: ='LGIP future infrastructure'!K150/1000 -> 500 | BC196: =SUM('LGIP future infrastructure'!L150:N150)/1000 -> 210.629 | BF196: 710.629 | BH196: 0 | BI196: 0 | BJ196: 0 | BL196: 0 | BO196: 710.629 | BS196: 0 | BW196: 2019-06-30 | CA196: =IF(BX196=1,IF(BZ196>BO196*'Input-Gen'!$M$48,"Check Value","OK"),"") -> 
G197: WST-E1-001 | M197: ='LGIP future infrastructure'!A151 -> WST-E1-001 | N197: ='LGIP future infrastructure'!B151 -> PCF152 | O197: ='LGIP future infrastructure'!D151 -> Provide LOCAL RECREATION infrastructure | P197: ='LGIP future infrastructure'!F151 -> Local | T197: 0 | U197: 0 | V197: 0 | W197: 0 | AA197: 0 | AB197: 0 | AC197: 0 | AD197: 1 | AE197: 0 | AG197: 1 | AK197: ='LGIP future infrastructure'!I151 -> 0.2 | AL197: =IF('LGIP future infrastructure'!G151="2016 - 2021",DATE(2019,6,30),DATE(2024,6,30)) -> 2019-06-30 | AM197: ='LGIP future infrastructure'!J151/1000 -> 0 | AN197: n/a | AO197: 0 | AP197: 0 | AR197: 0 | AT197: 0 | AU197: 0 | AW197: 0 | BA197: 2019-06-30 | BB197: ='LGIP future infrastructure'!K151/1000 -> 379.844 | BC197: =SUM('LGIP future infrastructure'!L151:N151)/1000 -> 160.012 | BF197: 539.856 | BH197: 0 | BI197: 0 | BJ197: 0 | BL197: 0 | BO197: 539.856 | BS197: 0 | BW197: 2019-06-30 | CA197: =IF(BX197=1,IF(BZ197>BO197*'Input-Gen'!$M$48,"Check Value","OK"),"") -> 
G198: WVH-U1-010 | M198: ='LGIP future infrastructure'!A152 -> WVH-U1-010 | N198: ='LGIP future infrastructure'!B152 -> PCF133 | O198: ='LGIP future infrastructure'!D152 -> Upgrade existing park infrastructure to the value of $1m+ (Metropolitan) | P198: ='LGIP future infrastructure'!F152 -> Metropolitan | T198: 0 | U198: 0 | V198: 0 | W198: 0 | AA198: 0 | AB198: 0 | AC198: 0 | AD198: 0 | AE198: 1 | AG198: 1 | AK198: ='LGIP future infrastructure'!I152 -> 15.46 | AL198: =IF('LGIP future infrastructure'!G152="2016 - 2021",DATE(2019,6,30),DATE(2024,6,30)) -> 2019-06-30 | AM198: ='LGIP future infrastructure'!J152/1000 -> 0 | AN198: n/a | AO198: 0 | AP198: 0 | AR198: 0 | AT198: 0 | AU198: 0 | AW198: 0 | BA198: 2019-06-30 | BB198: ='LGIP future infrastructure'!K152/1000 -> 1000 | BC198: =SUM('LGIP future infrastructure'!L152:N152)/1000 -> 421.258 | BF198: 1421.258 | BH198: 0 | BI198: 0 | BJ198: 0 | BL198: 0 | BO198: 1421.258 | BS198: 0 | BW198: 2019-06-30 | CA198: =IF(BX198=1,IF(BZ198>BO198*'Input-Gen'!$M$48,"Check Value","OK"),"") -> 
G199: WVH-U3-010 | M199: ='LGIP future infrastructure'!A153 -> WVH-U3-010 | N199: ='LGIP future infrastructure'!B153 -> PCF133 | O199: ='LGIP future infrastructure'!D153 -> Upgrade existing park infrastructure to value of up to $500k (Metropolitan) | P199: ='LGIP future infrastructure'!F153 -> Metropolitan | T199: 0 | U199: 0 | V199: 0 | W199: 0 | AA199: 0 | AB199: 0 | AC199: 0 | AD199: 0 | AE199: 1 | AG199: 1 | AK199: ='LGIP future infrastructure'!I153 -> 1.24 | AL199: =IF('LGIP future infrastructure'!G153="2016 - 2021",DATE(2019,6,30),DATE(2024,6,30)) -> 2019-06-30 | AM199: ='LGIP future infrastructure'!J153/1000 -> 0 | AN199: n/a | AO199: 0 | AP199: 0 | AR199: 0 | AT199: 0 | AU199: 0 | AW199: 0 | BA199: 2019-06-30 | BB199: ='LGIP future infrastructure'!K153/1000 -> 500 | BC199: =SUM('LGIP future infrastructure'!L153:N153)/1000 -> 210.629 | BF199: 710.629 | BH199: 0 | BI199: 0 | BJ199: 0 | BL199: 0 | BO199: 710.629 | BS199: 0 | BW199: 2019-06-30 | CA199: =IF(BX199=1,IF(BZ199>BO199*'Input-Gen'!$M$48,"Check Value","OK"),"") -> 
G200: WWN-A1-001 | M200: ='LGIP future infrastructure'!A154 -> WWN-A1-001 | N200: ='LGIP future infrastructure'!B154 -> PCF153 | O200: ='LGIP future infrastructure'!D154 -> Acquire and embellish land to provide LOCAL RECREATION infrastructure | P200: ='LGIP future infrastructure'!F154 -> Local | T200: 0 | U200: 0 | V200: 0 | W200: 0 | AA200: 0 | AB200: 1 | AC200: 0 | AD200: 0 | AE200: 0 | AG200: 1 | AK200: ='LGIP future infrastructure'!I154 -> 0.5 | AL200: =IF('LGIP future infrastructure'!G154="2016 - 2021",DATE(2019,6,30),DATE(2024,6,30)) -> 2019-06-30 | AM200: ='LGIP future infrastructure'!J154/1000 -> 5000 | AN200: n/a | AO200: 5000 | AP200: 0 | AR200: 5000 | AT200: 0 | AU200: 0 | AW200: 0 | BA200: 2019-06-30 | BB200: ='LGIP future infrastructure'!K154/1000 -> 180.527 | BC200: =SUM('LGIP future infrastructure'!L154:N154)/1000 -> 76.049 | BF200: 256.576 | BH200: 0 | BI200: 0 | BJ200: 0 | BL200: 0 | BO200: 5256.576 | BS200: 0 | BW200: 2019-06-30 | CA200: =IF(BX200=1,IF(BZ200>BO200*'Input-Gen'!$M$48,"Check Value","OK"),"") -> 
G201: WYN-U1-010 | M201: ='LGIP future infrastructure'!A155 -> WYN-U1-010 | N201: ='LGIP future infrastructure'!B155 -> PCF157 | O201: ='LGIP future infrastructure'!D155 -> Upgrade existing park infrastructure to the value of $1m+ (Metropolitan) | P201: ='LGIP future infrastructure'!F155 -> Metropolitan | T201: 0 | U201: 0 | V201: 0 | W201: 0 | AA201: 0 | AB201: 0 | AC201: 0 | AD201: 0 | AE201: 1 | AG201: 1 | AK201: ='LGIP future infrastructure'!I155 -> 10.65 | AL201: =IF('LGIP future infrastructure'!G155="2016 - 2021",DATE(2019,6,30),DATE(2024,6,30)) -> 2019-06-30 | AM201: ='LGIP future infrastructure'!J155/1000 -> 0 | AN201: n/a | AO201: 0 | AP201: 0 | AR201: 0 | AT201: 0 | AU201: 0 | AW201: 0 | BA201: 2019-06-30 | BB201: ='LGIP future infrastructure'!K155/1000 -> 1000 | BC201: =SUM('LGIP future infrastructure'!L155:N155)/1000 -> 421.258 | BF201: 1421.258 | BH201: 0 | BI201: 0 | BJ201: 0 | BL201: 0 | BO201: 1421.258 | BS201: 0 | BW201: 2019-06-30 | CA201: =IF(BX201=1,IF(BZ201>BO201*'Input-Gen'!$M$48,"Check Value","OK"),"") -> 
G202: WYN-U3-010 | M202: ='LGIP future infrastructure'!A156 -> WYN-U3-010 | N202: ='LGIP future infrastructure'!B156 -> PCF177 | O202: ='LGIP future infrastructure'!D156 -> Upgrade existing park infrastructure to value of up to $500k (District) | P202: ='LGIP future infrastructure'!F156 -> District | T202: 0 | U202: 0 | V202: 0 | W202: 0 | AA202: 0 | AB202: 0 | AC202: 0 | AD202: 0 | AE202: 1 | AG202: 1 | AK202: ='LGIP future infrastructure'!I156 -> 9.03 | AL202: =IF('LGIP future infrastructure'!G156="2016 - 2021",DATE(2019,6,30),DATE(2024,6,30)) -> 2019-06-30 | AM202: ='LGIP future infrastructure'!J156/1000 -> 0 | AN202: n/a | AO202: 0 | AP202: 0 | AR202: 0 | AT202: 0 | AU202: 0 | AW202: 0 | BA202: 2019-06-30 | BB202: ='LGIP future infrastructure'!K156/1000 -> 500 | BC202: =SUM('LGIP future infrastructure'!L156:N156)/1000 -> 210.629 | BF202: 710.629 | BH202: 0 | BI202: 0 | BJ202: 0 | BL202: 0 | BO202: 710.629 | BS202: 0 | BW202: 2019-06-30 | CA202: =IF(BX202=1,IF(BZ202>BO202*'Input-Gen'!$M$48,"Check Value","OK"),"") -> 
G203: WYW-A1-001 | M203: ='LGIP future infrastructure'!A157 -> WYW-A1-001 | N203: ='LGIP future infrastructure'!B157 -> PCF177 | O203: ='LGIP future infrastructure'!D157 -> Acquire and embellish land to provide LOCAL RECREATION infrastructure | P203: ='LGIP future infrastructure'!F157 -> Local | T203: 0 | U203: 0 | V203: 0 | W203: 0 | AA203: 1 | AB203: 0 | AC203: 0 | AD203: 0 | AE203: 0 | AG203: 1 | AK203: ='LGIP future infrastructure'!I157 -> 0.8 | AL203: =IF('LGIP future infrastructure'!G157="2016 - 2021",DATE(2019,6,30),DATE(2024,6,30)) -> 2019-06-30 | AM203: ='LGIP future infrastructure'!J157/1000 -> 1400 | AN203: n/a | AO203: 1400 | AP203: 0 | AR203: 1400 | AT203: 0 | AU203: 0 | AW203: 0 | BA203: 2019-06-30 | BB203: ='LGIP future infrastructure'!K157/1000 -> 272.212 | BC203: =SUM('LGIP future infrastructure'!L157:N157)/1000 -> 114.671 | BF203: 386.883 | BH203: 0 | BI203: 0 | BJ203: 0 | BL203: 0 | BO203: 1786.883 | BS203: 0 | BW203: 2019-06-30 | CA203: =IF(BX203=1,IF(BZ203>BO203*'Input-Gen'!$M$48,"Check Value","OK"),"") -> 
G204: ZIL-A8-001 | M204: ='LGIP future infrastructure'!A158 -> ZIL-A8-001 | N204: ='LGIP future infrastructure'!B158 -> PCF93 | O204: ='LGIP future infrastructure'!D158 -> Acquire and embellish land to provide DISTRICT OR METRO ACCESS/RECREATION CORRIDOR PARK | P204: ='LGIP future infrastructure'!F158 -> District | T204: 0 | U204: 0 | V204: 0 | W204: 0 | AA204: 0 | AB204: 0 | AC204: 0 | AD204: 0 | AE204: 1 | AG204: 1 | AK204: ='LGIP future infrastructure'!I158 -> 1.75 | AL204: =IF('LGIP future infrastructure'!G158="2016 - 2021",DATE(2019,6,30),DATE(2024,6,30)) -> 2024-06-30 | AM204: ='LGIP future infrastructure'!J158/1000 -> 175 | AN204: n/a | AO204: 175 | AP204: 0 | AR204: 175 | AT204: 0 | AU204: 0 | AW204: 0 | BA204: 2024-06-30 | BB204: ='LGIP future infrastructure'!K158/1000 -> 384.404 | BC204: =SUM('LGIP future infrastructure'!L158:N158)/1000 -> 200.05 | BF204: 584.454 | BH204: 0 | BI204: 0 | BJ204: 0 | BL204: 0 | BO204: 759.454 | BS204: 0 | BW204: 2024-06-30 | CA204: =IF(BX204=1,IF(BZ204>BO204*'Input-Gen'!$M$48,"Check Value","OK"),"") -> 
G205: ZIL-U1-010 | M205: ='LGIP future infrastructure'!A159 -> ZIL-U1-010 | N205: ='LGIP future infrastructure'!B159 -> PCF93 | O205: ='LGIP future infrastructure'!D159 -> Upgrade existing park infrastructure to the value of $1m+ (District) | P205: ='LGIP future infrastructure'!F159 -> District | T205: 0 | U205: 0 | V205: 0 | W205: 0 | AA205: 0 | AB205: 0 | AC205: 0 | AD205: 0 | AE205: 1 | AG205: 1 | AK205: ='LGIP future infrastructure'!I159 -> 23.48 | AL205: =IF('LGIP future infrastructure'!G159="2016 - 2021",DATE(2019,6,30),DATE(2024,6,30)) -> 2024-06-30 | AM205: ='LGIP future infrastructure'!J159/1000 -> 0 | AN205: n/a | AO205: 0 | AP205: 0 | AR205: 0 | AT205: 0 | AU205: 0 | AW205: 0 | BA205: 2024-06-30 | BB205: ='LGIP future infrastructure'!K159/1000 -> 1000 | BC205: =SUM('LGIP future infrastructure'!L159:N159)/1000 -> 520.415 | BF205: 1520.415 | BH205: 0 | BI205: 0 | BJ205: 0 | BL205: 0 | BO205: 1520.415 | BS205: 0 | BW205: 2024-06-30 | CA205: =IF(BX205=1,IF(BZ205>BO205*'Input-Gen'!$M$48,"Check Value","OK"),"") -> 
G206: Spare 1 | M206: Spare 1 | AG206: 0 | AO206: 0 | AP206: 0 | AR206: 0 | AT206: 0 | AU206: 0 | AW206: 0 | BF206: 0 | BH206: 0 | BI206: 0 | BJ206: 0 | BL206: 0 | BO206: 0 | BS206: 0 | BW206: 00:00:00 | CA206: =IF(BX206=1,IF(BZ206>BO206*'Input-Gen'!$M$48,"Check Value","OK"),"") -> 
G207: Spare 2 | M207: Spare 2 | AG207: 0 | AN207: n/a | AO207: 0 | AP207: 0 | AR207: 0 | AT207: 0 | AU207: 0 | AW207: 0 | BH207: 0 | BI207: 0 | BJ207: 0 | BL207: 0 | BO207: 0 | BS207: 0 | BW207: 00:00:00 | CA207: =IF(BX207=1,IF(BZ207>BO207*'Input-Gen'!$M$48,"Check Value","OK"),"") -> 
G208: Spare 3 | M208: Spare 3 | AG208: 0 | AM208: ='LGIP future infrastructure'!J161/1000 -> 0 | AN208: n/a | AO208: 0 | AP208: 0 | AR208: 0 | AT208: =AO208*V208 -> 0 | AU208: 0 | AW208: 0 | BF208: ='LGIP future infrastructure'!O161/1000 -> 0 | BH208: 0 | BI208: 0 | BJ208: 0 | BL208: =BF208*V208 -> 0 | BO208: 0 | BS208: 0 | BW208: 00:00:00 | CA208: =IF(BX208=1,IF(BZ208>BO208*'Input-Gen'!$M$48,"Check Value","OK"),"") -> 
G209: Spare 4 | M209: Spare 4 | AG209: 0 | AM209: ='LGIP future infrastructure'!J162/1000 -> 0 | AN209: n/a | AO209: 0 | AP209: 0 | AR209: 0 | AT209: 0 | AU209: 0 | AW209: 0 | BF209: ='LGIP future infrastructure'!O162/1000 -> 0 | BH209: 0 | BI209: 0 | BJ209: 0 | BL209: 0 | BO209: 0 | BS209: 0 | BW209: 00:00:00 | CA209: =IF(BX209=1,IF(BZ209>BO209*'Input-Gen'!$M$48,"Check Value","OK"),"") -> 
G210: Spare 5 | M210: Spare 5 | AG210: 0 | AM210: ='LGIP future infrastructure'!J163/1000 -> 0 | AN210: n/a | AO210: 0 | AP210: 0 | AR210: 0 | AT210: 0 | AU210: 0 | AW210: 0 | BF210: ='LGIP future infrastructure'!O163/1000 -> 0 | BH210: 0 | BI210: 0 | BJ210: 0 | BL210: 0 | BO210: 0 | BS210: 0 | BW210: 00:00:00 | CA210: =IF(BX210=1,IF(BZ210>BO210*'Input-Gen'!$M$48,"Check Value","OK"),"") -> 
G211: Spare 6 | M211: Spare 6 | AG211: 0 | AM211: ='LGIP future infrastructure'!J164/1000 -> 0 | AN211: n/a | AO211: 0 | AP211: 0 | AR211: 0 | AT211: 0 | AU211: 0 | AW211: 0 | BF211: ='LGIP future infrastructure'!O164/1000 -> 0 | BH211: 0 | BI211: 0 | BJ211: 0 | BL211: 0 | BO211: 0 | BS211: 0 | BW211: 00:00:00 | CA211: =IF(BX211=1,IF(BZ211>BO211*'Input-Gen'!$M$48,"Check Value","OK"),"") -> 
G212: Spare 7 | M212: Spare 7 | AG212: 0 | AM212: ='LGIP future infrastructure'!J165/1000 -> 0 | AN212: n/a | AO212: 0 | AP212: 0 | AR212: 0 | AT212: 0 | AU212: 0 | AW212: 0 | BF212: ='LGIP future infrastructure'!O165/1000 -> 0 | BH212: 0 | BI212: 0 | BJ212: 0 | BL212: 0 | BO212: 0 | BS212: 0 | BW212: 00:00:00 | CA212: =IF(BX212=1,IF(BZ212>BO212*'Input-Gen'!$M$48,"Check Value","OK"),"") -> 
G213: Spare 8 | M213: Spare 8 | AG213: 0 | AM213: ='LGIP future infrastructure'!J166/1000 -> 0 | AN213: n/a | AO213: 0 | AP213: 0 | AR213: 0 | AT213: 0 | AU213: 0 | AW213: 0 | BF213: ='LGIP future infrastructure'!O166/1000 -> 0 | BH213: 0 | BI213: 0 | BJ213: 0 | BL213: 0 | BO213: 0 | BS213: 0 | BW213: 00:00:00 | CA213: =IF(BX213=1,IF(BZ213>BO213*'Input-Gen'!$M$48,"Check Value","OK"),"") -> 
G214: Spare 9 | M214: Spare 9 | AG214: 0 | AM214: ='LGIP future infrastructure'!J167/1000 -> 0 | AN214: n/a | AO214: 0 | AP214: 0 | AR214: 0 | AT214: 0 | AU214: 0 | AW214: 0 | BF214: ='LGIP future infrastructure'!O167/1000 -> 0 | BH214: 0 | BI214: 0 | BJ214: 0 | BL214: 0 | BO214: 0 | BS214: 0 | BW214: 00:00:00 | CA214: =IF(BX214=1,IF(BZ214>BO214*'Input-Gen'!$M$48,"Check Value","OK"),"") -> 
G215: Spare 10 | M215: Spare 10 | AG215: 0 | AM215: ='LGIP future infrastructure'!J168/1000 -> 0 | AN215: n/a | AO215: 0 | AP215: 0 | AR215: 0 | AT215: 0 | AU215: 0 | AW215: 0 | BF215: ='LGIP future infrastructure'!O168/1000 -> 0 | BH215: 0 | BI215: 0 | BJ215: 0 | BL215: 0 | BO215: 0 | BS215: 0 | BW215: 00:00:00 | CA215: =IF(BX215=1,IF(BZ215>BO215*'Input-Gen'!$M$48,"Check Value","OK"),"") -> 
G216: Spare 11 | M216: Spare 11 | AG216: 0 | AM216: ='LGIP future infrastructure'!J169/1000 -> 0 | AN216: n/a | AO216: 0 | AP216: 0 | AR216: 0 | AT216: 0 | AU216: 0 | AW216: 0 | BF216: ='LGIP future infrastructure'!O169/1000 -> 0 | BH216: 0 | BI216: 0 | BJ216: 0 | BL216: 0 | BO216: 0 | BS216: 0 | BW216: 00:00:00 | CA216: =IF(BX216=1,IF(BZ216>BO216*'Input-Gen'!$M$48,"Check Value","OK"),"") -> 
... 613 more rows

Sheet Input-Time Series
F2: Brisbane City Council
F3: ='Input-Gen'!$F$3 -> Schedule of Works Model - PUBLIC PARKS
F5: Input - Time Series
G6: =IF(BaseCaseCheck=0,BaseCase,NotBaseCase) -> Please Note: Model is not currently applying Base Case parameter values
G7: =IF(Integrity=0,IntOK,IntErr) -> 
G9: Period Number | K9: ="NPV as at" & " " & TEXT(Model_Start_Date-1,"dd-mmm-yyyy") -> NPV as at 30-Jun-2016 | M9: Total Nominal Demand | S9: =S17 -> 0 | T9: =T17 -> 1 | U9: 2 | V9: 3 | W9: 4 | X9: 5 | Y9: 6 | Z9: 7 | AA9: 8 | AB9: 9 | AC9: 10 | AD9: 0 | AE9: 0 | AF9: 0 | AG9: 0 | AH9: 0 | AI9: 0 | AJ9: 0 | AK9: 0 | AL9: 0 | AM9: 0
G10: Period Beginning Date | S10: =FY_Begin -> 2015-07-01 | T10: 2016-07-01 | U10: 2017-07-01 | V10: 2018-07-01 | W10: 2019-07-01 | X10: 2020-07-01 | Y10: 2021-07-01 | Z10: 2022-07-01 | AA10: 2023-07-01 | AB10: 2024-07-01 | AC10: 2025-07-01
G11: Period Ending Date | L11: 2005-06-30 | S11: =FY_End -> 2016-06-30 | T11: 2017-06-30 | U11: 2018-06-30 | V11: 2019-06-30 | W11: 2020-06-30 | X11: 2021-06-30 | Y11: 2022-06-30 | Z11: 2023-06-30 | AA11: 2024-06-30 | AB11: 2025-06-30 | AC11: 2026-06-30 | AO11: Source
F15: Timing and indexation calculations
G17: Period Number | I17: # | S17: 0 | T17: =S17+1 -> 1 | U17: =T17+1 -> 2 | V17: 3 | W17: 4 | X17: 5 | Y17: 6 | Z17: 7 | AA17: 8 | AB17: 9 | AC17: 10
G18: Financial Year Beginning | I18: dd-mmm-yy | S18: =EOMONTH(S19,-Months_in_Year)+1 -> 2015-07-01 | T18: 2016-07-01 | U18: 2017-07-01 | V18: 2018-07-01 | W18: 2019-07-01 | X18: 2020-07-01 | Y18: 2021-07-01 | Z18: 2022-07-01 | AA18: 2023-07-01 | AB18: 2024-07-01 | AC18: 2025-07-01
G19: Financial Year Ending | I19: dd-mmm-yy | S19: =IF(S17=0,Model_Start_Date-1,EOMONTH(R19,Months_in_Year)) -> 2016-06-30 | T19: 2017-06-30 | U19: 2018-06-30 | V19: 2019-06-30 | W19: 2020-06-30 | X19: 2021-06-30 | Y19: 2022-06-30 | Z19: 2023-06-30 | AA19: 2024-06-30 | AB19: 2025-06-30 | AC19: 2026-06-30
G21: Escalation Rate - Historical
G23: Consumer Price Index (CPI) | I23: % pa | T23: 0.025 | U23: 0.025 | V23: 0.025 | W23: 0.025 | X23: 0.025 | Y23: 0.025 | Z23: 0.025 | AA23: 0.025 | AB23: 0.025 | AC23: 0.025
G24: Land cost escalation | I24: % pa | T24: 0.025 | U24: 0.025 | V24: 0.025 | W24: 0.025 | X24: 0.025 | Y24: 0.025 | Z24: 0.025 | AA24: 0.025 | AB24: 0.025 | AC24: 0.025
G25: Constructed Asset escalation | I25: % pa | T25: 0.0187258123 | U25: 0.0187258123 | V25: 0.0187258123 | W25: 0.0187258123 | X25: 0.0187258123 | Y25: 0.0187258123 | Z25: 0.0187258123 | AA25: 0.0187258123 | AB25: 0.0187258123 | AC25: 0.0187258123
G26: Administration cost escalation | I26: % pa | T26: 0 | U26: 0 | V26: 0 | W26: 0 | X26: 0 | Y26: 0 | Z26: 0 | AA26: 0 | AB26: 0 | AC26: 0
G27: Spare 1 escalation | I27: % pa
G29: Escalation Rate used in model
G31: Consumer Price Index (CPI) | I31: % pa | S31: =IF(S$17>0,(1+S23)*R31,1) -> 1 | T31: 1.025 | U31: 1.050625 | V31: 1.076890625 | W31: 1.103812891 | X31: 1.131408213 | Y31: 1.159693418 | Z31: 1.188685754 | AA31: 1.218402898 | AB31: 1.24886297 | AC31: 1.280084544
G32: Land cost escalation | I32: % pa | S32: =IF(S$17>0,(1+S24)*R32,1) -> 1 | T32: 1.025 | U32: 1.050625 | V32: 1.076890625 | W32: 1.103812891 | X32: 1.131408213 | Y32: 1.159693418 | Z32: 1.188685754 | AA32: 1.218402898 | AB32: 1.24886297 | AC32: 1.280084544
G33: Constructed Asset escalation | I33: % pa | S33: =IF(S$17>0,(1+S25)*R33,1) -> 1 | T33: 1.018725812 | U33: 1.037802281 | V33: 1.057235971 | W33: 1.077033574 | X33: 1.097201902 | Y33: 1.117747899 | Z33: 1.138678636 | AA33: 1.160001319 | AB33: 1.181723286 | AC33: 1.203852014
G34: Administration cost escalation | I34: % pa | S34: =IF(S$17>0,(1+S26)*R34,1) -> 1 | T34: 1 | U34: 1 | V34: 1 | W34: 1 | X34: 1 | Y34: 1 | Z34: 1 | AA34: 1 | AB34: 1 | AC34: 1
G35: Spare 1 escalation | I35: % pa | S35: =IF(S$17>0,(1+S27)*R35,1) -> 1 | T35: 1 | U35: 1 | V35: 1 | W35: 1 | X35: 1 | Y35: 1 | Z35: 1 | AA35: 1 | AB35: 1 | AC35: 1
G36: Revenue escalation | I36: % pa | S36: =IF(S$17>0,(1+RevEsc)*R36,1) -> 1 | T36: =IF(T$17>0,(1+RevEsc)*S36,1) -> 1 | U36: =IF(U$17>0,(1+RevEsc)*T36,1) -> 1 | V36: =IF(V$17>0,(1+RevEsc)*U36,1) -> 1 | W36: =IF(W$17>0,(1+RevEsc)*V36,1) -> 1 | X36: =IF(X$17>0,(1+RevEsc)*W36,1) -> 1 | Y36: =IF(Y$17>0,(1+RevEsc)*X36,1) -> 1 | Z36: =IF(Z$17>0,(1+RevEsc)*Y36,1) -> 1 | AA36: =IF(AA$17>0,(1+RevEsc)*Z36,1) -> 1 | AB36: =IF(AB$17>0,(1+RevEsc)*AA36,1) -> 1 | AC36: =IF(AC$17>0,(1+RevEsc)*AB36,1) -> 1
F39: Demand by Service catchment
G41: Total Demand
AN42: Growth | AO42: Rank
G43: ='Input-Infra'!AA$17 -> East (Local) | I43: EP | S43: 270851 | X43: 284157 | AC43: 295506 | AN43: =AC43/S43-1 -> 0.09102790833 | AO43: =RANK(AN43,$AN$43:$AN$46) -> 3
G44: ='Input-Infra'!AB$17 -> North (Local) | I44: EP | S44: 209421 | X44: 226381 | AC44: 242582 | AN44: =AC44/S44-1 -> 0.1583461066 | AO44: =RANK(AN44,$AN$43:$AN$46) -> 1
G45: ='Input-Infra'!AC$17 -> South (Local) | I45: EP | S45: 338944 | X45: 357387 | AC45: 371770 | AN45: 0.09684785687 | AO45: 2
G46: ='Input-Infra'!AD$17 -> West (Local) | I46: EP | S46: 318557 | X46: 330422 | AC46: 338173 | AN46: 0.06157767684 | AO46: 4
G47: ='Input-Infra'!AE$17 -> Brisbane wide (district & metro) | I47: EP | S47: 1168689 | X47: 1231137 | AC47: 1286469
G49: Total (Local/district/metro) | I49: EP | S49: =S47 -> 1168689 | T49: =T47 -> 0 | U49: 0 | V49: 0 | W49: 0 | X49: 1231137 | Y49: 0 | Z49: 0 | AA49: 0 | AB49: 0 | AC49: 1286469 | AN49: =AC49/S49-1 -> 0.1007795915
G52: Existing Demand
G54: =G43 -> East (Local) | I54: EP | K54: =S54 -> 270851 | M54: =S54 -> 270851 | S54: =IF(S$17=0,S43,0) -> 270851 | T54: 0 | U54: 0 | V54: 0 | W54: 0 | X54: 0 | Y54: 0 | Z54: 0 | AA54: 0 | AB54: 0 | AC54: 0
G55: =G44 -> North (Local) | I55: EP | K55: =S55 -> 209421 | M55: =S55 -> 209421 | S55: =IF(S$17=0,S44,0) -> 209421 | T55: =IF(T$17=0,T44,0) -> 0 | U55: 0 | V55: 0 | W55: 0 | X55: 0 | Y55: 0 | Z55: 0 | AA55: 0 | AB55: 0 | AC55: 0
G56: South (Local) | I56: EP | K56: =S56 -> 338944 | M56: =S56 -> 338944 | S56: =IF(S$17=0,S45,0) -> 338944 | T56: 0 | U56: 0 | V56: 0 | W56: 0 | X56: 0 | Y56: 0 | Z56: 0 | AA56: 0 | AB56: 0 | AC56: 0
G57: West (Local) | I57: EP | K57: 318557 | M57: 318557 | S57: =IF(S$17=0,S46,0) -> 318557 | T57: 0 | U57: 0 | V57: 0 | W57: 0 | X57: 0 | Y57: 0 | Z57: 0 | AA57: 0 | AB57: 0 | AC57: 0
G58: Brisbane wide (district & metro) | I58: EP | K58: 1168689 | M58: 1168689 | S58: =IF(S$17=0,S47,0) -> 1168689 | T58: =IF(T$17=0,T47,0) -> 0 | U58: 0 | V58: 0 | W58: 0 | X58: 0 | Y58: 0 | Z58: 0 | AA58: 0 | AB58: 0 | AC58: 0
G60: Total | I60: EP | K60: =K58 -> 1168689 | M60: =M58 -> 1168689 | S60: =S58 -> 1168689 | T60: 0 | U60: 0 | V60: 0 | W60: 0 | X60: 0 | Y60: 0 | Z60: 0 | AA60: 0 | AB60: 0 | AC60: 0
G62: Future Demand
G64: Year of Next Input
G65: =G54 -> East (Local) | I65: EP | S65: =IF(S$9=MAX($S$9:$AM$9),S$9,SMALL((S$9:$AM$9)*ISNUMBER(S43:$AM43),SUM(IF((S$9:$AM$9)*ISNUMBER(S43:$AM43)=0,1,0))+1)) -> 5 | T65: =IF(T$9=MAX($S$9:$AM$9),T$9,SMALL((T$9:$AM$9)*ISNUMBER(T43:$AM43),SUM(IF((T$9:$AM$9)*ISNUMBER(T43:$AM43)=0,1,0))+1)) -> 5 | U65: =IF(U$9=MAX($S$9:$AM$9),U$9,SMALL((U$9:$AM$9)*ISNUMBER(U43:$AM43),SUM(IF((U$9:$AM$9)*ISNUMBER(U43:$AM43)=0,1,0))+1)) -> 5 | V65: =IF(V$9=MAX($S$9:$AM$9),V$9,SMALL((V$9:$AM$9)*ISNUMBER(V43:$AM43),SUM(IF((V$9:$AM$9)*ISNUMBER(V43:$AM43)=0,1,0))+1)) -> 5 | W65: =IF(W$9=MAX($S$9:$AM$9),W$9,SMALL((W$9:$AM$9)*ISNUMBER(W43:$AM43),SUM(IF((W$9:$AM$9)*ISNUMBER(W43:$AM43)=0,1,0))+1)) -> 5 | X65: =IF(X$9=MAX($S$9:$AM$9),X$9,SMALL((X$9:$AM$9)*ISNUMBER(X43:$AM43),SUM(IF((X$9:$AM$9)*ISNUMBER(X43:$AM43)=0,1,0))+1)) -> 5 | Y65: =IF(Y$9=MAX($S$9:$AM$9),Y$9,SMALL((Y$9:$AM$9)*ISNUMBER(Y43:$AM43),SUM(IF((Y$9:$AM$9)*ISNUMBER(Y43:$AM43)=0,1,0))+1)) -> 10 | Z65: =IF(Z$9=MAX($S$9:$AM$9),Z$9,SMALL((Z$9:$AM$9)*ISNUMBER(Z43:$AM43),SUM(IF((Z$9:$AM$9)*ISNUMBER(Z43:$AM43)=0,1,0))+1)) -> 10 | AA65: =IF(AA$9=MAX($S$9:$AM$9),AA$9,SMALL((AA$9:$AM$9)*ISNUMBER(AA43:$AM43),SUM(IF((AA$9:$AM$9)*ISNUMBER(AA43:$AM43)=0,1,0))+1)) -> 10 | AB65: =IF(AB$9=MAX($S$9:$AM$9),AB$9,SMALL((AB$9:$AM$9)*ISNUMBER(AB43:$AM43),SUM(IF((AB$9:$AM$9)*ISNUMBER(AB43:$AM43)=0,1,0))+1)) -> 10 | AC65: =IF(AC$9=MAX($S$9:$AM$9),AC$9,SMALL((AC$9:$AM$9)*ISNUMBER(AC43:$AM43),SUM(IF((AC$9:$AM$9)*ISNUMBER(AC43:$AM43)=0,1,0))+1)) -> 10
G66: =G55 -> North (Local) | I66: EP | S66: =IF(S$9=MAX($S$9:$AM$9),S$9,SMALL((S$9:$AM$9)*ISNUMBER(S44:$AM44),SUM(IF((S$9:$AM$9)*ISNUMBER(S44:$AM44)=0,1,0))+1)) -> 5 | T66: =IF(T$9=MAX($S$9:$AM$9),T$9,SMALL((T$9:$AM$9)*ISNUMBER(T44:$AM44),SUM(IF((T$9:$AM$9)*ISNUMBER(T44:$AM44)=0,1,0))+1)) -> 5 | U66: =IF(U$9=MAX($S$9:$AM$9),U$9,SMALL((U$9:$AM$9)*ISNUMBER(U44:$AM44),SUM(IF((U$9:$AM$9)*ISNUMBER(U44:$AM44)=0,1,0))+1)) -> 5 | V66: =IF(V$9=MAX($S$9:$AM$9),V$9,SMALL((V$9:$AM$9)*ISNUMBER(V44:$AM44),SUM(IF((V$9:$AM$9)*ISNUMBER(V44:$AM44)=0,1,0))+1)) -> 5 | W66: =IF(W$9=MAX($S$9:$AM$9),W$9,SMALL((W$9:$AM$9)*ISNUMBER(W44:$AM44),SUM(IF((W$9:$AM$9)*ISNUMBER(W44:$AM44)=0,1,0))+1)) -> 5 | X66: =IF(X$9=MAX($S$9:$AM$9),X$9,SMALL((X$9:$AM$9)*ISNUMBER(X44:$AM44),SUM(IF((X$9:$AM$9)*ISNUMBER(X44:$AM44)=0,1,0))+1)) -> 5 | Y66: =IF(Y$9=MAX($S$9:$AM$9),Y$9,SMALL((Y$9:$AM$9)*ISNUMBER(Y44:$AM44),SUM(IF((Y$9:$AM$9)*ISNUMBER(Y44:$AM44)=0,1,0))+1)) -> 10 | Z66: =IF(Z$9=MAX($S$9:$AM$9),Z$9,SMALL((Z$9:$AM$9)*ISNUMBER(Z44:$AM44),SUM(IF((Z$9:$AM$9)*ISNUMBER(Z44:$AM44)=0,1,0))+1)) -> 10 | AA66: =IF(AA$9=MAX($S$9:$AM$9),AA$9,SMALL((AA$9:$AM$9)*ISNUMBER(AA44:$AM44),SUM(IF((AA$9:$AM$9)*ISNUMBER(AA44:$AM44)=0,1,0))+1)) -> 10 | AB66: =IF(AB$9=MAX($S$9:$AM$9),AB$9,SMALL((AB$9:$AM$9)*ISNUMBER(AB44:$AM44),SUM(IF((AB$9:$AM$9)*ISNUMBER(AB44:$AM44)=0,1,0))+1)) -> 10 | AC66: =IF(AC$9=MAX($S$9:$AM$9),AC$9,SMALL((AC$9:$AM$9)*ISNUMBER(AC44:$AM44),SUM(IF((AC$9:$AM$9)*ISNUMBER(AC44:$AM44)=0,1,0))+1)) -> 10
G67: South (Local) | I67: EP | S67: =IF(S$9=MAX($S$9:$AM$9),S$9,SMALL((S$9:$AM$9)*ISNUMBER(S45:$AM45),SUM(IF((S$9:$AM$9)*ISNUMBER(S45:$AM45)=0,1,0))+1)) -> 5 | T67: =IF(T$9=MAX($S$9:$AM$9),T$9,SMALL((T$9:$AM$9)*ISNUMBER(T45:$AM45),SUM(IF((T$9:$AM$9)*ISNUMBER(T45:$AM45)=0,1,0))+1)) -> 5 | U67: =IF(U$9=MAX($S$9:$AM$9),U$9,SMALL((U$9:$AM$9)*ISNUMBER(U45:$AM45),SUM(IF((U$9:$AM$9)*ISNUMBER(U45:$AM45)=0,1,0))+1)) -> 5 | V67: =IF(V$9=MAX($S$9:$AM$9),V$9,SMALL((V$9:$AM$9)*ISNUMBER(V45:$AM45),SUM(IF((V$9:$AM$9)*ISNUMBER(V45:$AM45)=0,1,0))+1)) -> 5 | W67: =IF(W$9=MAX($S$9:$AM$9),W$9,SMALL((W$9:$AM$9)*ISNUMBER(W45:$AM45),SUM(IF((W$9:$AM$9)*ISNUMBER(W45:$AM45)=0,1,0))+1)) -> 5 | X67: =IF(X$9=MAX($S$9:$AM$9),X$9,SMALL((X$9:$AM$9)*ISNUMBER(X45:$AM45),SUM(IF((X$9:$AM$9)*ISNUMBER(X45:$AM45)=0,1,0))+1)) -> 5 | Y67: =IF(Y$9=MAX($S$9:$AM$9),Y$9,SMALL((Y$9:$AM$9)*ISNUMBER(Y45:$AM45),SUM(IF((Y$9:$AM$9)*ISNUMBER(Y45:$AM45)=0,1,0))+1)) -> 10 | Z67: =IF(Z$9=MAX($S$9:$AM$9),Z$9,SMALL((Z$9:$AM$9)*ISNUMBER(Z45:$AM45),SUM(IF((Z$9:$AM$9)*ISNUMBER(Z45:$AM45)=0,1,0))+1)) -> 10 | AA67: =IF(AA$9=MAX($S$9:$AM$9),AA$9,SMALL((AA$9:$AM$9)*ISNUMBER(AA45:$AM45),SUM(IF((AA$9:$AM$9)*ISNUMBER(AA45:$AM45)=0,1,0))+1)) -> 10 | AB67: =IF(AB$9=MAX($S$9:$AM$9),AB$9,SMALL((AB$9:$AM$9)*ISNUMBER(AB45:$AM45),SUM(IF((AB$9:$AM$9)*ISNUMBER(AB45:$AM45)=0,1,0))+1)) -> 10 | AC67: =IF(AC$9=MAX($S$9:$AM$9),AC$9,SMALL((AC$9:$AM$9)*ISNUMBER(AC45:$AM45),SUM(IF((AC$9:$AM$9)*ISNUMBER(AC45:$AM45)=0,1,0))+1)) -> 10
G68: West (Local) | I68: EP | S68: =IF(S$9=MAX($S$9:$AM$9),S$9,SMALL((S$9:$AM$9)*ISNUMBER(S46:$AM46),SUM(IF((S$9:$AM$9)*ISNUMBER(S46:$AM46)=0,1,0))+1)) -> 5 | T68: =IF(T$9=MAX($S$9:$AM$9),T$9,SMALL((T$9:$AM$9)*ISNUMBER(T46:$AM46),SUM(IF((T$9:$AM$9)*ISNUMBER(T46:$AM46)=0,1,0))+1)) -> 5 | U68: =IF(U$9=MAX($S$9:$AM$9),U$9,SMALL((U$9:$AM$9)*ISNUMBER(U46:$AM46),SUM(IF((U$9:$AM$9)*ISNUMBER(U46:$AM46)=0,1,0))+1)) -> 5 | V68: =IF(V$9=MAX($S$9:$AM$9),V$9,SMALL((V$9:$AM$9)*ISNUMBER(V46:$AM46),SUM(IF((V$9:$AM$9)*ISNUMBER(V46:$AM46)=0,1,0))+1)) -> 5 | W68: =IF(W$9=MAX($S$9:$AM$9),W$9,SMALL((W$9:$AM$9)*ISNUMBER(W46:$AM46),SUM(IF((W$9:$AM$9)*ISNUMBER(W46:$AM46)=0,1,0))+1)) -> 5 | X68: =IF(X$9=MAX($S$9:$AM$9),X$9,SMALL((X$9:$AM$9)*ISNUMBER(X46:$AM46),SUM(IF((X$9:$AM$9)*ISNUMBER(X46:$AM46)=0,1,0))+1)) -> 5 | Y68: =IF(Y$9=MAX($S$9:$AM$9),Y$9,SMALL((Y$9:$AM$9)*ISNUMBER(Y46:$AM46),SUM(IF((Y$9:$AM$9)*ISNUMBER(Y46:$AM46)=0,1,0))+1)) -> 10 | Z68: =IF(Z$9=MAX($S$9:$AM$9),Z$9,SMALL((Z$9:$AM$9)*ISNUMBER(Z46:$AM46),SUM(IF((Z$9:$AM$9)*ISNUMBER(Z46:$AM46)=0,1,0))+1)) -> 10 | AA68: =IF(AA$9=MAX($S$9:$AM$9),AA$9,SMALL((AA$9:$AM$9)*ISNUMBER(AA46:$AM46),SUM(IF((AA$9:$AM$9)*ISNUMBER(AA46:$AM46)=0,1,0))+1)) -> 10 | AB68: =IF(AB$9=MAX($S$9:$AM$9),AB$9,SMALL((AB$9:$AM$9)*ISNUMBER(AB46:$AM46),SUM(IF((AB$9:$AM$9)*ISNUMBER(AB46:$AM46)=0,1,0))+1)) -> 10 | AC68: =IF(AC$9=MAX($S$9:$AM$9),AC$9,SMALL((AC$9:$AM$9)*ISNUMBER(AC46:$AM46),SUM(IF((AC$9:$AM$9)*ISNUMBER(AC46:$AM46)=0,1,0))+1)) -> 10
G69: Brisbane wide (district & metro) | I69: EP | S69: =IF(S$9=MAX($S$9:$AM$9),S$9,SMALL((S$9:$AM$9)*ISNUMBER(S47:$AM47),SUM(IF((S$9:$AM$9)*ISNUMBER(S47:$AM47)=0,1,0))+1)) -> 5 | T69: =IF(T$9=MAX($S$9:$AM$9),T$9,SMALL((T$9:$AM$9)*ISNUMBER(T47:$AM47),SUM(IF((T$9:$AM$9)*ISNUMBER(T47:$AM47)=0,1,0))+1)) -> 5 | U69: =IF(U$9=MAX($S$9:$AM$9),U$9,SMALL((U$9:$AM$9)*ISNUMBER(U47:$AM47),SUM(IF((U$9:$AM$9)*ISNUMBER(U47:$AM47)=0,1,0))+1)) -> 5 | V69: =IF(V$9=MAX($S$9:$AM$9),V$9,SMALL((V$9:$AM$9)*ISNUMBER(V47:$AM47),SUM(IF((V$9:$AM$9)*ISNUMBER(V47:$AM47)=0,1,0))+1)) -> 5 | W69: =IF(W$9=MAX($S$9:$AM$9),W$9,SMALL((W$9:$AM$9)*ISNUMBER(W47:$AM47),SUM(IF((W$9:$AM$9)*ISNUMBER(W47:$AM47)=0,1,0))+1)) -> 5 | X69: =IF(X$9=MAX($S$9:$AM$9),X$9,SMALL((X$9:$AM$9)*ISNUMBER(X47:$AM47),SUM(IF((X$9:$AM$9)*ISNUMBER(X47:$AM47)=0,1,0))+1)) -> 5 | Y69: =IF(Y$9=MAX($S$9:$AM$9),Y$9,SMALL((Y$9:$AM$9)*ISNUMBER(Y47:$AM47),SUM(IF((Y$9:$AM$9)*ISNUMBER(Y47:$AM47)=0,1,0))+1)) -> 10 | Z69: =IF(Z$9=MAX($S$9:$AM$9),Z$9,SMALL((Z$9:$AM$9)*ISNUMBER(Z47:$AM47),SUM(IF((Z$9:$AM$9)*ISNUMBER(Z47:$AM47)=0,1,0))+1)) -> 10 | AA69: =IF(AA$9=MAX($S$9:$AM$9),AA$9,SMALL((AA$9:$AM$9)*ISNUMBER(AA47:$AM47),SUM(IF((AA$9:$AM$9)*ISNUMBER(AA47:$AM47)=0,1,0))+1)) -> 10 | AB69: =IF(AB$9=MAX($S$9:$AM$9),AB$9,SMALL((AB$9:$AM$9)*ISNUMBER(AB47:$AM47),SUM(IF((AB$9:$AM$9)*ISNUMBER(AB47:$AM47)=0,1,0))+1)) -> 10 | AC69: =IF(AC$9=MAX($S$9:$AM$9),AC$9,SMALL((AC$9:$AM$9)*ISNUMBER(AC47:$AM47),SUM(IF((AC$9:$AM$9)*ISNUMBER(AC47:$AM47)=0,1,0))+1)) -> 10
G71: Year of Previous Input
G72: =G65 -> East (Local) | I72: EP | S72: =IFERROR(SMALL(($R$9:S$9)*ISNUMBER($R43:S43),SUM(IF(($R$9:S$9)*ISNUMBER($R43:S43)<S$9,1,0))),S$9) -> 0 | T72: =IFERROR(SMALL(($R$9:T$9)*ISNUMBER($R43:T43),SUM(IF(($R$9:T$9)*ISNUMBER($R43:T43)<T$9,1,0))),T$9) -> 0 | U72: =IFERROR(SMALL(($R$9:U$9)*ISNUMBER($R43:U43),SUM(IF(($R$9:U$9)*ISNUMBER($R43:U43)<U$9,1,0))),U$9) -> 0 | V72: =IFERROR(SMALL(($R$9:V$9)*ISNUMBER($R43:V43),SUM(IF(($R$9:V$9)*ISNUMBER($R43:V43)<V$9,1,0))),V$9) -> 0 | W72: =IFERROR(SMALL(($R$9:W$9)*ISNUMBER($R43:W43),SUM(IF(($R$9:W$9)*ISNUMBER($R43:W43)<W$9,1,0))),W$9) -> 0 | X72: =IFERROR(SMALL(($R$9:X$9)*ISNUMBER($R43:X43),SUM(IF(($R$9:X$9)*ISNUMBER($R43:X43)<X$9,1,0))),X$9) -> 0 | Y72: =IFERROR(SMALL(($R$9:Y$9)*ISNUMBER($R43:Y43),SUM(IF(($R$9:Y$9)*ISNUMBER($R43:Y43)<Y$9,1,0))),Y$9) -> 5 | Z72: =IFERROR(SMALL(($R$9:Z$9)*ISNUMBER($R43:Z43),SUM(IF(($R$9:Z$9)*ISNUMBER($R43:Z43)<Z$9,1,0))),Z$9) -> 5 | AA72: =IFERROR(SMALL(($R$9:AA$9)*ISNUMBER($R43:AA43),SUM(IF(($R$9:AA$9)*ISNUMBER($R43:AA43)<AA$9,1,0))),AA$9) -> 5 | AB72: =IFERROR(SMALL(($R$9:AB$9)*ISNUMBER($R43:AB43),SUM(IF(($R$9:AB$9)*ISNUMBER($R43:AB43)<AB$9,1,0))),AB$9) -> 5 | AC72: =IFERROR(SMALL(($R$9:AC$9)*ISNUMBER($R43:AC43),SUM(IF(($R$9:AC$9)*ISNUMBER($R43:AC43)<AC$9,1,0))),AC$9) -> 5
G73: =G66 -> North (Local) | I73: EP | S73: =IFERROR(SMALL(($R$9:S$9)*ISNUMBER($R44:S44),SUM(IF(($R$9:S$9)*ISNUMBER($R44:S44)<S$9,1,0))),S$9) -> 0 | T73: =IFERROR(SMALL(($R$9:T$9)*ISNUMBER($R44:T44),SUM(IF(($R$9:T$9)*ISNUMBER($R44:T44)<T$9,1,0))),T$9) -> 0 | U73: =IFERROR(SMALL(($R$9:U$9)*ISNUMBER($R44:U44),SUM(IF(($R$9:U$9)*ISNUMBER($R44:U44)<U$9,1,0))),U$9) -> 0 | V73: =IFERROR(SMALL(($R$9:V$9)*ISNUMBER($R44:V44),SUM(IF(($R$9:V$9)*ISNUMBER($R44:V44)<V$9,1,0))),V$9) -> 0 | W73: =IFERROR(SMALL(($R$9:W$9)*ISNUMBER($R44:W44),SUM(IF(($R$9:W$9)*ISNUMBER($R44:W44)<W$9,1,0))),W$9) -> 0 | X73: =IFERROR(SMALL(($R$9:X$9)*ISNUMBER($R44:X44),SUM(IF(($R$9:X$9)*ISNUMBER($R44:X44)<X$9,1,0))),X$9) -> 0 | Y73: =IFERROR(SMALL(($R$9:Y$9)*ISNUMBER($R44:Y44),SUM(IF(($R$9:Y$9)*ISNUMBER($R44:Y44)<Y$9,1,0))),Y$9) -> 5 | Z73: =IFERROR(SMALL(($R$9:Z$9)*ISNUMBER($R44:Z44),SUM(IF(($R$9:Z$9)*ISNUMBER($R44:Z44)<Z$9,1,0))),Z$9) -> 5 | AA73: =IFERROR(SMALL(($R$9:AA$9)*ISNUMBER($R44:AA44),SUM(IF(($R$9:AA$9)*ISNUMBER($R44:AA44)<AA$9,1,0))),AA$9) -> 5 | AB73: =IFERROR(SMALL(($R$9:AB$9)*ISNUMBER($R44:AB44),SUM(IF(($R$9:AB$9)*ISNUMBER($R44:AB44)<AB$9,1,0))),AB$9) -> 5 | AC73: =IFERROR(SMALL(($R$9:AC$9)*ISNUMBER($R44:AC44),SUM(IF(($R$9:AC$9)*ISNUMBER($R44:AC44)<AC$9,1,0))),AC$9) -> 5
G74: South (Local) | I74: EP | S74: =IFERROR(SMALL(($R$9:S$9)*ISNUMBER($R45:S45),SUM(IF(($R$9:S$9)*ISNUMBER($R45:S45)<S$9,1,0))),S$9) -> 0 | T74: =IFERROR(SMALL(($R$9:T$9)*ISNUMBER($R45:T45),SUM(IF(($R$9:T$9)*ISNUMBER($R45:T45)<T$9,1,0))),T$9) -> 0 | U74: =IFERROR(SMALL(($R$9:U$9)*ISNUMBER($R45:U45),SUM(IF(($R$9:U$9)*ISNUMBER($R45:U45)<U$9,1,0))),U$9) -> 0 | V74: =IFERROR(SMALL(($R$9:V$9)*ISNUMBER($R45:V45),SUM(IF(($R$9:V$9)*ISNUMBER($R45:V45)<V$9,1,0))),V$9) -> 0 | W74: =IFERROR(SMALL(($R$9:W$9)*ISNUMBER($R45:W45),SUM(IF(($R$9:W$9)*ISNUMBER($R45:W45)<W$9,1,0))),W$9) -> 0 | X74: =IFERROR(SMALL(($R$9:X$9)*ISNUMBER($R45:X45),SUM(IF(($R$9:X$9)*ISNUMBER($R45:X45)<X$9,1,0))),X$9) -> 0 | Y74: =IFERROR(SMALL(($R$9:Y$9)*ISNUMBER($R45:Y45),SUM(IF(($R$9:Y$9)*ISNUMBER($R45:Y45)<Y$9,1,0))),Y$9) -> 5 | Z74: =IFERROR(SMALL(($R$9:Z$9)*ISNUMBER($R45:Z45),SUM(IF(($R$9:Z$9)*ISNUMBER($R45:Z45)<Z$9,1,0))),Z$9) -> 5 | AA74: =IFERROR(SMALL(($R$9:AA$9)*ISNUMBER($R45:AA45),SUM(IF(($R$9:AA$9)*ISNUMBER($R45:AA45)<AA$9,1,0))),AA$9) -> 5 | AB74: =IFERROR(SMALL(($R$9:AB$9)*ISNUMBER($R45:AB45),SUM(IF(($R$9:AB$9)*ISNUMBER($R45:AB45)<AB$9,1,0))),AB$9) -> 5 | AC74: =IFERROR(SMALL(($R$9:AC$9)*ISNUMBER($R45:AC45),SUM(IF(($R$9:AC$9)*ISNUMBER($R45:AC45)<AC$9,1,0))),AC$9) -> 5
G75: West (Local) | I75: EP | S75: =IFERROR(SMALL(($R$9:S$9)*ISNUMBER($R46:S46),SUM(IF(($R$9:S$9)*ISNUMBER($R46:S46)<S$9,1,0))),S$9) -> 0 | T75: =IFERROR(SMALL(($R$9:T$9)*ISNUMBER($R46:T46),SUM(IF(($R$9:T$9)*ISNUMBER($R46:T46)<T$9,1,0))),T$9) -> 0 | U75: =IFERROR(SMALL(($R$9:U$9)*ISNUMBER($R46:U46),SUM(IF(($R$9:U$9)*ISNUMBER($R46:U46)<U$9,1,0))),U$9) -> 0 | V75: =IFERROR(SMALL(($R$9:V$9)*ISNUMBER($R46:V46),SUM(IF(($R$9:V$9)*ISNUMBER($R46:V46)<V$9,1,0))),V$9) -> 0 | W75: =IFERROR(SMALL(($R$9:W$9)*ISNUMBER($R46:W46),SUM(IF(($R$9:W$9)*ISNUMBER($R46:W46)<W$9,1,0))),W$9) -> 0 | X75: =IFERROR(SMALL(($R$9:X$9)*ISNUMBER($R46:X46),SUM(IF(($R$9:X$9)*ISNUMBER($R46:X46)<X$9,1,0))),X$9) -> 0 | Y75: =IFERROR(SMALL(($R$9:Y$9)*ISNUMBER($R46:Y46),SUM(IF(($R$9:Y$9)*ISNUMBER($R46:Y46)<Y$9,1,0))),Y$9) -> 5 | Z75: =IFERROR(SMALL(($R$9:Z$9)*ISNUMBER($R46:Z46),SUM(IF(($R$9:Z$9)*ISNUMBER($R46:Z46)<Z$9,1,0))),Z$9) -> 5 | AA75: =IFERROR(SMALL(($R$9:AA$9)*ISNUMBER($R46:AA46),SUM(IF(($R$9:AA$9)*ISNUMBER($R46:AA46)<AA$9,1,0))),AA$9) -> 5 | AB75: =IFERROR(SMALL(($R$9:AB$9)*ISNUMBER($R46:AB46),SUM(IF(($R$9:AB$9)*ISNUMBER($R46:AB46)<AB$9,1,0))),AB$9) -> 5 | AC75: =IFERROR(SMALL(($R$9:AC$9)*ISNUMBER($R46:AC46),SUM(IF(($R$9:AC$9)*ISNUMBER($R46:AC46)<AC$9,1,0))),AC$9) -> 5
G76: Brisbane wide (district & metro) | I76: EP | S76: =IFERROR(SMALL(($R$9:S$9)*ISNUMBER($R47:S47),SUM(IF(($R$9:S$9)*ISNUMBER($R47:S47)<S$9,1,0))),S$9) -> 0 | T76: =IFERROR(SMALL(($R$9:T$9)*ISNUMBER($R47:T47),SUM(IF(($R$9:T$9)*ISNUMBER($R47:T47)<T$9,1,0))),T$9) -> 0 | U76: =IFERROR(SMALL(($R$9:U$9)*ISNUMBER($R47:U47),SUM(IF(($R$9:U$9)*ISNUMBER($R47:U47)<U$9,1,0))),U$9) -> 0 | V76: =IFERROR(SMALL(($R$9:V$9)*ISNUMBER($R47:V47),SUM(IF(($R$9:V$9)*ISNUMBER($R47:V47)<V$9,1,0))),V$9) -> 0 | W76: =IFERROR(SMALL(($R$9:W$9)*ISNUMBER($R47:W47),SUM(IF(($R$9:W$9)*ISNUMBER($R47:W47)<W$9,1,0))),W$9) -> 0 | X76: =IFERROR(SMALL(($R$9:X$9)*ISNUMBER($R47:X47),SUM(IF(($R$9:X$9)*ISNUMBER($R47:X47)<X$9,1,0))),X$9) -> 0 | Y76: =IFERROR(SMALL(($R$9:Y$9)*ISNUMBER($R47:Y47),SUM(IF(($R$9:Y$9)*ISNUMBER($R47:Y47)<Y$9,1,0))),Y$9) -> 5 | Z76: =IFERROR(SMALL(($R$9:Z$9)*ISNUMBER($R47:Z47),SUM(IF(($R$9:Z$9)*ISNUMBER($R47:Z47)<Z$9,1,0))),Z$9) -> 5 | AA76: =IFERROR(SMALL(($R$9:AA$9)*ISNUMBER($R47:AA47),SUM(IF(($R$9:AA$9)*ISNUMBER($R47:AA47)<AA$9,1,0))),AA$9) -> 5 | AB76: =IFERROR(SMALL(($R$9:AB$9)*ISNUMBER($R47:AB47),SUM(IF(($R$9:AB$9)*ISNUMBER($R47:AB47)<AB$9,1,0))),AB$9) -> 5 | AC76: =IFERROR(SMALL(($R$9:AC$9)*ISNUMBER($R47:AC47),SUM(IF(($R$9:AC$9)*ISNUMBER($R47:AC47)<AC$9,1,0))),AC$9) -> 5
G78: Annual Demand
G79: =G54 -> East (Local) | I79: EP | K79: =NPV(WACC_real,T79:AC79) -> 18430.1544 | M79: =SUM(T79:AC79) -> 24655 | S79: =IF(S$9=MIN($S$9:$AM$9),0,(INDEX($S43:$AM43,,S65+1)-INDEX($S43:$AM43,,S72+1))/(S65-S72)) -> 0 | T79: =IF(T$9=MIN($S$9:$AM$9),0,(INDEX($S43:$AM43,,T65+1)-INDEX($S43:$AM43,,T72+1))/(T65-T72)) -> 2661.2 | U79: =IF(U$9=MIN($S$9:$AM$9),0,(INDEX($S43:$AM43,,U65+1)-INDEX($S43:$AM43,,U72+1))/(U65-U72)) -> 2661.2 | V79: =IF(V$9=MIN($S$9:$AM$9),0,(INDEX($S43:$AM43,,V65+1)-INDEX($S43:$AM43,,V72+1))/(V65-V72)) -> 2661.2 | W79: =IF(W$9=MIN($S$9:$AM$9),0,(INDEX($S43:$AM43,,W65+1)-INDEX($S43:$AM43,,W72+1))/(W65-W72)) -> 2661.2 | X79: =IF(X$9=MIN($S$9:$AM$9),0,(INDEX($S43:$AM43,,X65+1)-INDEX($S43:$AM43,,X72+1))/(X65-X72)) -> 2661.2 | Y79: =IF(Y$9=MIN($S$9:$AM$9),0,(INDEX($S43:$AM43,,Y65+1)-INDEX($S43:$AM43,,Y72+1))/(Y65-Y72)) -> 2269.8 | Z79: =IF(Z$9=MIN($S$9:$AM$9),0,(INDEX($S43:$AM43,,Z65+1)-INDEX($S43:$AM43,,Z72+1))/(Z65-Z72)) -> 2269.8 | AA79: =IF(AA$9=MIN($S$9:$AM$9),0,(INDEX($S43:$AM43,,AA65+1)-INDEX($S43:$AM43,,AA72+1))/(AA65-AA72)) -> 2269.8 | AB79: =IF(AB$9=MIN($S$9:$AM$9),0,(INDEX($S43:$AM43,,AB65+1)-INDEX($S43:$AM43,,AB72+1))/(AB65-AB72)) -> 2269.8 | AC79: =IF(AC$9=MIN($S$9:$AM$9),0,(INDEX($S43:$AM43,,AC65+1)-INDEX($S43:$AM43,,AC72+1))/(AC65-AC72)) -> 2269.8
G80: =G55 -> North (Local) | I80: EP | K80: =NPV(WACC_real,T80:AC80) -> 24591.17785 | M80: =SUM(T80:AC80) -> 33161 | S80: =IF(S$9=MIN($S$9:$AM$9),0,(INDEX($S44:$AM44,,S66+1)-INDEX($S44:$AM44,,S73+1))/(S66-S73)) -> 0 | T80: =IF(T$9=MIN($S$9:$AM$9),0,(INDEX($S44:$AM44,,T66+1)-INDEX($S44:$AM44,,T73+1))/(T66-T73)) -> 3392 | U80: =IF(U$9=MIN($S$9:$AM$9),0,(INDEX($S44:$AM44,,U66+1)-INDEX($S44:$AM44,,U73+1))/(U66-U73)) -> 3392 | V80: =IF(V$9=MIN($S$9:$AM$9),0,(INDEX($S44:$AM44,,V66+1)-INDEX($S44:$AM44,,V73+1))/(V66-V73)) -> 3392 | W80: =IF(W$9=MIN($S$9:$AM$9),0,(INDEX($S44:$AM44,,W66+1)-INDEX($S44:$AM44,,W73+1))/(W66-W73)) -> 3392 | X80: =IF(X$9=MIN($S$9:$AM$9),0,(INDEX($S44:$AM44,,X66+1)-INDEX($S44:$AM44,,X73+1))/(X66-X73)) -> 3392 | Y80: =IF(Y$9=MIN($S$9:$AM$9),0,(INDEX($S44:$AM44,,Y66+1)-INDEX($S44:$AM44,,Y73+1))/(Y66-Y73)) -> 3240.2 | Z80: =IF(Z$9=MIN($S$9:$AM$9),0,(INDEX($S44:$AM44,,Z66+1)-INDEX($S44:$AM44,,Z73+1))/(Z66-Z73)) -> 3240.2 | AA80: =IF(AA$9=MIN($S$9:$AM$9),0,(INDEX($S44:$AM44,,AA66+1)-INDEX($S44:$AM44,,AA73+1))/(AA66-AA73)) -> 3240.2 | AB80: =IF(AB$9=MIN($S$9:$AM$9),0,(INDEX($S44:$AM44,,AB66+1)-INDEX($S44:$AM44,,AB73+1))/(AB66-AB73)) -> 3240.2 | AC80: =IF(AC$9=MIN($S$9:$AM$9),0,(INDEX($S44:$AM44,,AC66+1)-INDEX($S44:$AM44,,AC73+1))/(AC66-AC73)) -> 3240.2
G81: South (Local) | I81: EP | K81: =NPV(WACC_real,T81:AC81) -> 24691.42691 | M81: 32826 | S81: =IF(S$9=MIN($S$9:$AM$9),0,(INDEX($S45:$AM45,,S67+1)-INDEX($S45:$AM45,,S74+1))/(S67-S74)) -> 0 | T81: =IF(T$9=MIN($S$9:$AM$9),0,(INDEX($S45:$AM45,,T67+1)-INDEX($S45:$AM45,,T74+1))/(T67-T74)) -> 3688.6 | U81: =IF(U$9=MIN($S$9:$AM$9),0,(INDEX($S45:$AM45,,U67+1)-INDEX($S45:$AM45,,U74+1))/(U67-U74)) -> 3688.6 | V81: =IF(V$9=MIN($S$9:$AM$9),0,(INDEX($S45:$AM45,,V67+1)-INDEX($S45:$AM45,,V74+1))/(V67-V74)) -> 3688.6 | W81: =IF(W$9=MIN($S$9:$AM$9),0,(INDEX($S45:$AM45,,W67+1)-INDEX($S45:$AM45,,W74+1))/(W67-W74)) -> 3688.6 | X81: =IF(X$9=MIN($S$9:$AM$9),0,(INDEX($S45:$AM45,,X67+1)-INDEX($S45:$AM45,,X74+1))/(X67-X74)) -> 3688.6 | Y81: =IF(Y$9=MIN($S$9:$AM$9),0,(INDEX($S45:$AM45,,Y67+1)-INDEX($S45:$AM45,,Y74+1))/(Y67-Y74)) -> 2876.6 | Z81: =IF(Z$9=MIN($S$9:$AM$9),0,(INDEX($S45:$AM45,,Z67+1)-INDEX($S45:$AM45,,Z74+1))/(Z67-Z74)) -> 2876.6 | AA81: =IF(AA$9=MIN($S$9:$AM$9),0,(INDEX($S45:$AM45,,AA67+1)-INDEX($S45:$AM45,,AA74+1))/(AA67-AA74)) -> 2876.6 | AB81: =IF(AB$9=MIN($S$9:$AM$9),0,(INDEX($S45:$AM45,,AB67+1)-INDEX($S45:$AM45,,AB74+1))/(AB67-AB74)) -> 2876.6 | AC81: =IF(AC$9=MIN($S$9:$AM$9),0,(INDEX($S45:$AM45,,AC67+1)-INDEX($S45:$AM45,,AC74+1))/(AC67-AC74)) -> 2876.6
G82: West (Local) | I82: EP | K82: =NPV(WACC_real,T82:AC82) -> 14932.85061 | M82: 19616 | S82: =IF(S$9=MIN($S$9:$AM$9),0,(INDEX($S46:$AM46,,S68+1)-INDEX($S46:$AM46,,S75+1))/(S68-S75)) -> 0 | T82: =IF(T$9=MIN($S$9:$AM$9),0,(INDEX($S46:$AM46,,T68+1)-INDEX($S46:$AM46,,T75+1))/(T68-T75)) -> 2373 | U82: =IF(U$9=MIN($S$9:$AM$9),0,(INDEX($S46:$AM46,,U68+1)-INDEX($S46:$AM46,,U75+1))/(U68-U75)) -> 2373 | V82: =IF(V$9=MIN($S$9:$AM$9),0,(INDEX($S46:$AM46,,V68+1)-INDEX($S46:$AM46,,V75+1))/(V68-V75)) -> 2373 | W82: =IF(W$9=MIN($S$9:$AM$9),0,(INDEX($S46:$AM46,,W68+1)-INDEX($S46:$AM46,,W75+1))/(W68-W75)) -> 2373 | X82: =IF(X$9=MIN($S$9:$AM$9),0,(INDEX($S46:$AM46,,X68+1)-INDEX($S46:$AM46,,X75+1))/(X68-X75)) -> 2373 | Y82: =IF(Y$9=MIN($S$9:$AM$9),0,(INDEX($S46:$AM46,,Y68+1)-INDEX($S46:$AM46,,Y75+1))/(Y68-Y75)) -> 1550.2 | Z82: =IF(Z$9=MIN($S$9:$AM$9),0,(INDEX($S46:$AM46,,Z68+1)-INDEX($S46:$AM46,,Z75+1))/(Z68-Z75)) -> 1550.2 | AA82: =IF(AA$9=MIN($S$9:$AM$9),0,(INDEX($S46:$AM46,,AA68+1)-INDEX($S46:$AM46,,AA75+1))/(AA68-AA75)) -> 1550.2 | AB82: =IF(AB$9=MIN($S$9:$AM$9),0,(INDEX($S46:$AM46,,AB68+1)-INDEX($S46:$AM46,,AB75+1))/(AB68-AB75)) -> 1550.2 | AC82: =IF(AC$9=MIN($S$9:$AM$9),0,(INDEX($S46:$AM46,,AC68+1)-INDEX($S46:$AM46,,AC75+1))/(AC68-AC75)) -> 1550.2
G83: Brisbane wide (district & metro) | I83: EP | K83: =NPV(WACC_real,T83:AC83) -> 87807.83789 | M83: 117780 | S83: =IF(S$9=MIN($S$9:$AM$9),0,(INDEX($S47:$AM47,,S69+1)-INDEX($S47:$AM47,,S76+1))/(S69-S76)) -> 0 | T83: =IF(T$9=MIN($S$9:$AM$9),0,(INDEX($S47:$AM47,,T69+1)-INDEX($S47:$AM47,,T76+1))/(T69-T76)) -> 12489.6 | U83: =IF(U$9=MIN($S$9:$AM$9),0,(INDEX($S47:$AM47,,U69+1)-INDEX($S47:$AM47,,U76+1))/(U69-U76)) -> 12489.6 | V83: =IF(V$9=MIN($S$9:$AM$9),0,(INDEX($S47:$AM47,,V69+1)-INDEX($S47:$AM47,,V76+1))/(V69-V76)) -> 12489.6 | W83: =IF(W$9=MIN($S$9:$AM$9),0,(INDEX($S47:$AM47,,W69+1)-INDEX($S47:$AM47,,W76+1))/(W69-W76)) -> 12489.6 | X83: =IF(X$9=MIN($S$9:$AM$9),0,(INDEX($S47:$AM47,,X69+1)-INDEX($S47:$AM47,,X76+1))/(X69-X76)) -> 12489.6 | Y83: =IF(Y$9=MIN($S$9:$AM$9),0,(INDEX($S47:$AM47,,Y69+1)-INDEX($S47:$AM47,,Y76+1))/(Y69-Y76)) -> 11066.4 | Z83: =IF(Z$9=MIN($S$9:$AM$9),0,(INDEX($S47:$AM47,,Z69+1)-INDEX($S47:$AM47,,Z76+1))/(Z69-Z76)) -> 11066.4 | AA83: =IF(AA$9=MIN($S$9:$AM$9),0,(INDEX($S47:$AM47,,AA69+1)-INDEX($S47:$AM47,,AA76+1))/(AA69-AA76)) -> 11066.4 | AB83: =IF(AB$9=MIN($S$9:$AM$9),0,(INDEX($S47:$AM47,,AB69+1)-INDEX($S47:$AM47,,AB76+1))/(AB69-AB76)) -> 11066.4 | AC83: =IF(AC$9=MIN($S$9:$AM$9),0,(INDEX($S47:$AM47,,AC69+1)-INDEX($S47:$AM47,,AC76+1))/(AC69-AC76)) -> 11066.4
G85: Total | I85: EP | K85: =K83 -> 87807.83789 | M85: =M83 -> 117780 | S85: =S83 -> 0 | T85: 12489.6 | U85: 12489.6 | V85: 12489.6 | W85: 12489.6 | X85: 12489.6 | Y85: 11066.4 | Z85: 11066.4 | AA85: 11066.4 | AB85: 11066.4 | AC85: 11066.4
G87: Future Demand as a percentage of Ultimate Demand | I87: %
G89: Cumulative Total
G91: =G79 -> East (Local) | I91: EP | K91: =K54+K79 -> 289281.1544 | M91: =M54+M79 -> 295506 | N91: =RANK(K91,$K$91:$K$95) -> 4 | S91: =IF(S$17=0,S54,R91+S79) -> 270851 | T91: 273512.2 | U91: 276173.4 | V91: 278834.6 | W91: 281495.8 | X91: 284157 | Y91: 286426.8 | Z91: 288696.6 | AA91: 290966.4 | AB91: 293236.2 | AC91: 295506
G92: =G80 -> North (Local) | I92: EP | K92: =K55+K80 -> 234012.1778 | M92: =M55+M80 -> 242582 | N92: =RANK(K92,$K$91:$K$95) -> 5 | S92: =IF(S$17=0,S55,R92+S80) -> 209421 | T92: =IF(T$17=0,T55,S92+T80) -> 212813 | U92: =IF(U$17=0,U55,T92+U80) -> 216205 | V92: =IF(V$17=0,V55,U92+V80) -> 219597 | W92: =IF(W$17=0,W55,V92+W80) -> 222989 | X92: =IF(X$17=0,X55,W92+X80) -> 226381 | Y92: =IF(Y$17=0,Y55,X92+Y80) -> 229621.2 | Z92: =IF(Z$17=0,Z55,Y92+Z80) -> 232861.4 | AA92: =IF(AA$17=0,AA55,Z92+AA80) -> 236101.6 | AB92: =IF(AB$17=0,AB55,AA92+AB80) -> 239341.8 | AC92: =IF(AC$17=0,AC55,AB92+AC80) -> 242582
G93: South (Local) | I93: EP | K93: =K56+K81 -> 363635.4269 | M93: =M56+M81 -> 371770 | S93: 338944 | T93: 342632.6 | U93: 346321.2 | V93: 350009.8 | W93: 353698.4 | X93: 357387 | Y93: 360263.6 | Z93: 363140.2 | AA93: 366016.8 | AB93: 368893.4 | AC93: 371770
G94: West (Local) | I94: EP | K94: 333489.8506 | M94: 338173 | S94: 318557 | T94: 320930 | U94: 323303 | V94: 325676 | W94: 328049 | X94: 330422 | Y94: 331972.2 | Z94: 333522.4 | AA94: 335072.6 | AB94: 336622.8 | AC94: 338173
G95: Brisbane wide (district & metro) | I95: EP | K95: 1256496.838 | M95: 1286469 | N95: =RANK(K95,$K$91:$K$95) -> 1 | S95: 1168689 | T95: 1181178.6 | U95: 1193668.2 | V95: 1206157.8 | W95: 1218647.4 | X95: 1231137 | Y95: 1242203.4 | Z95: 1253269.8 | AA95: 1264336.2 | AB95: 1275402.6 | AC95: 1286469
G97: Total | I97: EP | K97: =K95 -> 1256496.838 | M97: =M95 -> 1286469 | S97: =S95 -> 1168689 | T97: 1181178.6 | U97: 1193668.2 | V97: 1206157.8 | W97: 1218647.4 | X97: 1231137 | Y97: 1242203.4 | Z97: 1253269.8 | AA97: 1264336.2 | AB97: 1275402.6 | AC97: 1286469
G99: Internal Checks | S99: =ROUND(IF(S49-S97,0),2) -> 0 | T99: =ROUND(IF(T49-T97,0),2) -> 0 | U99: 0 | V99: 0 | W99: 0 | X99: 0 | Y99: 0 | Z99: 0 | AA99: 0 | AB99: 0 | AC99: 0
F101: End of Page

Sheet Calculations
F19: =MID(CELL("filename",A15),FIND("]",CELL("filename",A15))+1,256) -> Calculations

Sheet Nominal Cost (Avg)
F2: Brisbane City Council
F3: ='Input-Gen'!$F$3 -> Schedule of Works Model - PUBLIC PARKS
F5: Allocation | G5: NPV of Total Cost
G6: =IF(BaseCaseCheck=0,BaseCase,NotBaseCase) -> Please Note: Model is not currently applying Base Case parameter values
G7: =IF(Integrity=0,IntOK,IntErr) -> 
G9: Period Number | K9: ="NPV as at" & " " & TEXT(Model_Start_Date-1,"dd-mmm-yyyy") -> NPV as at 30-Jun-2016 | M9: Difference between Input Value & Nominal Value | O9: Check | Q9: Total Nominal Value | S9: =ForecastPeriod -> 0 | T9: 1 | U9: 2 | V9: 3 | W9: 4 | X9: 5 | Y9: 6 | Z9: 7 | AA9: 8 | AB9: 9 | AC9: 10 | AD9: 0 | AE9: 0 | AF9: 0 | AG9: 0 | AH9: 0 | AI9: 0 | AJ9: 0 | AK9: 0 | AL9: 0 | AM9: 0
G10: Period Beginning Date | S10: =FY_Begin -> 2015-07-01 | T10: =FY_Begin -> 2016-07-01 | U10: 2017-07-01 | V10: 2018-07-01 | W10: 2019-07-01 | X10: 2020-07-01 | Y10: 2021-07-01 | Z10: 2022-07-01 | AA10: 2023-07-01 | AB10: 2024-07-01 | AC10: 2025-07-01
G11: Period Ending Date | S11: =FY_End -> 2016-06-30 | T11: =FY_End -> 2017-06-30 | U11: 2018-06-30 | V11: 2019-06-30 | W11: 2020-06-30 | X11: 2021-06-30 | Y11: 2022-06-30 | Z11: 2023-06-30 | AA11: 2024-06-30 | AB11: 2025-06-30 | AC11: 2026-06-30
F15: Index Calculations
G17: Cost and Revenue Indices
G18: Consumer Price Index (CPI) | I18: # | S18: ='Input-Time Series'!S31 -> 1 | T18: ='Input-Time Series'!T31 -> 1.025 | U18: ='Input-Time Series'!U31 -> 1.050625 | V18: ='Input-Time Series'!V31 -> 1.076890625 | W18: ='Input-Time Series'!W31 -> 1.103812891 | X18: ='Input-Time Series'!X31 -> 1.131408213 | Y18: ='Input-Time Series'!Y31 -> 1.159693418 | Z18: ='Input-Time Series'!Z31 -> 1.188685754 | AA18: ='Input-Time Series'!AA31 -> 1.218402898 | AB18: ='Input-Time Series'!AB31 -> 1.24886297 | AC18: ='Input-Time Series'!AC31 -> 1.280084544 | AD18: ='Input-Time Series'!AD31 -> 0 | AE18: ='Input-Time Series'!AE31 -> 0 | AF18: ='Input-Time Series'!AF31 -> 0 | AG18: ='Input-Time Series'!AG31 -> 0 | AH18: ='Input-Time Series'!AH31 -> 0 | AI18: ='Input-Time Series'!AI31 -> 0 | AJ18: ='Input-Time Series'!AJ31 -> 0 | AK18: ='Input-Time Series'!AK31 -> 0 | AL18: ='Input-Time Series'!AL31 -> 0 | AM18: ='Input-Time Series'!AM31 -> 0
G19: Land cost escalation | I19: # | S19: ='Input-Time Series'!S32 -> 1 | T19: ='Input-Time Series'!T32 -> 1.025 | U19: ='Input-Time Series'!U32 -> 1.050625 | V19: ='Input-Time Series'!V32 -> 1.076890625 | W19: ='Input-Time Series'!W32 -> 1.103812891 | X19: ='Input-Time Series'!X32 -> 1.131408213 | Y19: ='Input-Time Series'!Y32 -> 1.159693418 | Z19: ='Input-Time Series'!Z32 -> 1.188685754 | AA19: ='Input-Time Series'!AA32 -> 1.218402898 | AB19: ='Input-Time Series'!AB32 -> 1.24886297 | AC19: ='Input-Time Series'!AC32 -> 1.280084544 | AD19: ='Input-Time Series'!AD32 -> 0 | AE19: ='Input-Time Series'!AE32 -> 0 | AF19: ='Input-Time Series'!AF32 -> 0 | AG19: ='Input-Time Series'!AG32 -> 0 | AH19: ='Input-Time Series'!AH32 -> 0 | AI19: ='Input-Time Series'!AI32 -> 0 | AJ19: ='Input-Time Series'!AJ32 -> 0 | AK19: ='Input-Time Series'!AK32 -> 0 | AL19: ='Input-Time Series'!AL32 -> 0 | AM19: ='Input-Time Series'!AM32 -> 0
G20: Constructed Asset escalation | I20: # | S20: ='Input-Time Series'!S33 -> 1 | T20: ='Input-Time Series'!T33 -> 1.018725812 | U20: ='Input-Time Series'!U33 -> 1.037802281 | V20: ='Input-Time Series'!V33 -> 1.057235971 | W20: ='Input-Time Series'!W33 -> 1.077033574 | X20: ='Input-Time Series'!X33 -> 1.097201902 | Y20: ='Input-Time Series'!Y33 -> 1.117747899 | Z20: ='Input-Time Series'!Z33 -> 1.138678636 | AA20: ='Input-Time Series'!AA33 -> 1.160001319 | AB20: ='Input-Time Series'!AB33 -> 1.181723286 | AC20: ='Input-Time Series'!AC33 -> 1.203852014 | AD20: ='Input-Time Series'!AD33 -> 0 | AE20: ='Input-Time Series'!AE33 -> 0 | AF20: ='Input-Time Series'!AF33 -> 0 | AG20: ='Input-Time Series'!AG33 -> 0 | AH20: ='Input-Time Series'!AH33 -> 0 | AI20: ='Input-Time Series'!AI33 -> 0 | AJ20: ='Input-Time Series'!AJ33 -> 0 | AK20: ='Input-Time Series'!AK33 -> 0 | AL20: ='Input-Time Series'!AL33 -> 0 | AM20: ='Input-Time Series'!AM33 -> 0
G21: Administration cost escalation | I21: # | S21: ='Input-Time Series'!S34 -> 1 | T21: ='Input-Time Series'!T34 -> 1 | U21: ='Input-Time Series'!U34 -> 1 | V21: ='Input-Time Series'!V34 -> 1 | W21: ='Input-Time Series'!W34 -> 1 | X21: ='Input-Time Series'!X34 -> 1 | Y21: ='Input-Time Series'!Y34 -> 1 | Z21: ='Input-Time Series'!Z34 -> 1 | AA21: ='Input-Time Series'!AA34 -> 1 | AB21: ='Input-Time Series'!AB34 -> 1 | AC21: ='Input-Time Series'!AC34 -> 1 | AD21: ='Input-Time Series'!AD34 -> 0 | AE21: ='Input-Time Series'!AE34 -> 0 | AF21: ='Input-Time Series'!AF34 -> 0 | AG21: ='Input-Time Series'!AG34 -> 0 | AH21: ='Input-Time Series'!AH34 -> 0 | AI21: ='Input-Time Series'!AI34 -> 0 | AJ21: ='Input-Time Series'!AJ34 -> 0 | AK21: ='Input-Time Series'!AK34 -> 0 | AL21: ='Input-Time Series'!AL34 -> 0 | AM21: ='Input-Time Series'!AM34 -> 0
G22: Spare 1 escalation | I22: # | S22: ='Input-Time Series'!S35 -> 1 | T22: ='Input-Time Series'!T35 -> 1 | U22: ='Input-Time Series'!U35 -> 1 | V22: ='Input-Time Series'!V35 -> 1 | W22: ='Input-Time Series'!W35 -> 1 | X22: ='Input-Time Series'!X35 -> 1 | Y22: ='Input-Time Series'!Y35 -> 1 | Z22: ='Input-Time Series'!Z35 -> 1 | AA22: ='Input-Time Series'!AA35 -> 1 | AB22: ='Input-Time Series'!AB35 -> 1 | AC22: ='Input-Time Series'!AC35 -> 1 | AD22: ='Input-Time Series'!AD35 -> 0 | AE22: ='Input-Time Series'!AE35 -> 0 | AF22: ='Input-Time Series'!AF35 -> 0 | AG22: ='Input-Time Series'!AG35 -> 0 | AH22: ='Input-Time Series'!AH35 -> 0 | AI22: ='Input-Time Series'!AI35 -> 0 | AJ22: ='Input-Time Series'!AJ35 -> 0 | AK22: ='Input-Time Series'!AK35 -> 0 | AL22: ='Input-Time Series'!AL35 -> 0 | AM22: ='Input-Time Series'!AM35 -> 0
G23: Revenue escalation | I23: # | S23: ='Input-Time Series'!S36 -> 1 | T23: ='Input-Time Series'!T36 -> 1 | U23: ='Input-Time Series'!U36 -> 1 | V23: ='Input-Time Series'!V36 -> 1 | W23: ='Input-Time Series'!W36 -> 1 | X23: ='Input-Time Series'!X36 -> 1 | Y23: ='Input-Time Series'!Y36 -> 1 | Z23: ='Input-Time Series'!Z36 -> 1 | AA23: ='Input-Time Series'!AA36 -> 1 | AB23: ='Input-Time Series'!AB36 -> 1 | AC23: ='Input-Time Series'!AC36 -> 1 | AD23: ='Input-Time Series'!AD36 -> 0 | AE23: ='Input-Time Series'!AE36 -> 0 | AF23: ='Input-Time Series'!AF36 -> 0 | AG23: ='Input-Time Series'!AG36 -> 0 | AH23: ='Input-Time Series'!AH36 -> 0 | AI23: ='Input-Time Series'!AI36 -> 0 | AJ23: ='Input-Time Series'!AJ36 -> 0 | AK23: ='Input-Time Series'!AK36 -> 0 | AL23: ='Input-Time Series'!AL36 -> 0 | AM23: ='Input-Time Series'!AM36 -> 0
F26: Total costs
G28: Existing Infrastructure
G30: =Existing -> East (Local) | I30: $'000 | K30: =NPV(WACC_nom,T30:AC30)+S30 -> 445870.0518 | Q30: =SUM(S30:AC30) -> 445870.0518 | S30: =IF('Input-Infra'!$AL25>='Input-Gen'!$M$46,S839,0) + S1648 + S4075 -S2457 -> 445870.0518 | T30: =IF('Input-Infra'!$AL25>='Input-Gen'!$M$46,T839,0) + T1648 + T4075 -T2457 -> 0 | U30: =IF('Input-Infra'!$AL25>='Input-Gen'!$M$46,U839,0) + U1648 + U4075 -U2457 -> 0 | V30: =IF('Input-Infra'!$AL25>='Input-Gen'!$M$46,V839,0) + V1648 + V4075 -V2457 -> 0 | W30: =IF('Input-Infra'!$AL25>='Input-Gen'!$M$46,W839,0) + W1648 + W4075 -W2457 -> 0 | X30: =IF('Input-Infra'!$AL25>='Input-Gen'!$M$46,X839,0) + X1648 + X4075 -X2457 -> 0 | Y30: =IF('Input-Infra'!$AL25>='Input-Gen'!$M$46,Y839,0) + Y1648 + Y4075 -Y2457 -> 0 | Z30: =IF('Input-Infra'!$AL25>='Input-Gen'!$M$46,Z839,0) + Z1648 + Z4075 -Z2457 -> 0 | AA30: =IF('Input-Infra'!$AL25>='Input-Gen'!$M$46,AA839,0) + AA1648 + AA4075 -AA2457 -> 0 | AB30: =IF('Input-Infra'!$AL25>='Input-Gen'!$M$46,AB839,0) + AB1648 + AB4075 -AB2457 -> 0 | AC30: =IF('Input-Infra'!$AL25>='Input-Gen'!$M$46,AC839,0) + AC1648 + AC4075 -AC2457 -> 0 | AD30: =IF('Input-Infra'!$AL25>='Input-Gen'!$M$46,AD839,0) + AD1648 + AD4075 -AD2457 -> 0 | AE30: =IF('Input-Infra'!$AL25>='Input-Gen'!$M$46,AE839,0) + AE1648 + AE4075 -AE2457 -> 0 | AF30: =IF('Input-Infra'!$AL25>='Input-Gen'!$M$46,AF839,0) + AF1648 + AF4075 -AF2457 -> 0 | AG30: =IF('Input-Infra'!$AL25>='Input-Gen'!$M$46,AG839,0) + AG1648 + AG4075 -AG2457 -> 0 | AH30: =IF('Input-Infra'!$AL25>='Input-Gen'!$M$46,AH839,0) + AH1648 + AH4075 -AH2457 -> 0 | AI30: =IF('Input-Infra'!$AL25>='Input-Gen'!$M$46,AI839,0) + AI1648 + AI4075 -AI2457 -> 0 | AJ30: =IF('Input-Infra'!$AL25>='Input-Gen'!$M$46,AJ839,0) + AJ1648 + AJ4075 -AJ2457 -> 0 | AK30: =IF('Input-Infra'!$AL25>='Input-Gen'!$M$46,AK839,0) + AK1648 + AK4075 -AK2457 -> 0 | AL30: =IF('Input-Infra'!$AL25>='Input-Gen'!$M$46,AL839,0) + AL1648 + AL4075 -AL2457 -> 0 | AM30: =IF('Input-Infra'!$AL25>='Input-Gen'!$M$46,AM839,0) + AM1648 + AM4075 -AM2457 -> 0
G31: North (Local) | I31: $'000 | K31: 287880.5618 | Q31: =SUM(S31:AC31) -> 287880.5618 | S31: =IF('Input-Infra'!$AL26>='Input-Gen'!$M$46,S840,0) + S1649 + S4076 -S2458 -> 287880.5618 | T31: =IF('Input-Infra'!$AL26>='Input-Gen'!$M$46,T840,0) + T1649 + T4076 -T2458 -> 0 | U31: =IF('Input-Infra'!$AL26>='Input-Gen'!$M$46,U840,0) + U1649 + U4076 -U2458 -> 0 | V31: =IF('Input-Infra'!$AL26>='Input-Gen'!$M$46,V840,0) + V1649 + V4076 -V2458 -> 0 | W31: =IF('Input-Infra'!$AL26>='Input-Gen'!$M$46,W840,0) + W1649 + W4076 -W2458 -> 0 | X31: =IF('Input-Infra'!$AL26>='Input-Gen'!$M$46,X840,0) + X1649 + X4076 -X2458 -> 0 | Y31: =IF('Input-Infra'!$AL26>='Input-Gen'!$M$46,Y840,0) + Y1649 + Y4076 -Y2458 -> 0 | Z31: =IF('Input-Infra'!$AL26>='Input-Gen'!$M$46,Z840,0) + Z1649 + Z4076 -Z2458 -> 0 | AA31: =IF('Input-Infra'!$AL26>='Input-Gen'!$M$46,AA840,0) + AA1649 + AA4076 -AA2458 -> 0 | AB31: =IF('Input-Infra'!$AL26>='Input-Gen'!$M$46,AB840,0) + AB1649 + AB4076 -AB2458 -> 0 | AC31: =IF('Input-Infra'!$AL26>='Input-Gen'!$M$46,AC840,0) + AC1649 + AC4076 -AC2458 -> 0 | AD31: =IF('Input-Infra'!$AL26>='Input-Gen'!$M$46,AD840,0) + AD1649 + AD4076 -AD2458 -> 0 | AE31: =IF('Input-Infra'!$AL26>='Input-Gen'!$M$46,AE840,0) + AE1649 + AE4076 -AE2458 -> 0 | AF31: =IF('Input-Infra'!$AL26>='Input-Gen'!$M$46,AF840,0) + AF1649 + AF4076 -AF2458 -> 0 | AG31: =IF('Input-Infra'!$AL26>='Input-Gen'!$M$46,AG840,0) + AG1649 + AG4076 -AG2458 -> 0 | AH31: =IF('Input-Infra'!$AL26>='Input-Gen'!$M$46,AH840,0) + AH1649 + AH4076 -AH2458 -> 0 | AI31: =IF('Input-Infra'!$AL26>='Input-Gen'!$M$46,AI840,0) + AI1649 + AI4076 -AI2458 -> 0 | AJ31: =IF('Input-Infra'!$AL26>='Input-Gen'!$M$46,AJ840,0) + AJ1649 + AJ4076 -AJ2458 -> 0 | AK31: =IF('Input-Infra'!$AL26>='Input-Gen'!$M$46,AK840,0) + AK1649 + AK4076 -AK2458 -> 0 | AL31: =IF('Input-Infra'!$AL26>='Input-Gen'!$M$46,AL840,0) + AL1649 + AL4076 -AL2458 -> 0 | AM31: =IF('Input-Infra'!$AL26>='Input-Gen'!$M$46,AM840,0) + AM1649 + AM4076 -AM2458 -> 0
G32: South (Local) | I32: $'000 | K32: 494693.9202 | Q32: 494693.9202 | S32: =IF('Input-Infra'!$AL27>='Input-Gen'!$M$46,S841,0) + S1650 + S4077 -S2459 -> 494693.9202 | T32: =IF('Input-Infra'!$AL27>='Input-Gen'!$M$46,T841,0) + T1650 + T4077 -T2459 -> 0 | U32: =IF('Input-Infra'!$AL27>='Input-Gen'!$M$46,U841,0) + U1650 + U4077 -U2459 -> 0 | V32: =IF('Input-Infra'!$AL27>='Input-Gen'!$M$46,V841,0) + V1650 + V4077 -V2459 -> 0 | W32: =IF('Input-Infra'!$AL27>='Input-Gen'!$M$46,W841,0) + W1650 + W4077 -W2459 -> 0 | X32: =IF('Input-Infra'!$AL27>='Input-Gen'!$M$46,X841,0) + X1650 + X4077 -X2459 -> 0 | Y32: =IF('Input-Infra'!$AL27>='Input-Gen'!$M$46,Y841,0) + Y1650 + Y4077 -Y2459 -> 0 | Z32: =IF('Input-Infra'!$AL27>='Input-Gen'!$M$46,Z841,0) + Z1650 + Z4077 -Z2459 -> 0 | AA32: =IF('Input-Infra'!$AL27>='Input-Gen'!$M$46,AA841,0) + AA1650 + AA4077 -AA2459 -> 0 | AB32: =IF('Input-Infra'!$AL27>='Input-Gen'!$M$46,AB841,0) + AB1650 + AB4077 -AB2459 -> 0 | AC32: =IF('Input-Infra'!$AL27>='Input-Gen'!$M$46,AC841,0) + AC1650 + AC4077 -AC2459 -> 0 | AD32: =IF('Input-Infra'!$AL27>='Input-Gen'!$M$46,AD841,0) + AD1650 + AD4077 -AD2459 -> 0 | AE32: =IF('Input-Infra'!$AL27>='Input-Gen'!$M$46,AE841,0) + AE1650 + AE4077 -AE2459 -> 0 | AF32: =IF('Input-Infra'!$AL27>='Input-Gen'!$M$46,AF841,0) + AF1650 + AF4077 -AF2459 -> 0 | AG32: =IF('Input-Infra'!$AL27>='Input-Gen'!$M$46,AG841,0) + AG1650 + AG4077 -AG2459 -> 0 | AH32: =IF('Input-Infra'!$AL27>='Input-Gen'!$M$46,AH841,0) + AH1650 + AH4077 -AH2459 -> 0 | AI32: =IF('Input-Infra'!$AL27>='Input-Gen'!$M$46,AI841,0) + AI1650 + AI4077 -AI2459 -> 0 | AJ32: =IF('Input-Infra'!$AL27>='Input-Gen'!$M$46,AJ841,0) + AJ1650 + AJ4077 -AJ2459 -> 0 | AK32: =IF('Input-Infra'!$AL27>='Input-Gen'!$M$46,AK841,0) + AK1650 + AK4077 -AK2459 -> 0 | AL32: =IF('Input-Infra'!$AL27>='Input-Gen'!$M$46,AL841,0) + AL1650 + AL4077 -AL2459 -> 0 | AM32: =IF('Input-Infra'!$AL27>='Input-Gen'!$M$46,AM841,0) + AM1650 + AM4077 -AM2459 -> 0
G33: West (Local) | I33: $'000 | K33: 558218.3158 | Q33: 558218.3158 | S33: =IF('Input-Infra'!$AL28>='Input-Gen'!$M$46,S842,0) + S1651 + S4078 -S2460 -> 558218.3158 | T33: =IF('Input-Infra'!$AL28>='Input-Gen'!$M$46,T842,0) + T1651 + T4078 -T2460 -> 0 | U33: =IF('Input-Infra'!$AL28>='Input-Gen'!$M$46,U842,0) + U1651 + U4078 -U2460 -> 0 | V33: =IF('Input-Infra'!$AL28>='Input-Gen'!$M$46,V842,0) + V1651 + V4078 -V2460 -> 0 | W33: =IF('Input-Infra'!$AL28>='Input-Gen'!$M$46,W842,0) + W1651 + W4078 -W2460 -> 0 | X33: =IF('Input-Infra'!$AL28>='Input-Gen'!$M$46,X842,0) + X1651 + X4078 -X2460 -> 0 | Y33: =IF('Input-Infra'!$AL28>='Input-Gen'!$M$46,Y842,0) + Y1651 + Y4078 -Y2460 -> 0 | Z33: =IF('Input-Infra'!$AL28>='Input-Gen'!$M$46,Z842,0) + Z1651 + Z4078 -Z2460 -> 0 | AA33: =IF('Input-Infra'!$AL28>='Input-Gen'!$M$46,AA842,0) + AA1651 + AA4078 -AA2460 -> 0 | AB33: =IF('Input-Infra'!$AL28>='Input-Gen'!$M$46,AB842,0) + AB1651 + AB4078 -AB2460 -> 0 | AC33: =IF('Input-Infra'!$AL28>='Input-Gen'!$M$46,AC842,0) + AC1651 + AC4078 -AC2460 -> 0 | AD33: =IF('Input-Infra'!$AL28>='Input-Gen'!$M$46,AD842,0) + AD1651 + AD4078 -AD2460 -> 0 | AE33: =IF('Input-Infra'!$AL28>='Input-Gen'!$M$46,AE842,0) + AE1651 + AE4078 -AE2460 -> 0 | AF33: =IF('Input-Infra'!$AL28>='Input-Gen'!$M$46,AF842,0) + AF1651 + AF4078 -AF2460 -> 0 | AG33: =IF('Input-Infra'!$AL28>='Input-Gen'!$M$46,AG842,0) + AG1651 + AG4078 -AG2460 -> 0 | AH33: =IF('Input-Infra'!$AL28>='Input-Gen'!$M$46,AH842,0) + AH1651 + AH4078 -AH2460 -> 0 | AI33: =IF('Input-Infra'!$AL28>='Input-Gen'!$M$46,AI842,0) + AI1651 + AI4078 -AI2460 -> 0 | AJ33: =IF('Input-Infra'!$AL28>='Input-Gen'!$M$46,AJ842,0) + AJ1651 + AJ4078 -AJ2460 -> 0 | AK33: =IF('Input-Infra'!$AL28>='Input-Gen'!$M$46,AK842,0) + AK1651 + AK4078 -AK2460 -> 0 | AL33: =IF('Input-Infra'!$AL28>='Input-Gen'!$M$46,AL842,0) + AL1651 + AL4078 -AL2460 -> 0 | AM33: =IF('Input-Infra'!$AL28>='Input-Gen'!$M$46,AM842,0) + AM1651 + AM4078 -AM2460 -> 0
G34: Brisbane wide (district & metro) | I34: $'000 | K34: =NPV(WACC_nom,T34:AC34)+S34 -> 5703353.575 | Q34: 5703353.575 | S34: =IF('Input-Infra'!$AL29>='Input-Gen'!$M$46,S843,0) + S1652 + S4079 -S2461 -> 5703353.575 | T34: =IF('Input-Infra'!$AL29>='Input-Gen'!$M$46,T843,0) + T1652 + T4079 -T2461 -> 0 | U34: =IF('Input-Infra'!$AL29>='Input-Gen'!$M$46,U843,0) + U1652 + U4079 -U2461 -> 0 | V34: =IF('Input-Infra'!$AL29>='Input-Gen'!$M$46,V843,0) + V1652 + V4079 -V2461 -> 0 | W34: =IF('Input-Infra'!$AL29>='Input-Gen'!$M$46,W843,0) + W1652 + W4079 -W2461 -> 0 | X34: =IF('Input-Infra'!$AL29>='Input-Gen'!$M$46,X843,0) + X1652 + X4079 -X2461 -> 0 | Y34: =IF('Input-Infra'!$AL29>='Input-Gen'!$M$46,Y843,0) + Y1652 + Y4079 -Y2461 -> 0 | Z34: =IF('Input-Infra'!$AL29>='Input-Gen'!$M$46,Z843,0) + Z1652 + Z4079 -Z2461 -> 0 | AA34: =IF('Input-Infra'!$AL29>='Input-Gen'!$M$46,AA843,0) + AA1652 + AA4079 -AA2461 -> 0 | AB34: =IF('Input-Infra'!$AL29>='Input-Gen'!$M$46,AB843,0) + AB1652 + AB4079 -AB2461 -> 0 | AC34: =IF('Input-Infra'!$AL29>='Input-Gen'!$M$46,AC843,0) + AC1652 + AC4079 -AC2461 -> 0 | AD34: =IF('Input-Infra'!$AL29>='Input-Gen'!$M$46,AD843,0) + AD1652 + AD4079 -AD2461 -> 0 | AE34: =IF('Input-Infra'!$AL29>='Input-Gen'!$M$46,AE843,0) + AE1652 + AE4079 -AE2461 -> 0 | AF34: =IF('Input-Infra'!$AL29>='Input-Gen'!$M$46,AF843,0) + AF1652 + AF4079 -AF2461 -> 0 | AG34: =IF('Input-Infra'!$AL29>='Input-Gen'!$M$46,AG843,0) + AG1652 + AG4079 -AG2461 -> 0 | AH34: =IF('Input-Infra'!$AL29>='Input-Gen'!$M$46,AH843,0) + AH1652 + AH4079 -AH2461 -> 0 | AI34: =IF('Input-Infra'!$AL29>='Input-Gen'!$M$46,AI843,0) + AI1652 + AI4079 -AI2461 -> 0 | AJ34: =IF('Input-Infra'!$AL29>='Input-Gen'!$M$46,AJ843,0) + AJ1652 + AJ4079 -AJ2461 -> 0 | AK34: =IF('Input-Infra'!$AL29>='Input-Gen'!$M$46,AK843,0) + AK1652 + AK4079 -AK2461 -> 0 | AL34: =IF('Input-Infra'!$AL29>='Input-Gen'!$M$46,AL843,0) + AL1652 + AL4079 -AL2461 -> 0 | AM34: =IF('Input-Infra'!$AL29>='Input-Gen'!$M$46,AM843,0) + AM1652 + AM4079 -AM2461 -> 0
G35: 0 | I35: $'000 | K35: 0 | Q35: 0 | S35: =IF('Input-Infra'!$AL30>='Input-Gen'!$M$46,S844,0) + S1653 + S4080 -S2462 -> 0 | T35: =IF('Input-Infra'!$AL30>='Input-Gen'!$M$46,T844,0) + T1653 + T4080 -T2462 -> 0 | U35: =IF('Input-Infra'!$AL30>='Input-Gen'!$M$46,U844,0) + U1653 + U4080 -U2462 -> 0 | V35: =IF('Input-Infra'!$AL30>='Input-Gen'!$M$46,V844,0) + V1653 + V4080 -V2462 -> 0 | W35: =IF('Input-Infra'!$AL30>='Input-Gen'!$M$46,W844,0) + W1653 + W4080 -W2462 -> 0 | X35: =IF('Input-Infra'!$AL30>='Input-Gen'!$M$46,X844,0) + X1653 + X4080 -X2462 -> 0 | Y35: =IF('Input-Infra'!$AL30>='Input-Gen'!$M$46,Y844,0) + Y1653 + Y4080 -Y2462 -> 0 | Z35: =IF('Input-Infra'!$AL30>='Input-Gen'!$M$46,Z844,0) + Z1653 + Z4080 -Z2462 -> 0 | AA35: =IF('Input-Infra'!$AL30>='Input-Gen'!$M$46,AA844,0) + AA1653 + AA4080 -AA2462 -> 0 | AB35: =IF('Input-Infra'!$AL30>='Input-Gen'!$M$46,AB844,0) + AB1653 + AB4080 -AB2462 -> 0 | AC35: =IF('Input-Infra'!$AL30>='Input-Gen'!$M$46,AC844,0) + AC1653 + AC4080 -AC2462 -> 0 | AD35: =IF('Input-Infra'!$AL30>='Input-Gen'!$M$46,AD844,0) + AD1653 + AD4080 -AD2462 -> 0 | AE35: =IF('Input-Infra'!$AL30>='Input-Gen'!$M$46,AE844,0) + AE1653 + AE4080 -AE2462 -> 0 | AF35: =IF('Input-Infra'!$AL30>='Input-Gen'!$M$46,AF844,0) + AF1653 + AF4080 -AF2462 -> 0 | AG35: =IF('Input-Infra'!$AL30>='Input-Gen'!$M$46,AG844,0) + AG1653 + AG4080 -AG2462 -> 0 | AH35: =IF('Input-Infra'!$AL30>='Input-Gen'!$M$46,AH844,0) + AH1653 + AH4080 -AH2462 -> 0 | AI35: =IF('Input-Infra'!$AL30>='Input-Gen'!$M$46,AI844,0) + AI1653 + AI4080 -AI2462 -> 0 | AJ35: =IF('Input-Infra'!$AL30>='Input-Gen'!$M$46,AJ844,0) + AJ1653 + AJ4080 -AJ2462 -> 0 | AK35: =IF('Input-Infra'!$AL30>='Input-Gen'!$M$46,AK844,0) + AK1653 + AK4080 -AK2462 -> 0 | AL35: =IF('Input-Infra'!$AL30>='Input-Gen'!$M$46,AL844,0) + AL1653 + AL4080 -AL2462 -> 0 | AM35: =IF('Input-Infra'!$AL30>='Input-Gen'!$M$46,AM844,0) + AM1653 + AM4080 -AM2462 -> 0
G36: 0 | I36: $'000 | K36: 0 | Q36: 0 | S36: =IF('Input-Infra'!$AL31>='Input-Gen'!$M$46,S845,0) + S1654 + S4081 -S2463 -> 0 | T36: =IF('Input-Infra'!$AL31>='Input-Gen'!$M$46,T845,0) + T1654 + T4081 -T2463 -> 0 | U36: =IF('Input-Infra'!$AL31>='Input-Gen'!$M$46,U845,0) + U1654 + U4081 -U2463 -> 0 | V36: =IF('Input-Infra'!$AL31>='Input-Gen'!$M$46,V845,0) + V1654 + V4081 -V2463 -> 0 | W36: =IF('Input-Infra'!$AL31>='Input-Gen'!$M$46,W845,0) + W1654 + W4081 -W2463 -> 0 | X36: =IF('Input-Infra'!$AL31>='Input-Gen'!$M$46,X845,0) + X1654 + X4081 -X2463 -> 0 | Y36: =IF('Input-Infra'!$AL31>='Input-Gen'!$M$46,Y845,0) + Y1654 + Y4081 -Y2463 -> 0 | Z36: =IF('Input-Infra'!$AL31>='Input-Gen'!$M$46,Z845,0) + Z1654 + Z4081 -Z2463 -> 0 | AA36: =IF('Input-Infra'!$AL31>='Input-Gen'!$M$46,AA845,0) + AA1654 + AA4081 -AA2463 -> 0 | AB36: =IF('Input-Infra'!$AL31>='Input-Gen'!$M$46,AB845,0) + AB1654 + AB4081 -AB2463 -> 0 | AC36: =IF('Input-Infra'!$AL31>='Input-Gen'!$M$46,AC845,0) + AC1654 + AC4081 -AC2463 -> 0 | AD36: =IF('Input-Infra'!$AL31>='Input-Gen'!$M$46,AD845,0) + AD1654 + AD4081 -AD2463 -> 0 | AE36: =IF('Input-Infra'!$AL31>='Input-Gen'!$M$46,AE845,0) + AE1654 + AE4081 -AE2463 -> 0 | AF36: =IF('Input-Infra'!$AL31>='Input-Gen'!$M$46,AF845,0) + AF1654 + AF4081 -AF2463 -> 0 | AG36: =IF('Input-Infra'!$AL31>='Input-Gen'!$M$46,AG845,0) + AG1654 + AG4081 -AG2463 -> 0 | AH36: =IF('Input-Infra'!$AL31>='Input-Gen'!$M$46,AH845,0) + AH1654 + AH4081 -AH2463 -> 0 | AI36: =IF('Input-Infra'!$AL31>='Input-Gen'!$M$46,AI845,0) + AI1654 + AI4081 -AI2463 -> 0 | AJ36: =IF('Input-Infra'!$AL31>='Input-Gen'!$M$46,AJ845,0) + AJ1654 + AJ4081 -AJ2463 -> 0 | AK36: =IF('Input-Infra'!$AL31>='Input-Gen'!$M$46,AK845,0) + AK1654 + AK4081 -AK2463 -> 0 | AL36: =IF('Input-Infra'!$AL31>='Input-Gen'!$M$46,AL845,0) + AL1654 + AL4081 -AL2463 -> 0 | AM36: =IF('Input-Infra'!$AL31>='Input-Gen'!$M$46,AM845,0) + AM1654 + AM4081 -AM2463 -> 0
G37: 0 | I37: $'000 | K37: 0 | Q37: 0 | S37: =IF('Input-Infra'!$AL32>='Input-Gen'!$M$46,S846,0) + S1655 + S4082 -S2464 -> 0 | T37: =IF('Input-Infra'!$AL32>='Input-Gen'!$M$46,T846,0) + T1655 + T4082 -T2464 -> 0 | U37: =IF('Input-Infra'!$AL32>='Input-Gen'!$M$46,U846,0) + U1655 + U4082 -U2464 -> 0 | V37: =IF('Input-Infra'!$AL32>='Input-Gen'!$M$46,V846,0) + V1655 + V4082 -V2464 -> 0 | W37: =IF('Input-Infra'!$AL32>='Input-Gen'!$M$46,W846,0) + W1655 + W4082 -W2464 -> 0 | X37: =IF('Input-Infra'!$AL32>='Input-Gen'!$M$46,X846,0) + X1655 + X4082 -X2464 -> 0 | Y37: =IF('Input-Infra'!$AL32>='Input-Gen'!$M$46,Y846,0) + Y1655 + Y4082 -Y2464 -> 0 | Z37: =IF('Input-Infra'!$AL32>='Input-Gen'!$M$46,Z846,0) + Z1655 + Z4082 -Z2464 -> 0 | AA37: =IF('Input-Infra'!$AL32>='Input-Gen'!$M$46,AA846,0) + AA1655 + AA4082 -AA2464 -> 0 | AB37: =IF('Input-Infra'!$AL32>='Input-Gen'!$M$46,AB846,0) + AB1655 + AB4082 -AB2464 -> 0 | AC37: =IF('Input-Infra'!$AL32>='Input-Gen'!$M$46,AC846,0) + AC1655 + AC4082 -AC2464 -> 0 | AD37: =IF('Input-Infra'!$AL32>='Input-Gen'!$M$46,AD846,0) + AD1655 + AD4082 -AD2464 -> 0 | AE37: =IF('Input-Infra'!$AL32>='Input-Gen'!$M$46,AE846,0) + AE1655 + AE4082 -AE2464 -> 0 | AF37: =IF('Input-Infra'!$AL32>='Input-Gen'!$M$46,AF846,0) + AF1655 + AF4082 -AF2464 -> 0 | AG37: =IF('Input-Infra'!$AL32>='Input-Gen'!$M$46,AG846,0) + AG1655 + AG4082 -AG2464 -> 0 | AH37: =IF('Input-Infra'!$AL32>='Input-Gen'!$M$46,AH846,0) + AH1655 + AH4082 -AH2464 -> 0 | AI37: =IF('Input-Infra'!$AL32>='Input-Gen'!$M$46,AI846,0) + AI1655 + AI4082 -AI2464 -> 0 | AJ37: =IF('Input-Infra'!$AL32>='Input-Gen'!$M$46,AJ846,0) + AJ1655 + AJ4082 -AJ2464 -> 0 | AK37: =IF('Input-Infra'!$AL32>='Input-Gen'!$M$46,AK846,0) + AK1655 + AK4082 -AK2464 -> 0 | AL37: =IF('Input-Infra'!$AL32>='Input-Gen'!$M$46,AL846,0) + AL1655 + AL4082 -AL2464 -> 0 | AM37: =IF('Input-Infra'!$AL32>='Input-Gen'!$M$46,AM846,0) + AM1655 + AM4082 -AM2464 -> 0
G38: 0 | I38: $'000 | K38: 0 | Q38: 0 | S38: =IF('Input-Infra'!$AL33>='Input-Gen'!$M$46,S847,0) + S1656 + S4083 -S2465 -> 0 | T38: =IF('Input-Infra'!$AL33>='Input-Gen'!$M$46,T847,0) + T1656 + T4083 -T2465 -> 0 | U38: =IF('Input-Infra'!$AL33>='Input-Gen'!$M$46,U847,0) + U1656 + U4083 -U2465 -> 0 | V38: =IF('Input-Infra'!$AL33>='Input-Gen'!$M$46,V847,0) + V1656 + V4083 -V2465 -> 0 | W38: =IF('Input-Infra'!$AL33>='Input-Gen'!$M$46,W847,0) + W1656 + W4083 -W2465 -> 0 | X38: =IF('Input-Infra'!$AL33>='Input-Gen'!$M$46,X847,0) + X1656 + X4083 -X2465 -> 0 | Y38: =IF('Input-Infra'!$AL33>='Input-Gen'!$M$46,Y847,0) + Y1656 + Y4083 -Y2465 -> 0 | Z38: =IF('Input-Infra'!$AL33>='Input-Gen'!$M$46,Z847,0) + Z1656 + Z4083 -Z2465 -> 0 | AA38: =IF('Input-Infra'!$AL33>='Input-Gen'!$M$46,AA847,0) + AA1656 + AA4083 -AA2465 -> 0 | AB38: =IF('Input-Infra'!$AL33>='Input-Gen'!$M$46,AB847,0) + AB1656 + AB4083 -AB2465 -> 0 | AC38: =IF('Input-Infra'!$AL33>='Input-Gen'!$M$46,AC847,0) + AC1656 + AC4083 -AC2465 -> 0 | AD38: =IF('Input-Infra'!$AL33>='Input-Gen'!$M$46,AD847,0) + AD1656 + AD4083 -AD2465 -> 0 | AE38: =IF('Input-Infra'!$AL33>='Input-Gen'!$M$46,AE847,0) + AE1656 + AE4083 -AE2465 -> 0 | AF38: =IF('Input-Infra'!$AL33>='Input-Gen'!$M$46,AF847,0) + AF1656 + AF4083 -AF2465 -> 0 | AG38: =IF('Input-Infra'!$AL33>='Input-Gen'!$M$46,AG847,0) + AG1656 + AG4083 -AG2465 -> 0 | AH38: =IF('Input-Infra'!$AL33>='Input-Gen'!$M$46,AH847,0) + AH1656 + AH4083 -AH2465 -> 0 | AI38: =IF('Input-Infra'!$AL33>='Input-Gen'!$M$46,AI847,0) + AI1656 + AI4083 -AI2465 -> 0 | AJ38: =IF('Input-Infra'!$AL33>='Input-Gen'!$M$46,AJ847,0) + AJ1656 + AJ4083 -AJ2465 -> 0 | AK38: =IF('Input-Infra'!$AL33>='Input-Gen'!$M$46,AK847,0) + AK1656 + AK4083 -AK2465 -> 0 | AL38: =IF('Input-Infra'!$AL33>='Input-Gen'!$M$46,AL847,0) + AL1656 + AL4083 -AL2465 -> 0 | AM38: =IF('Input-Infra'!$AL33>='Input-Gen'!$M$46,AM847,0) + AM1656 + AM4083 -AM2465 -> 0
G39: 0 | I39: $'000 | K39: 0 | Q39: 0 | S39: =IF('Input-Infra'!$AL34>='Input-Gen'!$M$46,S848,0) + S1657 + S4084 -S2466 -> 0 | T39: =IF('Input-Infra'!$AL34>='Input-Gen'!$M$46,T848,0) + T1657 + T4084 -T2466 -> 0 | U39: =IF('Input-Infra'!$AL34>='Input-Gen'!$M$46,U848,0) + U1657 + U4084 -U2466 -> 0 | V39: =IF('Input-Infra'!$AL34>='Input-Gen'!$M$46,V848,0) + V1657 + V4084 -V2466 -> 0 | W39: =IF('Input-Infra'!$AL34>='Input-Gen'!$M$46,W848,0) + W1657 + W4084 -W2466 -> 0 | X39: =IF('Input-Infra'!$AL34>='Input-Gen'!$M$46,X848,0) + X1657 + X4084 -X2466 -> 0 | Y39: =IF('Input-Infra'!$AL34>='Input-Gen'!$M$46,Y848,0) + Y1657 + Y4084 -Y2466 -> 0 | Z39: =IF('Input-Infra'!$AL34>='Input-Gen'!$M$46,Z848,0) + Z1657 + Z4084 -Z2466 -> 0 | AA39: =IF('Input-Infra'!$AL34>='Input-Gen'!$M$46,AA848,0) + AA1657 + AA4084 -AA2466 -> 0 | AB39: =IF('Input-Infra'!$AL34>='Input-Gen'!$M$46,AB848,0) + AB1657 + AB4084 -AB2466 -> 0 | AC39: =IF('Input-Infra'!$AL34>='Input-Gen'!$M$46,AC848,0) + AC1657 + AC4084 -AC2466 -> 0 | AD39: =IF('Input-Infra'!$AL34>='Input-Gen'!$M$46,AD848,0) + AD1657 + AD4084 -AD2466 -> 0 | AE39: =IF('Input-Infra'!$AL34>='Input-Gen'!$M$46,AE848,0) + AE1657 + AE4084 -AE2466 -> 0 | AF39: =IF('Input-Infra'!$AL34>='Input-Gen'!$M$46,AF848,0) + AF1657 + AF4084 -AF2466 -> 0 | AG39: =IF('Input-Infra'!$AL34>='Input-Gen'!$M$46,AG848,0) + AG1657 + AG4084 -AG2466 -> 0 | AH39: =IF('Input-Infra'!$AL34>='Input-Gen'!$M$46,AH848,0) + AH1657 + AH4084 -AH2466 -> 0 | AI39: =IF('Input-Infra'!$AL34>='Input-Gen'!$M$46,AI848,0) + AI1657 + AI4084 -AI2466 -> 0 | AJ39: =IF('Input-Infra'!$AL34>='Input-Gen'!$M$46,AJ848,0) + AJ1657 + AJ4084 -AJ2466 -> 0 | AK39: =IF('Input-Infra'!$AL34>='Input-Gen'!$M$46,AK848,0) + AK1657 + AK4084 -AK2466 -> 0 | AL39: =IF('Input-Infra'!$AL34>='Input-Gen'!$M$46,AL848,0) + AL1657 + AL4084 -AL2466 -> 0 | AM39: =IF('Input-Infra'!$AL34>='Input-Gen'!$M$46,AM848,0) + AM1657 + AM4084 -AM2466 -> 0
G40: 0 | I40: $'000 | K40: 0 | Q40: 0 | S40: =IF('Input-Infra'!$AL35>='Input-Gen'!$M$46,S849,0) + S1658 + S4085 -S2467 -> 0 | T40: =IF('Input-Infra'!$AL35>='Input-Gen'!$M$46,T849,0) + T1658 + T4085 -T2467 -> 0 | U40: =IF('Input-Infra'!$AL35>='Input-Gen'!$M$46,U849,0) + U1658 + U4085 -U2467 -> 0 | V40: =IF('Input-Infra'!$AL35>='Input-Gen'!$M$46,V849,0) + V1658 + V4085 -V2467 -> 0 | W40: =IF('Input-Infra'!$AL35>='Input-Gen'!$M$46,W849,0) + W1658 + W4085 -W2467 -> 0 | X40: =IF('Input-Infra'!$AL35>='Input-Gen'!$M$46,X849,0) + X1658 + X4085 -X2467 -> 0 | Y40: =IF('Input-Infra'!$AL35>='Input-Gen'!$M$46,Y849,0) + Y1658 + Y4085 -Y2467 -> 0 | Z40: =IF('Input-Infra'!$AL35>='Input-Gen'!$M$46,Z849,0) + Z1658 + Z4085 -Z2467 -> 0 | AA40: =IF('Input-Infra'!$AL35>='Input-Gen'!$M$46,AA849,0) + AA1658 + AA4085 -AA2467 -> 0 | AB40: =IF('Input-Infra'!$AL35>='Input-Gen'!$M$46,AB849,0) + AB1658 + AB4085 -AB2467 -> 0 | AC40: =IF('Input-Infra'!$AL35>='Input-Gen'!$M$46,AC849,0) + AC1658 + AC4085 -AC2467 -> 0 | AD40: =IF('Input-Infra'!$AL35>='Input-Gen'!$M$46,AD849,0) + AD1658 + AD4085 -AD2467 -> 0 | AE40: =IF('Input-Infra'!$AL35>='Input-Gen'!$M$46,AE849,0) + AE1658 + AE4085 -AE2467 -> 0 | AF40: =IF('Input-Infra'!$AL35>='Input-Gen'!$M$46,AF849,0) + AF1658 + AF4085 -AF2467 -> 0 | AG40: =IF('Input-Infra'!$AL35>='Input-Gen'!$M$46,AG849,0) + AG1658 + AG4085 -AG2467 -> 0 | AH40: =IF('Input-Infra'!$AL35>='Input-Gen'!$M$46,AH849,0) + AH1658 + AH4085 -AH2467 -> 0 | AI40: =IF('Input-Infra'!$AL35>='Input-Gen'!$M$46,AI849,0) + AI1658 + AI4085 -AI2467 -> 0 | AJ40: =IF('Input-Infra'!$AL35>='Input-Gen'!$M$46,AJ849,0) + AJ1658 + AJ4085 -AJ2467 -> 0 | AK40: =IF('Input-Infra'!$AL35>='Input-Gen'!$M$46,AK849,0) + AK1658 + AK4085 -AK2467 -> 0 | AL40: =IF('Input-Infra'!$AL35>='Input-Gen'!$M$46,AL849,0) + AL1658 + AL4085 -AL2467 -> 0 | AM40: =IF('Input-Infra'!$AL35>='Input-Gen'!$M$46,AM849,0) + AM1658 + AM4085 -AM2467 -> 0
